Workbook

Sheet Trainer
I1: =I52 -> 0 | J1: =J52 -> 1 | K1: 2 | L1: 3 | M1: 4 | N1: 5 | O1: 6 | P1: 7 | Q1: 8 | R1: 9 | S1: 10 | T1: 11 | U1: 12 | V1: 13 | W1: 14 | X1: 15 | Y1: 16 | Z1: 17 | AA1: 18 | AB1: 19 | AC1: 20 | AD1: 21 | AE1: 22 | AF1: 23 | AG1: 24 | AH1: 25 | AI1: 26 | AJ1: 27 | AK1: 28 | AL1: 29 | AM1: 30 | AN1: 31 | AO1: 32 | AP1: 33 | AQ1: 34 | AR1: 35 | AS1: 36 | AT1: 37 | AU1: 38 | AV1: 39 | AW1: 40 | AX1: 41 | AY1: 42 | AZ1: 43 | BA1: 44 | BB1: 45 | BC1: 46 | BD1: 47 | BE1: 48 | BF1: 49 | BG1: 50 | BH1: 51 | BI1: 52 | BJ1: 53 | BK1: 54 | BL1: 55 | BM1: 56 | BN1: 57 | BO1: 58 | BP1: 59 | BQ1: 60 | BR1: 61 | BS1: 62 | BT1: 63 | BU1: 64 | BV1: =BV52 -> 65 | BW1: 66 | BX1: 67 | BY1: 68 | BZ1: 69 | CA1: 70 | CB1: 71 | CC1: 72 | CD1: 73 | CE1: 74 | CF1: 75 | CG1: 76 | CH1: 77 | CI1: 78 | CJ1: 79 | CK1: 80 | CL1: 81 | CM1: 82 | CN1: 83 | CO1: 84 | CP1: 85 | CQ1: 86 | CR1: 87 | CS1: 88 | CT1: 89 | CU1: 90 | CV1: 91 | CW1: 92 | CX1: 93 | CY1: 94 | CZ1: 95 | DA1: 96 | DB1: 97 | DC1: 98 | DD1: 99 | DE1: 100
A2: Enter Character Name Here | J2: Note: This is a modified version of Elfarran's spreadsheet trainer. I've modified and improved it over the years, but credit belongs to Elfarran for the original design. --Tsoran
A3: GemStone IV | J3: Spreadsheet V4.3 | N3: Tsoran deArgonoth http://www.tsoran.com/ mailto:tsoran@tsoran.com AIM: GSTsoran
N4: CMAN tables updated by Bobmuhthol mailto:bobmuhthol@gmail.com AIM: Bobmuhthol
H5: Inter-Level | N5: Monk Information updated by Kithus mailto:kkorandanis@gmail.com AIM: KithusSilverStrk
G6: Modified
G7: Stats | N7: Statistics Growth
E8: Level | G8: =0 -> 0
B9: Class | D9: 1 | H9: =TARGET_LEVEL -> 10 | I9: =I52 -> 0 | J9: 1 | K9: 2 | L9: 3 | M9: 4 | N9: 5 | O9: 6 | P9: 7 | Q9: 8 | R9: 9 | S9: 10 | T9: 11 | U9: 12 | V9: 13 | W9: 14 | X9: 15 | Y9: 16 | Z9: 17 | AA9: 18 | AB9: 19 | AC9: 20 | AD9: 21 | AE9: 22 | AF9: 23 | AG9: 24 | AH9: 25 | AI9: 26 | AJ9: =AJ52 -> 27 | AK9: 28 | AL9: 29 | AM9: 30 | AN9: 31 | AO9: 32 | AP9: 33 | AQ9: 34 | AR9: 35 | AS9: 36 | AT9: 37 | AU9: 38 | AV9: 39 | AW9: 40 | AX9: 41 | AY9: 42 | AZ9: 43 | BA9: 44 | BB9: 45 | BC9: 46 | BD9: 47 | BE9: 48 | BF9: 49 | BG9: 50 | BH9: 51 | BI9: 52 | BJ9: 53 | BK9: 54 | BL9: 55 | BM9: 56 | BN9: 57 | BO9: 58 | BP9: 59 | BQ9: 60 | BR9: 61 | BS9: 62 | BT9: 63 | BU9: 64 | BV9: 65 | BW9: 66 | BX9: 67 | BY9: 68 | BZ9: 69 | CA9: 70 | CB9: 71 | CC9: 72 | CD9: 73 | CE9: 74 | CF9: 75 | CG9: 76 | CH9: 77 | CI9: 78 | CJ9: 79 | CK9: 80 | CL9: 81 | CM9: 82 | CN9: 83 | CO9: 84 | CP9: 85 | CQ9: 86 | CR9: 87 | CS9: 88 | CT9: 89 | CU9: 90 | CV9: =CV52 -> 91 | CW9: 92 | CX9: 93 | CY9: 94 | CZ9: 95 | DA9: 96 | DB9: 97 | DC9: 98 | DD9: 99 | DE9: 100 | DF9: Post
E10: STR | F10: =IF(OR(ProfIdx=1,ProfIdx=9,),"P",IF(ProfIdx=10,"S","")) -> P | G10: 0 | H10: =IF(TOTAL_EXP>7572500,DF10,INDEX(I10:DE10,1,TARGET_LEVEL+1)) -> 10 | I10: =G10 -> 0 | J10: =MIN(I10+IF(MOD(J$9,MAX(INT(I10/$G33),1))=0,1,0),100) -> 1 | K10: 2 | L10: 3 | M10: 4 | N10: 5 | O10: 6 | P10: 7 | Q10: 8 | R10: 9 | S10: 10 | T10: 11 | U10: 12 | V10: 13 | W10: 14 | X10: 15 | Y10: 16 | Z10: 17 | AA10: 18 | AB10: 19 | AC10: 20 | AD10: 21 | AE10: 22 | AF10: 23 | AG10: 24 | AH10: 25 | AI10: 26 | AJ10: 27 | AK10: 28 | AL10: 29 | AM10: 30 | AN10: 31 | AO10: 32 | AP10: =MIN(AO10+IF(MOD(AP$9,MAX(INT(AO10/$G33),1))=0,1,0),100) -> 33 | AQ10: 34 | AR10: 35 | AS10: 36 | AT10: 37 | AU10: 38 | AV10: 39 | AW10: 40 | AX10: 41 | AY10: 42 | AZ10: 43 | BA10: 44 | BB10: 45 | BC10: 46 | BD10: 47 | BE10: 48 | BF10: 49 | BG10: 50 | BH10: 51 | BI10: 52 | BJ10: 53 | BK10: 54 | BL10: 55 | BM10: 56 | BN10: 57 | BO10: 58 | BP10: 59 | BQ10: =MIN(BP10+IF(MOD(BQ$9,MAX(INT(BP10/$G33),1))=0,1,0),100) -> 60 | BR10: 61 | BS10: 62 | BT10: 63 | BU10: 64 | BV10: =MIN(BU10+IF(MOD(BV$9,MAX(INT(BU10/$G33),1))=0,1,0),100) -> 64 | BW10: 65 | BX10: 65 | BY10: 66 | BZ10: 66 | CA10: 67 | CB10: 67 | CC10: 68 | CD10: 68 | CE10: 69 | CF10: 69 | CG10: 70 | CH10: 70 | CI10: 71 | CJ10: 71 | CK10: 72 | CL10: 72 | CM10: 73 | CN10: 73 | CO10: 74 | CP10: 74 | CQ10: 75 | CR10: 75 | CS10: 76 | CT10: 76 | CU10: 77 | CV10: 77 | CW10: 78 | CX10: 78 | CY10: 79 | CZ10: 79 | DA10: 80 | DB10: 80 | DC10: 81 | DD10: 81 | DE10: 82 | DF10: =DE10 -> 82 | IV10: =Buffer!D297 -> 1
B11: Race | D11: 1 | E11: CON | F11: =IF(ProfIdx=1,"S","") -> S | G11: 0 | H11: 10 | I11: 0 | J11: =MIN(I11+IF(MOD(J$9,MAX(INT(I11/$G34),1))=0,1,0),100) -> 1 | K11: 2 | L11: 3 | M11: 4 | N11: 5 | O11: 6 | P11: 7 | Q11: 8 | R11: 9 | S11: 10 | T11: 11 | U11: 12 | V11: 13 | W11: 14 | X11: 15 | Y11: 16 | Z11: 17 | AA11: 18 | AB11: 19 | AC11: 20 | AD11: 21 | AE11: 22 | AF11: 23 | AG11: 24 | AH11: 25 | AI11: 26 | AJ11: 27 | AK11: 28 | AL11: 29 | AM11: 30 | AN11: 31 | AO11: 32 | AP11: =MIN(AO11+IF(MOD(AP$9,MAX(INT(AO11/$G34),1))=0,1,0),100) -> 33 | AQ11: 34 | AR11: 35 | AS11: 36 | AT11: 37 | AU11: 38 | AV11: 39 | AW11: 40 | AX11: 41 | AY11: 42 | AZ11: 43 | BA11: 44 | BB11: 45 | BC11: 46 | BD11: 47 | BE11: 48 | BF11: 49 | BG11: 50 | BH11: 51 | BI11: 52 | BJ11: 53 | BK11: 54 | BL11: 54 | BM11: 55 | BN11: 55 | BO11: 56 | BP11: 56 | BQ11: 57 | BR11: 57 | BS11: 58 | BT11: 58 | BU11: 59 | BV11: =MIN(BU11+IF(MOD(BV$9,MAX(INT(BU11/$G34),1))=0,1,0),100) -> 59 | BW11: 60 | BX11: 60 | BY11: 61 | BZ11: 61 | CA11: 62 | CB11: 62 | CC11: 63 | CD11: 63 | CE11: 64 | CF11: 64 | CG11: 65 | CH11: 65 | CI11: 66 | CJ11: 66 | CK11: 67 | CL11: 67 | CM11: 68 | CN11: 68 | CO11: 69 | CP11: 69 | CQ11: 70 | CR11: 70 | CS11: 71 | CT11: 71 | CU11: 72 | CV11: 72 | CW11: 73 | CX11: 73 | CY11: 74 | CZ11: 74 | DA11: 75 | DB11: 75 | DC11: 76 | DD11: 76 | DE11: 77 | DF11: =DE11 -> 77 | IV11: =Buffer!D298 -> 1
A12: Hidden Level: | B12: 101 | E12: DEX | F12: =IF(ProfIdx=7,"P",IF(ProfIdx=2,"S","")) ->  | G12: 0 | H12: 10 | I12: 0 | J12: =MIN(I12+IF(MOD(J$9,MAX(INT(I12/$G35),1))=0,1,0),100) -> 1 | K12: 2 | L12: 3 | M12: 4 | N12: 5 | O12: 6 | P12: 7 | Q12: 8 | R12: 9 | S12: 10 | T12: 11 | U12: 12 | V12: 13 | W12: 14 | X12: 15 | Y12: 16 | Z12: 17 | AA12: 18 | AB12: 19 | AC12: 20 | AD12: 21 | AE12: 22 | AF12: 23 | AG12: 24 | AH12: 25 | AI12: 26 | AJ12: 27 | AK12: 28 | AL12: 29 | AM12: 30 | AN12: 31 | AO12: 32 | AP12: =MIN(AO12+IF(MOD(AP$9,MAX(INT(AO12/$G35),1))=0,1,0),100) -> 33 | AQ12: 34 | AR12: 35 | AS12: 36 | AT12: 37 | AU12: 38 | AV12: 39 | AW12: 40 | AX12: 41 | AY12: 42 | AZ12: 43 | BA12: 44 | BB12: 45 | BC12: 46 | BD12: 47 | BE12: 48 | BF12: 49 | BG12: 50 | BH12: 50 | BI12: 51 | BJ12: 51 | BK12: 52 | BL12: 52 | BM12: 53 | BN12: 53 | BO12: 54 | BP12: 54 | BQ12: 55 | BR12: 55 | BS12: 56 | BT12: 56 | BU12: 57 | BV12: =MIN(BU12+IF(MOD(BV$9,MAX(INT(BU12/$G35),1))=0,1,0),100) -> 57 | BW12: 58 | BX12: 58 | BY12: 59 | BZ12: 59 | CA12: 60 | CB12: 60 | CC12: 61 | CD12: 61 | CE12: 62 | CF12: 62 | CG12: 63 | CH12: 63 | CI12: 64 | CJ12: 64 | CK12: 65 | CL12: 65 | CM12: 66 | CN12: 66 | CO12: 67 | CP12: 67 | CQ12: 68 | CR12: 68 | CS12: 69 | CT12: 69 | CU12: 70 | CV12: 70 | CW12: 71 | CX12: 71 | CY12: 72 | CZ12: 72 | DA12: 73 | DB12: 73 | DC12: 74 | DD12: 74 | DE12: 75 | DF12: 75 | IV12: =Buffer!D299 -> 1
A13: Target Level: | B13: =VLOOKUP(TOTAL_EXP,tbLevels2,3,TRUE) -> 10 | E13: AGL | F13: =IF(ProfIdx=2,"P",IF(ProfIdx=10,"P","")) ->  | G13: 0 | H13: 10 | I13: 0 | J13: =MIN(I13+IF(MOD(J$9,MAX(INT(I13/$G36),1))=0,1,0),100) -> 1 | K13: 2 | L13: 3 | M13: 4 | N13: 5 | O13: 6 | P13: 7 | Q13: 8 | R13: 9 | S13: 10 | T13: 11 | U13: 12 | V13: 13 | W13: 14 | X13: 15 | Y13: 16 | Z13: 17 | AA13: 18 | AB13: 19 | AC13: 20 | AD13: 21 | AE13: 22 | AF13: 23 | AG13: 24 | AH13: 25 | AI13: 26 | AJ13: 27 | AK13: 28 | AL13: 29 | AM13: 30 | AN13: 31 | AO13: 32 | AP13: =MIN(AO13+IF(MOD(AP$9,MAX(INT(AO13/$G36),1))=0,1,0),100) -> 33 | AQ13: 34 | AR13: 35 | AS13: 36 | AT13: 37 | AU13: 38 | AV13: 39 | AW13: 40 | AX13: 41 | AY13: 42 | AZ13: 43 | BA13: 44 | BB13: 45 | BC13: 46 | BD13: 47 | BE13: 48 | BF13: 49 | BG13: 50 | BH13: 50 | BI13: 51 | BJ13: 51 | BK13: 52 | BL13: 52 | BM13: 53 | BN13: 53 | BO13: 54 | BP13: 54 | BQ13: 55 | BR13: 55 | BS13: 56 | BT13: 56 | BU13: 57 | BV13: =MIN(BU13+IF(MOD(BV$9,MAX(INT(BU13/$G36),1))=0,1,0),100) -> 57 | BW13: 58 | BX13: 58 | BY13: 59 | BZ13: 59 | CA13: 60 | CB13: 60 | CC13: 61 | CD13: 61 | CE13: 62 | CF13: 62 | CG13: 63 | CH13: 63 | CI13: 64 | CJ13: 64 | CK13: 65 | CL13: 65 | CM13: 66 | CN13: 66 | CO13: 67 | CP13: 67 | CQ13: 68 | CR13: 68 | CS13: 69 | CT13: 69 | CU13: 70 | CV13: 70 | CW13: 71 | CX13: 71 | CY13: 72 | CZ13: 72 | DA13: 73 | DB13: 73 | DC13: 74 | DD13: 74 | DE13: 75 | DF13: 75 | IV13: =Buffer!D300 -> 1
E14: DIS | F14: =IF(ProfIdx=11,"S","") ->  | G14: 0 | H14: 10 | I14: 0 | J14: =MIN(I14+IF(MOD(J$9,MAX(INT(I14/$G37),1))=0,1,0),100) -> 1 | K14: 2 | L14: 3 | M14: 4 | N14: 5 | O14: 6 | P14: 7 | Q14: 8 | R14: 9 | S14: 10 | T14: 11 | U14: 12 | V14: 13 | W14: 14 | X14: 15 | Y14: 16 | Z14: 17 | AA14: 18 | AB14: 19 | AC14: 20 | AD14: 21 | AE14: 22 | AF14: 23 | AG14: 24 | AH14: 25 | AI14: 26 | AJ14: 27 | AK14: 28 | AL14: 29 | AM14: 30 | AN14: 31 | AO14: 32 | AP14: =MIN(AO14+IF(MOD(AP$9,MAX(INT(AO14/$G37),1))=0,1,0),100) -> 33 | AQ14: 34 | AR14: 35 | AS14: 36 | AT14: 37 | AU14: 38 | AV14: 39 | AW14: 40 | AX14: 40 | AY14: 41 | AZ14: 41 | BA14: 42 | BB14: 42 | BC14: 43 | BD14: 43 | BE14: 44 | BF14: 44 | BG14: 45 | BH14: 45 | BI14: 46 | BJ14: 46 | BK14: 47 | BL14: 47 | BM14: 48 | BN14: 48 | BO14: 49 | BP14: 49 | BQ14: 50 | BR14: 50 | BS14: 51 | BT14: 51 | BU14: 52 | BV14: =MIN(BU14+IF(MOD(BV$9,MAX(INT(BU14/$G37),1))=0,1,0),100) -> 52 | BW14: 53 | BX14: 53 | BY14: 54 | BZ14: 54 | CA14: 55 | CB14: 55 | CC14: 56 | CD14: 56 | CE14: 57 | CF14: 57 | CG14: 58 | CH14: 58 | CI14: 59 | CJ14: 59 | CK14: 60 | CL14: 61 | CM14: 61 | CN14: 61 | CO14: 62 | CP14: 62 | CQ14: 62 | CR14: 63 | CS14: 63 | CT14: 63 | CU14: 64 | CV14: 64 | CW14: 64 | CX14: 65 | CY14: 65 | CZ14: 65 | DA14: 66 | DB14: 66 | DC14: 66 | DD14: 67 | DE14: 67 | DF14: 67 | IV14: =Buffer!D301 -> 1
A15: =IF(TOTAL_EXP<7572501,IF(EXP_LEVEL_MISMATCH,"Error: Target Level does not Match Experience.",""),"") ->  | E15: AUR | F15: =IF(OR(ProfIdx=3,ProfIdx=6),"P,M",IF(ProfIdx=8,"S,M",IF(OR(ProfIdx=1,ProfIdx=2),"M",""))) -> M | G15: 0 | H15: 10 | I15: 0 | J15: =MIN(I15+IF(MOD(J$9,MAX(INT(I15/$G38),1))=0,1,0),100) -> 1 | K15: 2 | L15: 3 | M15: 4 | N15: 5 | O15: 6 | P15: 7 | Q15: 8 | R15: 9 | S15: 10 | T15: 11 | U15: 12 | V15: 13 | W15: 14 | X15: 15 | Y15: 16 | Z15: 17 | AA15: 18 | AB15: 19 | AC15: 20 | AD15: 21 | AE15: 22 | AF15: 23 | AG15: 24 | AH15: 25 | AI15: 26 | AJ15: 27 | AK15: 28 | AL15: 29 | AM15: 30 | AN15: 30 | AO15: 31 | AP15: =MIN(AO15+IF(MOD(AP$9,MAX(INT(AO15/$G38),1))=0,1,0),100) -> 31 | AQ15: 32 | AR15: 32 | AS15: 33 | AT15: 33 | AU15: 34 | AV15: 34 | AW15: 35 | AX15: 35 | AY15: 36 | AZ15: 36 | BA15: 37 | BB15: 37 | BC15: 38 | BD15: 38 | BE15: 39 | BF15: 39 | BG15: 40 | BH15: 40 | BI15: 41 | BJ15: 41 | BK15: 42 | BL15: 42 | BM15: 43 | BN15: 43 | BO15: 44 | BP15: 44 | BQ15: 45 | BR15: 45 | BS15: 45 | BT15: 46 | BU15: 46 | BV15: =MIN(BU15+IF(MOD(BV$9,MAX(INT(BU15/$G38),1))=0,1,0),100) -> 46 | BW15: 47 | BX15: 47 | BY15: 47 | BZ15: 48 | CA15: 48 | CB15: 48 | CC15: 49 | CD15: 49 | CE15: 49 | CF15: 50 | CG15: 50 | CH15: 50 | CI15: 51 | CJ15: 51 | CK15: 51 | CL15: 52 | CM15: 52 | CN15: 52 | CO15: 53 | CP15: 53 | CQ15: 53 | CR15: 54 | CS15: 54 | CT15: 54 | CU15: 55 | CV15: 55 | CW15: 55 | CX15: 56 | CY15: 56 | CZ15: 56 | DA15: 57 | DB15: 57 | DC15: 57 | DD15: 58 | DE15: 58 | DF15: 58 | IV15: =Buffer!D302 -> 1
A16: Experience: | C16: 115000 | E16: LOG | F16: =IF(ProfIdx=3,"S", IF(ProfIdx=10,"M","")) ->  | G16: 0 | H16: 10 | I16: 0 | J16: =MIN(I16+IF(MOD(J$9,MAX(INT(I16/$G39),1))=0,1,0),100) -> 1 | K16: 2 | L16: 3 | M16: 4 | N16: 5 | O16: 6 | P16: 7 | Q16: 8 | R16: 9 | S16: 10 | T16: 11 | U16: 12 | V16: 13 | W16: 14 | X16: 15 | Y16: 16 | Z16: 17 | AA16: 18 | AB16: 19 | AC16: 20 | AD16: 20 | AE16: 21 | AF16: 21 | AG16: 22 | AH16: 22 | AI16: 23 | AJ16: 23 | AK16: 24 | AL16: 24 | AM16: 25 | AN16: 25 | AO16: 26 | AP16: =MIN(AO16+IF(MOD(AP$9,MAX(INT(AO16/$G39),1))=0,1,0),100) -> 26 | AQ16: 27 | AR16: 27 | AS16: 28 | AT16: 28 | AU16: 29 | AV16: 29 | AW16: 30 | AX16: 30 | AY16: 31 | AZ16: 31 | BA16: 31 | BB16: 32 | BC16: 32 | BD16: 32 | BE16: 33 | BF16: 33 | BG16: 33 | BH16: 34 | BI16: 34 | BJ16: 34 | BK16: 35 | BL16: 35 | BM16: 35 | BN16: 36 | BO16: 36 | BP16: 36 | BQ16: 37 | BR16: 37 | BS16: 37 | BT16: 38 | BU16: 38 | BV16: =MIN(BU16+IF(MOD(BV$9,MAX(INT(BU16/$G39),1))=0,1,0),100) -> 38 | BW16: 39 | BX16: 39 | BY16: 39 | BZ16: 40 | CA16: 40 | CB16: 40 | CC16: 41 | CD16: 41 | CE16: 41 | CF16: 41 | CG16: 42 | CH16: 42 | CI16: 42 | CJ16: 42 | CK16: 43 | CL16: 43 | CM16: 43 | CN16: 43 | CO16: 44 | CP16: 44 | CQ16: 44 | CR16: 44 | CS16: 45 | CT16: 45 | CU16: 45 | CV16: 45 | CW16: 46 | CX16: 46 | CY16: 46 | CZ16: 46 | DA16: 47 | DB16: 47 | DC16: 47 | DD16: 47 | DE16: 48 | DF16: 48 | IV16: =Buffer!D303 -> 1
E17: INT | F17: =IF(OR(ProfIdx=4,ProfIdx=7),"S","") ->  | G17: 0 | H17: 10 | I17: 0 | J17: =MIN(I17+IF(MOD(J$9,MAX(INT(I17/$G40),1))=0,1,0),100) -> 1 | K17: 2 | L17: 3 | M17: 4 | N17: 5 | O17: 6 | P17: 7 | Q17: 8 | R17: 9 | S17: 10 | T17: 11 | U17: 12 | V17: 13 | W17: 14 | X17: 15 | Y17: 16 | Z17: 17 | AA17: 18 | AB17: 19 | AC17: 20 | AD17: 21 | AE17: 22 | AF17: 23 | AG17: 24 | AH17: 25 | AI17: 26 | AJ17: 27 | AK17: 28 | AL17: 29 | AM17: 30 | AN17: 31 | AO17: 32 | AP17: =MIN(AO17+IF(MOD(AP$9,MAX(INT(AO17/$G40),1))=0,1,0),100) -> 33 | AQ17: 34 | AR17: 35 | AS17: 36 | AT17: 37 | AU17: 38 | AV17: 39 | AW17: 40 | AX17: 41 | AY17: 42 | AZ17: 43 | BA17: 44 | BB17: 44 | BC17: 45 | BD17: 45 | BE17: 46 | BF17: 46 | BG17: 47 | BH17: 47 | BI17: 48 | BJ17: 48 | BK17: 49 | BL17: 49 | BM17: 50 | BN17: 50 | BO17: 51 | BP17: 51 | BQ17: 52 | BR17: 52 | BS17: 53 | BT17: 53 | BU17: 54 | BV17: =MIN(BU17+IF(MOD(BV$9,MAX(INT(BU17/$G40),1))=0,1,0),100) -> 54 | BW17: 55 | BX17: 55 | BY17: 56 | BZ17: 56 | CA17: 57 | CB17: 57 | CC17: 58 | CD17: 58 | CE17: 59 | CF17: 59 | CG17: 60 | CH17: 60 | CI17: 61 | CJ17: 61 | CK17: 62 | CL17: 62 | CM17: 63 | CN17: 63 | CO17: 64 | CP17: 64 | CQ17: 65 | CR17: 65 | CS17: 66 | CT17: 66 | CU17: 67 | CV17: 67 | CW17: 67 | CX17: 68 | CY17: 68 | CZ17: 68 | DA17: 69 | DB17: 69 | DC17: 69 | DD17: 70 | DE17: 70 | DF17: 70 | IV17: =Buffer!D304 -> 1
A18: Next TP At: | C18: =MIN(Experience!D25:D26) -> 115892 | E18: WIS | F18: =IF(OR(ProfIdx=4,ProfIdx=5),"P,M",IF(OR(ProfIdx=6,ProfIdx=9),"S,M",IF(OR(ProfIdx=1,ProfIdx=2,ProfIdx=7,ProfIdx=10),"M",""))) -> M | G18: 0 | H18: 10 | I18: 0 | J18: =MIN(I18+IF(MOD(J$9,MAX(INT(I18/$G41),1))=0,1,0),100) -> 1 | K18: 2 | L18: 3 | M18: 4 | N18: 5 | O18: 6 | P18: 7 | Q18: 8 | R18: 9 | S18: 10 | T18: 11 | U18: 12 | V18: 13 | W18: 14 | X18: 15 | Y18: 16 | Z18: 17 | AA18: 18 | AB18: 19 | AC18: 20 | AD18: 21 | AE18: 22 | AF18: 23 | AG18: 24 | AH18: 25 | AI18: 26 | AJ18: 27 | AK18: 28 | AL18: 29 | AM18: 30 | AN18: 30 | AO18: 31 | AP18: =MIN(AO18+IF(MOD(AP$9,MAX(INT(AO18/$G41),1))=0,1,0),100) -> 31 | AQ18: 32 | AR18: 32 | AS18: 33 | AT18: 33 | AU18: 34 | AV18: 34 | AW18: 35 | AX18: 35 | AY18: 36 | AZ18: 36 | BA18: 37 | BB18: 37 | BC18: 38 | BD18: 38 | BE18: 39 | BF18: 39 | BG18: 40 | BH18: 40 | BI18: 41 | BJ18: 41 | BK18: 42 | BL18: 42 | BM18: 43 | BN18: 43 | BO18: 44 | BP18: 44 | BQ18: 45 | BR18: 45 | BS18: 45 | BT18: 46 | BU18: 46 | BV18: =MIN(BU18+IF(MOD(BV$9,MAX(INT(BU18/$G41),1))=0,1,0),100) -> 46 | BW18: 47 | BX18: 47 | BY18: 47 | BZ18: 48 | CA18: 48 | CB18: 48 | CC18: 49 | CD18: 49 | CE18: 49 | CF18: 50 | CG18: 50 | CH18: 50 | CI18: 51 | CJ18: 51 | CK18: 51 | CL18: 52 | CM18: 52 | CN18: 52 | CO18: 53 | CP18: 53 | CQ18: 53 | CR18: 54 | CS18: 54 | CT18: 54 | CU18: 55 | CV18: 55 | CW18: 55 | CX18: 56 | CY18: 56 | CZ18: 56 | DA18: 57 | DB18: 57 | DC18: 57 | DD18: 58 | DE18: 58 | DF18: 58 | IV18: =Buffer!D305 -> 1
E19: INF | F19: =IF(OR(ProfIdx=8,ProfIdx=11),"P,M",IF(ProfIdx=5,"S,M","")) ->  | G19: 0 | H19: 10 | I19: 0 | J19: =MIN(I19+IF(MOD(J$9,MAX(INT(I19/$G42),1))=0,1,0),100) -> 1 | K19: 2 | L19: 3 | M19: 4 | N19: 5 | O19: 6 | P19: 7 | Q19: 8 | R19: 9 | S19: 10 | T19: 11 | U19: 12 | V19: 13 | W19: 14 | X19: 15 | Y19: 16 | Z19: 17 | AA19: 18 | AB19: 19 | AC19: 20 | AD19: 21 | AE19: 22 | AF19: 23 | AG19: 24 | AH19: 25 | AI19: 26 | AJ19: 27 | AK19: 28 | AL19: 29 | AM19: 30 | AN19: 31 | AO19: 32 | AP19: =MIN(AO19+IF(MOD(AP$9,MAX(INT(AO19/$G42),1))=0,1,0),100) -> 33 | AQ19: 34 | AR19: 35 | AS19: 36 | AT19: 37 | AU19: 38 | AV19: 39 | AW19: 40 | AX19: 40 | AY19: 41 | AZ19: 41 | BA19: 42 | BB19: 42 | BC19: 43 | BD19: 43 | BE19: 44 | BF19: 44 | BG19: 45 | BH19: 45 | BI19: 46 | BJ19: 46 | BK19: 47 | BL19: 47 | BM19: 48 | BN19: 48 | BO19: 49 | BP19: 49 | BQ19: 50 | BR19: 50 | BS19: 51 | BT19: 51 | BU19: 52 | BV19: =MIN(BU19+IF(MOD(BV$9,MAX(INT(BU19/$G42),1))=0,1,0),100) -> 52 | BW19: 53 | BX19: 53 | BY19: 54 | BZ19: 54 | CA19: 55 | CB19: 55 | CC19: 56 | CD19: 56 | CE19: 57 | CF19: 57 | CG19: 58 | CH19: 58 | CI19: 59 | CJ19: 59 | CK19: 60 | CL19: 61 | CM19: 61 | CN19: 61 | CO19: 62 | CP19: 62 | CQ19: 62 | CR19: 63 | CS19: 63 | CT19: 63 | CU19: 64 | CV19: 64 | CW19: 64 | CX19: 65 | CY19: 65 | CZ19: 65 | DA19: 66 | DB19: 66 | DC19: 66 | DD19: 67 | DE19: 67 | DF19: 67 | IV19: =Buffer!D306 -> 1
A20: =IF(Buffer!A310="","",CONCATENATE("ERROR(s): ",Buffer!A310)) -> ERROR(s): Total must equal 660; Stats must be at least 20;
E21: Total | G21: =CO+DE+DI+LO+IN+ST+RE+CH+WI+AU -> 0 | H21: =IF(TOTAL_EXP>7572500,DF21,INDEX(I21:DE21,1,TARGET_LEVEL+1)) -> 100 | I21: =SUM(I10:I19) -> 0 | J21: =SUM(J10:J19) -> 10 | K21: 20 | L21: 30 | M21: 40 | N21: 50 | O21: 60 | P21: 70 | Q21: 80 | R21: 90 | S21: 100 | T21: 110 | U21: 120 | V21: 130 | W21: 140 | X21: 150 | Y21: 160 | Z21: 170 | AA21: 180 | AB21: 190 | AC21: 200 | AD21: 209 | AE21: 219 | AF21: 228 | AG21: 238 | AH21: 247 | AI21: 257 | AJ21: 266 | AK21: 276 | AL21: 285 | AM21: 295 | AN21: 302 | AO21: 312 | AP21: 319 | AQ21: 329 | AR21: 336 | AS21: 346 | AT21: 353 | AU21: 363 | AV21: 370 | AW21: 380 | AX21: 385 | AY21: 395 | AZ21: 400 | BA21: 409 | BB21: 414 | BC21: 423 | BD21: 427 | BE21: 437 | BF21: 441 | BG21: 450 | BH21: 453 | BI21: 462 | BJ21: 464 | BK21: 474 | BL21: 475 | BM21: 484 | BN21: 486 | BO21: 495 | BP21: 496 | BQ21: 506 | BR21: 507 | BS21: 514 | BT21: 518 | BU21: 525 | BV21: =SUM(BV10:BV19) -> 525 | BW21: 535 | BX21: 535 | BY21: 542 | BZ21: 545 | CA21: 552 | CB21: 552 | CC21: 562 | CD21: 562 | CE21: 569 | CF21: 571 | CG21: 579 | CH21: 579 | CI21: 588 | CJ21: 588 | CK21: 596 | CL21: 600 | CM21: 605 | CN21: 605 | CO21: 615 | CP21: 615 | CQ21: 620 | CR21: 624 | CS21: 630 | CT21: 630 | CU21: 639 | CV21: 639 | CW21: 644 | CX21: 649 | CY21: 653 | CZ21: 653 | DA21: 663 | DB21: 663 | DC21: 667 | DD21: 672 | DE21: 677 | DF21: 677
B22: Available | D22: Used
A23: Total TP: | B23: =IF(TOTAL_EXP>7572500,SUM(OFFSET($I23,0,0,1,MAX(1,100-$I$9+1))),SUM(OFFSET($I23,0,0,1,MAX(1,$B$13-$I$9+1)))) -> 290 | D23: =IF(TOTAL_EXP>7572500,SUM(OFFSET($I107,0,0,1,MAX(1,101-$I$9+1))),SUM(OFFSET($I107,0,0,1,MAX(1,$B$13-$I$9+1)))) -> 0 | E23: PTP | G23: =25+(((G15*CHOOSE(ProfIdx,1,1,2,1,1,2,1,2,1,1,1)+G14*CHOOSE(ProfIdx,1,1,1,1,1,1,1,1,1,1,2))/2+G10*CHOOSE(ProfIdx,2,1,1,1,1,1,1,1,2,2,1)+G11*CHOOSE(ProfIdx,2,1,1,1,1,1,1,1,1,1,1)+G12*CHOOSE(ProfIdx,1,2,1,1,1,1,2,1,1,1,1)+G13*CHOOSE(ProfIdx,1,2,1,1,1,1,1,1,1,2,1))/20) -> 25 | H23: =IF(TOTAL_EXP>7572500,DF23,INDEX(I23:DE23,1,TARGET_LEVEL+1)) -> 28 | I23: =TRUNC(25+(((I15*CHOOSE(ProfIdx,1,1,2,1,1,2,1,2,1,1,1)+I14*CHOOSE(ProfIdx,1,1,1,1,1,1,1,1,1,1,2))/2+I10*CHOOSE(ProfIdx,2,1,1,1,1,1,1,1,2,2,1)+I11*CHOOSE(ProfIdx,2,1,1,1,1,1,1,1,1,1,1)+I12*CHOOSE(ProfIdx,1,2,1,1,1,1,2,1,1,1,1)+I13*CHOOSE(ProfIdx,1,2,1,1,1,1,1,1,1,2,1))/20)) -> 25 | J23: 25 | K23: 25 | L23: 26 | M23: 26 | N23: 26 | O23: 27 | P23: 27 | Q23: 27 | R23: 28 | S23: 28 | T23: 28 | U23: 29 | V23: 29 | W23: 29 | X23: 30 | Y23: 30 | Z23: 30 | AA23: 31 | AB23: 31 | AC23: 32 | AD23: 32 | AE23: 32 | AF23: 33 | AG23: 33 | AH23: 33 | AI23: 34 | AJ23: 34 | AK23: 34 | AL23: 35 | AM23: 35 | AN23: 35 | AO23: =TRUNC(25+(((AO15*CHOOSE(ProfIdx,1,1,2,1,1,2,1,2,1,1,1)+AO14*CHOOSE(ProfIdx,1,1,1,1,1,1,1,1,1,1,2))/2+AO10*CHOOSE(ProfIdx,2,1,1,1,1,1,1,1,2,2,1)+AO11*CHOOSE(ProfIdx,2,1,1,1,1,1,1,1,1,1,1)+AO12*CHOOSE(ProfIdx,1,2,1,1,1,1,2,1,1,1,1)+AO13*CHOOSE(ProfIdx,1,2,1,1,1,1,1,1,1,2,1))/20)) -> 36 | AP23: 36 | AQ23: 36 | AR23: 37 | AS23: 37 | AT23: 37 | AU23: 38 | AV23: 38 | AW23: 38 | AX23: 39 | AY23: 39 | AZ23: 39 | BA23: 40 | BB23: 40 | BC23: 40 | BD23: 41 | BE23: 41 | BF23: 41 | BG23: 42 | BH23: 42 | BI23: 42 | BJ23: 42 | BK23: 43 | BL23: 43 | BM23: 43 | BN23: 43 | BO23: 44 | BP23: 44 | BQ23: 44 | BR23: 44 | BS23: 45 | BT23: 45 | BU23: =TRUNC(25+(((BU15*CHOOSE(ProfIdx,1,1,2,1,1,2,1,2,1,1,1)+BU14*CHOOSE(ProfIdx,1,1,1,1,1,1,1,1,1,1,2))/2+BU10*CHOOSE(ProfIdx,2,1,1,1,1,1,1,1,2,2,1)+BU11*CHOOSE(ProfIdx,2,1,1,1,1,1,1,1,1,1,1)+BU12*CHOOSE(ProfIdx,1,2,1,1,1,1,2,1,1,1,1)+BU13*CHOOSE(ProfIdx,1,2,1,1,1,1,1,1,1,2,1))/20)) -> 45 | BV23: 45 | BW23: 45 | BX23: 45 | BY23: 46 | BZ23: 46 | CA23: 46 | CB23: 46 | CC23: 46 | CD23: 46 | CE23: 47 | CF23: 47 | CG23: 47 | CH23: 47 | CI23: 47 | CJ23: 47 | CK23: 48 | CL23: 48 | CM23: 48 | CN23: 48 | CO23: 48 | CP23: 48 | CQ23: 49 | CR23: 49 | CS23: 49 | CT23: 49 | CU23: 49 | CV23: 49 | CW23: 50 | CX23: 50 | CY23: 50 | CZ23: 50 | DA23: 50 | DB23: 50 | DC23: 51 | DD23: 51 | DE23: 51 | DF23: =IF(TOTAL_EXP>7572500,TRUNC((TOTAL_EXP-7572500)/2500),0) -> 0
B24: =IF(TOTAL_EXP>7572500,SUM(OFFSET($I24,0,0,1,MAX(1,100-$I$9+1))),SUM(OFFSET($I24,0,0,1,MAX(1,$B$13-$I$9+1)))) -> 285 | D24: =IF(TOTAL_EXP>7572500,SUM(OFFSET($I108,0,0,1,MAX(1,101-$I$9+1))),SUM(OFFSET($I107,0,0,1,MAX(1,$B$13-$I$9+1)))) -> 0 | E24: MTP | G24: =25+(((G15*CHOOSE(ProfIdx,1,1,2,1,1,2,1,2,1,1,1)+G14*CHOOSE(ProfIdx,1,1,1,1,1,1,1,1,1,1,2))/2+G16*CHOOSE(ProfIdx,1,1,2,1,1,1,1,1,1,1,1)+G17*CHOOSE(ProfIdx,1,1,1,2,1,1,2,1,1,1,1)+G19*CHOOSE(ProfIdx,1,1,1,1,2,1,1,2,1,1,2)+G18*CHOOSE(ProfIdx,1,1,1,2,2,2,1,1,2,1,1))/20) -> 25 | H24: =IF(TOTAL_EXP>7572500,DF24,INDEX(I24:DE24,1,TARGET_LEVEL+1)) -> 27 | I24: =TRUNC(25+(((I15*CHOOSE(ProfIdx,1,1,2,1,1,2,1,2,1,1,1)+I14*CHOOSE(ProfIdx,1,1,1,1,1,1,1,1,1,1,2))/2+I16*CHOOSE(ProfIdx,1,1,2,1,1,1,1,1,1,1,1)+I17*CHOOSE(ProfIdx,1,1,1,2,1,1,2,1,1,1,1)+I19*CHOOSE(ProfIdx,1,1,1,1,2,1,1,2,1,1,2)+I18*CHOOSE(ProfIdx,1,1,1,2,2,2,1,1,2,1,1))/20)) -> 25 | J24: 25 | K24: 25 | L24: 25 | M24: 26 | N24: 26 | O24: 26 | P24: 26 | Q24: 27 | R24: 27 | S24: 27 | T24: 27 | U24: 28 | V24: 28 | W24: 28 | X24: 28 | Y24: 29 | Z24: 29 | AA24: 29 | AB24: 29 | AC24: 30 | AD24: 30 | AE24: 30 | AF24: 30 | AG24: 30 | AH24: 31 | AI24: 31 | AJ24: 31 | AK24: 31 | AL24: 32 | AM24: 32 | AN24: 32 | AO24: =TRUNC(25+(((AO15*CHOOSE(ProfIdx,1,1,2,1,1,2,1,2,1,1,1)+AO14*CHOOSE(ProfIdx,1,1,1,1,1,1,1,1,1,1,2))/2+AO16*CHOOSE(ProfIdx,1,1,2,1,1,1,1,1,1,1,1)+AO17*CHOOSE(ProfIdx,1,1,1,2,1,1,2,1,1,1,1)+AO19*CHOOSE(ProfIdx,1,1,1,1,2,1,1,2,1,1,2)+AO18*CHOOSE(ProfIdx,1,1,1,2,2,2,1,1,2,1,1))/20)) -> 32 | AP24: 32 | AQ24: 33 | AR24: 33 | AS24: 33 | AT24: 33 | AU24: 33 | AV24: 33 | AW24: 34 | AX24: 34 | AY24: 34 | AZ24: 34 | BA24: 34 | BB24: 34 | BC24: 34 | BD24: 34 | BE24: 35 | BF24: 35 | BG24: 35 | BH24: 35 | BI24: 35 | BJ24: 35 | BK24: 35 | BL24: 35 | BM24: 36 | BN24: 36 | BO24: 36 | BP24: 36 | BQ24: 36 | BR24: 36 | BS24: 36 | BT24: 36 | BU24: =TRUNC(25+(((BU15*CHOOSE(ProfIdx,1,1,2,1,1,2,1,2,1,1,1)+BU14*CHOOSE(ProfIdx,1,1,1,1,1,1,1,1,1,1,2))/2+BU16*CHOOSE(ProfIdx,1,1,2,1,1,1,1,1,1,1,1)+BU17*CHOOSE(ProfIdx,1,1,1,2,1,1,2,1,1,1,1)+BU19*CHOOSE(ProfIdx,1,1,1,1,2,1,1,2,1,1,2)+BU18*CHOOSE(ProfIdx,1,1,1,2,2,2,1,1,2,1,1))/20)) -> 36 | BV24: 36 | BW24: 37 | BX24: 37 | BY24: 37 | BZ24: 37 | CA24: 37 | CB24: 37 | CC24: 37 | CD24: 37 | CE24: 37 | CF24: 38 | CG24: 38 | CH24: 38 | CI24: 38 | CJ24: 38 | CK24: 38 | CL24: 38 | CM24: 38 | CN24: 38 | CO24: 39 | CP24: 39 | CQ24: 39 | CR24: 39 | CS24: 39 | CT24: 39 | CU24: 39 | CV24: 39 | CW24: 39 | CX24: 39 | CY24: 39 | CZ24: 39 | DA24: 40 | DB24: 40 | DC24: 40 | DD24: 40 | DE24: 40 | DF24: =IF(TOTAL_EXP>7572500,TRUNC((TOTAL_EXP-7572500)/2500),0) -> 0
A25: Post-Cap TP: | B25: =Experience!B25 -> 0 | G25: Health | H25: =MIN(FLOOR((CO+ST)/10,1)+H189*(INDEX(tbRaceHP,1,RaceIdx)+TRUNC(H34/10)),INDEX(tbRaceMaxHP,1,RaceIdx)+H34) -> 0 | I25: =MIN(FLOOR((CO+ST)/10,1)+I189*(INDEX(tbRaceHP,1,RaceIdx)+TRUNC(I34/10)),INDEX(tbRaceMaxHP,1,RaceIdx)+I34) -> 0 | J25: =MIN(FLOOR((CO+ST)/10,1)+J189*(INDEX(tbRaceHP,1,RaceIdx)+TRUNC(J34/10)),INDEX(tbRaceMaxHP,1,RaceIdx)+J34) -> 0 | K25: 0 | L25: 0 | M25: 0 | N25: 0 | O25: 0 | P25: 0 | Q25: 0 | R25: 0 | S25: 0 | T25: 0 | U25: 0 | V25: 0 | W25: 0 | X25: 0 | Y25: 0 | Z25: 0 | AA25: 0 | AB25: 0 | AC25: 0 | AD25: 0 | AE25: 0 | AF25: 0 | AG25: 0 | AH25: 0 | AI25: 0 | AJ25: 0 | AK25: 0 | AL25: 0 | AM25: 0 | AN25: 0 | AO25: 0 | AP25: 0 | AQ25: 0 | AR25: 0 | AS25: 0 | AT25: 0 | AU25: 0 | AV25: 0 | AW25: 0 | AX25: 0 | AY25: 0 | AZ25: 0 | BA25: 0 | BB25: 0 | BC25: 0 | BD25: 0 | BE25: 0 | BF25: 0 | BG25: 0 | BH25: 0 | BI25: 0 | BJ25: 0 | BK25: 0 | BL25: 0 | BM25: 0 | BN25: 0 | BO25: 0 | BP25: 0 | BQ25: 0 | BR25: 0 | BS25: 0 | BT25: 0 | BU25: 0 | BV25: =MIN(FLOOR((CO+ST)/10,1)+BV189*(INDEX(tbRaceHP,1,RaceIdx)+TRUNC(BV34/10)),INDEX(tbRaceMaxHP,1,RaceIdx)+BV34) -> 0 | BW25: 0 | BX25: 0 | BY25: 0 | BZ25: 0 | CA25: 0 | CB25: 0 | CC25: 0 | CD25: 0 | CE25: 0 | CF25: 0 | CG25: 0 | CH25: 0 | CI25: 0 | CJ25: 0 | CK25: 0 | CL25: 0 | CM25: 0 | CN25: 0 | CO25: 0 | CP25: 0 | CQ25: 0 | CR25: 0 | CS25: 0 | CT25: 0 | CU25: 0 | CV25: 0 | CW25: 0 | CX25: 0 | CY25: 0 | CZ25: 0 | DA25: 0 | DB25: 0 | DC25: 0 | DD25: 0 | DE25: 0 | DF25: =MIN(FLOOR((CO+ST)/10,1)+DF189*(INDEX(tbRaceHP,1,RaceIdx)+TRUNC(DF34/10)),INDEX(tbRaceMaxHP,1,RaceIdx)+DF34) -> 0
B26: =Experience!B26 -> 0 | G26: Mana | H26: =Magic!C20 -> 0 | I26: =Magic!D20 -> 0 | J26: =Magic!E20 -> 0 | K26: =Magic!F20 -> 0 | L26: =Magic!G20 -> 0 | M26: =Magic!H20 -> 0 | N26: =Magic!I20 -> 0 | O26: =Magic!J20 -> 0 | P26: =Magic!K20 -> 0 | Q26: =Magic!L20 -> 0 | R26: =Magic!M20 -> 0 | S26: =Magic!N20 -> 0 | T26: =Magic!O20 -> 0 | U26: =Magic!P20 -> 0 | V26: =Magic!Q20 -> 0 | W26: =Magic!R20 -> 0 | X26: =Magic!S20 -> 0 | Y26: =Magic!T20 -> 0 | Z26: =Magic!U20 -> 0 | AA26: =Magic!V20 -> 0 | AB26: =Magic!W20 -> 0 | AC26: =Magic!X20 -> 0 | AD26: =Magic!Y20 -> 0 | AE26: =Magic!Z20 -> 0 | AF26: =Magic!AA20 -> 0 | AG26: =Magic!AB20 -> 0 | AH26: =Magic!AC20 -> 0 | AI26: =Magic!AD20 -> 0 | AJ26: =Magic!AE20 -> 0 | AK26: =Magic!AF20 -> 0 | AL26: =Magic!AG20 -> 0 | AM26: =Magic!AH20 -> 0 | AN26: =Magic!AI20 -> 0 | AO26: =Magic!AJ20 -> 0 | AP26: =Magic!AK20 -> 0 | AQ26: =Magic!AL20 -> 0 | AR26: =Magic!AM20 -> 0 | AS26: =Magic!AN20 -> 0 | AT26: =Magic!AO20 -> 0 | AU26: =Magic!AP20 -> 0 | AV26: =Magic!AQ20 -> 0 | AW26: =Magic!AR20 -> 0 | AX26: =Magic!AS20 -> 0 | AY26: =Magic!AT20 -> 0 | AZ26: =Magic!AU20 -> 0 | BA26: =Magic!AV20 -> 0 | BB26: =Magic!AW20 -> 0 | BC26: =Magic!AX20 -> 0 | BD26: =Magic!AY20 -> 0 | BE26: =Magic!AZ20 -> 0 | BF26: =Magic!BA20 -> 0 | BG26: =Magic!BB20 -> 0 | BH26: =Magic!BC20 -> 0 | BI26: =Magic!BD20 -> 0 | BJ26: =Magic!BE20 -> 0 | BK26: =Magic!BF20 -> 0 | BL26: =Magic!BG20 -> 0 | BM26: =Magic!BH20 -> 0 | BN26: =Magic!BI20 -> 0 | BO26: =Magic!BJ20 -> 0 | BP26: =Magic!BK20 -> 0 | BQ26: =Magic!BL20 -> 0 | BR26: =Magic!BM20 -> 0 | BS26: =Magic!BN20 -> 0 | BT26: =Magic!BO20 -> 0 | BU26: =Magic!BP20 -> 0 | BV26: =Magic!BQ20 -> 0 | BW26: =Magic!BR20 -> 0 | BX26: =Magic!BS20 -> 0 | BY26: =Magic!BT20 -> 0 | BZ26: =Magic!BU20 -> 0 | CA26: =Magic!BV20 -> 0 | CB26: =Magic!BW20 -> 0 | CC26: =Magic!BX20 -> 0 | CD26: =Magic!BY20 -> 0 | CE26: =Magic!BZ20 -> 0 | CF26: =Magic!CA20 -> 0 | CG26: =Magic!CB20 -> 0 | CH26: =Magic!CC20 -> 0 | CI26: =Magic!CD20 -> 0 | CJ26: =Magic!CE20 -> 0 | CK26: =Magic!CF20 -> 0 | CL26: =Magic!CG20 -> 0 | CM26: =Magic!CH20 -> 0 | CN26: =Magic!CI20 -> 0 | CO26: =Magic!CJ20 -> 0 | CP26: =Magic!CK20 -> 0 | CQ26: =Magic!CL20 -> 0 | CR26: =Magic!CM20 -> 0 | CS26: =Magic!CN20 -> 0 | CT26: =Magic!CO20 -> 0 | CU26: =Magic!CP20 -> 0 | CV26: =Magic!CQ20 -> 0 | CW26: =Magic!CR20 -> 0 | CX26: =Magic!CS20 -> 0 | CY26: =Magic!CT20 -> 0 | CZ26: =Magic!CU20 -> 0 | DA26: =Magic!CV20 -> 0 | DB26: =Magic!CW20 -> 0 | DC26: =Magic!CX20 -> 0 | DD26: =Magic!CY20 -> 0 | DE26: =Magic!CZ20 -> 0 | DF26: =Magic!DA20 -> 0
A27: Total + Post-Cap: | B27: =B23+B25 -> 290 | G27: Stamina | H27: =MAX(0,INT((H33+H36+H37)/3)+H34+INT(H132/3)) -> 0 | I27: =MAX(0,INT((I33+I36+I37)/3)+I34+INT(I132/3)) -> 0 | J27: =MAX(0,INT((J33+J36+J37)/3)+J34+INT(J132/3)) -> 0 | K27: 0 | L27: 0 | M27: 0 | N27: 0 | O27: 0 | P27: 0 | Q27: 0 | R27: 0 | S27: 0 | T27: 0 | U27: 0 | V27: 0 | W27: 0 | X27: 0 | Y27: 0 | Z27: 0 | AA27: 0 | AB27: 0 | AC27: 0 | AD27: 0 | AE27: 0 | AF27: 0 | AG27: 0 | AH27: 0 | AI27: 0 | AJ27: 0 | AK27: 0 | AL27: 0 | AM27: 0 | AN27: 0 | AO27: 0 | AP27: 0 | AQ27: 0 | AR27: 0 | AS27: 0 | AT27: 0 | AU27: 0 | AV27: 0 | AW27: 0 | AX27: 0 | AY27: 0 | AZ27: 0 | BA27: 0 | BB27: 0 | BC27: 0 | BD27: 0 | BE27: 0 | BF27: 0 | BG27: 1 | BH27: 1 | BI27: 2 | BJ27: 2 | BK27: 4 | BL27: 4 | BM27: 4 | BN27: 4 | BO27: 6 | BP27: 6 | BQ27: 7 | BR27: 7 | BS27: 8 | BT27: 8 | BU27: 9 | BV27: =MAX(0,INT((BV33+BV36+BV37)/3)+BV34+INT(BV132/3)) -> 9 | BW27: 10 | BX27: 10 | BY27: 11 | BZ27: 11 | CA27: 12 | CB27: 12 | CC27: 13 | CD27: 13 | CE27: 14 | CF27: 14 | CG27: 15 | CH27: 15 | CI27: 16 | CJ27: 16 | CK27: 17 | CL27: 17 | CM27: 18 | CN27: 18 | CO27: 19 | CP27: 19 | CQ27: 20 | CR27: 20 | CS27: 21 | CT27: 21 | CU27: 22 | CV27: 22 | CW27: 23 | CX27: 23 | CY27: 24 | CZ27: 24 | DA27: 25 | DB27: 25 | DC27: 26 | DD27: 26 | DE27: 26 | DF27: =MAX(0,INT((DF33+DF36+DF37)/3)+DF34+INT(DF132/3)) -> 26
B28: =B24+B26 -> 285 | G28: Spirit | H28: =ROUND(H15/10,0) -> 1 | I28: 0 | J28: 0 | K28: 0 | L28: 0 | M28: 0 | N28: 1 | O28: 1 | P28: 1 | Q28: 1 | R28: 1 | S28: 1 | T28: 1 | U28: 1 | V28: 1 | W28: 1 | X28: 2 | Y28: 2 | Z28: 2 | AA28: 2 | AB28: 2 | AC28: 2 | AD28: 2 | AE28: 2 | AF28: 2 | AG28: 2 | AH28: 3 | AI28: 3 | AJ28: 3 | AK28: 3 | AL28: 3 | AM28: 3 | AN28: =ROUND(AN15/10,0) -> 3 | AO28: 3 | AP28: 3 | AQ28: 3 | AR28: 3 | AS28: 3 | AT28: 3 | AU28: 3 | AV28: 3 | AW28: 4 | AX28: 4 | AY28: 4 | AZ28: 4 | BA28: 4 | BB28: 4 | BC28: 4 | BD28: 4 | BE28: 4 | BF28: 4 | BG28: 4 | BH28: 4 | BI28: 4 | BJ28: 4 | BK28: 4 | BL28: 4 | BM28: 4 | BN28: 4 | BO28: 4 | BP28: 4 | BQ28: 5 | BR28: 5 | BS28: 5 | BT28: =ROUND(BT15/10,0) -> 5 | BU28: 5 | BV28: 5 | BW28: 5 | BX28: 5 | BY28: 5 | BZ28: 5 | CA28: 5 | CB28: 5 | CC28: 5 | CD28: 5 | CE28: 5 | CF28: 5 | CG28: 5 | CH28: 5 | CI28: 5 | CJ28: 5 | CK28: 5 | CL28: 5 | CM28: 5 | CN28: 5 | CO28: 5 | CP28: 5 | CQ28: 5 | CR28: 5 | CS28: 5 | CT28: 5 | CU28: 6 | CV28: 6 | CW28: 6 | CX28: 6 | CY28: 6 | CZ28: =ROUND(CZ15/10,0) -> 6 | DA28: 6 | DB28: 6 | DC28: 6 | DD28: 6 | DE28: 6 | DF28: =ROUND(DF15/10,0) -> 6
H29: Inter-Level
A30: Note: "Target Level" must be set correctly for rank and 'X' counter (1x, 2x, 3x) to work properly. | N30: Stat Bonuses
E32: Bonus | G32: GI | H32: =TARGET_LEVEL -> 10 | I32: =I9 -> 0 | J32: =J9 -> 1 | K32: 2 | L32: 3 | M32: 4 | N32: 5 | O32: 6 | P32: 7 | Q32: 8 | R32: 9 | S32: 10 | T32: 11 | U32: 12 | V32: 13 | W32: 14 | X32: 15 | Y32: 16 | Z32: 17 | AA32: 18 | AB32: 19 | AC32: 20 | AD32: 21 | AE32: 22 | AF32: 23 | AG32: 24 | AH32: 25 | AI32: 26 | AJ32: 27 | AK32: 28 | AL32: 29 | AM32: 30 | AN32: 31 | AO32: 32 | AP32: 33 | AQ32: 34 | AR32: 35 | AS32: 36 | AT32: 37 | AU32: 38 | AV32: 39 | AW32: 40 | AX32: 41 | AY32: 42 | AZ32: 43 | BA32: 44 | BB32: 45 | BC32: 46 | BD32: 47 | BE32: 48 | BF32: 49 | BG32: 50 | BH32: 51 | BI32: 52 | BJ32: 53 | BK32: 54 | BL32: 55 | BM32: 56 | BN32: 57 | BO32: 58 | BP32: 59 | BQ32: 60 | BR32: 61 | BS32: 62 | BT32: 63 | BU32: 64 | BV32: =BV9 -> 65 | BW32: 66 | BX32: 67 | BY32: 68 | BZ32: 69 | CA32: 70 | CB32: 71 | CC32: 72 | CD32: 73 | CE32: 74 | CF32: 75 | CG32: 76 | CH32: 77 | CI32: 78 | CJ32: 79 | CK32: 80 | CL32: 81 | CM32: 82 | CN32: 83 | CO32: 84 | CP32: 85 | CQ32: 86 | CR32: 87 | CS32: 88 | CT32: 89 | CU32: 90 | CV32: 91 | CW32: 92 | CX32: 93 | CY32: 94 | CZ32: 95 | DA32: 96 | DB32: 97 | DC32: 98 | DD32: 99 | DE32: 100 | DF32: Post
E33: =E10 -> STR | F33: =IF(OR(ProfIdx=1,ProfIdx=9,),"P",IF(ProfIdx=10,"S","")) -> P | G33: =INDEX(Tables!B185:L185,1,ProfIdx)+INDEX(Tables!B199:N199,1,RaceIdx) -> 32 | H33: =IF(TOTAL_EXP>7572500,DF33,INDEX(I33:DE33,1,TARGET_LEVEL+1)) -> -15 | I33: =Buffer!C208 -> -20 | J33: =Buffer!D208 -> -19 | K33: =Buffer!E208 -> -19 | L33: =Buffer!F208 -> -18 | M33: =Buffer!G208 -> -18 | N33: =Buffer!H208 -> -17 | O33: =Buffer!I208 -> -17 | P33: =Buffer!J208 -> -16 | Q33: =Buffer!K208 -> -16 | R33: =Buffer!L208 -> -15 | S33: =Buffer!M208 -> -15 | T33: =Buffer!N208 -> -14 | U33: =Buffer!O208 -> -14 | V33: =Buffer!P208 -> -13 | W33: =Buffer!Q208 -> -13 | X33: =Buffer!R208 -> -12 | Y33: =Buffer!S208 -> -12 | Z33: =Buffer!T208 -> -11 | AA33: =Buffer!U208 -> -11 | AB33: =Buffer!V208 -> -10 | AC33: =Buffer!W208 -> -10 | AD33: =Buffer!X208 -> -9 | AE33: =Buffer!Y208 -> -9 | AF33: =Buffer!Z208 -> -8 | AG33: =Buffer!AA208 -> -8 | AH33: =Buffer!AB208 -> -7 | AI33: =Buffer!AC208 -> -7 | AJ33: =Buffer!AD208 -> -6 | AK33: =Buffer!AE208 -> -6 | AL33: =Buffer!AF208 -> -5 | AM33: =Buffer!AG208 -> -5 | AN33: =Buffer!AH208 -> -4 | AO33: =Buffer!AI208 -> -4 | AP33: =Buffer!AJ208 -> -3 | AQ33: =Buffer!AK208 -> -3 | AR33: =Buffer!AL208 -> -2 | AS33: =Buffer!AM208 -> -2 | AT33: =Buffer!AN208 -> -1 | AU33: =Buffer!AO208 -> -1 | AV33: =Buffer!AP208 -> 0 | AW33: =Buffer!AQ208 -> 0 | AX33: =Buffer!AR208 -> 1 | AY33: =Buffer!AS208 -> 1 | AZ33: =Buffer!AT208 -> 2 | BA33: =Buffer!AU208 -> 2 | BB33: =Buffer!AV208 -> 3 | BC33: =Buffer!AW208 -> 3 | BD33: =Buffer!AX208 -> 4 | BE33: =Buffer!AY208 -> 4 | BF33: =Buffer!AZ208 -> 5 | BG33: =Buffer!BA208 -> 5 | BH33: =Buffer!BB208 -> 5 | BI33: =Buffer!BC208 -> 6 | BJ33: =Buffer!BD208 -> 6 | BK33: =Buffer!BE208 -> 7 | BL33: =Buffer!BF208 -> 7 | BM33: =Buffer!BG208 -> 8 | BN33: =Buffer!BH208 -> 8 | BO33: =Buffer!BI208 -> 9 | BP33: =Buffer!BJ208 -> 9 | BQ33: =Buffer!BK208 -> 10 | BR33: =Buffer!BL208 -> 10 | BS33: =Buffer!BM208 -> 11 | BT33: =Buffer!BN208 -> 11 | BU33: =Buffer!BO208 -> 12 | BV33: =Buffer!BP208 -> 12 | BW33: =Buffer!BQ208 -> 12 | BX33: =Buffer!BR208 -> 12 | BY33: =Buffer!BS208 -> 13 | BZ33: =Buffer!BT208 -> 13 | CA33: =Buffer!BU208 -> 13 | CB33: =Buffer!BV208 -> 13 | CC33: =Buffer!BW208 -> 14 | CD33: =Buffer!BX208 -> 14 | CE33: =Buffer!BY208 -> 14 | CF33: =Buffer!BZ208 -> 14 | CG33: =Buffer!CA208 -> 15 | CH33: =Buffer!CB208 -> 15 | CI33: =Buffer!CC208 -> 15 | CJ33: =Buffer!CD208 -> 15 | CK33: =Buffer!CE208 -> 16 | CL33: =Buffer!CF208 -> 16 | CM33: =Buffer!CG208 -> 16 | CN33: =Buffer!CH208 -> 16 | CO33: =Buffer!CI208 -> 17 | CP33: =Buffer!CJ208 -> 17 | CQ33: =Buffer!CK208 -> 17 | CR33: =Buffer!CL208 -> 17 | CS33: =Buffer!CM208 -> 18 | CT33: =Buffer!CN208 -> 18 | CU33: =Buffer!CO208 -> 18 | CV33: =Buffer!CP208 -> 18 | CW33: =Buffer!CQ208 -> 19 | CX33: =Buffer!CR208 -> 19 | CY33: =Buffer!CS208 -> 19 | CZ33: =Buffer!CT208 -> 19 | DA33: =Buffer!CU208 -> 20 | DB33: =Buffer!CV208 -> 20 | DC33: =Buffer!CW208 -> 20 | DD33: =Buffer!CX208 -> 20 | DE33: =Buffer!CY208 -> 21 | DF33: =DE33 -> 21
E34: CON | F34: =IF(ProfIdx=1,"S","") -> S | G34: =INDEX(Tables!B186:L186,1,ProfIdx)+INDEX(Tables!B200:N200,1,RaceIdx) -> 27 | H34: -20 | I34: =Buffer!C209 -> -25 | J34: =Buffer!D209 -> -24 | K34: =Buffer!E209 -> -24 | L34: =Buffer!F209 -> -23 | M34: =Buffer!G209 -> -23 | N34: =Buffer!H209 -> -22 | O34: =Buffer!I209 -> -22 | P34: =Buffer!J209 -> -21 | Q34: =Buffer!K209 -> -21 | R34: =Buffer!L209 -> -20 | S34: =Buffer!M209 -> -20 | T34: =Buffer!N209 -> -19 | U34: =Buffer!O209 -> -19 | V34: =Buffer!P209 -> -18 | W34: =Buffer!Q209 -> -18 | X34: =Buffer!R209 -> -17 | Y34: =Buffer!S209 -> -17 | Z34: =Buffer!T209 -> -16 | AA34: =Buffer!U209 -> -16 | AB34: =Buffer!V209 -> -15 | AC34: =Buffer!W209 -> -15 | AD34: =Buffer!X209 -> -14 | AE34: =Buffer!Y209 -> -14 | AF34: =Buffer!Z209 -> -13 | AG34: =Buffer!AA209 -> -13 | AH34: =Buffer!AB209 -> -12 | AI34: =Buffer!AC209 -> -12 | AJ34: =Buffer!AD209 -> -11 | AK34: =Buffer!AE209 -> -11 | AL34: =Buffer!AF209 -> -10 | AM34: =Buffer!AG209 -> -10 | AN34: =Buffer!AH209 -> -9 | AO34: =Buffer!AI209 -> -9 | AP34: =Buffer!AJ209 -> -8 | AQ34: =Buffer!AK209 -> -8 | AR34: =Buffer!AL209 -> -7 | AS34: =Buffer!AM209 -> -7 | AT34: =Buffer!AN209 -> -6 | AU34: =Buffer!AO209 -> -6 | AV34: =Buffer!AP209 -> -5 | AW34: =Buffer!AQ209 -> -5 | AX34: =Buffer!AR209 -> -4 | AY34: =Buffer!AS209 -> -4 | AZ34: =Buffer!AT209 -> -3 | BA34: =Buffer!AU209 -> -3 | BB34: =Buffer!AV209 -> -2 | BC34: =Buffer!AW209 -> -2 | BD34: =Buffer!AX209 -> -1 | BE34: =Buffer!AY209 -> -1 | BF34: =Buffer!AZ209 -> 0 | BG34: =Buffer!BA209 -> 0 | BH34: =Buffer!BB209 -> 0 | BI34: =Buffer!BC209 -> 1 | BJ34: =Buffer!BD209 -> 1 | BK34: =Buffer!BE209 -> 2 | BL34: =Buffer!BF209 -> 2 | BM34: =Buffer!BG209 -> 2 | BN34: =Buffer!BH209 -> 2 | BO34: =Buffer!BI209 -> 3 | BP34: =Buffer!BJ209 -> 3 | BQ34: =Buffer!BK209 -> 3 | BR34: =Buffer!BL209 -> 3 | BS34: =Buffer!BM209 -> 4 | BT34: =Buffer!BN209 -> 4 | BU34: =Buffer!BO209 -> 4 | BV34: =Buffer!BP209 -> 4 | BW34: =Buffer!BQ209 -> 5 | BX34: =Buffer!BR209 -> 5 | BY34: =Buffer!BS209 -> 5 | BZ34: =Buffer!BT209 -> 5 | CA34: =Buffer!BU209 -> 6 | CB34: =Buffer!BV209 -> 6 | CC34: =Buffer!BW209 -> 6 | CD34: =Buffer!BX209 -> 6 | CE34: =Buffer!BY209 -> 7 | CF34: =Buffer!BZ209 -> 7 | CG34: =Buffer!CA209 -> 7 | CH34: =Buffer!CB209 -> 7 | CI34: =Buffer!CC209 -> 8 | CJ34: =Buffer!CD209 -> 8 | CK34: =Buffer!CE209 -> 8 | CL34: =Buffer!CF209 -> 8 | CM34: =Buffer!CG209 -> 9 | CN34: =Buffer!CH209 -> 9 | CO34: =Buffer!CI209 -> 9 | CP34: =Buffer!CJ209 -> 9 | CQ34: =Buffer!CK209 -> 10 | CR34: =Buffer!CL209 -> 10 | CS34: =Buffer!CM209 -> 10 | CT34: =Buffer!CN209 -> 10 | CU34: =Buffer!CO209 -> 11 | CV34: =Buffer!CP209 -> 11 | CW34: =Buffer!CQ209 -> 11 | CX34: =Buffer!CR209 -> 11 | CY34: =Buffer!CS209 -> 12 | CZ34: =Buffer!CT209 -> 12 | DA34: =Buffer!CU209 -> 12 | DB34: =Buffer!CV209 -> 12 | DC34: =Buffer!CW209 -> 13 | DD34: =Buffer!CX209 -> 13 | DE34: =Buffer!CY209 -> 13 | DF34: =DE34 -> 13
E35: DEX | F35: =IF(ProfIdx=7,"P",IF(ProfIdx=2,"S","")) ->  | G35: =INDEX(Tables!B187:L187,1,ProfIdx)+INDEX(Tables!B201:N201,1,RaceIdx) -> 25 | H35: -20 | I35: =Buffer!C210 -> -25 | J35: =Buffer!D210 -> -24 | K35: =Buffer!E210 -> -24 | L35: =Buffer!F210 -> -23 | M35: =Buffer!G210 -> -23 | N35: =Buffer!H210 -> -22 | O35: =Buffer!I210 -> -22 | P35: =Buffer!J210 -> -21 | Q35: =Buffer!K210 -> -21 | R35: =Buffer!L210 -> -20 | S35: =Buffer!M210 -> -20 | T35: =Buffer!N210 -> -19 | U35: =Buffer!O210 -> -19 | V35: =Buffer!P210 -> -18 | W35: =Buffer!Q210 -> -18 | X35: =Buffer!R210 -> -17 | Y35: =Buffer!S210 -> -17 | Z35: =Buffer!T210 -> -16 | AA35: =Buffer!U210 -> -16 | AB35: =Buffer!V210 -> -15 | AC35: =Buffer!W210 -> -15 | AD35: =Buffer!X210 -> -14 | AE35: =Buffer!Y210 -> -14 | AF35: =Buffer!Z210 -> -13 | AG35: =Buffer!AA210 -> -13 | AH35: =Buffer!AB210 -> -12 | AI35: =Buffer!AC210 -> -12 | AJ35: =Buffer!AD210 -> -11 | AK35: =Buffer!AE210 -> -11 | AL35: =Buffer!AF210 -> -10 | AM35: =Buffer!AG210 -> -10 | AN35: =Buffer!AH210 -> -9 | AO35: =Buffer!AI210 -> -9 | AP35: =Buffer!AJ210 -> -8 | AQ35: =Buffer!AK210 -> -8 | AR35: =Buffer!AL210 -> -7 | AS35: =Buffer!AM210 -> -7 | AT35: =Buffer!AN210 -> -6 | AU35: =Buffer!AO210 -> -6 | AV35: =Buffer!AP210 -> -5 | AW35: =Buffer!AQ210 -> -5 | AX35: =Buffer!AR210 -> -4 | AY35: =Buffer!AS210 -> -4 | AZ35: =Buffer!AT210 -> -3 | BA35: =Buffer!AU210 -> -3 | BB35: =Buffer!AV210 -> -2 | BC35: =Buffer!AW210 -> -2 | BD35: =Buffer!AX210 -> -1 | BE35: =Buffer!AY210 -> -1 | BF35: =Buffer!AZ210 -> 0 | BG35: =Buffer!BA210 -> 0 | BH35: =Buffer!BB210 -> 0 | BI35: =Buffer!BC210 -> 0 | BJ35: =Buffer!BD210 -> 0 | BK35: =Buffer!BE210 -> 1 | BL35: =Buffer!BF210 -> 1 | BM35: =Buffer!BG210 -> 1 | BN35: =Buffer!BH210 -> 1 | BO35: =Buffer!BI210 -> 2 | BP35: =Buffer!BJ210 -> 2 | BQ35: =Buffer!BK210 -> 2 | BR35: =Buffer!BL210 -> 2 | BS35: =Buffer!BM210 -> 3 | BT35: =Buffer!BN210 -> 3 | BU35: =Buffer!BO210 -> 3 | BV35: =Buffer!BP210 -> 3 | BW35: =Buffer!BQ210 -> 4 | BX35: =Buffer!BR210 -> 4 | BY35: =Buffer!BS210 -> 4 | BZ35: =Buffer!BT210 -> 4 | CA35: =Buffer!BU210 -> 5 | CB35: =Buffer!BV210 -> 5 | CC35: =Buffer!BW210 -> 5 | CD35: =Buffer!BX210 -> 5 | CE35: =Buffer!BY210 -> 6 | CF35: =Buffer!BZ210 -> 6 | CG35: =Buffer!CA210 -> 6 | CH35: =Buffer!CB210 -> 6 | CI35: =Buffer!CC210 -> 7 | CJ35: =Buffer!CD210 -> 7 | CK35: =Buffer!CE210 -> 7 | CL35: =Buffer!CF210 -> 7 | CM35: =Buffer!CG210 -> 8 | CN35: =Buffer!CH210 -> 8 | CO35: =Buffer!CI210 -> 8 | CP35: =Buffer!CJ210 -> 8 | CQ35: =Buffer!CK210 -> 9 | CR35: =Buffer!CL210 -> 9 | CS35: =Buffer!CM210 -> 9 | CT35: =Buffer!CN210 -> 9 | CU35: =Buffer!CO210 -> 10 | CV35: =Buffer!CP210 -> 10 | CW35: =Buffer!CQ210 -> 10 | CX35: =Buffer!CR210 -> 10 | CY35: =Buffer!CS210 -> 11 | CZ35: =Buffer!CT210 -> 11 | DA35: =Buffer!CU210 -> 11 | DB35: =Buffer!CV210 -> 11 | DC35: =Buffer!CW210 -> 12 | DD35: =Buffer!CX210 -> 12 | DE35: =Buffer!CY210 -> 12 | DF35: 12
E36: AGL | F36: =IF(ProfIdx=2,"P",IF(ProfIdx=10,"P","")) ->  | G36: =INDEX(Tables!B188:L188,1,ProfIdx)+INDEX(Tables!B202:N202,1,RaceIdx) -> 25 | H36: -20 | I36: =Buffer!C211 -> -25 | J36: =Buffer!D211 -> -24 | K36: =Buffer!E211 -> -24 | L36: =Buffer!F211 -> -23 | M36: =Buffer!G211 -> -23 | N36: =Buffer!H211 -> -22 | O36: =Buffer!I211 -> -22 | P36: =Buffer!J211 -> -21 | Q36: =Buffer!K211 -> -21 | R36: =Buffer!L211 -> -20 | S36: =Buffer!M211 -> -20 | T36: =Buffer!N211 -> -19 | U36: =Buffer!O211 -> -19 | V36: =Buffer!P211 -> -18 | W36: =Buffer!Q211 -> -18 | X36: =Buffer!R211 -> -17 | Y36: =Buffer!S211 -> -17 | Z36: =Buffer!T211 -> -16 | AA36: =Buffer!U211 -> -16 | AB36: =Buffer!V211 -> -15 | AC36: =Buffer!W211 -> -15 | AD36: =Buffer!X211 -> -14 | AE36: =Buffer!Y211 -> -14 | AF36: =Buffer!Z211 -> -13 | AG36: =Buffer!AA211 -> -13 | AH36: =Buffer!AB211 -> -12 | AI36: =Buffer!AC211 -> -12 | AJ36: =Buffer!AD211 -> -11 | AK36: =Buffer!AE211 -> -11 | AL36: =Buffer!AF211 -> -10 | AM36: =Buffer!AG211 -> -10 | AN36: =Buffer!AH211 -> -9 | AO36: =Buffer!AI211 -> -9 | AP36: =Buffer!AJ211 -> -8 | AQ36: =Buffer!AK211 -> -8 | AR36: =Buffer!AL211 -> -7 | AS36: =Buffer!AM211 -> -7 | AT36: =Buffer!AN211 -> -6 | AU36: =Buffer!AO211 -> -6 | AV36: =Buffer!AP211 -> -5 | AW36: =Buffer!AQ211 -> -5 | AX36: =Buffer!AR211 -> -4 | AY36: =Buffer!AS211 -> -4 | AZ36: =Buffer!AT211 -> -3 | BA36: =Buffer!AU211 -> -3 | BB36: =Buffer!AV211 -> -2 | BC36: =Buffer!AW211 -> -2 | BD36: =Buffer!AX211 -> -1 | BE36: =Buffer!AY211 -> -1 | BF36: =Buffer!AZ211 -> 0 | BG36: =Buffer!BA211 -> 0 | BH36: =Buffer!BB211 -> 0 | BI36: =Buffer!BC211 -> 0 | BJ36: =Buffer!BD211 -> 0 | BK36: =Buffer!BE211 -> 1 | BL36: =Buffer!BF211 -> 1 | BM36: =Buffer!BG211 -> 1 | BN36: =Buffer!BH211 -> 1 | BO36: =Buffer!BI211 -> 2 | BP36: =Buffer!BJ211 -> 2 | BQ36: =Buffer!BK211 -> 2 | BR36: =Buffer!BL211 -> 2 | BS36: =Buffer!BM211 -> 3 | BT36: =Buffer!BN211 -> 3 | BU36: =Buffer!BO211 -> 3 | BV36: =Buffer!BP211 -> 3 | BW36: =Buffer!BQ211 -> 4 | BX36: =Buffer!BR211 -> 4 | BY36: =Buffer!BS211 -> 4 | BZ36: =Buffer!BT211 -> 4 | CA36: =Buffer!BU211 -> 5 | CB36: =Buffer!BV211 -> 5 | CC36: =Buffer!BW211 -> 5 | CD36: =Buffer!BX211 -> 5 | CE36: =Buffer!BY211 -> 6 | CF36: =Buffer!BZ211 -> 6 | CG36: =Buffer!CA211 -> 6 | CH36: =Buffer!CB211 -> 6 | CI36: =Buffer!CC211 -> 7 | CJ36: =Buffer!CD211 -> 7 | CK36: =Buffer!CE211 -> 7 | CL36: =Buffer!CF211 -> 7 | CM36: =Buffer!CG211 -> 8 | CN36: =Buffer!CH211 -> 8 | CO36: =Buffer!CI211 -> 8 | CP36: =Buffer!CJ211 -> 8 | CQ36: =Buffer!CK211 -> 9 | CR36: =Buffer!CL211 -> 9 | CS36: =Buffer!CM211 -> 9 | CT36: =Buffer!CN211 -> 9 | CU36: =Buffer!CO211 -> 10 | CV36: =Buffer!CP211 -> 10 | CW36: =Buffer!CQ211 -> 10 | CX36: =Buffer!CR211 -> 10 | CY36: =Buffer!CS211 -> 11 | CZ36: =Buffer!CT211 -> 11 | DA36: =Buffer!CU211 -> 11 | DB36: =Buffer!CV211 -> 11 | DC36: =Buffer!CW211 -> 12 | DD36: =Buffer!CX211 -> 12 | DE36: =Buffer!CY211 -> 12 | DF36: 12
E37: DIS | F37: =IF(ProfIdx=11,"S",IF(ProfIdx=10,"M","")) ->  | G37: =INDEX(Tables!B189:L189,1,ProfIdx)+INDEX(Tables!B203:N203,1,RaceIdx) -> 20 | H37: -20 | I37: =Buffer!C212 -> -25 | J37: =Buffer!D212 -> -24 | K37: =Buffer!E212 -> -24 | L37: =Buffer!F212 -> -23 | M37: =Buffer!G212 -> -23 | N37: =Buffer!H212 -> -22 | O37: =Buffer!I212 -> -22 | P37: =Buffer!J212 -> -21 | Q37: =Buffer!K212 -> -21 | R37: =Buffer!L212 -> -20 | S37: =Buffer!M212 -> -20 | T37: =Buffer!N212 -> -19 | U37: =Buffer!O212 -> -19 | V37: =Buffer!P212 -> -18 | W37: =Buffer!Q212 -> -18 | X37: =Buffer!R212 -> -17 | Y37: =Buffer!S212 -> -17 | Z37: =Buffer!T212 -> -16 | AA37: =Buffer!U212 -> -16 | AB37: =Buffer!V212 -> -15 | AC37: =Buffer!W212 -> -15 | AD37: =Buffer!X212 -> -14 | AE37: =Buffer!Y212 -> -14 | AF37: =Buffer!Z212 -> -13 | AG37: =Buffer!AA212 -> -13 | AH37: =Buffer!AB212 -> -12 | AI37: =Buffer!AC212 -> -12 | AJ37: =Buffer!AD212 -> -11 | AK37: =Buffer!AE212 -> -11 | AL37: =Buffer!AF212 -> -10 | AM37: =Buffer!AG212 -> -10 | AN37: =Buffer!AH212 -> -9 | AO37: =Buffer!AI212 -> -9 | AP37: =Buffer!AJ212 -> -8 | AQ37: =Buffer!AK212 -> -8 | AR37: =Buffer!AL212 -> -7 | AS37: =Buffer!AM212 -> -7 | AT37: =Buffer!AN212 -> -6 | AU37: =Buffer!AO212 -> -6 | AV37: =Buffer!AP212 -> -5 | AW37: =Buffer!AQ212 -> -5 | AX37: =Buffer!AR212 -> -5 | AY37: =Buffer!AS212 -> -4 | AZ37: =Buffer!AT212 -> -4 | BA37: =Buffer!AU212 -> -4 | BB37: =Buffer!AV212 -> -4 | BC37: =Buffer!AW212 -> -3 | BD37: =Buffer!AX212 -> -3 | BE37: =Buffer!AY212 -> -3 | BF37: =Buffer!AZ212 -> -3 | BG37: =Buffer!BA212 -> -2 | BH37: =Buffer!BB212 -> -2 | BI37: =Buffer!BC212 -> -2 | BJ37: =Buffer!BD212 -> -2 | BK37: =Buffer!BE212 -> -1 | BL37: =Buffer!BF212 -> -1 | BM37: =Buffer!BG212 -> -1 | BN37: =Buffer!BH212 -> -1 | BO37: =Buffer!BI212 -> 0 | BP37: =Buffer!BJ212 -> 0 | BQ37: =Buffer!BK212 -> 0 | BR37: =Buffer!BL212 -> 0 | BS37: =Buffer!BM212 -> 0 | BT37: =Buffer!BN212 -> 0 | BU37: =Buffer!BO212 -> 1 | BV37: =Buffer!BP212 -> 1 | BW37: =Buffer!BQ212 -> 1 | BX37: =Buffer!BR212 -> 1 | BY37: =Buffer!BS212 -> 2 | BZ37: =Buffer!BT212 -> 2 | CA37: =Buffer!BU212 -> 2 | CB37: =Buffer!BV212 -> 2 | CC37: =Buffer!BW212 -> 3 | CD37: =Buffer!BX212 -> 3 | CE37: =Buffer!BY212 -> 3 | CF37: =Buffer!BZ212 -> 3 | CG37: =Buffer!CA212 -> 4 | CH37: =Buffer!CB212 -> 4 | CI37: =Buffer!CC212 -> 4 | CJ37: =Buffer!CD212 -> 4 | CK37: =Buffer!CE212 -> 5 | CL37: =Buffer!CF212 -> 5 | CM37: =Buffer!CG212 -> 5 | CN37: =Buffer!CH212 -> 5 | CO37: =Buffer!CI212 -> 6 | CP37: =Buffer!CJ212 -> 6 | CQ37: =Buffer!CK212 -> 6 | CR37: =Buffer!CL212 -> 6 | CS37: =Buffer!CM212 -> 6 | CT37: =Buffer!CN212 -> 6 | CU37: =Buffer!CO212 -> 7 | CV37: =Buffer!CP212 -> 7 | CW37: =Buffer!CQ212 -> 7 | CX37: =Buffer!CR212 -> 7 | CY37: =Buffer!CS212 -> 7 | CZ37: =Buffer!CT212 -> 7 | DA37: =Buffer!CU212 -> 8 | DB37: =Buffer!CV212 -> 8 | DC37: =Buffer!CW212 -> 8 | DD37: =Buffer!CX212 -> 8 | DE37: =Buffer!CY212 -> 8 | DF37: 8
E38: AUR | F38: =IF(OR(ProfIdx=3,ProfIdx=6),"P,M",IF(ProfIdx=8,"S,M",IF(OR(ProfIdx=1,ProfIdx=2),"M",""))) -> M | G38: =INDEX(Tables!B190:L190,1,ProfIdx)+INDEX(Tables!B204:N204,1,RaceIdx) -> 15 | H38: -20 | I38: =Buffer!C213 -> -25 | J38: =Buffer!D213 -> -24 | K38: =Buffer!E213 -> -24 | L38: =Buffer!F213 -> -23 | M38: =Buffer!G213 -> -23 | N38: =Buffer!H213 -> -22 | O38: =Buffer!I213 -> -22 | P38: =Buffer!J213 -> -21 | Q38: =Buffer!K213 -> -21 | R38: =Buffer!L213 -> -20 | S38: =Buffer!M213 -> -20 | T38: =Buffer!N213 -> -19 | U38: =Buffer!O213 -> -19 | V38: =Buffer!P213 -> -18 | W38: =Buffer!Q213 -> -18 | X38: =Buffer!R213 -> -17 | Y38: =Buffer!S213 -> -17 | Z38: =Buffer!T213 -> -16 | AA38: =Buffer!U213 -> -16 | AB38: =Buffer!V213 -> -15 | AC38: =Buffer!W213 -> -15 | AD38: =Buffer!X213 -> -14 | AE38: =Buffer!Y213 -> -14 | AF38: =Buffer!Z213 -> -13 | AG38: =Buffer!AA213 -> -13 | AH38: =Buffer!AB213 -> -12 | AI38: =Buffer!AC213 -> -12 | AJ38: =Buffer!AD213 -> -11 | AK38: =Buffer!AE213 -> -11 | AL38: =Buffer!AF213 -> -10 | AM38: =Buffer!AG213 -> -10 | AN38: =Buffer!AH213 -> -10 | AO38: =Buffer!AI213 -> -9 | AP38: =Buffer!AJ213 -> -9 | AQ38: =Buffer!AK213 -> -9 | AR38: =Buffer!AL213 -> -9 | AS38: =Buffer!AM213 -> -8 | AT38: =Buffer!AN213 -> -8 | AU38: =Buffer!AO213 -> -8 | AV38: =Buffer!AP213 -> -8 | AW38: =Buffer!AQ213 -> -7 | AX38: =Buffer!AR213 -> -7 | AY38: =Buffer!AS213 -> -7 | AZ38: =Buffer!AT213 -> -7 | BA38: =Buffer!AU213 -> -6 | BB38: =Buffer!AV213 -> -6 | BC38: =Buffer!AW213 -> -6 | BD38: =Buffer!AX213 -> -6 | BE38: =Buffer!AY213 -> -5 | BF38: =Buffer!AZ213 -> -5 | BG38: =Buffer!BA213 -> -5 | BH38: =Buffer!BB213 -> -5 | BI38: =Buffer!BC213 -> -4 | BJ38: =Buffer!BD213 -> -4 | BK38: =Buffer!BE213 -> -4 | BL38: =Buffer!BF213 -> -4 | BM38: =Buffer!BG213 -> -3 | BN38: =Buffer!BH213 -> -3 | BO38: =Buffer!BI213 -> -3 | BP38: =Buffer!BJ213 -> -3 | BQ38: =Buffer!BK213 -> -2 | BR38: =Buffer!BL213 -> -2 | BS38: =Buffer!BM213 -> -2 | BT38: =Buffer!BN213 -> -2 | BU38: =Buffer!BO213 -> -2 | BV38: =Buffer!BP213 -> -2 | BW38: =Buffer!BQ213 -> -1 | BX38: =Buffer!BR213 -> -1 | BY38: =Buffer!BS213 -> -1 | BZ38: =Buffer!BT213 -> -1 | CA38: =Buffer!BU213 -> -1 | CB38: =Buffer!BV213 -> -1 | CC38: =Buffer!BW213 -> 0 | CD38: =Buffer!BX213 -> 0 | CE38: =Buffer!BY213 -> 0 | CF38: =Buffer!BZ213 -> 0 | CG38: =Buffer!CA213 -> 0 | CH38: =Buffer!CB213 -> 0 | CI38: =Buffer!CC213 -> 0 | CJ38: =Buffer!CD213 -> 0 | CK38: =Buffer!CE213 -> 0 | CL38: =Buffer!CF213 -> 1 | CM38: =Buffer!CG213 -> 1 | CN38: =Buffer!CH213 -> 1 | CO38: =Buffer!CI213 -> 1 | CP38: =Buffer!CJ213 -> 1 | CQ38: =Buffer!CK213 -> 1 | CR38: =Buffer!CL213 -> 2 | CS38: =Buffer!CM213 -> 2 | CT38: =Buffer!CN213 -> 2 | CU38: =Buffer!CO213 -> 2 | CV38: =Buffer!CP213 -> 2 | CW38: =Buffer!CQ213 -> 2 | CX38: =Buffer!CR213 -> 3 | CY38: =Buffer!CS213 -> 3 | CZ38: =Buffer!CT213 -> 3 | DA38: =Buffer!CU213 -> 3 | DB38: =Buffer!CV213 -> 3 | DC38: =Buffer!CW213 -> 3 | DD38: =Buffer!CX213 -> 4 | DE38: =Buffer!CY213 -> 4 | DF38: 4
E39: LOG | F39: =IF(ProfIdx=3,"S","") ->  | G39: =INDEX(Tables!B191:L191,1,ProfIdx)+INDEX(Tables!B205:N205,1,RaceIdx) -> 10 | H39: -15 | I39: =Buffer!C214 -> -20 | J39: =Buffer!D214 -> -19 | K39: =Buffer!E214 -> -19 | L39: =Buffer!F214 -> -18 | M39: =Buffer!G214 -> -18 | N39: =Buffer!H214 -> -17 | O39: =Buffer!I214 -> -17 | P39: =Buffer!J214 -> -16 | Q39: =Buffer!K214 -> -16 | R39: =Buffer!L214 -> -15 | S39: =Buffer!M214 -> -15 | T39: =Buffer!N214 -> -14 | U39: =Buffer!O214 -> -14 | V39: =Buffer!P214 -> -13 | W39: =Buffer!Q214 -> -13 | X39: =Buffer!R214 -> -12 | Y39: =Buffer!S214 -> -12 | Z39: =Buffer!T214 -> -11 | AA39: =Buffer!U214 -> -11 | AB39: =Buffer!V214 -> -10 | AC39: =Buffer!W214 -> -10 | AD39: =Buffer!X214 -> -10 | AE39: =Buffer!Y214 -> -9 | AF39: =Buffer!Z214 -> -9 | AG39: =Buffer!AA214 -> -9 | AH39: =Buffer!AB214 -> -9 | AI39: =Buffer!AC214 -> -8 | AJ39: =Buffer!AD214 -> -8 | AK39: =Buffer!AE214 -> -8 | AL39: =Buffer!AF214 -> -8 | AM39: =Buffer!AG214 -> -7 | AN39: =Buffer!AH214 -> -7 | AO39: =Buffer!AI214 -> -7 | AP39: =Buffer!AJ214 -> -7 | AQ39: =Buffer!AK214 -> -6 | AR39: =Buffer!AL214 -> -6 | AS39: =Buffer!AM214 -> -6 | AT39: =Buffer!AN214 -> -6 | AU39: =Buffer!AO214 -> -5 | AV39: =Buffer!AP214 -> -5 | AW39: =Buffer!AQ214 -> -5 | AX39: =Buffer!AR214 -> -5 | AY39: =Buffer!AS214 -> -4 | AZ39: =Buffer!AT214 -> -4 | BA39: =Buffer!AU214 -> -4 | BB39: =Buffer!AV214 -> -4 | BC39: =Buffer!AW214 -> -4 | BD39: =Buffer!AX214 -> -4 | BE39: =Buffer!AY214 -> -3 | BF39: =Buffer!AZ214 -> -3 | BG39: =Buffer!BA214 -> -3 | BH39: =Buffer!BB214 -> -3 | BI39: =Buffer!BC214 -> -3 | BJ39: =Buffer!BD214 -> -3 | BK39: =Buffer!BE214 -> -2 | BL39: =Buffer!BF214 -> -2 | BM39: =Buffer!BG214 -> -2 | BN39: =Buffer!BH214 -> -2 | BO39: =Buffer!BI214 -> -2 | BP39: =Buffer!BJ214 -> -2 | BQ39: =Buffer!BK214 -> -1 | BR39: =Buffer!BL214 -> -1 | BS39: =Buffer!BM214 -> -1 | BT39: =Buffer!BN214 -> -1 | BU39: =Buffer!BO214 -> -1 | BV39: =Buffer!BP214 -> -1 | BW39: =Buffer!BQ214 -> 0 | BX39: =Buffer!BR214 -> 0 | BY39: =Buffer!BS214 -> 0 | BZ39: =Buffer!BT214 -> 0 | CA39: =Buffer!BU214 -> 0 | CB39: =Buffer!BV214 -> 0 | CC39: =Buffer!BW214 -> 1 | CD39: =Buffer!BX214 -> 1 | CE39: =Buffer!BY214 -> 1 | CF39: =Buffer!BZ214 -> 1 | CG39: =Buffer!CA214 -> 1 | CH39: =Buffer!CB214 -> 1 | CI39: =Buffer!CC214 -> 1 | CJ39: =Buffer!CD214 -> 1 | CK39: =Buffer!CE214 -> 2 | CL39: =Buffer!CF214 -> 2 | CM39: =Buffer!CG214 -> 2 | CN39: =Buffer!CH214 -> 2 | CO39: =Buffer!CI214 -> 2 | CP39: =Buffer!CJ214 -> 2 | CQ39: =Buffer!CK214 -> 2 | CR39: =Buffer!CL214 -> 2 | CS39: =Buffer!CM214 -> 3 | CT39: =Buffer!CN214 -> 3 | CU39: =Buffer!CO214 -> 3 | CV39: =Buffer!CP214 -> 3 | CW39: =Buffer!CQ214 -> 3 | CX39: =Buffer!CR214 -> 3 | CY39: =Buffer!CS214 -> 3 | CZ39: =Buffer!CT214 -> 3 | DA39: =Buffer!CU214 -> 4 | DB39: =Buffer!CV214 -> 4 | DC39: =Buffer!CW214 -> 4 | DD39: =Buffer!CX214 -> 4 | DE39: =Buffer!CY214 -> 4 | DF39: 4
E40: INT | F40: =IF(OR(ProfIdx=4,ProfIdx=7),"S","") ->  | G40: =INDEX(Tables!B192:L192,1,ProfIdx)+INDEX(Tables!B206:N206,1,RaceIdx) -> 22 | H40: -15 | I40: =Buffer!C215 -> -20 | J40: =Buffer!D215 -> -19 | K40: =Buffer!E215 -> -19 | L40: =Buffer!F215 -> -18 | M40: =Buffer!G215 -> -18 | N40: =Buffer!H215 -> -17 | O40: =Buffer!I215 -> -17 | P40: =Buffer!J215 -> -16 | Q40: =Buffer!K215 -> -16 | R40: =Buffer!L215 -> -15 | S40: =Buffer!M215 -> -15 | T40: =Buffer!N215 -> -14 | U40: =Buffer!O215 -> -14 | V40: =Buffer!P215 -> -13 | W40: =Buffer!Q215 -> -13 | X40: =Buffer!R215 -> -12 | Y40: =Buffer!S215 -> -12 | Z40: =Buffer!T215 -> -11 | AA40: =Buffer!U215 -> -11 | AB40: =Buffer!V215 -> -10 | AC40: =Buffer!W215 -> -10 | AD40: =Buffer!X215 -> -9 | AE40: =Buffer!Y215 -> -9 | AF40: =Buffer!Z215 -> -8 | AG40: =Buffer!AA215 -> -8 | AH40: =Buffer!AB215 -> -7 | AI40: =Buffer!AC215 -> -7 | AJ40: =Buffer!AD215 -> -6 | AK40: =Buffer!AE215 -> -6 | AL40: =Buffer!AF215 -> -5 | AM40: =Buffer!AG215 -> -5 | AN40: =Buffer!AH215 -> -4 | AO40: =Buffer!AI215 -> -4 | AP40: =Buffer!AJ215 -> -3 | AQ40: =Buffer!AK215 -> -3 | AR40: =Buffer!AL215 -> -2 | AS40: =Buffer!AM215 -> -2 | AT40: =Buffer!AN215 -> -1 | AU40: =Buffer!AO215 -> -1 | AV40: =Buffer!AP215 -> 0 | AW40: =Buffer!AQ215 -> 0 | AX40: =Buffer!AR215 -> 1 | AY40: =Buffer!AS215 -> 1 | AZ40: =Buffer!AT215 -> 2 | BA40: =Buffer!AU215 -> 2 | BB40: =Buffer!AV215 -> 2 | BC40: =Buffer!AW215 -> 3 | BD40: =Buffer!AX215 -> 3 | BE40: =Buffer!AY215 -> 3 | BF40: =Buffer!AZ215 -> 3 | BG40: =Buffer!BA215 -> 4 | BH40: =Buffer!BB215 -> 4 | BI40: =Buffer!BC215 -> 4 | BJ40: =Buffer!BD215 -> 4 | BK40: =Buffer!BE215 -> 5 | BL40: =Buffer!BF215 -> 5 | BM40: =Buffer!BG215 -> 5 | BN40: =Buffer!BH215 -> 5 | BO40: =Buffer!BI215 -> 5 | BP40: =Buffer!BJ215 -> 5 | BQ40: =Buffer!BK215 -> 6 | BR40: =Buffer!BL215 -> 6 | BS40: =Buffer!BM215 -> 6 | BT40: =Buffer!BN215 -> 6 | BU40: =Buffer!BO215 -> 7 | BV40: =Buffer!BP215 -> 7 | BW40: =Buffer!BQ215 -> 7 | BX40: =Buffer!BR215 -> 7 | BY40: =Buffer!BS215 -> 8 | BZ40: =Buffer!BT215 -> 8 | CA40: =Buffer!BU215 -> 8 | CB40: =Buffer!BV215 -> 8 | CC40: =Buffer!BW215 -> 9 | CD40: =Buffer!BX215 -> 9 | CE40: =Buffer!BY215 -> 9 | CF40: =Buffer!BZ215 -> 9 | CG40: =Buffer!CA215 -> 10 | CH40: =Buffer!CB215 -> 10 | CI40: =Buffer!CC215 -> 10 | CJ40: =Buffer!CD215 -> 10 | CK40: =Buffer!CE215 -> 11 | CL40: =Buffer!CF215 -> 11 | CM40: =Buffer!CG215 -> 11 | CN40: =Buffer!CH215 -> 11 | CO40: =Buffer!CI215 -> 12 | CP40: =Buffer!CJ215 -> 12 | CQ40: =Buffer!CK215 -> 12 | CR40: =Buffer!CL215 -> 12 | CS40: =Buffer!CM215 -> 13 | CT40: =Buffer!CN215 -> 13 | CU40: =Buffer!CO215 -> 13 | CV40: =Buffer!CP215 -> 13 | CW40: =Buffer!CQ215 -> 13 | CX40: =Buffer!CR215 -> 14 | CY40: =Buffer!CS215 -> 14 | CZ40: =Buffer!CT215 -> 14 | DA40: =Buffer!CU215 -> 14 | DB40: =Buffer!CV215 -> 14 | DC40: =Buffer!CW215 -> 14 | DD40: =Buffer!CX215 -> 15 | DE40: =Buffer!CY215 -> 15 | DF40: 15
E41: WIS | F41: =IF(OR(ProfIdx=4,ProfIdx=5),"P,M",IF(OR(ProfIdx=6,ProfIdx=9),"S,M",IF(OR(ProfIdx=1,ProfIdx=2,ProfIdx=7,ProfIdx=10),"M",""))) -> M | G41: =INDEX(Tables!B193:L193,1,ProfIdx)+INDEX(Tables!B207:N207,1,RaceIdx) -> 15 | H41: -20 | I41: =Buffer!C216 -> -25 | J41: =Buffer!D216 -> -24 | K41: =Buffer!E216 -> -24 | L41: =Buffer!F216 -> -23 | M41: =Buffer!G216 -> -23 | N41: =Buffer!H216 -> -22 | O41: =Buffer!I216 -> -22 | P41: =Buffer!J216 -> -21 | Q41: =Buffer!K216 -> -21 | R41: =Buffer!L216 -> -20 | S41: =Buffer!M216 -> -20 | T41: =Buffer!N216 -> -19 | U41: =Buffer!O216 -> -19 | V41: =Buffer!P216 -> -18 | W41: =Buffer!Q216 -> -18 | X41: =Buffer!R216 -> -17 | Y41: =Buffer!S216 -> -17 | Z41: =Buffer!T216 -> -16 | AA41: =Buffer!U216 -> -16 | AB41: =Buffer!V216 -> -15 | AC41: =Buffer!W216 -> -15 | AD41: =Buffer!X216 -> -14 | AE41: =Buffer!Y216 -> -14 | AF41: =Buffer!Z216 -> -13 | AG41: =Buffer!AA216 -> -13 | AH41: =Buffer!AB216 -> -12 | AI41: =Buffer!AC216 -> -12 | AJ41: =Buffer!AD216 -> -11 | AK41: =Buffer!AE216 -> -11 | AL41: =Buffer!AF216 -> -10 | AM41: =Buffer!AG216 -> -10 | AN41: =Buffer!AH216 -> -10 | AO41: =Buffer!AI216 -> -9 | AP41: =Buffer!AJ216 -> -9 | AQ41: =Buffer!AK216 -> -9 | AR41: =Buffer!AL216 -> -9 | AS41: =Buffer!AM216 -> -8 | AT41: =Buffer!AN216 -> -8 | AU41: =Buffer!AO216 -> -8 | AV41: =Buffer!AP216 -> -8 | AW41: =Buffer!AQ216 -> -7 | AX41: =Buffer!AR216 -> -7 | AY41: =Buffer!AS216 -> -7 | AZ41: =Buffer!AT216 -> -7 | BA41: =Buffer!AU216 -> -6 | BB41: =Buffer!AV216 -> -6 | BC41: =Buffer!AW216 -> -6 | BD41: =Buffer!AX216 -> -6 | BE41: =Buffer!AY216 -> -5 | BF41: =Buffer!AZ216 -> -5 | BG41: =Buffer!BA216 -> -5 | BH41: =Buffer!BB216 -> -5 | BI41: =Buffer!BC216 -> -4 | BJ41: =Buffer!BD216 -> -4 | BK41: =Buffer!BE216 -> -4 | BL41: =Buffer!BF216 -> -4 | BM41: =Buffer!BG216 -> -3 | BN41: =Buffer!BH216 -> -3 | BO41: =Buffer!BI216 -> -3 | BP41: =Buffer!BJ216 -> -3 | BQ41: =Buffer!BK216 -> -2 | BR41: =Buffer!BL216 -> -2 | BS41: =Buffer!BM216 -> -2 | BT41: =Buffer!BN216 -> -2 | BU41: =Buffer!BO216 -> -2 | BV41: =Buffer!BP216 -> -2 | BW41: =Buffer!BQ216 -> -1 | BX41: =Buffer!BR216 -> -1 | BY41: =Buffer!BS216 -> -1 | BZ41: =Buffer!BT216 -> -1 | CA41: =Buffer!BU216 -> -1 | CB41: =Buffer!BV216 -> -1 | CC41: =Buffer!BW216 -> 0 | CD41: =Buffer!BX216 -> 0 | CE41: =Buffer!BY216 -> 0 | CF41: =Buffer!BZ216 -> 0 | CG41: =Buffer!CA216 -> 0 | CH41: =Buffer!CB216 -> 0 | CI41: =Buffer!CC216 -> 0 | CJ41: =Buffer!CD216 -> 0 | CK41: =Buffer!CE216 -> 0 | CL41: =Buffer!CF216 -> 1 | CM41: =Buffer!CG216 -> 1 | CN41: =Buffer!CH216 -> 1 | CO41: =Buffer!CI216 -> 1 | CP41: =Buffer!CJ216 -> 1 | CQ41: =Buffer!CK216 -> 1 | CR41: =Buffer!CL216 -> 2 | CS41: =Buffer!CM216 -> 2 | CT41: =Buffer!CN216 -> 2 | CU41: =Buffer!CO216 -> 2 | CV41: =Buffer!CP216 -> 2 | CW41: =Buffer!CQ216 -> 2 | CX41: =Buffer!CR216 -> 3 | CY41: =Buffer!CS216 -> 3 | CZ41: =Buffer!CT216 -> 3 | DA41: =Buffer!CU216 -> 3 | DB41: =Buffer!CV216 -> 3 | DC41: =Buffer!CW216 -> 3 | DD41: =Buffer!CX216 -> 4 | DE41: =Buffer!CY216 -> 4 | DF41: 4
E42: INF | F42: =IF(OR(ProfIdx=8,ProfIdx=11),"P,M",IF(ProfIdx=5,"S,M","")) ->  | G42: =INDEX(Tables!B194:L194,1,ProfIdx)+INDEX(Tables!B208:N208,1,RaceIdx) -> 20 | H42: -20 | I42: =Buffer!C217 -> -25 | J42: =Buffer!D217 -> -24 | K42: =Buffer!E217 -> -24 | L42: =Buffer!F217 -> -23 | M42: =Buffer!G217 -> -23 | N42: =Buffer!H217 -> -22 | O42: =Buffer!I217 -> -22 | P42: =Buffer!J217 -> -21 | Q42: =Buffer!K217 -> -21 | R42: =Buffer!L217 -> -20 | S42: =Buffer!M217 -> -20 | T42: =Buffer!N217 -> -19 | U42: =Buffer!O217 -> -19 | V42: =Buffer!P217 -> -18 | W42: =Buffer!Q217 -> -18 | X42: =Buffer!R217 -> -17 | Y42: =Buffer!S217 -> -17 | Z42: =Buffer!T217 -> -16 | AA42: =Buffer!U217 -> -16 | AB42: =Buffer!V217 -> -15 | AC42: =Buffer!W217 -> -15 | AD42: =Buffer!X217 -> -14 | AE42: =Buffer!Y217 -> -14 | AF42: =Buffer!Z217 -> -13 | AG42: =Buffer!AA217 -> -13 | AH42: =Buffer!AB217 -> -12 | AI42: =Buffer!AC217 -> -12 | AJ42: =Buffer!AD217 -> -11 | AK42: =Buffer!AE217 -> -11 | AL42: =Buffer!AF217 -> -10 | AM42: =Buffer!AG217 -> -10 | AN42: =Buffer!AH217 -> -9 | AO42: =Buffer!AI217 -> -9 | AP42: =Buffer!AJ217 -> -8 | AQ42: =Buffer!AK217 -> -8 | AR42: =Buffer!AL217 -> -7 | AS42: =Buffer!AM217 -> -7 | AT42: =Buffer!AN217 -> -6 | AU42: =Buffer!AO217 -> -6 | AV42: =Buffer!AP217 -> -5 | AW42: =Buffer!AQ217 -> -5 | AX42: =Buffer!AR217 -> -5 | AY42: =Buffer!AS217 -> -4 | AZ42: =Buffer!AT217 -> -4 | BA42: =Buffer!AU217 -> -4 | BB42: =Buffer!AV217 -> -4 | BC42: =Buffer!AW217 -> -3 | BD42: =Buffer!AX217 -> -3 | BE42: =Buffer!AY217 -> -3 | BF42: =Buffer!AZ217 -> -3 | BG42: =Buffer!BA217 -> -2 | BH42: =Buffer!BB217 -> -2 | BI42: =Buffer!BC217 -> -2 | BJ42: =Buffer!BD217 -> -2 | BK42: =Buffer!BE217 -> -1 | BL42: =Buffer!BF217 -> -1 | BM42: =Buffer!BG217 -> -1 | BN42: =Buffer!BH217 -> -1 | BO42: =Buffer!BI217 -> 0 | BP42: =Buffer!BJ217 -> 0 | BQ42: =Buffer!BK217 -> 0 | BR42: =Buffer!BL217 -> 0 | BS42: =Buffer!BM217 -> 0 | BT42: =Buffer!BN217 -> 0 | BU42: =Buffer!BO217 -> 1 | BV42: =Buffer!BP217 -> 1 | BW42: =Buffer!BQ217 -> 1 | BX42: =Buffer!BR217 -> 1 | BY42: =Buffer!BS217 -> 2 | BZ42: =Buffer!BT217 -> 2 | CA42: =Buffer!BU217 -> 2 | CB42: =Buffer!BV217 -> 2 | CC42: =Buffer!BW217 -> 3 | CD42: =Buffer!BX217 -> 3 | CE42: =Buffer!BY217 -> 3 | CF42: =Buffer!BZ217 -> 3 | CG42: =Buffer!CA217 -> 4 | CH42: =Buffer!CB217 -> 4 | CI42: =Buffer!CC217 -> 4 | CJ42: =Buffer!CD217 -> 4 | CK42: =Buffer!CE217 -> 5 | CL42: =Buffer!CF217 -> 5 | CM42: =Buffer!CG217 -> 5 | CN42: =Buffer!CH217 -> 5 | CO42: =Buffer!CI217 -> 6 | CP42: =Buffer!CJ217 -> 6 | CQ42: =Buffer!CK217 -> 6 | CR42: =Buffer!CL217 -> 6 | CS42: =Buffer!CM217 -> 6 | CT42: =Buffer!CN217 -> 6 | CU42: =Buffer!CO217 -> 7 | CV42: =Buffer!CP217 -> 7 | CW42: =Buffer!CQ217 -> 7 | CX42: =Buffer!CR217 -> 7 | CY42: =Buffer!CS217 -> 7 | CZ42: =Buffer!CT217 -> 7 | DA42: =Buffer!CU217 -> 8 | DB42: =Buffer!CV217 -> 8 | DC42: =Buffer!CW217 -> 8 | DD42: =Buffer!CX217 -> 8 | DE42: =Buffer!CY217 -> 8 | DF42: 8
H43: Inter-Level
A44: P=Primary, S=Secondary, M=Mana
G45: GS4 Level: | H45: =TARGET_LEVEL -> 10 | I45: =I52 -> 0 | J45: =J52 -> 1 | K45: 2 | L45: 3 | M45: 4 | N45: 5 | O45: 6 | P45: 7 | Q45: 8 | R45: 9 | S45: 10 | T45: 11 | U45: 12 | V45: 13 | W45: 14 | X45: 15 | Y45: 16 | Z45: 17 | AA45: 18 | AB45: 19 | AC45: 20 | AD45: 21 | AE45: 22 | AF45: 23 | AG45: 24 | AH45: 25 | AI45: 26 | AJ45: 27 | AK45: 28 | AL45: 29 | AM45: 30 | AN45: 31 | AO45: 32 | AP45: 33 | AQ45: 34 | AR45: 35 | AS45: 36 | AT45: 37 | AU45: 38 | AV45: 39 | AW45: 40 | AX45: 41 | AY45: 42 | AZ45: 43 | BA45: 44 | BB45: 45 | BC45: 46 | BD45: 47 | BE45: 48 | BF45: 49 | BG45: 50 | BH45: 51 | BI45: 52 | BJ45: 53 | BK45: 54 | BL45: 55 | BM45: 56 | BN45: 57 | BO45: 58 | BP45: 59 | BQ45: 60 | BR45: 61 | BS45: 62 | BT45: 63 | BU45: 64 | BV45: =BV52 -> 65 | BW45: 66 | BX45: 67 | BY45: 68 | BZ45: 69 | CA45: 70 | CB45: 71 | CC45: 72 | CD45: 73 | CE45: 74 | CF45: 75 | CG45: 76 | CH45: 77 | CI45: 78 | CJ45: 79 | CK45: 80 | CL45: 81 | CM45: 82 | CN45: 83 | CO45: 84 | CP45: 85 | CQ45: 86 | CR45: 87 | CS45: 88 | CT45: 89 | CU45: 90 | CV45: 91 | CW45: 92 | CX45: 93 | CY45: 94 | CZ45: 95 | DA45: 96 | DB45: 97 | DC45: 98 | DD45: 99 | DE45: 100
G46: GS3 Level: | H46: =IF(TOTAL_EXP>7572500,"N/A",INDEX(I46:DE46,1,TARGET_LEVEL+1)) -> 8 | I46: =IF(I45>100,"n/a",VLOOKUP(I45,tbLevels,5)) -> 0 | J46: =IF(J45>100,"n/a",VLOOKUP(J45,tbLevels,5)) -> 0 | K46: 0 | L46: 1 | M46: 1 | N46: 2 | O46: 4 | P46: 5 | Q46: 6 | R46: 7 | S46: 8 | T46: 9 | U46: 10 | V46: 11 | W46: 12 | X46: 13 | Y46: 15 | Z46: 16 | AA46: 17 | AB46: 18 | AC46: 19 | AD46: 20 | AE46: 21 | AF46: 22 | AG46: 23 | AH46: 24 | AI46: 25 | AJ46: 26 | AK46: 27 | AL46: 29 | AM46: 30 | AN46: 31 | AO46: 33 | AP46: 34 | AQ46: 35 | AR46: 37 | AS46: 38 | AT46: 40 | AU46: 41 | AV46: 43 | AW46: 44 | AX46: 46 | AY46: 47 | AZ46: 49 | BA46: 51 | BB46: 52 | BC46: 54 | BD46: 56 | BE46: 57 | BF46: 59 | BG46: 61 | BH46: 62 | BI46: 64 | BJ46: 66 | BK46: 68 | BL46: 70 | BM46: 71 | BN46: 73 | BO46: 75 | BP46: 77 | BQ46: 79 | BR46: 81 | BS46: 82 | BT46: 84 | BU46: 86 | BV46: =IF(BV45>100,"n/a",VLOOKUP(BV45,tbLevels,5)) -> 88 | BW46: 90 | BX46: 92 | BY46: 94 | BZ46: 96 | CA46: 98 | CB46: 100 | CC46: 102 | CD46: 104 | CE46: 106 | CF46: 108 | CG46: 110 | CH46: 112 | CI46: 114 | CJ46: 116 | CK46: 118 | CL46: 120 | CM46: 122 | CN46: 124 | CO46: 126 | CP46: 128 | CQ46: 130 | CR46: 132 | CS46: 135 | CT46: 137 | CU46: 139 | CV46: 141 | CW46: 143 | CX46: 145 | CY46: 148 | CZ46: 150 | DA46: 152 | DB46: 154 | DC46: 156 | DD46: 159 | DE46: 161
G47: GS4 Experience per Level (1000's): | H47: =IF(TOTAL_EXP>7572500,"N/A",INDEX(I47:DE47,1,TARGET_LEVEL+1)) -> 25 | I47: =IF(I45+1>100,"n/a",VLOOKUP(I45+1,tbLevels,3)/1000) -> 2.5 | J47: =IF(J45+1>100,"n/a",VLOOKUP(J45+1,tbLevels,3)/1000) -> 2.5 | K47: 5 | L47: 7.5 | M47: 10 | N47: 12.5 | O47: 15 | P47: 17.5 | Q47: 20 | R47: 22.5 | S47: 25 | T47: 27.5 | U47: 30 | V47: 32.5 | W47: 35 | X47: 37 | Y47: 39 | Z47: 41 | AA47: 43 | AB47: 45 | AC47: 47 | AD47: 49 | AE47: 51 | AF47: 53 | AG47: 55 | AH47: 56.5 | AI47: 58 | AJ47: 59.5 | AK47: 61 | AL47: 62.5 | AM47: 64 | AN47: 65.5 | AO47: 67 | AP47: 68.5 | AQ47: 70 | AR47: 71.5 | AS47: 73 | AT47: 74.5 | AU47: 76 | AV47: 77.5 | AW47: 78.5 | AX47: 79.5 | AY47: 80.5 | AZ47: 81.5 | BA47: 82.5 | BB47: 83.5 | BC47: 84.5 | BD47: 85.5 | BE47: 86.5 | BF47: 87.5 | BG47: 88 | BH47: 88.5 | BI47: 89 | BJ47: 89.5 | BK47: 90 | BL47: 90.5 | BM47: 91 | BN47: 91.5 | BO47: 92 | BP47: 92.5 | BQ47: 93 | BR47: 93.5 | BS47: 94 | BT47: 94.5 | BU47: 95 | BV47: =IF(BV45+1>100,"n/a",VLOOKUP(BV45+1,tbLevels,3)/1000) -> 95.5 | BW47: 96 | BX47: 96.5 | BY47: 97 | BZ47: 97.5 | CA47: 98 | CB47: 98.5 | CC47: 99 | CD47: 99.5 | CE47: 100 | CF47: 100.5 | CG47: 101 | CH47: 101.5 | CI47: 102 | CJ47: 102.5 | CK47: 103 | CL47: 103.5 | CM47: 104 | CN47: 104.5 | CO47: 105 | CP47: 105.5 | CQ47: 106 | CR47: 106.5 | CS47: 107 | CT47: 107.5 | CU47: 108 | CV47: 108.5 | CW47: 109 | CX47: 109.5 | CY47: 110 | CZ47: 110.5 | DA47: 111 | DB47: 111.5 | DC47: 112 | DD47: 112.5 | DE47: n/a
G48: GS4 Next Level At (1000's): | H48: =IF(TOTAL_EXP>7572500,"N/A",INDEX(I48:DE48,1,TARGET_LEVEL+1)) -> 140 | I48: =IF(I45+1>100,"n/a",VLOOKUP(I45+1,tbLevels,4)/1000) -> 2.5 | J48: =IF(J45+1>100,"n/a",VLOOKUP(J45+1,tbLevels,4)/1000) -> 5 | K48: 10 | L48: 17.5 | M48: 27.5 | N48: 40 | O48: 55 | P48: 72.5 | Q48: 92.5 | R48: 115 | S48: 140 | T48: 167.5 | U48: 197.5 | V48: 230 | W48: 265 | X48: 302 | Y48: 341 | Z48: 382 | AA48: 425 | AB48: 470 | AC48: 517 | AD48: 566 | AE48: 617 | AF48: 670 | AG48: 725 | AH48: 781.5 | AI48: 839.5 | AJ48: 899 | AK48: 960 | AL48: 1022.5 | AM48: 1086.5 | AN48: 1152 | AO48: 1219 | AP48: 1287.5 | AQ48: 1357.5 | AR48: 1429 | AS48: 1502 | AT48: 1576.5 | AU48: 1652.5 | AV48: 1730 | AW48: 1808.5 | AX48: 1888 | AY48: 1968.5 | AZ48: 2050 | BA48: 2132.5 | BB48: 2216 | BC48: 2300.5 | BD48: 2386 | BE48: 2472.5 | BF48: 2560 | BG48: 2648 | BH48: 2736.5 | BI48: 2825.5 | BJ48: 2915 | BK48: 3005 | BL48: 3095.5 | BM48: 3186.5 | BN48: 3278 | BO48: 3370 | BP48: 3462.5 | BQ48: 3555.5 | BR48: 3649 | BS48: 3743 | BT48: 3837.5 | BU48: 3932.5 | BV48: =IF(BV45+1>100,"n/a",VLOOKUP(BV45+1,tbLevels,4)/1000) -> 4028 | BW48: 4124 | BX48: 4220.5 | BY48: 4317.5 | BZ48: 4415 | CA48: 4513 | CB48: 4611.5 | CC48: 4710.5 | CD48: 4810 | CE48: 4910 | CF48: 5010.5 | CG48: 5111.5 | CH48: 5213 | CI48: 5315 | CJ48: 5417.5 | CK48: 5520.5 | CL48: 5624 | CM48: 5728 | CN48: 5832.5 | CO48: 5937.5 | CP48: 6043 | CQ48: 6149 | CR48: 6255.5 | CS48: 6362.5 | CT48: 6470 | CU48: 6578 | CV48: 6686.5 | CW48: 6795.5 | CX48: 6905 | CY48: 7015 | CZ48: 7125.5 | DA48: 7236.5 | DB48: 7348 | DC48: 7460 | DD48: 7572.5 | DE48: n/a
F49: FALSE | I49: =IF($F$49,"","Warning: Do NOT cut and paste training plan from spreadsheets prior to V4.1.0 into these cells! The order of the skills has changed, and a cut and paste will yield incorrect results.") -> Warning: Do NOT cut and paste training plan from spreadsheets prior to V4.1.0 into these cells! The order of the skills has changed, and a cut and paste will yield incorrect results.
A50: FALSE | W50: Training Plan
A51: Fill in Extra Ranks With: | C51: 1
A52: =CONCATENATE("At level ",FIXED($B$13,0),": ") -> At level 10: | B52: Ranks | C52: X | D52: # | E52: PTP | F52: MTP | H52: =TARGET_LEVEL -> 10 | I52: =I118 -> 0 | J52: =I52+1 -> 1 | K52: =J52+1 -> 2 | L52: 3 | M52: 4 | N52: 5 | O52: 6 | P52: 7 | Q52: 8 | R52: 9 | S52: 10 | T52: 11 | U52: 12 | V52: 13 | W52: 14 | X52: 15 | Y52: 16 | Z52: 17 | AA52: =Z52+1 -> 18 | AB52: 19 | AC52: 20 | AD52: 21 | AE52: 22 | AF52: 23 | AG52: 24 | AH52: 25 | AI52: 26 | AJ52: =AI52+1 -> 27 | AK52: 28 | AL52: 29 | AM52: 30 | AN52: 31 | AO52: 32 | AP52: 33 | AQ52: 34 | AR52: 35 | AS52: 36 | AT52: 37 | AU52: 38 | AV52: 39 | AW52: 40 | AX52: 41 | AY52: 42 | AZ52: 43 | BA52: 44 | BB52: 45 | BC52: 46 | BD52: 47 | BE52: 48 | BF52: 49 | BG52: 50 | BH52: 51 | BI52: 52 | BJ52: 53 | BK52: 54 | BL52: 55 | BM52: 56 | BN52: 57 | BO52: 58 | BP52: 59 | BQ52: 60 | BR52: 61 | BS52: 62 | BT52: 63 | BU52: 64 | BV52: 65 | BW52: 66 | BX52: 67 | BY52: 68 | BZ52: 69 | CA52: 70 | CB52: 71 | CC52: 72 | CD52: 73 | CE52: 74 | CF52: 75 | CG52: 76 | CH52: 77 | CI52: 78 | CJ52: 79 | CK52: 80 | CL52: 81 | CM52: 82 | CN52: 83 | CO52: 84 | CP52: 85 | CQ52: 86 | CR52: 87 | CS52: 88 | CT52: 89 | CU52: 90 | CV52: =CU52+1 -> 91 | CW52: 92 | CX52: 93 | CY52: 94 | CZ52: 95 | DA52: 96 | DB52: 97 | DC52: 98 | DD52: 99 | DE52: 100 | DF52: Post
A53: =Buffer!A4 -> Armor Use | B53: =C176 -> 0 | C53: =IF(D176>0,CONCATENATE("(",FIXED(D176,1,FALSE),"X)"),"") ->  | D53: =Buffer!F4 -> 3 | E53: =Buffer!D4 -> 2 | F53: =Buffer!E4 -> 0
A54: =Buffer!A5 -> Shield Use | B54: 0 | D54: =Buffer!F5 -> 3 | E54: =Buffer!D5 -> 2 | F54: =Buffer!E5 -> 0
A55: =Buffer!A6 -> Edged Weapons | B55: 0 | D55: =Buffer!F6 -> 2 | E55: =Buffer!D6 -> 2 | F55: =Buffer!E6 -> 1
A56: =Buffer!A7 -> Blunt Weapons | B56: 0 | D56: =Buffer!F7 -> 2 | E56: =Buffer!D7 -> 2 | F56: =Buffer!E7 -> 1
A57: =Buffer!A8 -> Two-Handed Weapons | B57: 0 | D57: =Buffer!F8 -> 2 | E57: =Buffer!D8 -> 3 | F57: =Buffer!E8 -> 1
A58: =Buffer!A9 -> Ranged Weapons | B58: 0 | D58: =Buffer!F9 -> 2 | E58: =Buffer!D9 -> 2 | F58: =Buffer!E9 -> 1
A59: =Buffer!A10 -> Thrown Weapons | B59: 0 | D59: =Buffer!F10 -> 2 | E59: =Buffer!D10 -> 2 | F59: =Buffer!E10 -> 1
A60: =Buffer!A11 -> Polearm Weapons | B60: 0 | D60: =Buffer!F11 -> 2 | E60: =Buffer!D11 -> 3 | F60: =Buffer!E11 -> 1
A61: =Buffer!A12 -> Brawling | B61: 0 | D61: =Buffer!F12 -> 2 | E61: =Buffer!D12 -> 2 | F61: =Buffer!E12 -> 1
A62: =Buffer!A13 -> Two Weapon Combat | B62: 0 | D62: =Buffer!F13 -> 2 | E62: =Buffer!D13 -> 2 | F62: =Buffer!E13 -> 2
A63: =Buffer!A14 -> Combat Maneuvers | B63: 0 | D63: =Buffer!F14 -> 2 | E63: =Buffer!D14 -> 4 | F63: =Buffer!E14 -> 3
A64: =Buffer!A15 -> Multi-Opponent Combat | B64: 0 | D64: =Buffer!F15 -> 2 | E64: =Buffer!D15 -> 4 | F64: =Buffer!E15 -> 3
A65: =Buffer!A16 -> Ambush | B65: 0 | D65: =Buffer!F16 -> 2 | E65: =Buffer!D16 -> 3 | F65: =Buffer!E16 -> 4
A66: =Buffer!A17 -> Physical Fitness | B66: 0 | D66: =Buffer!F17 -> 3 | E66: =Buffer!D17 -> 2 | F66: =Buffer!E17 -> 0
A67: =Buffer!A18 -> Dodging | B67: 0 | D67: =Buffer!F18 -> 3 | E67: =Buffer!D18 -> 4 | F67: =Buffer!E18 -> 2
A68: =Buffer!A19 -> Climbing | B68: 0 | D68: =Buffer!F19 -> 2 | E68: =Buffer!D19 -> 3 | F68: =Buffer!E19 -> 0
A69: =Buffer!A20 -> Swimming | B69: 0 | D69: =Buffer!F20 -> 2 | E69: =Buffer!D20 -> 2 | F69: =Buffer!E20 -> 0
A70: =Buffer!A21 -> Disarm Traps | B70: 0 | D70: =Buffer!F21 -> 2 | E70: =Buffer!D21 -> 2 | F70: =Buffer!E21 -> 4
A71: =Buffer!A22 -> Picking Locks | B71: 0 | D71: =Buffer!F22 -> 2 | E71: =Buffer!D22 -> 2 | F71: =Buffer!E22 -> 3
A72: =Buffer!A23 -> Stalking and Hiding | B72: 0 | D72: =Buffer!F23 -> 2 | E72: =Buffer!D23 -> 3 | F72: =Buffer!E23 -> 2
A73: =Buffer!A24 -> Perception | B73: 0 | D73: =Buffer!F24 -> 2 | E73: =Buffer!D24 -> 0 | F73: =Buffer!E24 -> 3
A74: =Buffer!A25 -> First Aid | B74: 0 | D74: =Buffer!F25 -> 2 | E74: =Buffer!D25 -> 1 | F74: =Buffer!E25 -> 2
A75: =Buffer!A26 -> Trading | B75: 0 | D75: =Buffer!F26 -> 2 | E75: =Buffer!D26 -> 0 | F75: =Buffer!E26 -> 4
A76: =Buffer!A27 -> Pickpocketing | B76: 0 | D76: =Buffer!F27 -> 1 | E76: =Buffer!D27 -> 2 | F76: =Buffer!E27 -> 3
A77: =Buffer!A28 -> Survival | B77: 0 | D77: =Buffer!F28 -> 2 | E77: =Buffer!D28 -> 1 | F77: =Buffer!E28 -> 3
A78: =Buffer!A29 -> Arcane Symbols | B78: 0 | D78: =Buffer!F29 -> 1 | E78: =Buffer!D29 -> 0 | F78: =Buffer!E29 -> 7
A79: =Buffer!A30 -> Magic Item Use | B79: 0 | D79: =Buffer!F30 -> 1 | E79: =Buffer!D30 -> 0 | F79: =Buffer!E30 -> 8
A80: =Buffer!A31 -> Harness Power | B80: 0 | D80: =Buffer!F31 -> 1 | E80: =Buffer!D31 -> 0 | F80: =Buffer!E31 -> 10
A81: =Buffer!A32 -> Spell Aiming | B81: 0 | D81: =Buffer!F32 -> 1 | E81: =Buffer!D32 -> 5 | F81: =Buffer!E32 -> 25
A82: =Buffer!A33 -> Elemental Mana Control | B82: 0 | D82: =Buffer!F33 -> 1 | E82: =Buffer!D33 -> 0 | F82: =Buffer!E33 -> 10
A83: =Buffer!A34 -> Spirit Mana Control | B83: 0 | D83: =Buffer!F34 -> 1 | E83: =Buffer!D34 -> 0 | F83: =Buffer!E34 -> 10
A84: =Buffer!A35 -> Mental Mana Control | B84: 0 | D84: =Buffer!F35 -> 1 | E84: =Buffer!D35 -> 0 | F84: =Buffer!E35 -> 15 | CY84: 0 | CZ84: 0 | DA84: 0 | DB84: 0 | DC84: 0 | DD84: 0 | DE84: 0
A85: =Buffer!A36 -> Spell Research | B85: 0 | D85: =Buffer!F36 -> 1 | E85: =Buffer!D36 -> 0 | F85: =Buffer!E36 -> 120 | H85: =SUM(H86:H88) -> 0 | I85: =SUM(I86:I88) -> 0 | J85: =SUM(J86:J88) -> 0 | K85: 0 | L85: 0 | M85: 0 | N85: 0 | O85: 0 | P85: 0 | Q85: 0 | R85: 0 | S85: 0 | T85: 0 | U85: 0 | V85: 0 | W85: 0 | X85: 0 | Y85: 0 | Z85: 0 | AA85: 0 | AB85: 0 | AC85: 0 | AD85: 0 | AE85: 0 | AF85: 0 | AG85: 0 | AH85: 0 | AI85: 0 | AJ85: 0 | AK85: 0 | AL85: 0 | AM85: 0 | AN85: 0 | AO85: 0 | AP85: 0 | AQ85: 0 | AR85: 0 | AS85: 0 | AT85: 0 | AU85: 0 | AV85: 0 | AW85: 0 | AX85: 0 | AY85: 0 | AZ85: 0 | BA85: 0 | BB85: 0 | BC85: 0 | BD85: 0 | BE85: 0 | BF85: 0 | BG85: 0 | BH85: 0 | BI85: 0 | BJ85: 0 | BK85: 0 | BL85: 0 | BM85: 0 | BN85: 0 | BO85: 0 | BP85: 0 | BQ85: 0 | BR85: 0 | BS85: 0 | BT85: 0 | BU85: 0 | BV85: =SUM(BV86:BV88) -> 0 | BW85: 0 | BX85: 0 | BY85: 0 | BZ85: 0 | CA85: 0 | CB85: 0 | CC85: 0 | CD85: 0 | CE85: 0 | CF85: 0 | CG85: 0 | CH85: 0 | CI85: 0 | CJ85: 0 | CK85: 0 | CL85: 0 | CM85: 0 | CN85: 0 | CO85: 0 | CP85: 0 | CQ85: 0 | CR85: 0 | CS85: 0 | CT85: 0 | CU85: 0 | CV85: 0 | CW85: 0 | CX85: 0 | CY85: 0 | CZ85: 0 | DA85: 0 | DB85: 0 | DC85: 0 | DD85: 0 | DE85: 0 | DF85: 0
A86: =" "&CHOOSE(ProfIdx,"Minor Elemental","Minor Elemental","Major Elemental","Major Spirit","Major Spirit","Minor Elemental","Minor Spirit","Minor Elemental","Minor Spirit","Minor Mental","Major Mental") -> Minor Elemental | B86: =C209 -> 0 | C86: =IF(D209>0,CONCATENATE("(",FIXED(D209,1,FALSE),"X)"),"") ->  | D86: =Buffer!F36 -> 1 | E86: =Buffer!D36 -> 0 | F86: =Buffer!E36 -> 120
A87: =" "&CHOOSE(ProfIdx,"Minor Spirit","Minor Spirit","Minor Elemental","Minor Spirit","Minor Spirit","Minor Spirit","Ranger","Bard","Paladin","Minor Spirit","Minor Mental") -> Minor Spirit | B87: 0
A88: =" "&CHOOSE(ProfIdx,"n.a.","n.a.","Wizard","Cleric","Empath","Sorcerer","n.a.","n.a.","n.a.","n.a.","Savant") -> n.a. | B88: 0
A89: =Buffer!A37 -> Elemental Lore | B89: 0 | D89: =Buffer!F37 -> 1 | E89: =Buffer!D37 -> 0 | F89: =Buffer!E37 -> 15 | H89: =SUM(H90:H93) -> 0 | I89: =SUM(I90:I93) -> 0 | J89: =SUM(J90:J93) -> 0 | K89: 0 | L89: 0 | M89: 0 | N89: 0 | O89: 0 | P89: 0 | Q89: 0 | R89: 0 | S89: 0 | T89: 0 | U89: 0 | V89: 0 | W89: 0 | X89: 0 | Y89: 0 | Z89: 0 | AA89: 0 | AB89: 0 | AC89: 0 | AD89: 0 | AE89: 0 | AF89: 0 | AG89: 0 | AH89: 0 | AI89: 0 | AJ89: 0 | AK89: 0 | AL89: 0 | AM89: 0 | AN89: 0 | AO89: 0 | AP89: 0 | AQ89: 0 | AR89: 0 | AS89: 0 | AT89: 0 | AU89: 0 | AV89: 0 | AW89: 0 | AX89: 0 | AY89: 0 | AZ89: 0 | BA89: 0 | BB89: 0 | BC89: 0 | BD89: 0 | BE89: 0 | BF89: 0 | BG89: 0 | BH89: 0 | BI89: 0 | BJ89: 0 | BK89: 0 | BL89: 0 | BM89: 0 | BN89: 0 | BO89: 0 | BP89: 0 | BQ89: 0 | BR89: 0 | BS89: 0 | BT89: 0 | BU89: 0 | BV89: =SUM(BV90:BV93) -> 0 | BW89: 0 | BX89: 0 | BY89: 0 | BZ89: 0 | CA89: 0 | CB89: 0 | CC89: 0 | CD89: 0 | CE89: 0 | CF89: 0 | CG89: 0 | CH89: 0 | CI89: 0 | CJ89: 0 | CK89: 0 | CL89: 0 | CM89: 0 | CN89: 0 | CO89: 0 | CP89: 0 | CQ89: 0 | CR89: 0 | CS89: 0 | CT89: 0 | CU89: 0 | CV89: 0 | CW89: 0 | CX89: 0 | CY89: 0 | CZ89: 0 | DA89: 0 | DB89: 0 | DC89: 0 | DD89: 0 | DE89: 0 | DF89: =SUM(DF90:DF93) -> 0
A90: Air | B90: 0 | D90: =Buffer!F37 -> 1 | E90: =Buffer!D37 -> 0 | F90: =Buffer!E37 -> 15
A91: Earth | B91: 0
A92: Fire | B92: 0
A93: Water | B93: 0
A94: =Buffer!A38 -> Spiritual Lore | B94: 0 | D94: =Buffer!F38 -> 1 | E94: =Buffer!D38 -> 0 | F94: =Buffer!E38 -> 15 | H94: =SUM(H95:H97) -> 0 | I94: =SUM(I95:I97) -> 0 | J94: =SUM(J95:J97) -> 0 | K94: 0 | L94: 0 | M94: 0 | N94: 0 | O94: 0 | P94: 0 | Q94: 0 | R94: 0 | S94: 0 | T94: 0 | U94: 0 | V94: 0 | W94: 0 | X94: 0 | Y94: 0 | Z94: 0 | AA94: 0 | AB94: 0 | AC94: 0 | AD94: 0 | AE94: 0 | AF94: 0 | AG94: 0 | AH94: 0 | AI94: 0 | AJ94: 0 | AK94: 0 | AL94: 0 | AM94: 0 | AN94: 0 | AO94: 0 | AP94: 0 | AQ94: 0 | AR94: 0 | AS94: 0 | AT94: 0 | AU94: 0 | AV94: 0 | AW94: 0 | AX94: 0 | AY94: 0 | AZ94: 0 | BA94: 0 | BB94: 0 | BC94: 0 | BD94: 0 | BE94: 0 | BF94: 0 | BG94: 0 | BH94: 0 | BI94: 0 | BJ94: 0 | BK94: 0 | BL94: 0 | BM94: 0 | BN94: 0 | BO94: 0 | BP94: 0 | BQ94: 0 | BR94: 0 | BS94: 0 | BT94: 0 | BU94: 0 | BV94: =SUM(BV95:BV97) -> 0 | BW94: 0 | BX94: 0 | BY94: 0 | BZ94: 0 | CA94: 0 | CB94: 0 | CC94: 0 | CD94: 0 | CE94: 0 | CF94: 0 | CG94: 0 | CH94: 0 | CI94: 0 | CJ94: 0 | CK94: 0 | CL94: 0 | CM94: 0 | CN94: 0 | CO94: 0 | CP94: 0 | CQ94: 0 | CR94: 0 | CS94: 0 | CT94: 0 | CU94: 0 | CV94: 0 | CW94: 0 | CX94: 0 | CY94: 0 | CZ94: 0 | DA94: 0 | DB94: 0 | DC94: 0 | DD94: 0 | DE94: 0 | DF94: =SUM(DF95:DF97) -> 0
A95: Blessings | B95: 0 | D95: =Buffer!F38 -> 1 | E95: =Buffer!D38 -> 0 | F95: =Buffer!E38 -> 15
A96: Religion | B96: 0
A97: Summoning | B97: 0
A98: =Buffer!A39 -> Sorcerous Lore | B98: 0 | D98: =Buffer!F39 -> 1 | E98: =Buffer!D39 -> 0 | F98: =Buffer!E39 -> 30 | H98: =SUM(H99:H100) -> 0 | I98: =SUM(I99:I100) -> 0 | J98: =SUM(J99:J100) -> 0 | K98: 0 | L98: 0 | M98: 0 | N98: 0 | O98: 0 | P98: 0 | Q98: 0 | R98: 0 | S98: 0 | T98: 0 | U98: 0 | V98: 0 | W98: 0 | X98: 0 | Y98: 0 | Z98: 0 | AA98: 0 | AB98: 0 | AC98: 0 | AD98: 0 | AE98: 0 | AF98: 0 | AG98: 0 | AH98: 0 | AI98: 0 | AJ98: 0 | AK98: 0 | AL98: 0 | AM98: 0 | AN98: 0 | AO98: 0 | AP98: 0 | AQ98: 0 | AR98: 0 | AS98: 0 | AT98: 0 | AU98: 0 | AV98: 0 | AW98: 0 | AX98: 0 | AY98: 0 | AZ98: 0 | BA98: 0 | BB98: 0 | BC98: 0 | BD98: 0 | BE98: 0 | BF98: 0 | BG98: 0 | BH98: 0 | BI98: 0 | BJ98: 0 | BK98: 0 | BL98: 0 | BM98: 0 | BN98: 0 | BO98: 0 | BP98: 0 | BQ98: 0 | BR98: 0 | BS98: 0 | BT98: 0 | BU98: 0 | BV98: =SUM(BV99:BV100) -> 0 | BW98: 0 | BX98: 0 | BY98: 0 | BZ98: 0 | CA98: 0 | CB98: 0 | CC98: 0 | CD98: 0 | CE98: 0 | CF98: 0 | CG98: 0 | CH98: 0 | CI98: 0 | CJ98: 0 | CK98: 0 | CL98: 0 | CM98: 0 | CN98: 0 | CO98: 0 | CP98: 0 | CQ98: 0 | CR98: 0 | CS98: 0 | CT98: 0 | CU98: 0 | CV98: 0 | CW98: 0 | CX98: 0 | CY98: 0 | CZ98: 0 | DA98: 0 | DB98: 0 | DC98: 0 | DD98: 0 | DE98: 0 | DF98: =SUM(DF99:DF100) -> 0
A99: Demonology | B99: 0 | D99: =Buffer!F39 -> 1 | E99: =Buffer!D39 -> 0 | F99: =Buffer!E39 -> 30
A100: Necromancy | B100: 0
A101: =Buffer!A40 -> Mental Lore | B101: 0 | D101: =Buffer!F40 -> 1 | E101: =Buffer!D40 -> 0 | F101: =Buffer!E40 -> 40 | H101: =SUM(H102:H106) -> 0 | I101: =SUM(I102:I106) -> 0 | J101: =SUM(J102:J106) -> 0 | K101: 0 | L101: 0 | M101: 0 | N101: 0 | O101: 0 | P101: 0 | Q101: 0 | R101: 0 | S101: 0 | T101: 0 | U101: 0 | V101: 0 | W101: 0 | X101: 0 | Y101: 0 | Z101: 0 | AA101: 0 | AB101: 0 | AC101: 0 | AD101: 0 | AE101: 0 | AF101: 0 | AG101: 0 | AH101: 0 | AI101: 0 | AJ101: 0 | AK101: 0 | AL101: 0 | AM101: 0 | AN101: 0 | AO101: 0 | AP101: 0 | AQ101: 0 | AR101: 0 | AS101: 0 | AT101: 0 | AU101: 0 | AV101: 0 | AW101: 0 | AX101: 0 | AY101: 0 | AZ101: 0 | BA101: 0 | BB101: 0 | BC101: 0 | BD101: 0 | BE101: 0 | BF101: 0 | BG101: 0 | BH101: 0 | BI101: 0 | BJ101: 0 | BK101: 0 | BL101: 0 | BM101: 0 | BN101: 0 | BO101: 0 | BP101: 0 | BQ101: 0 | BR101: 0 | BS101: 0 | BT101: 0 | BU101: 0 | BV101: =SUM(BV102:BV106) -> 0 | BW101: 0 | BX101: 0 | BY101: 0 | BZ101: 0 | CA101: 0 | CB101: 0 | CC101: 0 | CD101: 0 | CE101: 0 | CF101: 0 | CG101: 0 | CH101: 0 | CI101: 0 | CJ101: 0 | CK101: 0 | CL101: 0 | CM101: 0 | CN101: 0 | CO101: 0 | CP101: 0 | CQ101: 0 | CR101: 0 | CS101: 0 | CT101: 0 | CU101: 0 | CV101: 0 | CW101: 0 | CX101: 0 | CY101: 0 | CZ101: 0 | DA101: 0 | DB101: 0 | DC101: 0 | DD101: 0 | DE101: 0 | DF101: =SUM(DF102:DF106) -> 0
A102: Divination | B102: 0 | D102: =Buffer!F40 -> 1 | E102: =Buffer!D40 -> 0 | F102: =Buffer!E40 -> 40
A103: Manipulation | B103: 0
A104: Telepathy | B104: 0
A105: Transference | B105: 0
A106: Transformation | B106: 0
A107: PTP | H107: =Buffer!D81-IF(TOTAL_EXP>7572500,INDEX(Buffer!E81:DB81,1,101),IF(TARGET_LEVEL>0,INDEX(Buffer!E81:DA81,1,TARGET_LEVEL),0)) -> 0 | I107: =Buffer!E81 -> 0 | J107: =Buffer!F81-Buffer!E81 -> 0 | K107: =Buffer!G81-Buffer!F81 -> 0 | L107: =Buffer!H81-Buffer!G81 -> 0 | M107: =Buffer!I81-Buffer!H81 -> 0 | N107: =Buffer!J81-Buffer!I81 -> 0 | O107: =Buffer!K81-Buffer!J81 -> 0 | P107: =Buffer!L81-Buffer!K81 -> 0 | Q107: =Buffer!M81-Buffer!L81 -> 0 | R107: =Buffer!N81-Buffer!M81 -> 0 | S107: =Buffer!O81-Buffer!N81 -> 0 | T107: =Buffer!P81-Buffer!O81 -> 0 | U107: =Buffer!Q81-Buffer!P81 -> 0 | V107: =Buffer!R81-Buffer!Q81 -> 0 | W107: =Buffer!S81-Buffer!R81 -> 0 | X107: =Buffer!T81-Buffer!S81 -> 0 | Y107: =Buffer!U81-Buffer!T81 -> 0 | Z107: =Buffer!V81-Buffer!U81 -> 0 | AA107: =Buffer!W81-Buffer!V81 -> 0 | AB107: =Buffer!X81-Buffer!W81 -> 0 | AC107: =Buffer!Y81-Buffer!X81 -> 0 | AD107: =Buffer!Z81-Buffer!Y81 -> 0 | AE107: =Buffer!AA81-Buffer!Z81 -> 0 | AF107: =Buffer!AB81-Buffer!AA81 -> 0 | AG107: =Buffer!AC81-Buffer!AB81 -> 0 | AH107: =Buffer!AD81-Buffer!AC81 -> 0 | AI107: =Buffer!AE81-Buffer!AD81 -> 0 | AJ107: =Buffer!AF81-Buffer!AE81 -> 0 | AK107: =Buffer!AG81-Buffer!AF81 -> 0 | AL107: =Buffer!AH81-Buffer!AG81 -> 0 | AM107: =Buffer!AI81-Buffer!AH81 -> 0 | AN107: =Buffer!AJ81-Buffer!AI81 -> 0 | AO107: =Buffer!AK81-Buffer!AJ81 -> 0 | AP107: =Buffer!AL81-Buffer!AK81 -> 0 | AQ107: =Buffer!AM81-Buffer!AL81 -> 0 | AR107: =Buffer!AN81-Buffer!AM81 -> 0 | AS107: =Buffer!AO81-Buffer!AN81 -> 0 | AT107: =Buffer!AP81-Buffer!AO81 -> 0 | AU107: =Buffer!AQ81-Buffer!AP81 -> 0 | AV107: =Buffer!AR81-Buffer!AQ81 -> 0 | AW107: =Buffer!AS81-Buffer!AR81 -> 0 | AX107: =Buffer!AT81-Buffer!AS81 -> 0 | AY107: =Buffer!AU81-Buffer!AT81 -> 0 | AZ107: =Buffer!AV81-Buffer!AU81 -> 0 | BA107: =Buffer!AW81-Buffer!AV81 -> 0 | BB107: =Buffer!AX81-Buffer!AW81 -> 0 | BC107: =Buffer!AY81-Buffer!AX81 -> 0 | BD107: =Buffer!AZ81-Buffer!AY81 -> 0 | BE107: =Buffer!BA81-Buffer!AZ81 -> 0 | BF107: =Buffer!BB81-Buffer!BA81 -> 0 | BG107: =Buffer!BC81-Buffer!BB81 -> 0 | BH107: =Buffer!BD81-Buffer!BC81 -> 0 | BI107: =Buffer!BE81-Buffer!BD81 -> 0 | BJ107: =Buffer!BF81-Buffer!BE81 -> 0 | BK107: =Buffer!BG81-Buffer!BF81 -> 0 | BL107: =Buffer!BH81-Buffer!BG81 -> 0 | BM107: =Buffer!BI81-Buffer!BH81 -> 0 | BN107: =Buffer!BJ81-Buffer!BI81 -> 0 | BO107: =Buffer!BK81-Buffer!BJ81 -> 0 | BP107: =Buffer!BL81-Buffer!BK81 -> 0 | BQ107: =Buffer!BM81-Buffer!BL81 -> 0 | BR107: =Buffer!BN81-Buffer!BM81 -> 0 | BS107: =Buffer!BO81-Buffer!BN81 -> 0 | BT107: =Buffer!BP81-Buffer!BO81 -> 0 | BU107: =Buffer!BQ81-Buffer!BP81 -> 0 | BV107: =Buffer!BR81-Buffer!BQ81 -> 0 | BW107: =Buffer!BS81-Buffer!BR81 -> 0 | BX107: =Buffer!BT81-Buffer!BS81 -> 0 | BY107: =Buffer!BU81-Buffer!BT81 -> 0 | BZ107: =Buffer!BV81-Buffer!BU81 -> 0 | CA107: =Buffer!BW81-Buffer!BV81 -> 0 | CB107: =Buffer!BX81-Buffer!BW81 -> 0 | CC107: =Buffer!BY81-Buffer!BX81 -> 0 | CD107: =Buffer!BZ81-Buffer!BY81 -> 0 | CE107: =Buffer!CA81-Buffer!BZ81 -> 0 | CF107: =Buffer!CB81-Buffer!CA81 -> 0 | CG107: =Buffer!CC81-Buffer!CB81 -> 0 | CH107: =Buffer!CD81-Buffer!CC81 -> 0 | CI107: =Buffer!CE81-Buffer!CD81 -> 0 | CJ107: =Buffer!CF81-Buffer!CE81 -> 0 | CK107: =Buffer!CG81-Buffer!CF81 -> 0 | CL107: =Buffer!CH81-Buffer!CG81 -> 0 | CM107: =Buffer!CI81-Buffer!CH81 -> 0 | CN107: =Buffer!CJ81-Buffer!CI81 -> 0 | CO107: =Buffer!CK81-Buffer!CJ81 -> 0 | CP107: =Buffer!CL81-Buffer!CK81 -> 0 | CQ107: =Buffer!CM81-Buffer!CL81 -> 0 | CR107: =Buffer!CN81-Buffer!CM81 -> 0 | CS107: =Buffer!CO81-Buffer!CN81 -> 0 | CT107: =Buffer!CP81-Buffer!CO81 -> 0 | CU107: =Buffer!CQ81-Buffer!CP81 -> 0 | CV107: =Buffer!CR81-Buffer!CQ81 -> 0 | CW107: =Buffer!CS81-Buffer!CR81 -> 0 | CX107: =Buffer!CT81-Buffer!CS81 -> 0 | CY107: =Buffer!CU81-Buffer!CT81 -> 0 | CZ107: =Buffer!CV81-Buffer!CU81 -> 0 | DA107: =Buffer!CW81-Buffer!CV81 -> 0 | DB107: =Buffer!CX81-Buffer!CW81 -> 0 | DC107: =Buffer!CY81-Buffer!CX81 -> 0 | DD107: =Buffer!CZ81-Buffer!CY81 -> 0 | DE107: =Buffer!DA81-Buffer!CZ81 -> 0 | DF107: =Buffer!DB81-Buffer!DA81 -> 0
A108: MTP | H108: =Buffer!D122-IF(TOTAL_EXP>7572500,INDEX(Buffer!E82:DA122,1,101),IF(TARGET_LEVEL>0,INDEX(Buffer!E82:DA122,1,TARGET_LEVEL),0)) -> 0 | I108: =Buffer!E122 -> 0 | J108: =Buffer!F122-Buffer!E122 -> 0 | K108: =Buffer!G122-Buffer!F122 -> 0 | L108: =Buffer!H122-Buffer!G122 -> 0 | M108: =Buffer!I122-Buffer!H122 -> 0 | N108: =Buffer!J122-Buffer!I122 -> 0 | O108: =Buffer!K122-Buffer!J122 -> 0 | P108: =Buffer!L122-Buffer!K122 -> 0 | Q108: =Buffer!M122-Buffer!L122 -> 0 | R108: =Buffer!N122-Buffer!M122 -> 0 | S108: =Buffer!O122-Buffer!N122 -> 0 | T108: =Buffer!P122-Buffer!O122 -> 0 | U108: =Buffer!Q122-Buffer!P122 -> 0 | V108: =Buffer!R122-Buffer!Q122 -> 0 | W108: =Buffer!S122-Buffer!R122 -> 0 | X108: =Buffer!T122-Buffer!S122 -> 0 | Y108: =Buffer!U122-Buffer!T122 -> 0 | Z108: =Buffer!V122-Buffer!U122 -> 0 | AA108: =Buffer!W122-Buffer!V122 -> 0 | AB108: =Buffer!X122-Buffer!W122 -> 0 | AC108: =Buffer!Y122-Buffer!X122 -> 0 | AD108: =Buffer!Z122-Buffer!Y122 -> 0 | AE108: =Buffer!AA122-Buffer!Z122 -> 0 | AF108: =Buffer!AB122-Buffer!AA122 -> 0 | AG108: =Buffer!AC122-Buffer!AB122 -> 0 | AH108: =Buffer!AD122-Buffer!AC122 -> 0 | AI108: =Buffer!AE122-Buffer!AD122 -> 0 | AJ108: =Buffer!AF122-Buffer!AE122 -> 0 | AK108: =Buffer!AG122-Buffer!AF122 -> 0 | AL108: =Buffer!AH122-Buffer!AG122 -> 0 | AM108: =Buffer!AI122-Buffer!AH122 -> 0 | AN108: =Buffer!AJ122-Buffer!AI122 -> 0 | AO108: =Buffer!AK122-Buffer!AJ122 -> 0 | AP108: =Buffer!AL122-Buffer!AK122 -> 0 | AQ108: =Buffer!AM122-Buffer!AL122 -> 0 | AR108: =Buffer!AN122-Buffer!AM122 -> 0 | AS108: =Buffer!AO122-Buffer!AN122 -> 0 | AT108: =Buffer!AP122-Buffer!AO122 -> 0 | AU108: =Buffer!AQ122-Buffer!AP122 -> 0 | AV108: =Buffer!AR122-Buffer!AQ122 -> 0 | AW108: =Buffer!AS122-Buffer!AR122 -> 0 | AX108: =Buffer!AT122-Buffer!AS122 -> 0 | AY108: =Buffer!AU122-Buffer!AT122 -> 0 | AZ108: =Buffer!AV122-Buffer!AU122 -> 0 | BA108: =Buffer!AW122-Buffer!AV122 -> 0 | BB108: =Buffer!AX122-Buffer!AW122 -> 0 | BC108: =Buffer!AY122-Buffer!AX122 -> 0 | BD108: =Buffer!AZ122-Buffer!AY122 -> 0 | BE108: =Buffer!BA122-Buffer!AZ122 -> 0 | BF108: =Buffer!BB122-Buffer!BA122 -> 0 | BG108: =Buffer!BC122-Buffer!BB122 -> 0 | BH108: =Buffer!BD122-Buffer!BC122 -> 0 | BI108: =Buffer!BE122-Buffer!BD122 -> 0 | BJ108: =Buffer!BF122-Buffer!BE122 -> 0 | BK108: =Buffer!BG122-Buffer!BF122 -> 0 | BL108: =Buffer!BH122-Buffer!BG122 -> 0 | BM108: =Buffer!BI122-Buffer!BH122 -> 0 | BN108: =Buffer!BJ122-Buffer!BI122 -> 0 | BO108: =Buffer!BK122-Buffer!BJ122 -> 0 | BP108: =Buffer!BL122-Buffer!BK122 -> 0 | BQ108: =Buffer!BM122-Buffer!BL122 -> 0 | BR108: =Buffer!BN122-Buffer!BM122 -> 0 | BS108: =Buffer!BO122-Buffer!BN122 -> 0 | BT108: =Buffer!BP122-Buffer!BO122 -> 0 | BU108: =Buffer!BQ122-Buffer!BP122 -> 0 | BV108: =Buffer!BR122-Buffer!BQ122 -> 0 | BW108: =Buffer!BS122-Buffer!BR122 -> 0 | BX108: =Buffer!BT122-Buffer!BS122 -> 0 | BY108: =Buffer!BU122-Buffer!BT122 -> 0 | BZ108: =Buffer!BV122-Buffer!BU122 -> 0 | CA108: =Buffer!BW122-Buffer!BV122 -> 0 | CB108: =Buffer!BX122-Buffer!BW122 -> 0 | CC108: =Buffer!BY122-Buffer!BX122 -> 0 | CD108: =Buffer!BZ122-Buffer!BY122 -> 0 | CE108: =Buffer!CA122-Buffer!BZ122 -> 0 | CF108: =Buffer!CB122-Buffer!CA122 -> 0 | CG108: =Buffer!CC122-Buffer!CB122 -> 0 | CH108: =Buffer!CD122-Buffer!CC122 -> 0 | CI108: =Buffer!CE122-Buffer!CD122 -> 0 | CJ108: =Buffer!CF122-Buffer!CE122 -> 0 | CK108: =Buffer!CG122-Buffer!CF122 -> 0 | CL108: =Buffer!CH122-Buffer!CG122 -> 0 | CM108: =Buffer!CI122-Buffer!CH122 -> 0 | CN108: =Buffer!CJ122-Buffer!CI122 -> 0 | CO108: =Buffer!CK122-Buffer!CJ122 -> 0 | CP108: =Buffer!CL122-Buffer!CK122 -> 0 | CQ108: =Buffer!CM122-Buffer!CL122 -> 0 | CR108: =Buffer!CN122-Buffer!CM122 -> 0 | CS108: =Buffer!CO122-Buffer!CN122 -> 0 | CT108: =Buffer!CP122-Buffer!CO122 -> 0 | CU108: =Buffer!CQ122-Buffer!CP122 -> 0 | CV108: =Buffer!CR122-Buffer!CQ122 -> 0 | CW108: =Buffer!CS122-Buffer!CR122 -> 0 | CX108: =Buffer!CT122-Buffer!CS122 -> 0 | CY108: =Buffer!CU122-Buffer!CT122 -> 0 | CZ108: =Buffer!CV122-Buffer!CU122 -> 0 | DA108: =Buffer!CW122-Buffer!CV122 -> 0 | DB108: =Buffer!CX122-Buffer!CW122 -> 0 | DC108: =Buffer!CY122-Buffer!CX122 -> 0 | DD108: =Buffer!CZ122-Buffer!CY122 -> 0 | DE108: =Buffer!DA122-Buffer!CZ122 -> 0 | DF108: =Buffer!DB122-Buffer!DA122 -> 0
A109: Total PTP Left | H109: =Buffer!D130 -> 290 | I109: =Buffer!E130 -> 25 | J109: =Buffer!F130 -> 50 | K109: =Buffer!G130 -> 75 | L109: =Buffer!H130 -> 101 | M109: =Buffer!I130 -> 127 | N109: =Buffer!J130 -> 153 | O109: =Buffer!K130 -> 180 | P109: =Buffer!L130 -> 207 | Q109: =Buffer!M130 -> 234 | R109: =Buffer!N130 -> 262 | S109: =Buffer!O130 -> 290 | T109: =Buffer!P130 -> 318 | U109: =Buffer!Q130 -> 347 | V109: =Buffer!R130 -> 376 | W109: =Buffer!S130 -> 405 | X109: =Buffer!T130 -> 435 | Y109: =Buffer!U130 -> 465 | Z109: =Buffer!V130 -> 495 | AA109: =Buffer!W130 -> 526 | AB109: =Buffer!X130 -> 557 | AC109: =Buffer!Y130 -> 589 | AD109: =Buffer!Z130 -> 621 | AE109: =Buffer!AA130 -> 653 | AF109: =Buffer!AB130 -> 686 | AG109: =Buffer!AC130 -> 719 | AH109: =Buffer!AD130 -> 752 | AI109: =Buffer!AE130 -> 786 | AJ109: =Buffer!AF130 -> 820 | AK109: =Buffer!AG130 -> 854 | AL109: =Buffer!AH130 -> 889 | AM109: =Buffer!AI130 -> 924 | AN109: =Buffer!AJ130 -> 959 | AO109: =Buffer!AK130 -> 995 | AP109: =Buffer!AL130 -> 1031 | AQ109: =Buffer!AM130 -> 1067 | AR109: =Buffer!AN130 -> 1104 | AS109: =Buffer!AO130 -> 1141 | AT109: =Buffer!AP130 -> 1178 | AU109: =Buffer!AQ130 -> 1216 | AV109: =Buffer!AR130 -> 1254 | AW109: =Buffer!AS130 -> 1292 | AX109: =Buffer!AT130 -> 1331 | AY109: =Buffer!AU130 -> 1370 | AZ109: =Buffer!AV130 -> 1409 | BA109: =Buffer!AW130 -> 1449 | BB109: =Buffer!AX130 -> 1489 | BC109: =Buffer!AY130 -> 1529 | BD109: =Buffer!AZ130 -> 1570 | BE109: =Buffer!BA130 -> 1611 | BF109: =Buffer!BB130 -> 1652 | BG109: =Buffer!BC130 -> 1694 | BH109: =Buffer!BD130 -> 1736 | BI109: =Buffer!BE130 -> 1778 | BJ109: =Buffer!BF130 -> 1820 | BK109: =Buffer!BG130 -> 1863 | BL109: =Buffer!BH130 -> 1906 | BM109: =Buffer!BI130 -> 1949 | BN109: =Buffer!BJ130 -> 1992 | BO109: =Buffer!BK130 -> 2036 | BP109: =Buffer!BL130 -> 2080 | BQ109: =Buffer!BM130 -> 2124 | BR109: =Buffer!BN130 -> 2168 | BS109: =Buffer!BO130 -> 2213 | BT109: =Buffer!BP130 -> 2258 | BU109: =Buffer!BQ130 -> 2303 | BV109: =Buffer!BR130 -> 2348 | BW109: =Buffer!BS130 -> 2393 | BX109: =Buffer!BT130 -> 2438 | BY109: =Buffer!BU130 -> 2484 | BZ109: =Buffer!BV130 -> 2530 | CA109: =Buffer!BW130 -> 2576 | CB109: =Buffer!BX130 -> 2622 | CC109: =Buffer!BY130 -> 2668 | CD109: =Buffer!BZ130 -> 2714 | CE109: =Buffer!CA130 -> 2761 | CF109: =Buffer!CB130 -> 2808 | CG109: =Buffer!CC130 -> 2855 | CH109: =Buffer!CD130 -> 2902 | CI109: =Buffer!CE130 -> 2949 | CJ109: =Buffer!CF130 -> 2996 | CK109: =Buffer!CG130 -> 3044 | CL109: =Buffer!CH130 -> 3092 | CM109: =Buffer!CI130 -> 3140 | CN109: =Buffer!CJ130 -> 3188 | CO109: =Buffer!CK130 -> 3236 | CP109: =Buffer!CL130 -> 3284 | CQ109: =Buffer!CM130 -> 3333 | CR109: =Buffer!CN130 -> 3382 | CS109: =Buffer!CO130 -> 3431 | CT109: =Buffer!CP130 -> 3480 | CU109: =Buffer!CQ130 -> 3529 | CV109: =Buffer!CR130 -> 3578 | CW109: =Buffer!CS130 -> 3628 | CX109: =Buffer!CT130 -> 3678 | CY109: =Buffer!CU130 -> 3728 | CZ109: =Buffer!CV130 -> 3778 | DA109: =Buffer!CW130 -> 3828 | DB109: =Buffer!CX130 -> 3878 | DC109: =Buffer!CY130 -> 3929 | DD109: =Buffer!CZ130 -> 3980 | DE109: =Buffer!DA130 -> 4031 | DF109: =Buffer!DB130 -> 4031
A110: Total MTP Left | H110: =Buffer!D131 -> 285 | I110: =Buffer!E131 -> 25 | J110: =Buffer!F131 -> 50 | K110: =Buffer!G131 -> 75 | L110: =Buffer!H131 -> 100 | M110: =Buffer!I131 -> 126 | N110: =Buffer!J131 -> 152 | O110: =Buffer!K131 -> 178 | P110: =Buffer!L131 -> 204 | Q110: =Buffer!M131 -> 231 | R110: =Buffer!N131 -> 258 | S110: =Buffer!O131 -> 285 | T110: =Buffer!P131 -> 312 | U110: =Buffer!Q131 -> 340 | V110: =Buffer!R131 -> 368 | W110: =Buffer!S131 -> 396 | X110: =Buffer!T131 -> 424 | Y110: =Buffer!U131 -> 453 | Z110: =Buffer!V131 -> 482 | AA110: =Buffer!W131 -> 511 | AB110: =Buffer!X131 -> 540 | AC110: =Buffer!Y131 -> 570 | AD110: =Buffer!Z131 -> 600 | AE110: =Buffer!AA131 -> 630 | AF110: =Buffer!AB131 -> 660 | AG110: =Buffer!AC131 -> 690 | AH110: =Buffer!AD131 -> 721 | AI110: =Buffer!AE131 -> 752 | AJ110: =Buffer!AF131 -> 783 | AK110: =Buffer!AG131 -> 814 | AL110: =Buffer!AH131 -> 846 | AM110: =Buffer!AI131 -> 878 | AN110: =Buffer!AJ131 -> 910 | AO110: =Buffer!AK131 -> 942 | AP110: =Buffer!AL131 -> 974 | AQ110: =Buffer!AM131 -> 1007 | AR110: =Buffer!AN131 -> 1040 | AS110: =Buffer!AO131 -> 1073 | AT110: =Buffer!AP131 -> 1106 | AU110: =Buffer!AQ131 -> 1139 | AV110: =Buffer!AR131 -> 1172 | AW110: =Buffer!AS131 -> 1206 | AX110: =Buffer!AT131 -> 1240 | AY110: =Buffer!AU131 -> 1274 | AZ110: =Buffer!AV131 -> 1308 | BA110: =Buffer!AW131 -> 1342 | BB110: =Buffer!AX131 -> 1376 | BC110: =Buffer!AY131 -> 1410 | BD110: =Buffer!AZ131 -> 1444 | BE110: =Buffer!BA131 -> 1479 | BF110: =Buffer!BB131 -> 1514 | BG110: =Buffer!BC131 -> 1549 | BH110: =Buffer!BD131 -> 1584 | BI110: =Buffer!BE131 -> 1619 | BJ110: =Buffer!BF131 -> 1654 | BK110: =Buffer!BG131 -> 1689 | BL110: =Buffer!BH131 -> 1724 | BM110: =Buffer!BI131 -> 1760 | BN110: =Buffer!BJ131 -> 1796 | BO110: =Buffer!BK131 -> 1832 | BP110: =Buffer!BL131 -> 1868 | BQ110: =Buffer!BM131 -> 1904 | BR110: =Buffer!BN131 -> 1940 | BS110: =Buffer!BO131 -> 1976 | BT110: =Buffer!BP131 -> 2012 | BU110: =Buffer!BQ131 -> 2048 | BV110: =Buffer!BR131 -> 2084 | BW110: =Buffer!BS131 -> 2121 | BX110: =Buffer!BT131 -> 2158 | BY110: =Buffer!BU131 -> 2195 | BZ110: =Buffer!BV131 -> 2232 | CA110: =Buffer!BW131 -> 2269 | CB110: =Buffer!BX131 -> 2306 | CC110: =Buffer!BY131 -> 2343 | CD110: =Buffer!BZ131 -> 2380 | CE110: =Buffer!CA131 -> 2417 | CF110: =Buffer!CB131 -> 2455 | CG110: =Buffer!CC131 -> 2493 | CH110: =Buffer!CD131 -> 2531 | CI110: =Buffer!CE131 -> 2569 | CJ110: =Buffer!CF131 -> 2607 | CK110: =Buffer!CG131 -> 2645 | CL110: =Buffer!CH131 -> 2683 | CM110: =Buffer!CI131 -> 2721 | CN110: =Buffer!CJ131 -> 2759 | CO110: =Buffer!CK131 -> 2798 | CP110: =Buffer!CL131 -> 2837 | CQ110: =Buffer!CM131 -> 2876 | CR110: =Buffer!CN131 -> 2915 | CS110: =Buffer!CO131 -> 2954 | CT110: =Buffer!CP131 -> 2993 | CU110: =Buffer!CQ131 -> 3032 | CV110: =Buffer!CR131 -> 3071 | CW110: =Buffer!CS131 -> 3110 | CX110: =Buffer!CT131 -> 3149 | CY110: =Buffer!CU131 -> 3188 | CZ110: =Buffer!CV131 -> 3227 | DA110: =Buffer!CW131 -> 3267 | DB110: =Buffer!CX131 -> 3307 | DC110: =Buffer!CY131 -> 3347 | DD110: =Buffer!CZ131 -> 3387 | DE110: =Buffer!DA131 -> 3427 | DF110: =Buffer!DB131 -> 3427
A111: DFRedux Primary (Physical Fitness) | H111: =H189 -> 0 | I111: 0 | J111: 0 | K111: 0 | L111: 0 | M111: 0 | N111: 0 | O111: 0 | P111: 0 | Q111: 0 | R111: 0 | S111: 0 | T111: 0 | U111: 0 | V111: 0 | W111: 0 | X111: 0 | Y111: 0 | Z111: 0 | AA111: 0 | AB111: 0 | AC111: 0 | AD111: 0 | AE111: 0 | AF111: 0 | AG111: 0 | AH111: 0 | AI111: 0 | AJ111: 0 | AK111: 0 | AL111: 0 | AM111: 0 | AN111: =AN189 -> 0 | AO111: 0 | AP111: 0 | AQ111: 0 | AR111: 0 | AS111: 0 | AT111: 0 | AU111: 0 | AV111: 0 | AW111: 0 | AX111: 0 | AY111: 0 | AZ111: 0 | BA111: 0 | BB111: 0 | BC111: 0 | BD111: 0 | BE111: 0 | BF111: 0 | BG111: 0 | BH111: 0 | BI111: 0 | BJ111: 0 | BK111: 0 | BL111: 0 | BM111: 0 | BN111: 0 | BO111: 0 | BP111: 0 | BQ111: 0 | BR111: 0 | BS111: 0 | BT111: =BT189 -> 0 | BU111: 0 | BV111: 0 | BW111: 0 | BX111: 0 | BY111: 0 | BZ111: 0 | CA111: 0 | CB111: 0 | CC111: 0 | CD111: 0 | CE111: 0 | CF111: 0 | CG111: 0 | CH111: 0 | CI111: 0 | CJ111: 0 | CK111: 0 | CL111: 0 | CM111: 0 | CN111: 0 | CO111: 0 | CP111: 0 | CQ111: 0 | CR111: 0 | CS111: 0 | CT111: 0 | CU111: 0 | CV111: 0 | CW111: 0 | CX111: 0 | CY111: 0 | CZ111: =CZ189 -> 0 | DA111: 0 | DB111: 0 | DC111: 0 | DD111: 0 | DE111: 0 | DF111: =DF189 -> 0
A112: DFRedux Secondary | H112: =H185+H176+H177+H190+H186+H187+H188 -> 0 | I112: 0 | J112: 0 | K112: 0 | L112: 0 | M112: 0 | N112: 0 | O112: 0 | P112: 0 | Q112: 0 | R112: 0 | S112: 0 | T112: 0 | U112: 0 | V112: 0 | W112: 0 | X112: 0 | Y112: 0 | Z112: 0 | AA112: 0 | AB112: 0 | AC112: 0 | AD112: 0 | AE112: 0 | AF112: 0 | AG112: 0 | AH112: 0 | AI112: 0 | AJ112: 0 | AK112: 0 | AL112: 0 | AM112: 0 | AN112: =AN185+AN176+AN177+AN190+AN186+AN187+AN188 -> 0 | AO112: 0 | AP112: 0 | AQ112: 0 | AR112: 0 | AS112: 0 | AT112: 0 | AU112: 0 | AV112: 0 | AW112: 0 | AX112: 0 | AY112: 0 | AZ112: 0 | BA112: 0 | BB112: 0 | BC112: 0 | BD112: 0 | BE112: 0 | BF112: 0 | BG112: 0 | BH112: 0 | BI112: 0 | BJ112: 0 | BK112: 0 | BL112: 0 | BM112: 0 | BN112: 0 | BO112: 0 | BP112: 0 | BQ112: 0 | BR112: 0 | BS112: 0 | BT112: =BT185+BT176+BT177+BT190+BT186+BT187+BT188 -> 0 | BU112: 0 | BV112: 0 | BW112: 0 | BX112: 0 | BY112: 0 | BZ112: 0 | CA112: 0 | CB112: 0 | CC112: 0 | CD112: 0 | CE112: 0 | CF112: 0 | CG112: 0 | CH112: 0 | CI112: 0 | CJ112: 0 | CK112: 0 | CL112: 0 | CM112: 0 | CN112: 0 | CO112: 0 | CP112: 0 | CQ112: 0 | CR112: 0 | CS112: 0 | CT112: 0 | CU112: 0 | CV112: 0 | CW112: 0 | CX112: 0 | CY112: 0 | CZ112: =CZ185+CZ176+CZ177+CZ190+CZ186+CZ187+CZ188 -> 0 | DA112: 0 | DB112: 0 | DC112: 0 | DD112: 0 | DE112: 0 | DF112: =DF185+DF176+DF177+DF190+DF186+DF187+DF188 -> 0
A113: DFRedux Teriary (weapon) | H113: =H178+H179+H180+H181+H182+H183+H184 -> 0 | I113: 0 | J113: 0 | K113: 0 | L113: 0 | M113: 0 | N113: 0 | O113: 0 | P113: 0 | Q113: 0 | R113: 0 | S113: 0 | T113: 0 | U113: 0 | V113: 0 | W113: 0 | X113: 0 | Y113: 0 | Z113: 0 | AA113: 0 | AB113: 0 | AC113: 0 | AD113: 0 | AE113: 0 | AF113: 0 | AG113: 0 | AH113: 0 | AI113: 0 | AJ113: 0 | AK113: 0 | AL113: 0 | AM113: 0 | AN113: =AN178+AN179+AN180+AN181+AN182+AN183+AN184 -> 0 | AO113: 0 | AP113: 0 | AQ113: 0 | AR113: 0 | AS113: 0 | AT113: 0 | AU113: 0 | AV113: 0 | AW113: 0 | AX113: 0 | AY113: 0 | AZ113: 0 | BA113: 0 | BB113: 0 | BC113: 0 | BD113: 0 | BE113: 0 | BF113: 0 | BG113: 0 | BH113: 0 | BI113: 0 | BJ113: 0 | BK113: 0 | BL113: 0 | BM113: 0 | BN113: 0 | BO113: 0 | BP113: 0 | BQ113: 0 | BR113: 0 | BS113: 0 | BT113: =BT178+BT179+BT180+BT181+BT182+BT183+BT184 -> 0 | BU113: 0 | BV113: 0 | BW113: 0 | BX113: 0 | BY113: 0 | BZ113: 0 | CA113: 0 | CB113: 0 | CC113: 0 | CD113: 0 | CE113: 0 | CF113: 0 | CG113: 0 | CH113: 0 | CI113: 0 | CJ113: 0 | CK113: 0 | CL113: 0 | CM113: 0 | CN113: 0 | CO113: 0 | CP113: 0 | CQ113: 0 | CR113: 0 | CS113: 0 | CT113: 0 | CU113: 0 | CV113: 0 | CW113: 0 | CX113: 0 | CY113: 0 | CZ113: =CZ178+CZ179+CZ180+CZ181+CZ182+CZ183+CZ184 -> 0 | DA113: 0 | DB113: 0 | DC113: 0 | DD113: 0 | DE113: 0 | DF113: =DF178+DF179+DF180+DF181+DF182+DF183+DF184 -> 0
A114: DFRedux Spell Penalty (GS3 formula) | H114: =Buffer!B231*(Buffer!B231+1)+Buffer!B232*(Buffer!B232+1)+CHOOSE(ProfIdx,0,0,1,1,1,1,0,0,0,0,1)*Buffer!B233*(Buffer!B233+1) -> 0 | I114: =Buffer!C231*(Buffer!C231+1)+Buffer!C232*(Buffer!C232+1)+CHOOSE(ProfIdx,0,0,1,1,1,1,0,0,0,0,1)*Buffer!C233*(Buffer!C233+1) -> 0 | J114: =Buffer!D231*(Buffer!D231+1)+Buffer!D232*(Buffer!D232+1)+CHOOSE(ProfIdx,0,0,1,1,1,1,0,0,0,0,1)*Buffer!D233*(Buffer!D233+1) -> 0 | K114: =Buffer!E231*(Buffer!E231+1)+Buffer!E232*(Buffer!E232+1)+CHOOSE(ProfIdx,0,0,1,1,1,1,0,0,0,0,1)*Buffer!E233*(Buffer!E233+1) -> 0 | L114: =Buffer!F231*(Buffer!F231+1)+Buffer!F232*(Buffer!F232+1)+CHOOSE(ProfIdx,0,0,1,1,1,1,0,0,0,0,1)*Buffer!F233*(Buffer!F233+1) -> 0 | M114: =Buffer!G231*(Buffer!G231+1)+Buffer!G232*(Buffer!G232+1)+CHOOSE(ProfIdx,0,0,1,1,1,1,0,0,0,0,1)*Buffer!G233*(Buffer!G233+1) -> 0 | N114: =Buffer!H231*(Buffer!H231+1)+Buffer!H232*(Buffer!H232+1)+CHOOSE(ProfIdx,0,0,1,1,1,1,0,0,0,0,1)*Buffer!H233*(Buffer!H233+1) -> 0 | O114: =Buffer!I231*(Buffer!I231+1)+Buffer!I232*(Buffer!I232+1)+CHOOSE(ProfIdx,0,0,1,1,1,1,0,0,0,0,1)*Buffer!I233*(Buffer!I233+1) -> 0 | P114: =Buffer!J231*(Buffer!J231+1)+Buffer!J232*(Buffer!J232+1)+CHOOSE(ProfIdx,0,0,1,1,1,1,0,0,0,0,1)*Buffer!J233*(Buffer!J233+1) -> 0 | Q114: =Buffer!K231*(Buffer!K231+1)+Buffer!K232*(Buffer!K232+1)+CHOOSE(ProfIdx,0,0,1,1,1,1,0,0,0,0,1)*Buffer!K233*(Buffer!K233+1) -> 0 | R114: =Buffer!L231*(Buffer!L231+1)+Buffer!L232*(Buffer!L232+1)+CHOOSE(ProfIdx,0,0,1,1,1,1,0,0,0,0,1)*Buffer!L233*(Buffer!L233+1) -> 0 | S114: =Buffer!M231*(Buffer!M231+1)+Buffer!M232*(Buffer!M232+1)+CHOOSE(ProfIdx,0,0,1,1,1,1,0,0,0,0,1)*Buffer!M233*(Buffer!M233+1) -> 0 | T114: =Buffer!N231*(Buffer!N231+1)+Buffer!N232*(Buffer!N232+1)+CHOOSE(ProfIdx,0,0,1,1,1,1,0,0,0,0,1)*Buffer!N233*(Buffer!N233+1) -> 0 | U114: =Buffer!O231*(Buffer!O231+1)+Buffer!O232*(Buffer!O232+1)+CHOOSE(ProfIdx,0,0,1,1,1,1,0,0,0,0,1)*Buffer!O233*(Buffer!O233+1) -> 0 | V114: =Buffer!P231*(Buffer!P231+1)+Buffer!P232*(Buffer!P232+1)+CHOOSE(ProfIdx,0,0,1,1,1,1,0,0,0,0,1)*Buffer!P233*(Buffer!P233+1) -> 0 | W114: =Buffer!Q231*(Buffer!Q231+1)+Buffer!Q232*(Buffer!Q232+1)+CHOOSE(ProfIdx,0,0,1,1,1,1,0,0,0,0,1)*Buffer!Q233*(Buffer!Q233+1) -> 0 | X114: =Buffer!R231*(Buffer!R231+1)+Buffer!R232*(Buffer!R232+1)+CHOOSE(ProfIdx,0,0,1,1,1,1,0,0,0,0,1)*Buffer!R233*(Buffer!R233+1) -> 0 | Y114: =Buffer!S231*(Buffer!S231+1)+Buffer!S232*(Buffer!S232+1)+CHOOSE(ProfIdx,0,0,1,1,1,1,0,0,0,0,1)*Buffer!S233*(Buffer!S233+1) -> 0 | Z114: =Buffer!T231*(Buffer!T231+1)+Buffer!T232*(Buffer!T232+1)+CHOOSE(ProfIdx,0,0,1,1,1,1,0,0,0,0,1)*Buffer!T233*(Buffer!T233+1) -> 0 | AA114: =Buffer!U231*(Buffer!U231+1)+Buffer!U232*(Buffer!U232+1)+CHOOSE(ProfIdx,0,0,1,1,1,1,0,0,0,0,1)*Buffer!U233*(Buffer!U233+1) -> 0 | AB114: =Buffer!V231*(Buffer!V231+1)+Buffer!V232*(Buffer!V232+1)+CHOOSE(ProfIdx,0,0,1,1,1,1,0,0,0,0,1)*Buffer!V233*(Buffer!V233+1) -> 0 | AC114: =Buffer!W231*(Buffer!W231+1)+Buffer!W232*(Buffer!W232+1)+CHOOSE(ProfIdx,0,0,1,1,1,1,0,0,0,0,1)*Buffer!W233*(Buffer!W233+1) -> 0 | AD114: =Buffer!X231*(Buffer!X231+1)+Buffer!X232*(Buffer!X232+1)+CHOOSE(ProfIdx,0,0,1,1,1,1,0,0,0,0,1)*Buffer!X233*(Buffer!X233+1) -> 0 | AE114: =Buffer!Y231*(Buffer!Y231+1)+Buffer!Y232*(Buffer!Y232+1)+CHOOSE(ProfIdx,0,0,1,1,1,1,0,0,0,0,1)*Buffer!Y233*(Buffer!Y233+1) -> 0 | AF114: =Buffer!Z231*(Buffer!Z231+1)+Buffer!Z232*(Buffer!Z232+1)+CHOOSE(ProfIdx,0,0,1,1,1,1,0,0,0,0,1)*Buffer!Z233*(Buffer!Z233+1) -> 0 | AG114: =Buffer!AA231*(Buffer!AA231+1)+Buffer!AA232*(Buffer!AA232+1)+CHOOSE(ProfIdx,0,0,1,1,1,1,0,0,0,0,1)*Buffer!AA233*(Buffer!AA233+1) -> 0 | AH114: =Buffer!AB231*(Buffer!AB231+1)+Buffer!AB232*(Buffer!AB232+1)+CHOOSE(ProfIdx,0,0,1,1,1,1,0,0,0,0,1)*Buffer!AB233*(Buffer!AB233+1) -> 0 | AI114: =Buffer!AC231*(Buffer!AC231+1)+Buffer!AC232*(Buffer!AC232+1)+CHOOSE(ProfIdx,0,0,1,1,1,1,0,0,0,0,1)*Buffer!AC233*(Buffer!AC233+1) -> 0 | AJ114: =Buffer!AD231*(Buffer!AD231+1)+Buffer!AD232*(Buffer!AD232+1)+CHOOSE(ProfIdx,0,0,1,1,1,1,0,0,0,0,1)*Buffer!AD233*(Buffer!AD233+1) -> 0 | AK114: =Buffer!AE231*(Buffer!AE231+1)+Buffer!AE232*(Buffer!AE232+1)+CHOOSE(ProfIdx,0,0,1,1,1,1,0,0,0,0,1)*Buffer!AE233*(Buffer!AE233+1) -> 0 | AL114: =Buffer!AF231*(Buffer!AF231+1)+Buffer!AF232*(Buffer!AF232+1)+CHOOSE(ProfIdx,0,0,1,1,1,1,0,0,0,0,1)*Buffer!AF233*(Buffer!AF233+1) -> 0 | AM114: =Buffer!AG231*(Buffer!AG231+1)+Buffer!AG232*(Buffer!AG232+1)+CHOOSE(ProfIdx,0,0,1,1,1,1,0,0,0,0,1)*Buffer!AG233*(Buffer!AG233+1) -> 0 | AN114: =Buffer!AH231*(Buffer!AH231+1)+Buffer!AH232*(Buffer!AH232+1)+CHOOSE(ProfIdx,0,0,1,1,1,1,0,0,0,0,1)*Buffer!AH233*(Buffer!AH233+1) -> 0 | AO114: =Buffer!AI231*(Buffer!AI231+1)+Buffer!AI232*(Buffer!AI232+1)+CHOOSE(ProfIdx,0,0,1,1,1,1,0,0,0,0,1)*Buffer!AI233*(Buffer!AI233+1) -> 0 | AP114: =Buffer!AJ231*(Buffer!AJ231+1)+Buffer!AJ232*(Buffer!AJ232+1)+CHOOSE(ProfIdx,0,0,1,1,1,1,0,0,0,0,1)*Buffer!AJ233*(Buffer!AJ233+1) -> 0 | AQ114: =Buffer!AK231*(Buffer!AK231+1)+Buffer!AK232*(Buffer!AK232+1)+CHOOSE(ProfIdx,0,0,1,1,1,1,0,0,0,0,1)*Buffer!AK233*(Buffer!AK233+1) -> 0 | AR114: =Buffer!AL231*(Buffer!AL231+1)+Buffer!AL232*(Buffer!AL232+1)+CHOOSE(ProfIdx,0,0,1,1,1,1,0,0,0,0,1)*Buffer!AL233*(Buffer!AL233+1) -> 0 | AS114: =Buffer!AM231*(Buffer!AM231+1)+Buffer!AM232*(Buffer!AM232+1)+CHOOSE(ProfIdx,0,0,1,1,1,1,0,0,0,0,1)*Buffer!AM233*(Buffer!AM233+1) -> 0 | AT114: =Buffer!AN231*(Buffer!AN231+1)+Buffer!AN232*(Buffer!AN232+1)+CHOOSE(ProfIdx,0,0,1,1,1,1,0,0,0,0,1)*Buffer!AN233*(Buffer!AN233+1) -> 0 | AU114: =Buffer!AO231*(Buffer!AO231+1)+Buffer!AO232*(Buffer!AO232+1)+CHOOSE(ProfIdx,0,0,1,1,1,1,0,0,0,0,1)*Buffer!AO233*(Buffer!AO233+1) -> 0 | AV114: =Buffer!AP231*(Buffer!AP231+1)+Buffer!AP232*(Buffer!AP232+1)+CHOOSE(ProfIdx,0,0,1,1,1,1,0,0,0,0,1)*Buffer!AP233*(Buffer!AP233+1) -> 0 | AW114: =Buffer!AQ231*(Buffer!AQ231+1)+Buffer!AQ232*(Buffer!AQ232+1)+CHOOSE(ProfIdx,0,0,1,1,1,1,0,0,0,0,1)*Buffer!AQ233*(Buffer!AQ233+1) -> 0 | AX114: =Buffer!AR231*(Buffer!AR231+1)+Buffer!AR232*(Buffer!AR232+1)+CHOOSE(ProfIdx,0,0,1,1,1,1,0,0,0,0,1)*Buffer!AR233*(Buffer!AR233+1) -> 0 | AY114: =Buffer!AS231*(Buffer!AS231+1)+Buffer!AS232*(Buffer!AS232+1)+CHOOSE(ProfIdx,0,0,1,1,1,1,0,0,0,0,1)*Buffer!AS233*(Buffer!AS233+1) -> 0 | AZ114: =Buffer!AT231*(Buffer!AT231+1)+Buffer!AT232*(Buffer!AT232+1)+CHOOSE(ProfIdx,0,0,1,1,1,1,0,0,0,0,1)*Buffer!AT233*(Buffer!AT233+1) -> 0 | BA114: =Buffer!AU231*(Buffer!AU231+1)+Buffer!AU232*(Buffer!AU232+1)+CHOOSE(ProfIdx,0,0,1,1,1,1,0,0,0,0,1)*Buffer!AU233*(Buffer!AU233+1) -> 0 | BB114: =Buffer!AV231*(Buffer!AV231+1)+Buffer!AV232*(Buffer!AV232+1)+CHOOSE(ProfIdx,0,0,1,1,1,1,0,0,0,0,1)*Buffer!AV233*(Buffer!AV233+1) -> 0 | BC114: =Buffer!AW231*(Buffer!AW231+1)+Buffer!AW232*(Buffer!AW232+1)+CHOOSE(ProfIdx,0,0,1,1,1,1,0,0,0,0,1)*Buffer!AW233*(Buffer!AW233+1) -> 0 | BD114: =Buffer!AX231*(Buffer!AX231+1)+Buffer!AX232*(Buffer!AX232+1)+CHOOSE(ProfIdx,0,0,1,1,1,1,0,0,0,0,1)*Buffer!AX233*(Buffer!AX233+1) -> 0 | BE114: =Buffer!AY231*(Buffer!AY231+1)+Buffer!AY232*(Buffer!AY232+1)+CHOOSE(ProfIdx,0,0,1,1,1,1,0,0,0,0,1)*Buffer!AY233*(Buffer!AY233+1) -> 0 | BF114: =Buffer!AZ231*(Buffer!AZ231+1)+Buffer!AZ232*(Buffer!AZ232+1)+CHOOSE(ProfIdx,0,0,1,1,1,1,0,0,0,0,1)*Buffer!AZ233*(Buffer!AZ233+1) -> 0 | BG114: =Buffer!BA231*(Buffer!BA231+1)+Buffer!BA232*(Buffer!BA232+1)+CHOOSE(ProfIdx,0,0,1,1,1,1,0,0,0,0,1)*Buffer!BA233*(Buffer!BA233+1) -> 0 | BH114: =Buffer!BB231*(Buffer!BB231+1)+Buffer!BB232*(Buffer!BB232+1)+CHOOSE(ProfIdx,0,0,1,1,1,1,0,0,0,0,1)*Buffer!BB233*(Buffer!BB233+1) -> 0 | BI114: =Buffer!BC231*(Buffer!BC231+1)+Buffer!BC232*(Buffer!BC232+1)+CHOOSE(ProfIdx,0,0,1,1,1,1,0,0,0,0,1)*Buffer!BC233*(Buffer!BC233+1) -> 0 | BJ114: =Buffer!BD231*(Buffer!BD231+1)+Buffer!BD232*(Buffer!BD232+1)+CHOOSE(ProfIdx,0,0,1,1,1,1,0,0,0,0,1)*Buffer!BD233*(Buffer!BD233+1) -> 0 | BK114: =Buffer!BE231*(Buffer!BE231+1)+Buffer!BE232*(Buffer!BE232+1)+CHOOSE(ProfIdx,0,0,1,1,1,1,0,0,0,0,1)*Buffer!BE233*(Buffer!BE233+1) -> 0 | BL114: =Buffer!BF231*(Buffer!BF231+1)+Buffer!BF232*(Buffer!BF232+1)+CHOOSE(ProfIdx,0,0,1,1,1,1,0,0,0,0,1)*Buffer!BF233*(Buffer!BF233+1) -> 0 | BM114: =Buffer!BG231*(Buffer!BG231+1)+Buffer!BG232*(Buffer!BG232+1)+CHOOSE(ProfIdx,0,0,1,1,1,1,0,0,0,0,1)*Buffer!BG233*(Buffer!BG233+1) -> 0 | BN114: =Buffer!BH231*(Buffer!BH231+1)+Buffer!BH232*(Buffer!BH232+1)+CHOOSE(ProfIdx,0,0,1,1,1,1,0,0,0,0,1)*Buffer!BH233*(Buffer!BH233+1) -> 0 | BO114: =Buffer!BI231*(Buffer!BI231+1)+Buffer!BI232*(Buffer!BI232+1)+CHOOSE(ProfIdx,0,0,1,1,1,1,0,0,0,0,1)*Buffer!BI233*(Buffer!BI233+1) -> 0 | BP114: =Buffer!BJ231*(Buffer!BJ231+1)+Buffer!BJ232*(Buffer!BJ232+1)+CHOOSE(ProfIdx,0,0,1,1,1,1,0,0,0,0,1)*Buffer!BJ233*(Buffer!BJ233+1) -> 0 | BQ114: =Buffer!BK231*(Buffer!BK231+1)+Buffer!BK232*(Buffer!BK232+1)+CHOOSE(ProfIdx,0,0,1,1,1,1,0,0,0,0,1)*Buffer!BK233*(Buffer!BK233+1) -> 0 | BR114: =Buffer!BL231*(Buffer!BL231+1)+Buffer!BL232*(Buffer!BL232+1)+CHOOSE(ProfIdx,0,0,1,1,1,1,0,0,0,0,1)*Buffer!BL233*(Buffer!BL233+1) -> 0 | BS114: =Buffer!BM231*(Buffer!BM231+1)+Buffer!BM232*(Buffer!BM232+1)+CHOOSE(ProfIdx,0,0,1,1,1,1,0,0,0,0,1)*Buffer!BM233*(Buffer!BM233+1) -> 0 | BT114: =Buffer!BN231*(Buffer!BN231+1)+Buffer!BN232*(Buffer!BN232+1)+CHOOSE(ProfIdx,0,0,1,1,1,1,0,0,0,0,1)*Buffer!BN233*(Buffer!BN233+1) -> 0 | BU114: =Buffer!BO231*(Buffer!BO231+1)+Buffer!BO232*(Buffer!BO232+1)+CHOOSE(ProfIdx,0,0,1,1,1,1,0,0,0,0,1)*Buffer!BO233*(Buffer!BO233+1) -> 0 | BV114: =Buffer!BP231*(Buffer!BP231+1)+Buffer!BP232*(Buffer!BP232+1)+CHOOSE(ProfIdx,0,0,1,1,1,1,0,0,0,0,1)*Buffer!BP233*(Buffer!BP233+1) -> 0 | BW114: =Buffer!BQ231*(Buffer!BQ231+1)+Buffer!BQ232*(Buffer!BQ232+1)+CHOOSE(ProfIdx,0,0,1,1,1,1,0,0,0,0,1)*Buffer!BQ233*(Buffer!BQ233+1) -> 0 | BX114: =Buffer!BR231*(Buffer!BR231+1)+Buffer!BR232*(Buffer!BR232+1)+CHOOSE(ProfIdx,0,0,1,1,1,1,0,0,0,0,1)*Buffer!BR233*(Buffer!BR233+1) -> 0 | BY114: =Buffer!BS231*(Buffer!BS231+1)+Buffer!BS232*(Buffer!BS232+1)+CHOOSE(ProfIdx,0,0,1,1,1,1,0,0,0,0,1)*Buffer!BS233*(Buffer!BS233+1) -> 0 | BZ114: =Buffer!BT231*(Buffer!BT231+1)+Buffer!BT232*(Buffer!BT232+1)+CHOOSE(ProfIdx,0,0,1,1,1,1,0,0,0,0,1)*Buffer!BT233*(Buffer!BT233+1) -> 0 | CA114: =Buffer!BU231*(Buffer!BU231+1)+Buffer!BU232*(Buffer!BU232+1)+CHOOSE(ProfIdx,0,0,1,1,1,1,0,0,0,0,1)*Buffer!BU233*(Buffer!BU233+1) -> 0 | CB114: =Buffer!BV231*(Buffer!BV231+1)+Buffer!BV232*(Buffer!BV232+1)+CHOOSE(ProfIdx,0,0,1,1,1,1,0,0,0,0,1)*Buffer!BV233*(Buffer!BV233+1) -> 0 | CC114: =Buffer!BW231*(Buffer!BW231+1)+Buffer!BW232*(Buffer!BW232+1)+CHOOSE(ProfIdx,0,0,1,1,1,1,0,0,0,0,1)*Buffer!BW233*(Buffer!BW233+1) -> 0 | CD114: =Buffer!BX231*(Buffer!BX231+1)+Buffer!BX232*(Buffer!BX232+1)+CHOOSE(ProfIdx,0,0,1,1,1,1,0,0,0,0,1)*Buffer!BX233*(Buffer!BX233+1) -> 0 | CE114: =Buffer!BY231*(Buffer!BY231+1)+Buffer!BY232*(Buffer!BY232+1)+CHOOSE(ProfIdx,0,0,1,1,1,1,0,0,0,0,1)*Buffer!BY233*(Buffer!BY233+1) -> 0 | CF114: =Buffer!BZ231*(Buffer!BZ231+1)+Buffer!BZ232*(Buffer!BZ232+1)+CHOOSE(ProfIdx,0,0,1,1,1,1,0,0,0,0,1)*Buffer!BZ233*(Buffer!BZ233+1) -> 0 | CG114: =Buffer!CA231*(Buffer!CA231+1)+Buffer!CA232*(Buffer!CA232+1)+CHOOSE(ProfIdx,0,0,1,1,1,1,0,0,0,0,1)*Buffer!CA233*(Buffer!CA233+1) -> 0 | CH114: =Buffer!CB231*(Buffer!CB231+1)+Buffer!CB232*(Buffer!CB232+1)+CHOOSE(ProfIdx,0,0,1,1,1,1,0,0,0,0,1)*Buffer!CB233*(Buffer!CB233+1) -> 0 | CI114: =Buffer!CC231*(Buffer!CC231+1)+Buffer!CC232*(Buffer!CC232+1)+CHOOSE(ProfIdx,0,0,1,1,1,1,0,0,0,0,1)*Buffer!CC233*(Buffer!CC233+1) -> 0 | CJ114: =Buffer!CD231*(Buffer!CD231+1)+Buffer!CD232*(Buffer!CD232+1)+CHOOSE(ProfIdx,0,0,1,1,1,1,0,0,0,0,1)*Buffer!CD233*(Buffer!CD233+1) -> 0 | CK114: =Buffer!CE231*(Buffer!CE231+1)+Buffer!CE232*(Buffer!CE232+1)+CHOOSE(ProfIdx,0,0,1,1,1,1,0,0,0,0,1)*Buffer!CE233*(Buffer!CE233+1) -> 0 | CL114: =Buffer!CF231*(Buffer!CF231+1)+Buffer!CF232*(Buffer!CF232+1)+CHOOSE(ProfIdx,0,0,1,1,1,1,0,0,0,0,1)*Buffer!CF233*(Buffer!CF233+1) -> 0 | CM114: =Buffer!CG231*(Buffer!CG231+1)+Buffer!CG232*(Buffer!CG232+1)+CHOOSE(ProfIdx,0,0,1,1,1,1,0,0,0,0,1)*Buffer!CG233*(Buffer!CG233+1) -> 0 | CN114: =Buffer!CH231*(Buffer!CH231+1)+Buffer!CH232*(Buffer!CH232+1)+CHOOSE(ProfIdx,0,0,1,1,1,1,0,0,0,0,1)*Buffer!CH233*(Buffer!CH233+1) -> 0 | CO114: =Buffer!CI231*(Buffer!CI231+1)+Buffer!CI232*(Buffer!CI232+1)+CHOOSE(ProfIdx,0,0,1,1,1,1,0,0,0,0,1)*Buffer!CI233*(Buffer!CI233+1) -> 0 | CP114: =Buffer!CJ231*(Buffer!CJ231+1)+Buffer!CJ232*(Buffer!CJ232+1)+CHOOSE(ProfIdx,0,0,1,1,1,1,0,0,0,0,1)*Buffer!CJ233*(Buffer!CJ233+1) -> 0 | CQ114: =Buffer!CK231*(Buffer!CK231+1)+Buffer!CK232*(Buffer!CK232+1)+CHOOSE(ProfIdx,0,0,1,1,1,1,0,0,0,0,1)*Buffer!CK233*(Buffer!CK233+1) -> 0 | CR114: =Buffer!CL231*(Buffer!CL231+1)+Buffer!CL232*(Buffer!CL232+1)+CHOOSE(ProfIdx,0,0,1,1,1,1,0,0,0,0,1)*Buffer!CL233*(Buffer!CL233+1) -> 0 | CS114: =Buffer!CM231*(Buffer!CM231+1)+Buffer!CM232*(Buffer!CM232+1)+CHOOSE(ProfIdx,0,0,1,1,1,1,0,0,0,0,1)*Buffer!CM233*(Buffer!CM233+1) -> 0 | CT114: =Buffer!CN231*(Buffer!CN231+1)+Buffer!CN232*(Buffer!CN232+1)+CHOOSE(ProfIdx,0,0,1,1,1,1,0,0,0,0,1)*Buffer!CN233*(Buffer!CN233+1) -> 0 | CU114: =Buffer!CO231*(Buffer!CO231+1)+Buffer!CO232*(Buffer!CO232+1)+CHOOSE(ProfIdx,0,0,1,1,1,1,0,0,0,0,1)*Buffer!CO233*(Buffer!CO233+1) -> 0 | CV114: =Buffer!CP231*(Buffer!CP231+1)+Buffer!CP232*(Buffer!CP232+1)+CHOOSE(ProfIdx,0,0,1,1,1,1,0,0,0,0,1)*Buffer!CP233*(Buffer!CP233+1) -> 0 | CW114: =Buffer!CQ231*(Buffer!CQ231+1)+Buffer!CQ232*(Buffer!CQ232+1)+CHOOSE(ProfIdx,0,0,1,1,1,1,0,0,0,0,1)*Buffer!CQ233*(Buffer!CQ233+1) -> 0 | CX114: =Buffer!CR231*(Buffer!CR231+1)+Buffer!CR232*(Buffer!CR232+1)+CHOOSE(ProfIdx,0,0,1,1,1,1,0,0,0,0,1)*Buffer!CR233*(Buffer!CR233+1) -> 0 | CY114: =Buffer!CS231*(Buffer!CS231+1)+Buffer!CS232*(Buffer!CS232+1)+CHOOSE(ProfIdx,0,0,1,1,1,1,0,0,0,0,1)*Buffer!CS233*(Buffer!CS233+1) -> 0 | CZ114: =Buffer!CT231*(Buffer!CT231+1)+Buffer!CT232*(Buffer!CT232+1)+CHOOSE(ProfIdx,0,0,1,1,1,1,0,0,0,0,1)*Buffer!CT233*(Buffer!CT233+1) -> 0 | DA114: =Buffer!CU231*(Buffer!CU231+1)+Buffer!CU232*(Buffer!CU232+1)+CHOOSE(ProfIdx,0,0,1,1,1,1,0,0,0,0,1)*Buffer!CU233*(Buffer!CU233+1) -> 0 | DB114: =Buffer!CV231*(Buffer!CV231+1)+Buffer!CV232*(Buffer!CV232+1)+CHOOSE(ProfIdx,0,0,1,1,1,1,0,0,0,0,1)*Buffer!CV233*(Buffer!CV233+1) -> 0 | DC114: =Buffer!CW231*(Buffer!CW231+1)+Buffer!CW232*(Buffer!CW232+1)+CHOOSE(ProfIdx,0,0,1,1,1,1,0,0,0,0,1)*Buffer!CW233*(Buffer!CW233+1) -> 0 | DD114: =Buffer!CX231*(Buffer!CX231+1)+Buffer!CX232*(Buffer!CX232+1)+CHOOSE(ProfIdx,0,0,1,1,1,1,0,0,0,0,1)*Buffer!CX233*(Buffer!CX233+1) -> 0 | DE114: =Buffer!CY231*(Buffer!CY231+1)+Buffer!CY232*(Buffer!CY232+1)+CHOOSE(ProfIdx,0,0,1,1,1,1,0,0,0,0,1)*Buffer!CY233*(Buffer!CY233+1) -> 0 | DF114: =Buffer!CZ231*(Buffer!CZ231+1)+Buffer!CZ232*(Buffer!CZ232+1)+CHOOSE(ProfIdx,0,0,1,1,1,1,0,0,0,0,1)*Buffer!CZ233*(Buffer!CZ233+1) -> 0
A115: Redux (this number is just a guess) | H115: =IF(H111+0.4*H112+0.3*H113>=109,MAX(0,H111+H112*0.4+H113*0.3-H114)/1000,0) -> 0 | I115: =IF(I111+0.4*I112+0.3*I113>=109,MAX(0,I111+I112*0.4+I113*0.3-I114)/1000,0) -> 0 | J115: =IF(J111+0.4*J112+0.3*J113>=109,MAX(0,J111+J112*0.4+J113*0.3-J114)/1000,0) -> 0 | K115: 0 | L115: 0 | M115: 0 | N115: 0 | O115: 0 | P115: 0 | Q115: 0 | R115: 0 | S115: 0 | T115: 0 | U115: 0 | V115: 0 | W115: 0 | X115: 0 | Y115: 0 | Z115: 0 | AA115: 0 | AB115: 0 | AC115: 0 | AD115: 0 | AE115: 0 | AF115: 0 | AG115: 0 | AH115: 0 | AI115: 0 | AJ115: 0 | AK115: 0 | AL115: 0 | AM115: 0 | AN115: 0 | AO115: 0 | AP115: 0 | AQ115: 0 | AR115: 0 | AS115: 0 | AT115: 0 | AU115: 0 | AV115: 0 | AW115: 0 | AX115: 0 | AY115: 0 | AZ115: 0 | BA115: 0 | BB115: 0 | BC115: 0 | BD115: 0 | BE115: 0 | BF115: 0 | BG115: 0 | BH115: 0 | BI115: 0 | BJ115: 0 | BK115: 0 | BL115: 0 | BM115: 0 | BN115: 0 | BO115: 0 | BP115: 0 | BQ115: 0 | BR115: 0 | BS115: 0 | BT115: 0 | BU115: 0 | BV115: =IF(BV111+0.4*BV112+0.3*BV113>=109,MAX(0,BV111+BV112*0.4+BV113*0.3-BV114)/1000,0) -> 0 | BW115: 0 | BX115: 0 | BY115: 0 | BZ115: 0 | CA115: 0 | CB115: 0 | CC115: 0 | CD115: 0 | CE115: 0 | CF115: 0 | CG115: 0 | CH115: 0 | CI115: 0 | CJ115: 0 | CK115: 0 | CL115: 0 | CM115: 0 | CN115: 0 | CO115: 0 | CP115: 0 | CQ115: 0 | CR115: 0 | CS115: 0 | CT115: 0 | CU115: 0 | CV115: 0 | CW115: 0 | CX115: 0 | CY115: 0 | CZ115: 0 | DA115: 0 | DB115: 0 | DC115: 0 | DD115: 0 | DE115: 0 | DF115: 0
H116: Inter-Level
I117: Total Bonus:
A118: =CONCATENATE("At level ",FIXED($B$13,0),": ") -> At level 10: | C118: Ranks | D118: X | H118: =TARGET_LEVEL -> 10 | I118: =0 -> 0 | J118: =I118+1 -> 1 | K118: =J118+1 -> 2 | L118: 3 | M118: 4 | N118: 5 | O118: 6 | P118: 7 | Q118: 8 | R118: 9 | S118: 10 | T118: 11 | U118: 12 | V118: 13 | W118: 14 | X118: 15 | Y118: 16 | Z118: 17 | AA118: =Z118+1 -> 18 | AB118: 19 | AC118: 20 | AD118: 21 | AE118: 22 | AF118: 23 | AG118: 24 | AH118: 25 | AI118: 26 | AJ118: =AI118+1 -> 27 | AK118: 28 | AL118: 29 | AM118: 30 | AN118: 31 | AO118: 32 | AP118: 33 | AQ118: 34 | AR118: 35 | AS118: 36 | AT118: 37 | AU118: 38 | AV118: 39 | AW118: 40 | AX118: 41 | AY118: 42 | AZ118: 43 | BA118: 44 | BB118: 45 | BC118: 46 | BD118: 47 | BE118: 48 | BF118: 49 | BG118: 50 | BH118: 51 | BI118: 52 | BJ118: 53 | BK118: 54 | BL118: 55 | BM118: 56 | BN118: 57 | BO118: 58 | BP118: 59 | BQ118: 60 | BR118: 61 | BS118: 62 | BT118: 63 | BU118: 64 | BV118: 65 | BW118: 66 | BX118: 67 | BY118: 68 | BZ118: 69 | CA118: 70 | CB118: 71 | CC118: 72 | CD118: 73 | CE118: 74 | CF118: 75 | CG118: 76 | CH118: 77 | CI118: 78 | CJ118: 79 | CK118: 80 | CL118: 81 | CM118: 82 | CN118: 83 | CO118: 84 | CP118: 85 | CQ118: 86 | CR118: 87 | CS118: 88 | CT118: 89 | CU118: 90 | CV118: =CU118+1 -> 91 | CW118: 92 | CX118: 93 | CY118: 94 | CZ118: 95 | DA118: 96 | DB118: 97 | DC118: 98 | DD118: 99 | DE118: 100 | DF118: Post
A119: =A53 -> Armor Use | C119: =C176 -> 0 | D119: =IF(D176>0,CONCATENATE("(",FIXED(D176,1,FALSE),"X)"),"") ->  | H119: =MIN(H176,10)*5+MAX(MIN(H176-10,10),0)*4+MAX(MIN(H176-20,10),0)*3+MAX(MIN(H176-30,10),0)*2+MAX(H176-40,0) -> 0 | I119: 0 | J119: 0 | K119: 0 | L119: 0 | M119: 0 | N119: 0 | O119: 0 | P119: 0 | Q119: 0 | R119: 0 | S119: 0 | T119: 0 | U119: 0 | V119: 0 | W119: 0 | X119: 0 | Y119: 0 | Z119: 0 | AA119: 0 | AB119: 0 | AC119: 0 | AD119: 0 | AE119: 0 | AF119: 0 | AG119: 0 | AH119: 0 | AI119: 0 | AJ119: 0 | AK119: 0 | AL119: 0 | AM119: 0 | AN119: =MIN(AN176,10)*5+MAX(MIN(AN176-10,10),0)*4+MAX(MIN(AN176-20,10),0)*3+MAX(MIN(AN176-30,10),0)*2+MAX(AN176-40,0) -> 0 | AO119: 0 | AP119: 0 | AQ119: 0 | AR119: 0 | AS119: 0 | AT119: 0 | AU119: 0 | AV119: 0 | AW119: 0 | AX119: 0 | AY119: 0 | AZ119: 0 | BA119: 0 | BB119: 0 | BC119: 0 | BD119: 0 | BE119: 0 | BF119: 0 | BG119: 0 | BH119: 0 | BI119: 0 | BJ119: 0 | BK119: 0 | BL119: 0 | BM119: 0 | BN119: 0 | BO119: 0 | BP119: 0 | BQ119: 0 | BR119: 0 | BS119: 0 | BT119: =MIN(BT176,10)*5+MAX(MIN(BT176-10,10),0)*4+MAX(MIN(BT176-20,10),0)*3+MAX(MIN(BT176-30,10),0)*2+MAX(BT176-40,0) -> 0 | BU119: 0 | BV119: 0 | BW119: 0 | BX119: 0 | BY119: 0 | BZ119: 0 | CA119: 0 | CB119: 0 | CC119: 0 | CD119: 0 | CE119: 0 | CF119: 0 | CG119: 0 | CH119: 0 | CI119: 0 | CJ119: 0 | CK119: 0 | CL119: 0 | CM119: 0 | CN119: 0 | CO119: 0 | CP119: 0 | CQ119: 0 | CR119: 0 | CS119: 0 | CT119: 0 | CU119: 0 | CV119: 0 | CW119: 0 | CX119: 0 | CY119: 0 | CZ119: =MIN(CZ176,10)*5+MAX(MIN(CZ176-10,10),0)*4+MAX(MIN(CZ176-20,10),0)*3+MAX(MIN(CZ176-30,10),0)*2+MAX(CZ176-40,0) -> 0 | DA119: 0 | DB119: 0 | DC119: 0 | DD119: 0 | DE119: 0 | DF119: =MIN(DF176,10)*5+MAX(MIN(DF176-10,10),0)*4+MAX(MIN(DF176-20,10),0)*3+MAX(MIN(DF176-30,10),0)*2+MAX(DF176-40,0) -> 0
A120: Shield Use | C120: 0 | H120: =MIN(H177,10)*5+MAX(MIN(H177-10,10),0)*4+MAX(MIN(H177-20,10),0)*3+MAX(MIN(H177-30,10),0)*2+MAX(H177-40,0) -> 0 | I120: 0 | J120: 0 | K120: 0 | L120: 0 | M120: 0 | N120: 0 | O120: 0 | P120: 0 | Q120: 0 | R120: 0 | S120: 0 | T120: 0 | U120: 0 | V120: 0 | W120: 0 | X120: 0 | Y120: 0 | Z120: 0 | AA120: 0 | AB120: 0 | AC120: 0 | AD120: 0 | AE120: 0 | AF120: 0 | AG120: 0 | AH120: 0 | AI120: 0 | AJ120: 0 | AK120: 0 | AL120: 0 | AM120: 0 | AN120: =MIN(AN177,10)*5+MAX(MIN(AN177-10,10),0)*4+MAX(MIN(AN177-20,10),0)*3+MAX(MIN(AN177-30,10),0)*2+MAX(AN177-40,0) -> 0 | AO120: 0 | AP120: 0 | AQ120: 0 | AR120: 0 | AS120: 0 | AT120: 0 | AU120: 0 | AV120: 0 | AW120: 0 | AX120: 0 | AY120: 0 | AZ120: 0 | BA120: 0 | BB120: 0 | BC120: 0 | BD120: 0 | BE120: 0 | BF120: 0 | BG120: 0 | BH120: 0 | BI120: 0 | BJ120: 0 | BK120: 0 | BL120: 0 | BM120: 0 | BN120: 0 | BO120: 0 | BP120: 0 | BQ120: 0 | BR120: 0 | BS120: 0 | BT120: =MIN(BT177,10)*5+MAX(MIN(BT177-10,10),0)*4+MAX(MIN(BT177-20,10),0)*3+MAX(MIN(BT177-30,10),0)*2+MAX(BT177-40,0) -> 0 | BU120: 0 | BV120: 0 | BW120: 0 | BX120: 0 | BY120: 0 | BZ120: 0 | CA120: 0 | CB120: 0 | CC120: 0 | CD120: 0 | CE120: 0 | CF120: 0 | CG120: 0 | CH120: 0 | CI120: 0 | CJ120: 0 | CK120: 0 | CL120: 0 | CM120: 0 | CN120: 0 | CO120: 0 | CP120: 0 | CQ120: 0 | CR120: 0 | CS120: 0 | CT120: 0 | CU120: 0 | CV120: 0 | CW120: 0 | CX120: 0 | CY120: 0 | CZ120: =MIN(CZ177,10)*5+MAX(MIN(CZ177-10,10),0)*4+MAX(MIN(CZ177-20,10),0)*3+MAX(MIN(CZ177-30,10),0)*2+MAX(CZ177-40,0) -> 0 | DA120: 0 | DB120: 0 | DC120: 0 | DD120: 0 | DE120: 0 | DF120: 0
A121: Edged Weapons | C121: 0 | H121: =MIN(H178,10)*5+MAX(MIN(H178-10,10),0)*4+MAX(MIN(H178-20,10),0)*3+MAX(MIN(H178-30,10),0)*2+MAX(H178-40,0) -> 0 | I121: 0 | J121: 0 | K121: 0 | L121: 0 | M121: 0 | N121: 0 | O121: 0 | P121: 0 | Q121: 0 | R121: 0 | S121: 0 | T121: 0 | U121: 0 | V121: 0 | W121: 0 | X121: 0 | Y121: 0 | Z121: 0 | AA121: 0 | AB121: 0 | AC121: 0 | AD121: 0 | AE121: 0 | AF121: 0 | AG121: 0 | AH121: 0 | AI121: 0 | AJ121: 0 | AK121: 0 | AL121: 0 | AM121: 0 | AN121: =MIN(AN178,10)*5+MAX(MIN(AN178-10,10),0)*4+MAX(MIN(AN178-20,10),0)*3+MAX(MIN(AN178-30,10),0)*2+MAX(AN178-40,0) -> 0 | AO121: 0 | AP121: 0 | AQ121: 0 | AR121: 0 | AS121: 0 | AT121: 0 | AU121: 0 | AV121: 0 | AW121: 0 | AX121: 0 | AY121: 0 | AZ121: 0 | BA121: 0 | BB121: 0 | BC121: 0 | BD121: 0 | BE121: 0 | BF121: 0 | BG121: 0 | BH121: 0 | BI121: 0 | BJ121: 0 | BK121: 0 | BL121: 0 | BM121: 0 | BN121: 0 | BO121: 0 | BP121: 0 | BQ121: 0 | BR121: 0 | BS121: 0 | BT121: =MIN(BT178,10)*5+MAX(MIN(BT178-10,10),0)*4+MAX(MIN(BT178-20,10),0)*3+MAX(MIN(BT178-30,10),0)*2+MAX(BT178-40,0) -> 0 | BU121: 0 | BV121: 0 | BW121: 0 | BX121: 0 | BY121: 0 | BZ121: 0 | CA121: 0 | CB121: 0 | CC121: 0 | CD121: 0 | CE121: 0 | CF121: 0 | CG121: 0 | CH121: 0 | CI121: 0 | CJ121: 0 | CK121: 0 | CL121: 0 | CM121: 0 | CN121: 0 | CO121: 0 | CP121: 0 | CQ121: 0 | CR121: 0 | CS121: 0 | CT121: 0 | CU121: 0 | CV121: 0 | CW121: 0 | CX121: 0 | CY121: 0 | CZ121: =MIN(CZ178,10)*5+MAX(MIN(CZ178-10,10),0)*4+MAX(MIN(CZ178-20,10),0)*3+MAX(MIN(CZ178-30,10),0)*2+MAX(CZ178-40,0) -> 0 | DA121: 0 | DB121: 0 | DC121: 0 | DD121: 0 | DE121: 0 | DF121: 0
A122: Blunt Weapons | C122: 0 | H122: =MIN(H179,10)*5+MAX(MIN(H179-10,10),0)*4+MAX(MIN(H179-20,10),0)*3+MAX(MIN(H179-30,10),0)*2+MAX(H179-40,0) -> 0 | I122: 0 | J122: 0 | K122: 0 | L122: 0 | M122: 0 | N122: 0 | O122: 0 | P122: 0 | Q122: 0 | R122: 0 | S122: 0 | T122: 0 | U122: 0 | V122: 0 | W122: 0 | X122: 0 | Y122: 0 | Z122: 0 | AA122: 0 | AB122: 0 | AC122: 0 | AD122: 0 | AE122: 0 | AF122: 0 | AG122: 0 | AH122: 0 | AI122: 0 | AJ122: 0 | AK122: 0 | AL122: 0 | AM122: 0 | AN122: =MIN(AN179,10)*5+MAX(MIN(AN179-10,10),0)*4+MAX(MIN(AN179-20,10),0)*3+MAX(MIN(AN179-30,10),0)*2+MAX(AN179-40,0) -> 0 | AO122: 0 | AP122: 0 | AQ122: 0 | AR122: 0 | AS122: 0 | AT122: 0 | AU122: 0 | AV122: 0 | AW122: 0 | AX122: 0 | AY122: 0 | AZ122: 0 | BA122: 0 | BB122: 0 | BC122: 0 | BD122: 0 | BE122: 0 | BF122: 0 | BG122: 0 | BH122: 0 | BI122: 0 | BJ122: 0 | BK122: 0 | BL122: 0 | BM122: 0 | BN122: 0 | BO122: 0 | BP122: 0 | BQ122: 0 | BR122: 0 | BS122: 0 | BT122: =MIN(BT179,10)*5+MAX(MIN(BT179-10,10),0)*4+MAX(MIN(BT179-20,10),0)*3+MAX(MIN(BT179-30,10),0)*2+MAX(BT179-40,0) -> 0 | BU122: 0 | BV122: 0 | BW122: 0 | BX122: 0 | BY122: 0 | BZ122: 0 | CA122: 0 | CB122: 0 | CC122: 0 | CD122: 0 | CE122: 0 | CF122: 0 | CG122: 0 | CH122: 0 | CI122: 0 | CJ122: 0 | CK122: 0 | CL122: 0 | CM122: 0 | CN122: 0 | CO122: 0 | CP122: 0 | CQ122: 0 | CR122: 0 | CS122: 0 | CT122: 0 | CU122: 0 | CV122: 0 | CW122: 0 | CX122: 0 | CY122: 0 | CZ122: =MIN(CZ179,10)*5+MAX(MIN(CZ179-10,10),0)*4+MAX(MIN(CZ179-20,10),0)*3+MAX(MIN(CZ179-30,10),0)*2+MAX(CZ179-40,0) -> 0 | DA122: 0 | DB122: 0 | DC122: 0 | DD122: 0 | DE122: 0 | DF122: 0
A123: Two-Handed Weapons | C123: 0 | H123: =MIN(H180,10)*5+MAX(MIN(H180-10,10),0)*4+MAX(MIN(H180-20,10),0)*3+MAX(MIN(H180-30,10),0)*2+MAX(H180-40,0) -> 0 | I123: 0 | J123: 0 | K123: 0 | L123: 0 | M123: 0 | N123: 0 | O123: 0 | P123: 0 | Q123: 0 | R123: 0 | S123: 0 | T123: 0 | U123: 0 | V123: 0 | W123: 0 | X123: 0 | Y123: 0 | Z123: 0 | AA123: 0 | AB123: 0 | AC123: 0 | AD123: 0 | AE123: 0 | AF123: 0 | AG123: 0 | AH123: 0 | AI123: 0 | AJ123: 0 | AK123: 0 | AL123: 0 | AM123: 0 | AN123: =MIN(AN180,10)*5+MAX(MIN(AN180-10,10),0)*4+MAX(MIN(AN180-20,10),0)*3+MAX(MIN(AN180-30,10),0)*2+MAX(AN180-40,0) -> 0 | AO123: 0 | AP123: 0 | AQ123: 0 | AR123: 0 | AS123: 0 | AT123: 0 | AU123: 0 | AV123: 0 | AW123: 0 | AX123: 0 | AY123: 0 | AZ123: 0 | BA123: 0 | BB123: 0 | BC123: 0 | BD123: 0 | BE123: 0 | BF123: 0 | BG123: 0 | BH123: 0 | BI123: 0 | BJ123: 0 | BK123: 0 | BL123: 0 | BM123: 0 | BN123: 0 | BO123: 0 | BP123: 0 | BQ123: 0 | BR123: 0 | BS123: 0 | BT123: =MIN(BT180,10)*5+MAX(MIN(BT180-10,10),0)*4+MAX(MIN(BT180-20,10),0)*3+MAX(MIN(BT180-30,10),0)*2+MAX(BT180-40,0) -> 0 | BU123: 0 | BV123: 0 | BW123: 0 | BX123: 0 | BY123: 0 | BZ123: 0 | CA123: 0 | CB123: 0 | CC123: 0 | CD123: 0 | CE123: 0 | CF123: 0 | CG123: 0 | CH123: 0 | CI123: 0 | CJ123: 0 | CK123: 0 | CL123: 0 | CM123: 0 | CN123: 0 | CO123: 0 | CP123: 0 | CQ123: 0 | CR123: 0 | CS123: 0 | CT123: 0 | CU123: 0 | CV123: 0 | CW123: 0 | CX123: 0 | CY123: 0 | CZ123: =MIN(CZ180,10)*5+MAX(MIN(CZ180-10,10),0)*4+MAX(MIN(CZ180-20,10),0)*3+MAX(MIN(CZ180-30,10),0)*2+MAX(CZ180-40,0) -> 0 | DA123: 0 | DB123: 0 | DC123: 0 | DD123: 0 | DE123: 0 | DF123: 0
A124: Ranged Weapons | C124: 0 | H124: =MIN(H181,10)*5+MAX(MIN(H181-10,10),0)*4+MAX(MIN(H181-20,10),0)*3+MAX(MIN(H181-30,10),0)*2+MAX(H181-40,0) -> 0 | I124: 0 | J124: 0 | K124: 0 | L124: 0 | M124: 0 | N124: 0 | O124: 0 | P124: 0 | Q124: 0 | R124: 0 | S124: 0 | T124: 0 | U124: 0 | V124: 0 | W124: 0 | X124: 0 | Y124: 0 | Z124: 0 | AA124: 0 | AB124: 0 | AC124: 0 | AD124: 0 | AE124: 0 | AF124: 0 | AG124: 0 | AH124: 0 | AI124: 0 | AJ124: 0 | AK124: 0 | AL124: 0 | AM124: 0 | AN124: =MIN(AN181,10)*5+MAX(MIN(AN181-10,10),0)*4+MAX(MIN(AN181-20,10),0)*3+MAX(MIN(AN181-30,10),0)*2+MAX(AN181-40,0) -> 0 | AO124: 0 | AP124: 0 | AQ124: 0 | AR124: 0 | AS124: 0 | AT124: 0 | AU124: 0 | AV124: 0 | AW124: 0 | AX124: 0 | AY124: 0 | AZ124: 0 | BA124: 0 | BB124: 0 | BC124: 0 | BD124: 0 | BE124: 0 | BF124: 0 | BG124: 0 | BH124: 0 | BI124: 0 | BJ124: 0 | BK124: 0 | BL124: 0 | BM124: 0 | BN124: 0 | BO124: 0 | BP124: 0 | BQ124: 0 | BR124: 0 | BS124: 0 | BT124: =MIN(BT181,10)*5+MAX(MIN(BT181-10,10),0)*4+MAX(MIN(BT181-20,10),0)*3+MAX(MIN(BT181-30,10),0)*2+MAX(BT181-40,0) -> 0 | BU124: 0 | BV124: 0 | BW124: 0 | BX124: 0 | BY124: 0 | BZ124: 0 | CA124: 0 | CB124: 0 | CC124: 0 | CD124: 0 | CE124: 0 | CF124: 0 | CG124: 0 | CH124: 0 | CI124: 0 | CJ124: 0 | CK124: 0 | CL124: 0 | CM124: 0 | CN124: 0 | CO124: 0 | CP124: 0 | CQ124: 0 | CR124: 0 | CS124: 0 | CT124: 0 | CU124: 0 | CV124: 0 | CW124: 0 | CX124: 0 | CY124: 0 | CZ124: =MIN(CZ181,10)*5+MAX(MIN(CZ181-10,10),0)*4+MAX(MIN(CZ181-20,10),0)*3+MAX(MIN(CZ181-30,10),0)*2+MAX(CZ181-40,0) -> 0 | DA124: 0 | DB124: 0 | DC124: 0 | DD124: 0 | DE124: 0 | DF124: 0
A125: Thrown Weapons | C125: 0 | H125: =MIN(H182,10)*5+MAX(MIN(H182-10,10),0)*4+MAX(MIN(H182-20,10),0)*3+MAX(MIN(H182-30,10),0)*2+MAX(H182-40,0) -> 0 | I125: 0 | J125: 0 | K125: 0 | L125: 0 | M125: 0 | N125: 0 | O125: 0 | P125: 0 | Q125: 0 | R125: 0 | S125: 0 | T125: 0 | U125: 0 | V125: 0 | W125: 0 | X125: 0 | Y125: 0 | Z125: 0 | AA125: 0 | AB125: 0 | AC125: 0 | AD125: 0 | AE125: 0 | AF125: 0 | AG125: 0 | AH125: 0 | AI125: 0 | AJ125: 0 | AK125: 0 | AL125: 0 | AM125: 0 | AN125: =MIN(AN182,10)*5+MAX(MIN(AN182-10,10),0)*4+MAX(MIN(AN182-20,10),0)*3+MAX(MIN(AN182-30,10),0)*2+MAX(AN182-40,0) -> 0 | AO125: 0 | AP125: 0 | AQ125: 0 | AR125: 0 | AS125: 0 | AT125: 0 | AU125: 0 | AV125: 0 | AW125: 0 | AX125: 0 | AY125: 0 | AZ125: 0 | BA125: 0 | BB125: 0 | BC125: 0 | BD125: 0 | BE125: 0 | BF125: 0 | BG125: 0 | BH125: 0 | BI125: 0 | BJ125: 0 | BK125: 0 | BL125: 0 | BM125: 0 | BN125: 0 | BO125: 0 | BP125: 0 | BQ125: 0 | BR125: 0 | BS125: 0 | BT125: =MIN(BT182,10)*5+MAX(MIN(BT182-10,10),0)*4+MAX(MIN(BT182-20,10),0)*3+MAX(MIN(BT182-30,10),0)*2+MAX(BT182-40,0) -> 0 | BU125: 0 | BV125: 0 | BW125: 0 | BX125: 0 | BY125: 0 | BZ125: 0 | CA125: 0 | CB125: 0 | CC125: 0 | CD125: 0 | CE125: 0 | CF125: 0 | CG125: 0 | CH125: 0 | CI125: 0 | CJ125: 0 | CK125: 0 | CL125: 0 | CM125: 0 | CN125: 0 | CO125: 0 | CP125: 0 | CQ125: 0 | CR125: 0 | CS125: 0 | CT125: 0 | CU125: 0 | CV125: 0 | CW125: 0 | CX125: 0 | CY125: 0 | CZ125: =MIN(CZ182,10)*5+MAX(MIN(CZ182-10,10),0)*4+MAX(MIN(CZ182-20,10),0)*3+MAX(MIN(CZ182-30,10),0)*2+MAX(CZ182-40,0) -> 0 | DA125: 0 | DB125: 0 | DC125: 0 | DD125: 0 | DE125: 0 | DF125: 0
A126: Polearm Weapons | C126: 0 | H126: =MIN(H183,10)*5+MAX(MIN(H183-10,10),0)*4+MAX(MIN(H183-20,10),0)*3+MAX(MIN(H183-30,10),0)*2+MAX(H183-40,0) -> 0 | I126: 0 | J126: 0 | K126: 0 | L126: 0 | M126: 0 | N126: 0 | O126: 0 | P126: 0 | Q126: 0 | R126: 0 | S126: 0 | T126: 0 | U126: 0 | V126: 0 | W126: 0 | X126: 0 | Y126: 0 | Z126: 0 | AA126: 0 | AB126: 0 | AC126: 0 | AD126: 0 | AE126: 0 | AF126: 0 | AG126: 0 | AH126: 0 | AI126: 0 | AJ126: 0 | AK126: 0 | AL126: 0 | AM126: 0 | AN126: =MIN(AN183,10)*5+MAX(MIN(AN183-10,10),0)*4+MAX(MIN(AN183-20,10),0)*3+MAX(MIN(AN183-30,10),0)*2+MAX(AN183-40,0) -> 0 | AO126: 0 | AP126: 0 | AQ126: 0 | AR126: 0 | AS126: 0 | AT126: 0 | AU126: 0 | AV126: 0 | AW126: 0 | AX126: 0 | AY126: 0 | AZ126: 0 | BA126: 0 | BB126: 0 | BC126: 0 | BD126: 0 | BE126: 0 | BF126: 0 | BG126: 0 | BH126: 0 | BI126: 0 | BJ126: 0 | BK126: 0 | BL126: 0 | BM126: 0 | BN126: 0 | BO126: 0 | BP126: 0 | BQ126: 0 | BR126: 0 | BS126: 0 | BT126: =MIN(BT183,10)*5+MAX(MIN(BT183-10,10),0)*4+MAX(MIN(BT183-20,10),0)*3+MAX(MIN(BT183-30,10),0)*2+MAX(BT183-40,0) -> 0 | BU126: 0 | BV126: 0 | BW126: 0 | BX126: 0 | BY126: 0 | BZ126: 0 | CA126: 0 | CB126: 0 | CC126: 0 | CD126: 0 | CE126: 0 | CF126: 0 | CG126: 0 | CH126: 0 | CI126: 0 | CJ126: 0 | CK126: 0 | CL126: 0 | CM126: 0 | CN126: 0 | CO126: 0 | CP126: 0 | CQ126: 0 | CR126: 0 | CS126: 0 | CT126: 0 | CU126: 0 | CV126: 0 | CW126: 0 | CX126: 0 | CY126: 0 | CZ126: =MIN(CZ183,10)*5+MAX(MIN(CZ183-10,10),0)*4+MAX(MIN(CZ183-20,10),0)*3+MAX(MIN(CZ183-30,10),0)*2+MAX(CZ183-40,0) -> 0 | DA126: 0 | DB126: 0 | DC126: 0 | DD126: 0 | DE126: 0 | DF126: 0
A127: Brawling | C127: 0 | H127: =MIN(H184,10)*5+MAX(MIN(H184-10,10),0)*4+MAX(MIN(H184-20,10),0)*3+MAX(MIN(H184-30,10),0)*2+MAX(H184-40,0) -> 0 | I127: 0 | J127: 0 | K127: 0 | L127: 0 | M127: 0 | N127: 0 | O127: 0 | P127: 0 | Q127: 0 | R127: 0 | S127: 0 | T127: 0 | U127: 0 | V127: 0 | W127: 0 | X127: 0 | Y127: 0 | Z127: 0 | AA127: 0 | AB127: 0 | AC127: 0 | AD127: 0 | AE127: 0 | AF127: 0 | AG127: 0 | AH127: 0 | AI127: 0 | AJ127: 0 | AK127: 0 | AL127: 0 | AM127: 0 | AN127: =MIN(AN184,10)*5+MAX(MIN(AN184-10,10),0)*4+MAX(MIN(AN184-20,10),0)*3+MAX(MIN(AN184-30,10),0)*2+MAX(AN184-40,0) -> 0 | AO127: 0 | AP127: 0 | AQ127: 0 | AR127: 0 | AS127: 0 | AT127: 0 | AU127: 0 | AV127: 0 | AW127: 0 | AX127: 0 | AY127: 0 | AZ127: 0 | BA127: 0 | BB127: 0 | BC127: 0 | BD127: 0 | BE127: 0 | BF127: 0 | BG127: 0 | BH127: 0 | BI127: 0 | BJ127: 0 | BK127: 0 | BL127: 0 | BM127: 0 | BN127: 0 | BO127: 0 | BP127: 0 | BQ127: 0 | BR127: 0 | BS127: 0 | BT127: =MIN(BT184,10)*5+MAX(MIN(BT184-10,10),0)*4+MAX(MIN(BT184-20,10),0)*3+MAX(MIN(BT184-30,10),0)*2+MAX(BT184-40,0) -> 0 | BU127: 0 | BV127: 0 | BW127: 0 | BX127: 0 | BY127: 0 | BZ127: 0 | CA127: 0 | CB127: 0 | CC127: 0 | CD127: 0 | CE127: 0 | CF127: 0 | CG127: 0 | CH127: 0 | CI127: 0 | CJ127: 0 | CK127: 0 | CL127: 0 | CM127: 0 | CN127: 0 | CO127: 0 | CP127: 0 | CQ127: 0 | CR127: 0 | CS127: 0 | CT127: 0 | CU127: 0 | CV127: 0 | CW127: 0 | CX127: 0 | CY127: 0 | CZ127: =MIN(CZ184,10)*5+MAX(MIN(CZ184-10,10),0)*4+MAX(MIN(CZ184-20,10),0)*3+MAX(MIN(CZ184-30,10),0)*2+MAX(CZ184-40,0) -> 0 | DA127: 0 | DB127: 0 | DC127: 0 | DD127: 0 | DE127: 0 | DF127: 0
A128: Two Weapon Combat | C128: 0 | H128: =MIN(H185,10)*5+MAX(MIN(H185-10,10),0)*4+MAX(MIN(H185-20,10),0)*3+MAX(MIN(H185-30,10),0)*2+MAX(H185-40,0) -> 0 | I128: 0 | J128: 0 | K128: 0 | L128: 0 | M128: 0 | N128: 0 | O128: 0 | P128: 0 | Q128: 0 | R128: 0 | S128: 0 | T128: 0 | U128: 0 | V128: 0 | W128: 0 | X128: 0 | Y128: 0 | Z128: 0 | AA128: 0 | AB128: 0 | AC128: 0 | AD128: 0 | AE128: 0 | AF128: 0 | AG128: 0 | AH128: 0 | AI128: 0 | AJ128: 0 | AK128: 0 | AL128: 0 | AM128: 0 | AN128: =MIN(AN185,10)*5+MAX(MIN(AN185-10,10),0)*4+MAX(MIN(AN185-20,10),0)*3+MAX(MIN(AN185-30,10),0)*2+MAX(AN185-40,0) -> 0 | AO128: 0 | AP128: 0 | AQ128: 0 | AR128: 0 | AS128: 0 | AT128: 0 | AU128: 0 | AV128: 0 | AW128: 0 | AX128: 0 | AY128: 0 | AZ128: 0 | BA128: 0 | BB128: 0 | BC128: 0 | BD128: 0 | BE128: 0 | BF128: 0 | BG128: 0 | BH128: 0 | BI128: 0 | BJ128: 0 | BK128: 0 | BL128: 0 | BM128: 0 | BN128: 0 | BO128: 0 | BP128: 0 | BQ128: 0 | BR128: 0 | BS128: 0 | BT128: =MIN(BT185,10)*5+MAX(MIN(BT185-10,10),0)*4+MAX(MIN(BT185-20,10),0)*3+MAX(MIN(BT185-30,10),0)*2+MAX(BT185-40,0) -> 0 | BU128: 0 | BV128: 0 | BW128: 0 | BX128: 0 | BY128: 0 | BZ128: 0 | CA128: 0 | CB128: 0 | CC128: 0 | CD128: 0 | CE128: 0 | CF128: 0 | CG128: 0 | CH128: 0 | CI128: 0 | CJ128: 0 | CK128: 0 | CL128: 0 | CM128: 0 | CN128: 0 | CO128: 0 | CP128: 0 | CQ128: 0 | CR128: 0 | CS128: 0 | CT128: 0 | CU128: 0 | CV128: 0 | CW128: 0 | CX128: 0 | CY128: 0 | CZ128: =MIN(CZ185,10)*5+MAX(MIN(CZ185-10,10),0)*4+MAX(MIN(CZ185-20,10),0)*3+MAX(MIN(CZ185-30,10),0)*2+MAX(CZ185-40,0) -> 0 | DA128: 0 | DB128: 0 | DC128: 0 | DD128: 0 | DE128: 0 | DF128: 0
A129: Combat Maneuvers | C129: 0 | H129: =MIN(H186,10)*5+MAX(MIN(H186-10,10),0)*4+MAX(MIN(H186-20,10),0)*3+MAX(MIN(H186-30,10),0)*2+MAX(H186-40,0) -> 0 | I129: 0 | J129: 0 | K129: 0 | L129: 0 | M129: 0 | N129: 0 | O129: 0 | P129: 0 | Q129: 0 | R129: 0 | S129: 0 | T129: 0 | U129: 0 | V129: 0 | W129: 0 | X129: 0 | Y129: 0 | Z129: 0 | AA129: 0 | AB129: 0 | AC129: 0 | AD129: 0 | AE129: 0 | AF129: 0 | AG129: 0 | AH129: 0 | AI129: 0 | AJ129: 0 | AK129: 0 | AL129: 0 | AM129: 0 | AN129: =MIN(AN186,10)*5+MAX(MIN(AN186-10,10),0)*4+MAX(MIN(AN186-20,10),0)*3+MAX(MIN(AN186-30,10),0)*2+MAX(AN186-40,0) -> 0 | AO129: 0 | AP129: 0 | AQ129: 0 | AR129: 0 | AS129: 0 | AT129: 0 | AU129: 0 | AV129: 0 | AW129: 0 | AX129: 0 | AY129: 0 | AZ129: 0 | BA129: 0 | BB129: 0 | BC129: 0 | BD129: 0 | BE129: 0 | BF129: 0 | BG129: 0 | BH129: 0 | BI129: 0 | BJ129: 0 | BK129: 0 | BL129: 0 | BM129: 0 | BN129: 0 | BO129: 0 | BP129: 0 | BQ129: 0 | BR129: 0 | BS129: 0 | BT129: =MIN(BT186,10)*5+MAX(MIN(BT186-10,10),0)*4+MAX(MIN(BT186-20,10),0)*3+MAX(MIN(BT186-30,10),0)*2+MAX(BT186-40,0) -> 0 | BU129: 0 | BV129: 0 | BW129: 0 | BX129: 0 | BY129: 0 | BZ129: 0 | CA129: 0 | CB129: 0 | CC129: 0 | CD129: 0 | CE129: 0 | CF129: 0 | CG129: 0 | CH129: 0 | CI129: 0 | CJ129: 0 | CK129: 0 | CL129: 0 | CM129: 0 | CN129: 0 | CO129: 0 | CP129: 0 | CQ129: 0 | CR129: 0 | CS129: 0 | CT129: 0 | CU129: 0 | CV129: 0 | CW129: 0 | CX129: 0 | CY129: 0 | CZ129: =MIN(CZ186,10)*5+MAX(MIN(CZ186-10,10),0)*4+MAX(MIN(CZ186-20,10),0)*3+MAX(MIN(CZ186-30,10),0)*2+MAX(CZ186-40,0) -> 0 | DA129: 0 | DB129: 0 | DC129: 0 | DD129: 0 | DE129: 0 | DF129: 0
A130: Multi-Opponent Combat | C130: 0 | H130: =MIN(H187,10)*5+MAX(MIN(H187-10,10),0)*4+MAX(MIN(H187-20,10),0)*3+MAX(MIN(H187-30,10),0)*2+MAX(H187-40,0) -> 0 | I130: 0 | J130: 0 | K130: 0 | L130: 0 | M130: 0 | N130: 0 | O130: 0 | P130: 0 | Q130: 0 | R130: 0 | S130: 0 | T130: 0 | U130: 0 | V130: 0 | W130: 0 | X130: 0 | Y130: 0 | Z130: 0 | AA130: 0 | AB130: 0 | AC130: 0 | AD130: 0 | AE130: 0 | AF130: 0 | AG130: 0 | AH130: 0 | AI130: 0 | AJ130: 0 | AK130: 0 | AL130: 0 | AM130: 0 | AN130: =MIN(AN187,10)*5+MAX(MIN(AN187-10,10),0)*4+MAX(MIN(AN187-20,10),0)*3+MAX(MIN(AN187-30,10),0)*2+MAX(AN187-40,0) -> 0 | AO130: 0 | AP130: 0 | AQ130: 0 | AR130: 0 | AS130: 0 | AT130: 0 | AU130: 0 | AV130: 0 | AW130: 0 | AX130: 0 | AY130: 0 | AZ130: 0 | BA130: 0 | BB130: 0 | BC130: 0 | BD130: 0 | BE130: 0 | BF130: 0 | BG130: 0 | BH130: 0 | BI130: 0 | BJ130: 0 | BK130: 0 | BL130: 0 | BM130: 0 | BN130: 0 | BO130: 0 | BP130: 0 | BQ130: 0 | BR130: 0 | BS130: 0 | BT130: =MIN(BT187,10)*5+MAX(MIN(BT187-10,10),0)*4+MAX(MIN(BT187-20,10),0)*3+MAX(MIN(BT187-30,10),0)*2+MAX(BT187-40,0) -> 0 | BU130: 0 | BV130: 0 | BW130: 0 | BX130: 0 | BY130: 0 | BZ130: 0 | CA130: 0 | CB130: 0 | CC130: 0 | CD130: 0 | CE130: 0 | CF130: 0 | CG130: 0 | CH130: 0 | CI130: 0 | CJ130: 0 | CK130: 0 | CL130: 0 | CM130: 0 | CN130: 0 | CO130: 0 | CP130: 0 | CQ130: 0 | CR130: 0 | CS130: 0 | CT130: 0 | CU130: 0 | CV130: 0 | CW130: 0 | CX130: 0 | CY130: 0 | CZ130: =MIN(CZ187,10)*5+MAX(MIN(CZ187-10,10),0)*4+MAX(MIN(CZ187-20,10),0)*3+MAX(MIN(CZ187-30,10),0)*2+MAX(CZ187-40,0) -> 0 | DA130: 0 | DB130: 0 | DC130: 0 | DD130: 0 | DE130: 0 | DF130: 0
A131: Ambush | C131: 0 | H131: =MIN(H188,10)*5+MAX(MIN(H188-10,10),0)*4+MAX(MIN(H188-20,10),0)*3+MAX(MIN(H188-30,10),0)*2+MAX(H188-40,0) -> 0 | I131: 0 | J131: 0 | K131: 0 | L131: 0 | M131: 0 | N131: 0 | O131: 0 | P131: 0 | Q131: 0 | R131: 0 | S131: 0 | T131: 0 | U131: 0 | V131: 0 | W131: 0 | X131: 0 | Y131: 0 | Z131: 0 | AA131: 0 | AB131: 0 | AC131: 0 | AD131: 0 | AE131: 0 | AF131: 0 | AG131: 0 | AH131: 0 | AI131: 0 | AJ131: 0 | AK131: 0 | AL131: 0 | AM131: 0 | AN131: =MIN(AN188,10)*5+MAX(MIN(AN188-10,10),0)*4+MAX(MIN(AN188-20,10),0)*3+MAX(MIN(AN188-30,10),0)*2+MAX(AN188-40,0) -> 0 | AO131: 0 | AP131: 0 | AQ131: 0 | AR131: 0 | AS131: 0 | AT131: 0 | AU131: 0 | AV131: 0 | AW131: 0 | AX131: 0 | AY131: 0 | AZ131: 0 | BA131: 0 | BB131: 0 | BC131: 0 | BD131: 0 | BE131: 0 | BF131: 0 | BG131: 0 | BH131: 0 | BI131: 0 | BJ131: 0 | BK131: 0 | BL131: 0 | BM131: 0 | BN131: 0 | BO131: 0 | BP131: 0 | BQ131: 0 | BR131: 0 | BS131: 0 | BT131: =MIN(BT188,10)*5+MAX(MIN(BT188-10,10),0)*4+MAX(MIN(BT188-20,10),0)*3+MAX(MIN(BT188-30,10),0)*2+MAX(BT188-40,0) -> 0 | BU131: 0 | BV131: 0 | BW131: 0 | BX131: 0 | BY131: 0 | BZ131: 0 | CA131: 0 | CB131: 0 | CC131: 0 | CD131: 0 | CE131: 0 | CF131: 0 | CG131: 0 | CH131: 0 | CI131: 0 | CJ131: 0 | CK131: 0 | CL131: 0 | CM131: 0 | CN131: 0 | CO131: 0 | CP131: 0 | CQ131: 0 | CR131: 0 | CS131: 0 | CT131: 0 | CU131: 0 | CV131: 0 | CW131: 0 | CX131: 0 | CY131: 0 | CZ131: =MIN(CZ188,10)*5+MAX(MIN(CZ188-10,10),0)*4+MAX(MIN(CZ188-20,10),0)*3+MAX(MIN(CZ188-30,10),0)*2+MAX(CZ188-40,0) -> 0 | DA131: 0 | DB131: 0 | DC131: 0 | DD131: 0 | DE131: 0 | DF131: 0
A132: Physical Fitness | C132: 0 | H132: =MIN(H189,10)*5+MAX(MIN(H189-10,10),0)*4+MAX(MIN(H189-20,10),0)*3+MAX(MIN(H189-30,10),0)*2+MAX(H189-40,0) -> 0 | I132: 0 | J132: 0 | K132: 0 | L132: 0 | M132: 0 | N132: 0 | O132: 0 | P132: 0 | Q132: 0 | R132: 0 | S132: 0 | T132: 0 | U132: 0 | V132: 0 | W132: 0 | X132: 0 | Y132: 0 | Z132: 0 | AA132: 0 | AB132: 0 | AC132: 0 | AD132: 0 | AE132: 0 | AF132: 0 | AG132: 0 | AH132: 0 | AI132: 0 | AJ132: 0 | AK132: 0 | AL132: 0 | AM132: 0 | AN132: =MIN(AN189,10)*5+MAX(MIN(AN189-10,10),0)*4+MAX(MIN(AN189-20,10),0)*3+MAX(MIN(AN189-30,10),0)*2+MAX(AN189-40,0) -> 0 | AO132: 0 | AP132: 0 | AQ132: 0 | AR132: 0 | AS132: 0 | AT132: 0 | AU132: 0 | AV132: 0 | AW132: 0 | AX132: 0 | AY132: 0 | AZ132: 0 | BA132: 0 | BB132: 0 | BC132: 0 | BD132: 0 | BE132: 0 | BF132: 0 | BG132: 0 | BH132: 0 | BI132: 0 | BJ132: 0 | BK132: 0 | BL132: 0 | BM132: 0 | BN132: 0 | BO132: 0 | BP132: 0 | BQ132: 0 | BR132: 0 | BS132: 0 | BT132: =MIN(BT189,10)*5+MAX(MIN(BT189-10,10),0)*4+MAX(MIN(BT189-20,10),0)*3+MAX(MIN(BT189-30,10),0)*2+MAX(BT189-40,0) -> 0 | BU132: 0 | BV132: 0 | BW132: 0 | BX132: 0 | BY132: 0 | BZ132: 0 | CA132: 0 | CB132: 0 | CC132: 0 | CD132: 0 | CE132: 0 | CF132: 0 | CG132: 0 | CH132: 0 | CI132: 0 | CJ132: 0 | CK132: 0 | CL132: 0 | CM132: 0 | CN132: 0 | CO132: 0 | CP132: 0 | CQ132: 0 | CR132: 0 | CS132: 0 | CT132: 0 | CU132: 0 | CV132: 0 | CW132: 0 | CX132: 0 | CY132: 0 | CZ132: =MIN(CZ189,10)*5+MAX(MIN(CZ189-10,10),0)*4+MAX(MIN(CZ189-20,10),0)*3+MAX(MIN(CZ189-30,10),0)*2+MAX(CZ189-40,0) -> 0 | DA132: 0 | DB132: 0 | DC132: 0 | DD132: 0 | DE132: 0 | DF132: 0
A133: Dodging | C133: 0 | H133: =MIN(H190,10)*5+MAX(MIN(H190-10,10),0)*4+MAX(MIN(H190-20,10),0)*3+MAX(MIN(H190-30,10),0)*2+MAX(H190-40,0) -> 0 | I133: 0 | J133: 0 | K133: 0 | L133: 0 | M133: 0 | N133: 0 | O133: 0 | P133: 0 | Q133: 0 | R133: 0 | S133: 0 | T133: 0 | U133: 0 | V133: 0 | W133: 0 | X133: 0 | Y133: 0 | Z133: 0 | AA133: 0 | AB133: 0 | AC133: 0 | AD133: 0 | AE133: 0 | AF133: 0 | AG133: 0 | AH133: 0 | AI133: 0 | AJ133: 0 | AK133: 0 | AL133: 0 | AM133: 0 | AN133: =MIN(AN190,10)*5+MAX(MIN(AN190-10,10),0)*4+MAX(MIN(AN190-20,10),0)*3+MAX(MIN(AN190-30,10),0)*2+MAX(AN190-40,0) -> 0 | AO133: 0 | AP133: 0 | AQ133: 0 | AR133: 0 | AS133: 0 | AT133: 0 | AU133: 0 | AV133: 0 | AW133: 0 | AX133: 0 | AY133: 0 | AZ133: 0 | BA133: 0 | BB133: 0 | BC133: 0 | BD133: 0 | BE133: 0 | BF133: 0 | BG133: 0 | BH133: 0 | BI133: 0 | BJ133: 0 | BK133: 0 | BL133: 0 | BM133: 0 | BN133: 0 | BO133: 0 | BP133: 0 | BQ133: 0 | BR133: 0 | BS133: 0 | BT133: =MIN(BT190,10)*5+MAX(MIN(BT190-10,10),0)*4+MAX(MIN(BT190-20,10),0)*3+MAX(MIN(BT190-30,10),0)*2+MAX(BT190-40,0) -> 0 | BU133: 0 | BV133: 0 | BW133: 0 | BX133: 0 | BY133: 0 | BZ133: 0 | CA133: 0 | CB133: 0 | CC133: 0 | CD133: 0 | CE133: 0 | CF133: 0 | CG133: 0 | CH133: 0 | CI133: 0 | CJ133: 0 | CK133: 0 | CL133: 0 | CM133: 0 | CN133: 0 | CO133: 0 | CP133: 0 | CQ133: 0 | CR133: 0 | CS133: 0 | CT133: 0 | CU133: 0 | CV133: 0 | CW133: 0 | CX133: 0 | CY133: 0 | CZ133: =MIN(CZ190,10)*5+MAX(MIN(CZ190-10,10),0)*4+MAX(MIN(CZ190-20,10),0)*3+MAX(MIN(CZ190-30,10),0)*2+MAX(CZ190-40,0) -> 0 | DA133: 0 | DB133: 0 | DC133: 0 | DD133: 0 | DE133: 0 | DF133: 0
A134: Climbing | C134: 0 | H134: =MIN(H191,10)*5+MAX(MIN(H191-10,10),0)*4+MAX(MIN(H191-20,10),0)*3+MAX(MIN(H191-30,10),0)*2+MAX(H191-40,0) -> 0 | I134: 0 | J134: 0 | K134: 0 | L134: 0 | M134: 0 | N134: 0 | O134: 0 | P134: 0 | Q134: 0 | R134: 0 | S134: 0 | T134: 0 | U134: 0 | V134: 0 | W134: 0 | X134: 0 | Y134: 0 | Z134: 0 | AA134: 0 | AB134: 0 | AC134: 0 | AD134: 0 | AE134: 0 | AF134: 0 | AG134: 0 | AH134: 0 | AI134: 0 | AJ134: 0 | AK134: 0 | AL134: 0 | AM134: 0 | AN134: =MIN(AN191,10)*5+MAX(MIN(AN191-10,10),0)*4+MAX(MIN(AN191-20,10),0)*3+MAX(MIN(AN191-30,10),0)*2+MAX(AN191-40,0) -> 0 | AO134: 0 | AP134: 0 | AQ134: 0 | AR134: 0 | AS134: 0 | AT134: 0 | AU134: 0 | AV134: 0 | AW134: 0 | AX134: 0 | AY134: 0 | AZ134: 0 | BA134: 0 | BB134: 0 | BC134: 0 | BD134: 0 | BE134: 0 | BF134: 0 | BG134: 0 | BH134: 0 | BI134: 0 | BJ134: 0 | BK134: 0 | BL134: 0 | BM134: 0 | BN134: 0 | BO134: 0 | BP134: 0 | BQ134: 0 | BR134: 0 | BS134: 0 | BT134: =MIN(BT191,10)*5+MAX(MIN(BT191-10,10),0)*4+MAX(MIN(BT191-20,10),0)*3+MAX(MIN(BT191-30,10),0)*2+MAX(BT191-40,0) -> 0 | BU134: 0 | BV134: 0 | BW134: 0 | BX134: 0 | BY134: 0 | BZ134: 0 | CA134: 0 | CB134: 0 | CC134: 0 | CD134: 0 | CE134: 0 | CF134: 0 | CG134: 0 | CH134: 0 | CI134: 0 | CJ134: 0 | CK134: 0 | CL134: 0 | CM134: 0 | CN134: 0 | CO134: 0 | CP134: 0 | CQ134: 0 | CR134: 0 | CS134: 0 | CT134: 0 | CU134: 0 | CV134: 0 | CW134: 0 | CX134: 0 | CY134: 0 | CZ134: =MIN(CZ191,10)*5+MAX(MIN(CZ191-10,10),0)*4+MAX(MIN(CZ191-20,10),0)*3+MAX(MIN(CZ191-30,10),0)*2+MAX(CZ191-40,0) -> 0 | DA134: 0 | DB134: 0 | DC134: 0 | DD134: 0 | DE134: 0 | DF134: 0
A135: Swimming | C135: 0 | H135: =MIN(H192,10)*5+MAX(MIN(H192-10,10),0)*4+MAX(MIN(H192-20,10),0)*3+MAX(MIN(H192-30,10),0)*2+MAX(H192-40,0) -> 0 | I135: 0 | J135: 0 | K135: 0 | L135: 0 | M135: 0 | N135: 0 | O135: 0 | P135: 0 | Q135: 0 | R135: 0 | S135: 0 | T135: 0 | U135: 0 | V135: 0 | W135: 0 | X135: 0 | Y135: 0 | Z135: 0 | AA135: 0 | AB135: 0 | AC135: 0 | AD135: 0 | AE135: 0 | AF135: 0 | AG135: 0 | AH135: 0 | AI135: 0 | AJ135: 0 | AK135: 0 | AL135: 0 | AM135: 0 | AN135: =MIN(AN192,10)*5+MAX(MIN(AN192-10,10),0)*4+MAX(MIN(AN192-20,10),0)*3+MAX(MIN(AN192-30,10),0)*2+MAX(AN192-40,0) -> 0 | AO135: 0 | AP135: 0 | AQ135: 0 | AR135: 0 | AS135: 0 | AT135: 0 | AU135: 0 | AV135: 0 | AW135: 0 | AX135: 0 | AY135: 0 | AZ135: 0 | BA135: 0 | BB135: 0 | BC135: 0 | BD135: 0 | BE135: 0 | BF135: 0 | BG135: 0 | BH135: 0 | BI135: 0 | BJ135: 0 | BK135: 0 | BL135: 0 | BM135: 0 | BN135: 0 | BO135: 0 | BP135: 0 | BQ135: 0 | BR135: 0 | BS135: 0 | BT135: =MIN(BT192,10)*5+MAX(MIN(BT192-10,10),0)*4+MAX(MIN(BT192-20,10),0)*3+MAX(MIN(BT192-30,10),0)*2+MAX(BT192-40,0) -> 0 | BU135: 0 | BV135: 0 | BW135: 0 | BX135: 0 | BY135: 0 | BZ135: 0 | CA135: 0 | CB135: 0 | CC135: 0 | CD135: 0 | CE135: 0 | CF135: 0 | CG135: 0 | CH135: 0 | CI135: 0 | CJ135: 0 | CK135: 0 | CL135: 0 | CM135: 0 | CN135: 0 | CO135: 0 | CP135: 0 | CQ135: 0 | CR135: 0 | CS135: 0 | CT135: 0 | CU135: 0 | CV135: 0 | CW135: 0 | CX135: 0 | CY135: 0 | CZ135: =MIN(CZ192,10)*5+MAX(MIN(CZ192-10,10),0)*4+MAX(MIN(CZ192-20,10),0)*3+MAX(MIN(CZ192-30,10),0)*2+MAX(CZ192-40,0) -> 0 | DA135: 0 | DB135: 0 | DC135: 0 | DD135: 0 | DE135: 0 | DF135: 0
A136: Disarm Traps | C136: 0 | H136: =MIN(H193,10)*5+MAX(MIN(H193-10,10),0)*4+MAX(MIN(H193-20,10),0)*3+MAX(MIN(H193-30,10),0)*2+MAX(H193-40,0) -> 0 | I136: 0 | J136: 0 | K136: 0 | L136: 0 | M136: 0 | N136: 0 | O136: 0 | P136: 0 | Q136: 0 | R136: 0 | S136: 0 | T136: 0 | U136: 0 | V136: 0 | W136: 0 | X136: 0 | Y136: 0 | Z136: 0 | AA136: 0 | AB136: 0 | AC136: 0 | AD136: 0 | AE136: 0 | AF136: 0 | AG136: 0 | AH136: 0 | AI136: 0 | AJ136: 0 | AK136: 0 | AL136: 0 | AM136: 0 | AN136: =MIN(AN193,10)*5+MAX(MIN(AN193-10,10),0)*4+MAX(MIN(AN193-20,10),0)*3+MAX(MIN(AN193-30,10),0)*2+MAX(AN193-40,0) -> 0 | AO136: 0 | AP136: 0 | AQ136: 0 | AR136: 0 | AS136: 0 | AT136: 0 | AU136: 0 | AV136: 0 | AW136: 0 | AX136: 0 | AY136: 0 | AZ136: 0 | BA136: 0 | BB136: 0 | BC136: 0 | BD136: 0 | BE136: 0 | BF136: 0 | BG136: 0 | BH136: 0 | BI136: 0 | BJ136: 0 | BK136: 0 | BL136: 0 | BM136: 0 | BN136: 0 | BO136: 0 | BP136: 0 | BQ136: 0 | BR136: 0 | BS136: 0 | BT136: =MIN(BT193,10)*5+MAX(MIN(BT193-10,10),0)*4+MAX(MIN(BT193-20,10),0)*3+MAX(MIN(BT193-30,10),0)*2+MAX(BT193-40,0) -> 0 | BU136: 0 | BV136: 0 | BW136: 0 | BX136: 0 | BY136: 0 | BZ136: 0 | CA136: 0 | CB136: 0 | CC136: 0 | CD136: 0 | CE136: 0 | CF136: 0 | CG136: 0 | CH136: 0 | CI136: 0 | CJ136: 0 | CK136: 0 | CL136: 0 | CM136: 0 | CN136: 0 | CO136: 0 | CP136: 0 | CQ136: 0 | CR136: 0 | CS136: 0 | CT136: 0 | CU136: 0 | CV136: 0 | CW136: 0 | CX136: 0 | CY136: 0 | CZ136: =MIN(CZ193,10)*5+MAX(MIN(CZ193-10,10),0)*4+MAX(MIN(CZ193-20,10),0)*3+MAX(MIN(CZ193-30,10),0)*2+MAX(CZ193-40,0) -> 0 | DA136: 0 | DB136: 0 | DC136: 0 | DD136: 0 | DE136: 0 | DF136: 0
A137: Picking Locks | C137: 0 | H137: =MIN(H194,10)*5+MAX(MIN(H194-10,10),0)*4+MAX(MIN(H194-20,10),0)*3+MAX(MIN(H194-30,10),0)*2+MAX(H194-40,0) -> 0 | I137: 0 | J137: 0 | K137: 0 | L137: 0 | M137: 0 | N137: 0 | O137: 0 | P137: 0 | Q137: 0 | R137: 0 | S137: 0 | T137: 0 | U137: 0 | V137: 0 | W137: 0 | X137: 0 | Y137: 0 | Z137: 0 | AA137: 0 | AB137: 0 | AC137: 0 | AD137: 0 | AE137: 0 | AF137: 0 | AG137: 0 | AH137: 0 | AI137: 0 | AJ137: 0 | AK137: 0 | AL137: 0 | AM137: 0 | AN137: =MIN(AN194,10)*5+MAX(MIN(AN194-10,10),0)*4+MAX(MIN(AN194-20,10),0)*3+MAX(MIN(AN194-30,10),0)*2+MAX(AN194-40,0) -> 0 | AO137: 0 | AP137: 0 | AQ137: 0 | AR137: 0 | AS137: 0 | AT137: 0 | AU137: 0 | AV137: 0 | AW137: 0 | AX137: 0 | AY137: 0 | AZ137: 0 | BA137: 0 | BB137: 0 | BC137: 0 | BD137: 0 | BE137: 0 | BF137: 0 | BG137: 0 | BH137: 0 | BI137: 0 | BJ137: 0 | BK137: 0 | BL137: 0 | BM137: 0 | BN137: 0 | BO137: 0 | BP137: 0 | BQ137: 0 | BR137: 0 | BS137: 0 | BT137: =MIN(BT194,10)*5+MAX(MIN(BT194-10,10),0)*4+MAX(MIN(BT194-20,10),0)*3+MAX(MIN(BT194-30,10),0)*2+MAX(BT194-40,0) -> 0 | BU137: 0 | BV137: 0 | BW137: 0 | BX137: 0 | BY137: 0 | BZ137: 0 | CA137: 0 | CB137: 0 | CC137: 0 | CD137: 0 | CE137: 0 | CF137: 0 | CG137: 0 | CH137: 0 | CI137: 0 | CJ137: 0 | CK137: 0 | CL137: 0 | CM137: 0 | CN137: 0 | CO137: 0 | CP137: 0 | CQ137: 0 | CR137: 0 | CS137: 0 | CT137: 0 | CU137: 0 | CV137: 0 | CW137: 0 | CX137: 0 | CY137: 0 | CZ137: =MIN(CZ194,10)*5+MAX(MIN(CZ194-10,10),0)*4+MAX(MIN(CZ194-20,10),0)*3+MAX(MIN(CZ194-30,10),0)*2+MAX(CZ194-40,0) -> 0 | DA137: 0 | DB137: 0 | DC137: 0 | DD137: 0 | DE137: 0 | DF137: 0
A138: Stalking and Hiding | C138: 0 | H138: =MIN(H195,10)*5+MAX(MIN(H195-10,10),0)*4+MAX(MIN(H195-20,10),0)*3+MAX(MIN(H195-30,10),0)*2+MAX(H195-40,0) -> 0 | I138: 0 | J138: 0 | K138: 0 | L138: 0 | M138: 0 | N138: 0 | O138: 0 | P138: 0 | Q138: 0 | R138: 0 | S138: 0 | T138: 0 | U138: 0 | V138: 0 | W138: 0 | X138: 0 | Y138: 0 | Z138: 0 | AA138: 0 | AB138: 0 | AC138: 0 | AD138: 0 | AE138: 0 | AF138: 0 | AG138: 0 | AH138: 0 | AI138: 0 | AJ138: 0 | AK138: 0 | AL138: 0 | AM138: 0 | AN138: =MIN(AN195,10)*5+MAX(MIN(AN195-10,10),0)*4+MAX(MIN(AN195-20,10),0)*3+MAX(MIN(AN195-30,10),0)*2+MAX(AN195-40,0) -> 0 | AO138: 0 | AP138: 0 | AQ138: 0 | AR138: 0 | AS138: 0 | AT138: 0 | AU138: 0 | AV138: 0 | AW138: 0 | AX138: 0 | AY138: 0 | AZ138: 0 | BA138: 0 | BB138: 0 | BC138: 0 | BD138: 0 | BE138: 0 | BF138: 0 | BG138: 0 | BH138: 0 | BI138: 0 | BJ138: 0 | BK138: 0 | BL138: 0 | BM138: 0 | BN138: 0 | BO138: 0 | BP138: 0 | BQ138: 0 | BR138: 0 | BS138: 0 | BT138: =MIN(BT195,10)*5+MAX(MIN(BT195-10,10),0)*4+MAX(MIN(BT195-20,10),0)*3+MAX(MIN(BT195-30,10),0)*2+MAX(BT195-40,0) -> 0 | BU138: 0 | BV138: 0 | BW138: 0 | BX138: 0 | BY138: 0 | BZ138: 0 | CA138: 0 | CB138: 0 | CC138: 0 | CD138: 0 | CE138: 0 | CF138: 0 | CG138: 0 | CH138: 0 | CI138: 0 | CJ138: 0 | CK138: 0 | CL138: 0 | CM138: 0 | CN138: 0 | CO138: 0 | CP138: 0 | CQ138: 0 | CR138: 0 | CS138: 0 | CT138: 0 | CU138: 0 | CV138: 0 | CW138: 0 | CX138: 0 | CY138: 0 | CZ138: =MIN(CZ195,10)*5+MAX(MIN(CZ195-10,10),0)*4+MAX(MIN(CZ195-20,10),0)*3+MAX(MIN(CZ195-30,10),0)*2+MAX(CZ195-40,0) -> 0 | DA138: 0 | DB138: 0 | DC138: 0 | DD138: 0 | DE138: 0 | DF138: 0
A139: Perception | C139: 0 | H139: =MIN(H196,10)*5+MAX(MIN(H196-10,10),0)*4+MAX(MIN(H196-20,10),0)*3+MAX(MIN(H196-30,10),0)*2+MAX(H196-40,0) -> 0 | I139: 0 | J139: 0 | K139: 0 | L139: 0 | M139: 0 | N139: 0 | O139: 0 | P139: 0 | Q139: 0 | R139: 0 | S139: 0 | T139: 0 | U139: 0 | V139: 0 | W139: 0 | X139: 0 | Y139: 0 | Z139: 0 | AA139: 0 | AB139: 0 | AC139: 0 | AD139: 0 | AE139: 0 | AF139: 0 | AG139: 0 | AH139: 0 | AI139: 0 | AJ139: 0 | AK139: 0 | AL139: 0 | AM139: 0 | AN139: =MIN(AN196,10)*5+MAX(MIN(AN196-10,10),0)*4+MAX(MIN(AN196-20,10),0)*3+MAX(MIN(AN196-30,10),0)*2+MAX(AN196-40,0) -> 0 | AO139: 0 | AP139: 0 | AQ139: 0 | AR139: 0 | AS139: 0 | AT139: 0 | AU139: 0 | AV139: 0 | AW139: 0 | AX139: 0 | AY139: 0 | AZ139: 0 | BA139: 0 | BB139: 0 | BC139: 0 | BD139: 0 | BE139: 0 | BF139: 0 | BG139: 0 | BH139: 0 | BI139: 0 | BJ139: 0 | BK139: 0 | BL139: 0 | BM139: 0 | BN139: 0 | BO139: 0 | BP139: 0 | BQ139: 0 | BR139: 0 | BS139: 0 | BT139: =MIN(BT196,10)*5+MAX(MIN(BT196-10,10),0)*4+MAX(MIN(BT196-20,10),0)*3+MAX(MIN(BT196-30,10),0)*2+MAX(BT196-40,0) -> 0 | BU139: 0 | BV139: 0 | BW139: 0 | BX139: 0 | BY139: 0 | BZ139: 0 | CA139: 0 | CB139: 0 | CC139: 0 | CD139: 0 | CE139: 0 | CF139: 0 | CG139: 0 | CH139: 0 | CI139: 0 | CJ139: 0 | CK139: 0 | CL139: 0 | CM139: 0 | CN139: 0 | CO139: 0 | CP139: 0 | CQ139: 0 | CR139: 0 | CS139: 0 | CT139: 0 | CU139: 0 | CV139: 0 | CW139: 0 | CX139: 0 | CY139: 0 | CZ139: =MIN(CZ196,10)*5+MAX(MIN(CZ196-10,10),0)*4+MAX(MIN(CZ196-20,10),0)*3+MAX(MIN(CZ196-30,10),0)*2+MAX(CZ196-40,0) -> 0 | DA139: 0 | DB139: 0 | DC139: 0 | DD139: 0 | DE139: 0 | DF139: 0
A140: First Aid | C140: 0 | H140: =MIN(H197,10)*5+MAX(MIN(H197-10,10),0)*4+MAX(MIN(H197-20,10),0)*3+MAX(MIN(H197-30,10),0)*2+MAX(H197-40,0) -> 0 | I140: 0 | J140: 0 | K140: 0 | L140: 0 | M140: 0 | N140: 0 | O140: 0 | P140: 0 | Q140: 0 | R140: 0 | S140: 0 | T140: 0 | U140: 0 | V140: 0 | W140: 0 | X140: 0 | Y140: 0 | Z140: 0 | AA140: 0 | AB140: 0 | AC140: 0 | AD140: 0 | AE140: 0 | AF140: 0 | AG140: 0 | AH140: 0 | AI140: 0 | AJ140: 0 | AK140: 0 | AL140: 0 | AM140: 0 | AN140: =MIN(AN197,10)*5+MAX(MIN(AN197-10,10),0)*4+MAX(MIN(AN197-20,10),0)*3+MAX(MIN(AN197-30,10),0)*2+MAX(AN197-40,0) -> 0 | AO140: 0 | AP140: 0 | AQ140: 0 | AR140: 0 | AS140: 0 | AT140: 0 | AU140: 0 | AV140: 0 | AW140: 0 | AX140: 0 | AY140: 0 | AZ140: 0 | BA140: 0 | BB140: 0 | BC140: 0 | BD140: 0 | BE140: 0 | BF140: 0 | BG140: 0 | BH140: 0 | BI140: 0 | BJ140: 0 | BK140: 0 | BL140: 0 | BM140: 0 | BN140: 0 | BO140: 0 | BP140: 0 | BQ140: 0 | BR140: 0 | BS140: 0 | BT140: =MIN(BT197,10)*5+MAX(MIN(BT197-10,10),0)*4+MAX(MIN(BT197-20,10),0)*3+MAX(MIN(BT197-30,10),0)*2+MAX(BT197-40,0) -> 0 | BU140: 0 | BV140: 0 | BW140: 0 | BX140: 0 | BY140: 0 | BZ140: 0 | CA140: 0 | CB140: 0 | CC140: 0 | CD140: 0 | CE140: 0 | CF140: 0 | CG140: 0 | CH140: 0 | CI140: 0 | CJ140: 0 | CK140: 0 | CL140: 0 | CM140: 0 | CN140: 0 | CO140: 0 | CP140: 0 | CQ140: 0 | CR140: 0 | CS140: 0 | CT140: 0 | CU140: 0 | CV140: 0 | CW140: 0 | CX140: 0 | CY140: 0 | CZ140: =MIN(CZ197,10)*5+MAX(MIN(CZ197-10,10),0)*4+MAX(MIN(CZ197-20,10),0)*3+MAX(MIN(CZ197-30,10),0)*2+MAX(CZ197-40,0) -> 0 | DA140: 0 | DB140: 0 | DC140: 0 | DD140: 0 | DE140: 0 | DF140: 0
A141: Trading | C141: 0 | H141: =MIN(H198,10)*5+MAX(MIN(H198-10,10),0)*4+MAX(MIN(H198-20,10),0)*3+MAX(MIN(H198-30,10),0)*2+MAX(H198-40,0) -> 0 | I141: 0 | J141: 0 | K141: 0 | L141: 0 | M141: 0 | N141: 0 | O141: 0 | P141: 0 | Q141: 0 | R141: 0 | S141: 0 | T141: 0 | U141: 0 | V141: 0 | W141: 0 | X141: 0 | Y141: 0 | Z141: 0 | AA141: 0 | AB141: 0 | AC141: 0 | AD141: 0 | AE141: 0 | AF141: 0 | AG141: 0 | AH141: 0 | AI141: 0 | AJ141: 0 | AK141: 0 | AL141: 0 | AM141: 0 | AN141: =MIN(AN198,10)*5+MAX(MIN(AN198-10,10),0)*4+MAX(MIN(AN198-20,10),0)*3+MAX(MIN(AN198-30,10),0)*2+MAX(AN198-40,0) -> 0 | AO141: 0 | AP141: 0 | AQ141: 0 | AR141: 0 | AS141: 0 | AT141: 0 | AU141: 0 | AV141: 0 | AW141: 0 | AX141: 0 | AY141: 0 | AZ141: 0 | BA141: 0 | BB141: 0 | BC141: 0 | BD141: 0 | BE141: 0 | BF141: 0 | BG141: 0 | BH141: 0 | BI141: 0 | BJ141: 0 | BK141: 0 | BL141: 0 | BM141: 0 | BN141: 0 | BO141: 0 | BP141: 0 | BQ141: 0 | BR141: 0 | BS141: 0 | BT141: =MIN(BT198,10)*5+MAX(MIN(BT198-10,10),0)*4+MAX(MIN(BT198-20,10),0)*3+MAX(MIN(BT198-30,10),0)*2+MAX(BT198-40,0) -> 0 | BU141: 0 | BV141: 0 | BW141: 0 | BX141: 0 | BY141: 0 | BZ141: 0 | CA141: 0 | CB141: 0 | CC141: 0 | CD141: 0 | CE141: 0 | CF141: 0 | CG141: 0 | CH141: 0 | CI141: 0 | CJ141: 0 | CK141: 0 | CL141: 0 | CM141: 0 | CN141: 0 | CO141: 0 | CP141: 0 | CQ141: 0 | CR141: 0 | CS141: 0 | CT141: 0 | CU141: 0 | CV141: 0 | CW141: 0 | CX141: 0 | CY141: 0 | CZ141: =MIN(CZ198,10)*5+MAX(MIN(CZ198-10,10),0)*4+MAX(MIN(CZ198-20,10),0)*3+MAX(MIN(CZ198-30,10),0)*2+MAX(CZ198-40,0) -> 0 | DA141: 0 | DB141: 0 | DC141: 0 | DD141: 0 | DE141: 0 | DF141: 0
A142: Pickpocketing | C142: 0 | H142: =MIN(H199,10)*5+MAX(MIN(H199-10,10),0)*4+MAX(MIN(H199-20,10),0)*3+MAX(MIN(H199-30,10),0)*2+MAX(H199-40,0) -> 0 | I142: 0 | J142: 0 | K142: 0 | L142: 0 | M142: 0 | N142: 0 | O142: 0 | P142: 0 | Q142: 0 | R142: 0 | S142: 0 | T142: 0 | U142: 0 | V142: 0 | W142: 0 | X142: 0 | Y142: 0 | Z142: 0 | AA142: 0 | AB142: 0 | AC142: 0 | AD142: 0 | AE142: 0 | AF142: 0 | AG142: 0 | AH142: 0 | AI142: 0 | AJ142: 0 | AK142: 0 | AL142: 0 | AM142: 0 | AN142: =MIN(AN199,10)*5+MAX(MIN(AN199-10,10),0)*4+MAX(MIN(AN199-20,10),0)*3+MAX(MIN(AN199-30,10),0)*2+MAX(AN199-40,0) -> 0 | AO142: 0 | AP142: 0 | AQ142: 0 | AR142: 0 | AS142: 0 | AT142: 0 | AU142: 0 | AV142: 0 | AW142: 0 | AX142: 0 | AY142: 0 | AZ142: 0 | BA142: 0 | BB142: 0 | BC142: 0 | BD142: 0 | BE142: 0 | BF142: 0 | BG142: 0 | BH142: 0 | BI142: 0 | BJ142: 0 | BK142: 0 | BL142: 0 | BM142: 0 | BN142: 0 | BO142: 0 | BP142: 0 | BQ142: 0 | BR142: 0 | BS142: 0 | BT142: =MIN(BT199,10)*5+MAX(MIN(BT199-10,10),0)*4+MAX(MIN(BT199-20,10),0)*3+MAX(MIN(BT199-30,10),0)*2+MAX(BT199-40,0) -> 0 | BU142: 0 | BV142: 0 | BW142: 0 | BX142: 0 | BY142: 0 | BZ142: 0 | CA142: 0 | CB142: 0 | CC142: 0 | CD142: 0 | CE142: 0 | CF142: 0 | CG142: 0 | CH142: 0 | CI142: 0 | CJ142: 0 | CK142: 0 | CL142: 0 | CM142: 0 | CN142: 0 | CO142: 0 | CP142: 0 | CQ142: 0 | CR142: 0 | CS142: 0 | CT142: 0 | CU142: 0 | CV142: 0 | CW142: 0 | CX142: 0 | CY142: 0 | CZ142: =MIN(CZ199,10)*5+MAX(MIN(CZ199-10,10),0)*4+MAX(MIN(CZ199-20,10),0)*3+MAX(MIN(CZ199-30,10),0)*2+MAX(CZ199-40,0) -> 0 | DA142: 0 | DB142: 0 | DC142: 0 | DD142: 0 | DE142: 0 | DF142: 0
A143: Survival | C143: 0 | H143: =MIN(H200,10)*5+MAX(MIN(H200-10,10),0)*4+MAX(MIN(H200-20,10),0)*3+MAX(MIN(H200-30,10),0)*2+MAX(H200-40,0) -> 0 | I143: 0 | J143: 0 | K143: 0 | L143: 0 | M143: 0 | N143: 0 | O143: 0 | P143: 0 | Q143: 0 | R143: 0 | S143: 0 | T143: 0 | U143: 0 | V143: 0 | W143: 0 | X143: 0 | Y143: 0 | Z143: 0 | AA143: 0 | AB143: 0 | AC143: 0 | AD143: 0 | AE143: 0 | AF143: 0 | AG143: 0 | AH143: 0 | AI143: 0 | AJ143: 0 | AK143: 0 | AL143: 0 | AM143: 0 | AN143: =MIN(AN200,10)*5+MAX(MIN(AN200-10,10),0)*4+MAX(MIN(AN200-20,10),0)*3+MAX(MIN(AN200-30,10),0)*2+MAX(AN200-40,0) -> 0 | AO143: 0 | AP143: 0 | AQ143: 0 | AR143: 0 | AS143: 0 | AT143: 0 | AU143: 0 | AV143: 0 | AW143: 0 | AX143: 0 | AY143: 0 | AZ143: 0 | BA143: 0 | BB143: 0 | BC143: 0 | BD143: 0 | BE143: 0 | BF143: 0 | BG143: 0 | BH143: 0 | BI143: 0 | BJ143: 0 | BK143: 0 | BL143: 0 | BM143: 0 | BN143: 0 | BO143: 0 | BP143: 0 | BQ143: 0 | BR143: 0 | BS143: 0 | BT143: =MIN(BT200,10)*5+MAX(MIN(BT200-10,10),0)*4+MAX(MIN(BT200-20,10),0)*3+MAX(MIN(BT200-30,10),0)*2+MAX(BT200-40,0) -> 0 | BU143: 0 | BV143: 0 | BW143: 0 | BX143: 0 | BY143: 0 | BZ143: 0 | CA143: 0 | CB143: 0 | CC143: 0 | CD143: 0 | CE143: 0 | CF143: 0 | CG143: 0 | CH143: 0 | CI143: 0 | CJ143: 0 | CK143: 0 | CL143: 0 | CM143: 0 | CN143: 0 | CO143: 0 | CP143: 0 | CQ143: 0 | CR143: 0 | CS143: 0 | CT143: 0 | CU143: 0 | CV143: 0 | CW143: 0 | CX143: 0 | CY143: 0 | CZ143: =MIN(CZ200,10)*5+MAX(MIN(CZ200-10,10),0)*4+MAX(MIN(CZ200-20,10),0)*3+MAX(MIN(CZ200-30,10),0)*2+MAX(CZ200-40,0) -> 0 | DA143: 0 | DB143: 0 | DC143: 0 | DD143: 0 | DE143: 0 | DF143: 0
A144: Arcane Symbols | C144: 0 | H144: =MIN(H201,10)*5+MAX(MIN(H201-10,10),0)*4+MAX(MIN(H201-20,10),0)*3+MAX(MIN(H201-30,10),0)*2+MAX(H201-40,0) -> 0 | I144: 0 | J144: 0 | K144: 0 | L144: 0 | M144: 0 | N144: 0 | O144: 0 | P144: 0 | Q144: 0 | R144: 0 | S144: 0 | T144: 0 | U144: 0 | V144: 0 | W144: 0 | X144: 0 | Y144: 0 | Z144: 0 | AA144: 0 | AB144: 0 | AC144: 0 | AD144: 0 | AE144: 0 | AF144: 0 | AG144: 0 | AH144: 0 | AI144: 0 | AJ144: 0 | AK144: 0 | AL144: 0 | AM144: 0 | AN144: =MIN(AN201,10)*5+MAX(MIN(AN201-10,10),0)*4+MAX(MIN(AN201-20,10),0)*3+MAX(MIN(AN201-30,10),0)*2+MAX(AN201-40,0) -> 0 | AO144: 0 | AP144: 0 | AQ144: 0 | AR144: 0 | AS144: 0 | AT144: 0 | AU144: 0 | AV144: 0 | AW144: 0 | AX144: 0 | AY144: 0 | AZ144: 0 | BA144: 0 | BB144: 0 | BC144: 0 | BD144: 0 | BE144: 0 | BF144: 0 | BG144: 0 | BH144: 0 | BI144: 0 | BJ144: 0 | BK144: 0 | BL144: 0 | BM144: 0 | BN144: 0 | BO144: 0 | BP144: 0 | BQ144: 0 | BR144: 0 | BS144: 0 | BT144: =MIN(BT201,10)*5+MAX(MIN(BT201-10,10),0)*4+MAX(MIN(BT201-20,10),0)*3+MAX(MIN(BT201-30,10),0)*2+MAX(BT201-40,0) -> 0 | BU144: 0 | BV144: 0 | BW144: 0 | BX144: 0 | BY144: 0 | BZ144: 0 | CA144: 0 | CB144: 0 | CC144: 0 | CD144: 0 | CE144: 0 | CF144: 0 | CG144: 0 | CH144: 0 | CI144: 0 | CJ144: 0 | CK144: 0 | CL144: 0 | CM144: 0 | CN144: 0 | CO144: 0 | CP144: 0 | CQ144: 0 | CR144: 0 | CS144: 0 | CT144: 0 | CU144: 0 | CV144: 0 | CW144: 0 | CX144: 0 | CY144: 0 | CZ144: =MIN(CZ201,10)*5+MAX(MIN(CZ201-10,10),0)*4+MAX(MIN(CZ201-20,10),0)*3+MAX(MIN(CZ201-30,10),0)*2+MAX(CZ201-40,0) -> 0 | DA144: 0 | DB144: 0 | DC144: 0 | DD144: 0 | DE144: 0 | DF144: 0
A145: Magic Item Use | C145: 0 | H145: =MIN(H202,10)*5+MAX(MIN(H202-10,10),0)*4+MAX(MIN(H202-20,10),0)*3+MAX(MIN(H202-30,10),0)*2+MAX(H202-40,0) -> 0 | I145: 0 | J145: 0 | K145: 0 | L145: 0 | M145: 0 | N145: 0 | O145: 0 | P145: 0 | Q145: 0 | R145: 0 | S145: 0 | T145: 0 | U145: 0 | V145: 0 | W145: 0 | X145: 0 | Y145: 0 | Z145: 0 | AA145: 0 | AB145: 0 | AC145: 0 | AD145: 0 | AE145: 0 | AF145: 0 | AG145: 0 | AH145: 0 | AI145: 0 | AJ145: 0 | AK145: 0 | AL145: 0 | AM145: 0 | AN145: =MIN(AN202,10)*5+MAX(MIN(AN202-10,10),0)*4+MAX(MIN(AN202-20,10),0)*3+MAX(MIN(AN202-30,10),0)*2+MAX(AN202-40,0) -> 0 | AO145: 0 | AP145: 0 | AQ145: 0 | AR145: 0 | AS145: 0 | AT145: 0 | AU145: 0 | AV145: 0 | AW145: 0 | AX145: 0 | AY145: 0 | AZ145: 0 | BA145: 0 | BB145: 0 | BC145: 0 | BD145: 0 | BE145: 0 | BF145: 0 | BG145: 0 | BH145: 0 | BI145: 0 | BJ145: 0 | BK145: 0 | BL145: 0 | BM145: 0 | BN145: 0 | BO145: 0 | BP145: 0 | BQ145: 0 | BR145: 0 | BS145: 0 | BT145: =MIN(BT202,10)*5+MAX(MIN(BT202-10,10),0)*4+MAX(MIN(BT202-20,10),0)*3+MAX(MIN(BT202-30,10),0)*2+MAX(BT202-40,0) -> 0 | BU145: 0 | BV145: 0 | BW145: 0 | BX145: 0 | BY145: 0 | BZ145: 0 | CA145: 0 | CB145: 0 | CC145: 0 | CD145: 0 | CE145: 0 | CF145: 0 | CG145: 0 | CH145: 0 | CI145: 0 | CJ145: 0 | CK145: 0 | CL145: 0 | CM145: 0 | CN145: 0 | CO145: 0 | CP145: 0 | CQ145: 0 | CR145: 0 | CS145: 0 | CT145: 0 | CU145: 0 | CV145: 0 | CW145: 0 | CX145: 0 | CY145: 0 | CZ145: =MIN(CZ202,10)*5+MAX(MIN(CZ202-10,10),0)*4+MAX(MIN(CZ202-20,10),0)*3+MAX(MIN(CZ202-30,10),0)*2+MAX(CZ202-40,0) -> 0 | DA145: 0 | DB145: 0 | DC145: 0 | DD145: 0 | DE145: 0 | DF145: 0
A146: Harness Power | C146: 0 | H146: =MIN(H203,10)*5+MAX(MIN(H203-10,10),0)*4+MAX(MIN(H203-20,10),0)*3+MAX(MIN(H203-30,10),0)*2+MAX(H203-40,0) -> 0 | I146: 0 | J146: 0 | K146: 0 | L146: 0 | M146: 0 | N146: 0 | O146: 0 | P146: 0 | Q146: 0 | R146: 0 | S146: 0 | T146: 0 | U146: 0 | V146: 0 | W146: 0 | X146: 0 | Y146: 0 | Z146: 0 | AA146: 0 | AB146: 0 | AC146: 0 | AD146: 0 | AE146: 0 | AF146: 0 | AG146: 0 | AH146: 0 | AI146: 0 | AJ146: 0 | AK146: 0 | AL146: 0 | AM146: 0 | AN146: =MIN(AN203,10)*5+MAX(MIN(AN203-10,10),0)*4+MAX(MIN(AN203-20,10),0)*3+MAX(MIN(AN203-30,10),0)*2+MAX(AN203-40,0) -> 0 | AO146: 0 | AP146: 0 | AQ146: 0 | AR146: 0 | AS146: 0 | AT146: 0 | AU146: 0 | AV146: 0 | AW146: 0 | AX146: 0 | AY146: 0 | AZ146: 0 | BA146: 0 | BB146: 0 | BC146: 0 | BD146: 0 | BE146: 0 | BF146: 0 | BG146: 0 | BH146: 0 | BI146: 0 | BJ146: 0 | BK146: 0 | BL146: 0 | BM146: 0 | BN146: 0 | BO146: 0 | BP146: 0 | BQ146: 0 | BR146: 0 | BS146: 0 | BT146: =MIN(BT203,10)*5+MAX(MIN(BT203-10,10),0)*4+MAX(MIN(BT203-20,10),0)*3+MAX(MIN(BT203-30,10),0)*2+MAX(BT203-40,0) -> 0 | BU146: 0 | BV146: 0 | BW146: 0 | BX146: 0 | BY146: 0 | BZ146: 0 | CA146: 0 | CB146: 0 | CC146: 0 | CD146: 0 | CE146: 0 | CF146: 0 | CG146: 0 | CH146: 0 | CI146: 0 | CJ146: 0 | CK146: 0 | CL146: 0 | CM146: 0 | CN146: 0 | CO146: 0 | CP146: 0 | CQ146: 0 | CR146: 0 | CS146: 0 | CT146: 0 | CU146: 0 | CV146: 0 | CW146: 0 | CX146: 0 | CY146: 0 | CZ146: =MIN(CZ203,10)*5+MAX(MIN(CZ203-10,10),0)*4+MAX(MIN(CZ203-20,10),0)*3+MAX(MIN(CZ203-30,10),0)*2+MAX(CZ203-40,0) -> 0 | DA146: 0 | DB146: 0 | DC146: 0 | DD146: 0 | DE146: 0 | DF146: 0
A147: Spell Aiming | C147: 0 | H147: =MIN(H204,10)*5+MAX(MIN(H204-10,10),0)*4+MAX(MIN(H204-20,10),0)*3+MAX(MIN(H204-30,10),0)*2+MAX(H204-40,0) -> 0 | I147: 0 | J147: 0 | K147: 0 | L147: 0 | M147: 0 | N147: 0 | O147: 0 | P147: 0 | Q147: 0 | R147: 0 | S147: 0 | T147: 0 | U147: 0 | V147: 0 | W147: 0 | X147: 0 | Y147: 0 | Z147: 0 | AA147: 0 | AB147: 0 | AC147: 0 | AD147: 0 | AE147: 0 | AF147: 0 | AG147: 0 | AH147: 0 | AI147: 0 | AJ147: 0 | AK147: 0 | AL147: 0 | AM147: 0 | AN147: =MIN(AN204,10)*5+MAX(MIN(AN204-10,10),0)*4+MAX(MIN(AN204-20,10),0)*3+MAX(MIN(AN204-30,10),0)*2+MAX(AN204-40,0) -> 0 | AO147: 0 | AP147: 0 | AQ147: 0 | AR147: 0 | AS147: 0 | AT147: 0 | AU147: 0 | AV147: 0 | AW147: 0 | AX147: 0 | AY147: 0 | AZ147: 0 | BA147: 0 | BB147: 0 | BC147: 0 | BD147: 0 | BE147: 0 | BF147: 0 | BG147: 0 | BH147: 0 | BI147: 0 | BJ147: 0 | BK147: 0 | BL147: 0 | BM147: 0 | BN147: 0 | BO147: 0 | BP147: 0 | BQ147: 0 | BR147: 0 | BS147: 0 | BT147: =MIN(BT204,10)*5+MAX(MIN(BT204-10,10),0)*4+MAX(MIN(BT204-20,10),0)*3+MAX(MIN(BT204-30,10),0)*2+MAX(BT204-40,0) -> 0 | BU147: 0 | BV147: 0 | BW147: 0 | BX147: 0 | BY147: 0 | BZ147: 0 | CA147: 0 | CB147: 0 | CC147: 0 | CD147: 0 | CE147: 0 | CF147: 0 | CG147: 0 | CH147: 0 | CI147: 0 | CJ147: 0 | CK147: 0 | CL147: 0 | CM147: 0 | CN147: 0 | CO147: 0 | CP147: 0 | CQ147: 0 | CR147: 0 | CS147: 0 | CT147: 0 | CU147: 0 | CV147: 0 | CW147: 0 | CX147: 0 | CY147: 0 | CZ147: =MIN(CZ204,10)*5+MAX(MIN(CZ204-10,10),0)*4+MAX(MIN(CZ204-20,10),0)*3+MAX(MIN(CZ204-30,10),0)*2+MAX(CZ204-40,0) -> 0 | DA147: 0 | DB147: 0 | DC147: 0 | DD147: 0 | DE147: 0 | DF147: 0
A148: Elemental Mana Control | C148: 0 | H148: =MIN(H205,10)*5+MAX(MIN(H205-10,10),0)*4+MAX(MIN(H205-20,10),0)*3+MAX(MIN(H205-30,10),0)*2+MAX(H205-40,0) -> 0 | I148: 0 | J148: 0 | K148: 0 | L148: 0 | M148: 0 | N148: 0 | O148: 0 | P148: 0 | Q148: 0 | R148: 0 | S148: 0 | T148: 0 | U148: 0 | V148: 0 | W148: 0 | X148: 0 | Y148: 0 | Z148: 0 | AA148: 0 | AB148: 0 | AC148: 0 | AD148: 0 | AE148: 0 | AF148: 0 | AG148: 0 | AH148: 0 | AI148: 0 | AJ148: 0 | AK148: 0 | AL148: 0 | AM148: 0 | AN148: =MIN(AN205,10)*5+MAX(MIN(AN205-10,10),0)*4+MAX(MIN(AN205-20,10),0)*3+MAX(MIN(AN205-30,10),0)*2+MAX(AN205-40,0) -> 0 | AO148: 0 | AP148: 0 | AQ148: 0 | AR148: 0 | AS148: 0 | AT148: 0 | AU148: 0 | AV148: 0 | AW148: 0 | AX148: 0 | AY148: 0 | AZ148: 0 | BA148: 0 | BB148: 0 | BC148: 0 | BD148: 0 | BE148: 0 | BF148: 0 | BG148: 0 | BH148: 0 | BI148: 0 | BJ148: 0 | BK148: 0 | BL148: 0 | BM148: 0 | BN148: 0 | BO148: 0 | BP148: 0 | BQ148: 0 | BR148: 0 | BS148: 0 | BT148: =MIN(BT205,10)*5+MAX(MIN(BT205-10,10),0)*4+MAX(MIN(BT205-20,10),0)*3+MAX(MIN(BT205-30,10),0)*2+MAX(BT205-40,0) -> 0 | BU148: 0 | BV148: 0 | BW148: 0 | BX148: 0 | BY148: 0 | BZ148: 0 | CA148: 0 | CB148: 0 | CC148: 0 | CD148: 0 | CE148: 0 | CF148: 0 | CG148: 0 | CH148: 0 | CI148: 0 | CJ148: 0 | CK148: 0 | CL148: 0 | CM148: 0 | CN148: 0 | CO148: 0 | CP148: 0 | CQ148: 0 | CR148: 0 | CS148: 0 | CT148: 0 | CU148: 0 | CV148: 0 | CW148: 0 | CX148: 0 | CY148: 0 | CZ148: =MIN(CZ205,10)*5+MAX(MIN(CZ205-10,10),0)*4+MAX(MIN(CZ205-20,10),0)*3+MAX(MIN(CZ205-30,10),0)*2+MAX(CZ205-40,0) -> 0 | DA148: 0 | DB148: 0 | DC148: 0 | DD148: 0 | DE148: 0 | DF148: 0
A149: Spirit Mana Control | C149: 0 | H149: =MIN(H206,10)*5+MAX(MIN(H206-10,10),0)*4+MAX(MIN(H206-20,10),0)*3+MAX(MIN(H206-30,10),0)*2+MAX(H206-40,0) -> 0 | I149: 0 | J149: 0 | K149: 0 | L149: 0 | M149: 0 | N149: 0 | O149: 0 | P149: 0 | Q149: 0 | R149: 0 | S149: 0 | T149: 0 | U149: 0 | V149: 0 | W149: 0 | X149: 0 | Y149: 0 | Z149: 0 | AA149: 0 | AB149: 0 | AC149: 0 | AD149: 0 | AE149: 0 | AF149: 0 | AG149: 0 | AH149: 0 | AI149: 0 | AJ149: 0 | AK149: 0 | AL149: 0 | AM149: 0 | AN149: =MIN(AN206,10)*5+MAX(MIN(AN206-10,10),0)*4+MAX(MIN(AN206-20,10),0)*3+MAX(MIN(AN206-30,10),0)*2+MAX(AN206-40,0) -> 0 | AO149: 0 | AP149: 0 | AQ149: 0 | AR149: 0 | AS149: 0 | AT149: 0 | AU149: 0 | AV149: 0 | AW149: 0 | AX149: 0 | AY149: 0 | AZ149: 0 | BA149: 0 | BB149: 0 | BC149: 0 | BD149: 0 | BE149: 0 | BF149: 0 | BG149: 0 | BH149: 0 | BI149: 0 | BJ149: 0 | BK149: 0 | BL149: 0 | BM149: 0 | BN149: 0 | BO149: 0 | BP149: 0 | BQ149: 0 | BR149: 0 | BS149: 0 | BT149: =MIN(BT206,10)*5+MAX(MIN(BT206-10,10),0)*4+MAX(MIN(BT206-20,10),0)*3+MAX(MIN(BT206-30,10),0)*2+MAX(BT206-40,0) -> 0 | BU149: 0 | BV149: 0 | BW149: 0 | BX149: 0 | BY149: 0 | BZ149: 0 | CA149: 0 | CB149: 0 | CC149: 0 | CD149: 0 | CE149: 0 | CF149: 0 | CG149: 0 | CH149: 0 | CI149: 0 | CJ149: 0 | CK149: 0 | CL149: 0 | CM149: 0 | CN149: 0 | CO149: 0 | CP149: 0 | CQ149: 0 | CR149: 0 | CS149: 0 | CT149: 0 | CU149: 0 | CV149: 0 | CW149: 0 | CX149: 0 | CY149: 0 | CZ149: =MIN(CZ206,10)*5+MAX(MIN(CZ206-10,10),0)*4+MAX(MIN(CZ206-20,10),0)*3+MAX(MIN(CZ206-30,10),0)*2+MAX(CZ206-40,0) -> 0 | DA149: 0 | DB149: 0 | DC149: 0 | DD149: 0 | DE149: 0 | DF149: 0
A150: Mental Mana Control | C150: 0 | H150: =MIN(H207,10)*5+MAX(MIN(H207-10,10),0)*4+MAX(MIN(H207-20,10),0)*3+MAX(MIN(H207-30,10),0)*2+MAX(H207-40,0) -> 0 | I150: 0 | J150: 0 | K150: 0 | L150: 0 | M150: 0 | N150: 0 | O150: 0 | P150: 0 | Q150: 0 | R150: 0 | S150: 0 | T150: 0 | U150: 0 | V150: 0 | W150: 0 | X150: 0 | Y150: 0 | Z150: 0 | AA150: 0 | AB150: 0 | AC150: 0 | AD150: 0 | AE150: 0 | AF150: 0 | AG150: 0 | AH150: 0 | AI150: 0 | AJ150: 0 | AK150: 0 | AL150: 0 | AM150: 0 | AN150: =MIN(AN207,10)*5+MAX(MIN(AN207-10,10),0)*4+MAX(MIN(AN207-20,10),0)*3+MAX(MIN(AN207-30,10),0)*2+MAX(AN207-40,0) -> 0 | AO150: 0 | AP150: 0 | AQ150: 0 | AR150: 0 | AS150: 0 | AT150: 0 | AU150: 0 | AV150: 0 | AW150: 0 | AX150: 0 | AY150: 0 | AZ150: 0 | BA150: 0 | BB150: 0 | BC150: 0 | BD150: 0 | BE150: 0 | BF150: 0 | BG150: 0 | BH150: 0 | BI150: 0 | BJ150: 0 | BK150: 0 | BL150: 0 | BM150: 0 | BN150: 0 | BO150: 0 | BP150: 0 | BQ150: 0 | BR150: 0 | BS150: 0 | BT150: =MIN(BT207,10)*5+MAX(MIN(BT207-10,10),0)*4+MAX(MIN(BT207-20,10),0)*3+MAX(MIN(BT207-30,10),0)*2+MAX(BT207-40,0) -> 0 | BU150: 0 | BV150: 0 | BW150: 0 | BX150: 0 | BY150: 0 | BZ150: 0 | CA150: 0 | CB150: 0 | CC150: 0 | CD150: 0 | CE150: 0 | CF150: 0 | CG150: 0 | CH150: 0 | CI150: 0 | CJ150: 0 | CK150: 0 | CL150: 0 | CM150: 0 | CN150: 0 | CO150: 0 | CP150: 0 | CQ150: 0 | CR150: 0 | CS150: 0 | CT150: 0 | CU150: 0 | CV150: 0 | CW150: 0 | CX150: 0 | CY150: 0 | CZ150: =MIN(CZ207,10)*5+MAX(MIN(CZ207-10,10),0)*4+MAX(MIN(CZ207-20,10),0)*3+MAX(MIN(CZ207-30,10),0)*2+MAX(CZ207-40,0) -> 0 | DA150: 0 | DB150: 0 | DC150: 0 | DD150: 0 | DE150: 0 | DF150: 0
A151: Spell Research | C151: 0 | H151: n/a | I151: n/a | J151: n/a | K151: n/a | L151: n/a | M151: n/a | N151: n/a | O151: n/a | P151: n/a | Q151: n/a | R151: n/a | S151: n/a | T151: n/a | U151: n/a | V151: n/a | W151: n/a | X151: n/a | Y151: n/a | Z151: n/a | AA151: n/a | AB151: n/a | AC151: n/a | AD151: n/a | AE151: n/a | AF151: n/a | AG151: n/a | AH151: n/a | AI151: n/a | AJ151: n/a | AK151: n/a | AL151: n/a | AM151: n/a | AN151: n/a | AO151: n/a | AP151: n/a | AQ151: n/a | AR151: n/a | AS151: n/a | AT151: n/a | AU151: n/a | AV151: n/a | AW151: n/a | AX151: n/a | AY151: n/a | AZ151: n/a | BA151: n/a | BB151: n/a | BC151: n/a | BD151: n/a | BE151: n/a | BF151: n/a | BG151: n/a | BH151: n/a | BI151: n/a | BJ151: n/a | BK151: n/a | BL151: n/a | BM151: n/a | BN151: n/a | BO151: n/a | BP151: n/a | BQ151: n/a | BR151: n/a | BS151: n/a | BT151: n/a | BU151: n/a | BV151: n/a | BW151: n/a | BX151: n/a | BY151: n/a | BZ151: n/a | CA151: n/a | CB151: n/a | CC151: n/a | CD151: n/a | CE151: n/a | CF151: n/a | CG151: n/a | CH151: n/a | CI151: n/a | CJ151: n/a | CK151: n/a | CL151: n/a | CM151: n/a | CN151: n/a | CO151: n/a | CP151: n/a | CQ151: n/a | CR151: n/a | CS151: n/a | CT151: n/a | CU151: n/a | CV151: n/a | CW151: n/a | CX151: n/a | CY151: n/a | CZ151: n/a | DA151: n/a | DB151: n/a | DC151: n/a | DD151: n/a | DE151: n/a | DF151: n/a
A152: =A86 -> Minor Elemental | C152: 0 | H152: n/a | I152: n/a | J152: n/a | K152: n/a | L152: n/a | M152: n/a | N152: n/a | O152: n/a | P152: n/a | Q152: n/a | R152: n/a | S152: n/a | T152: n/a | U152: n/a | V152: n/a | W152: n/a | X152: n/a | Y152: n/a | Z152: n/a | AA152: n/a | AB152: n/a | AC152: n/a | AD152: n/a | AE152: n/a | AF152: n/a | AG152: n/a | AH152: n/a | AI152: n/a | AJ152: n/a | AK152: n/a | AL152: n/a | AM152: n/a | AN152: n/a | AO152: n/a | AP152: n/a | AQ152: n/a | AR152: n/a | AS152: n/a | AT152: n/a | AU152: n/a | AV152: n/a | AW152: n/a | AX152: n/a | AY152: n/a | AZ152: n/a | BA152: n/a | BB152: n/a | BC152: n/a | BD152: n/a | BE152: n/a | BF152: n/a | BG152: n/a | BH152: n/a | BI152: n/a | BJ152: n/a | BK152: n/a | BL152: n/a | BM152: n/a | BN152: n/a | BO152: n/a | BP152: n/a | BQ152: n/a | BR152: n/a | BS152: n/a | BT152: n/a | BU152: n/a | BV152: n/a | BW152: n/a | BX152: n/a | BY152: n/a | BZ152: n/a | CA152: n/a | CB152: n/a | CC152: n/a | CD152: n/a | CE152: n/a | CF152: n/a | CG152: n/a | CH152: n/a | CI152: n/a | CJ152: n/a | CK152: n/a | CL152: n/a | CM152: n/a | CN152: n/a | CO152: n/a | CP152: n/a | CQ152: n/a | CR152: n/a | CS152: n/a | CT152: n/a | CU152: n/a | CV152: n/a | CW152: n/a | CX152: n/a | CY152: n/a | CZ152: n/a | DA152: n/a | DB152: n/a | DC152: n/a | DD152: n/a | DE152: n/a | DF152: n/a
A153: Minor Spirit | C153: 0 | H153: n/a | I153: n/a | J153: n/a | K153: n/a | L153: n/a | M153: n/a | N153: n/a | O153: n/a | P153: n/a | Q153: n/a | R153: n/a | S153: n/a | T153: n/a | U153: n/a | V153: n/a | W153: n/a | X153: n/a | Y153: n/a | Z153: n/a | AA153: n/a | AB153: n/a | AC153: n/a | AD153: n/a | AE153: n/a | AF153: n/a | AG153: n/a | AH153: n/a | AI153: n/a | AJ153: n/a | AK153: n/a | AL153: n/a | AM153: n/a | AN153: n/a | AO153: n/a | AP153: n/a | AQ153: n/a | AR153: n/a | AS153: n/a | AT153: n/a | AU153: n/a | AV153: n/a | AW153: n/a | AX153: n/a | AY153: n/a | AZ153: n/a | BA153: n/a | BB153: n/a | BC153: n/a | BD153: n/a | BE153: n/a | BF153: n/a | BG153: n/a | BH153: n/a | BI153: n/a | BJ153: n/a | BK153: n/a | BL153: n/a | BM153: n/a | BN153: n/a | BO153: n/a | BP153: n/a | BQ153: n/a | BR153: n/a | BS153: n/a | BT153: n/a | BU153: n/a | BV153: n/a | BW153: n/a | BX153: n/a | BY153: n/a | BZ153: n/a | CA153: n/a | CB153: n/a | CC153: n/a | CD153: n/a | CE153: n/a | CF153: n/a | CG153: n/a | CH153: n/a | CI153: n/a | CJ153: n/a | CK153: n/a | CL153: n/a | CM153: n/a | CN153: n/a | CO153: n/a | CP153: n/a | CQ153: n/a | CR153: n/a | CS153: n/a | CT153: n/a | CU153: n/a | CV153: n/a | CW153: n/a | CX153: n/a | CY153: n/a | CZ153: n/a | DA153: n/a | DB153: n/a | DC153: n/a | DD153: n/a | DE153: n/a | DF153: n/a
A154: n.a. | C154: 0 | H154: n/a | I154: n/a | J154: n/a | K154: n/a | L154: n/a | M154: n/a | N154: n/a | O154: n/a | P154: n/a | Q154: n/a | R154: n/a | S154: n/a | T154: n/a | U154: n/a | V154: n/a | W154: n/a | X154: n/a | Y154: n/a | Z154: n/a | AA154: n/a | AB154: n/a | AC154: n/a | AD154: n/a | AE154: n/a | AF154: n/a | AG154: n/a | AH154: n/a | AI154: n/a | AJ154: n/a | AK154: n/a | AL154: n/a | AM154: n/a | AN154: n/a | AO154: n/a | AP154: n/a | AQ154: n/a | AR154: n/a | AS154: n/a | AT154: n/a | AU154: n/a | AV154: n/a | AW154: n/a | AX154: n/a | AY154: n/a | AZ154: n/a | BA154: n/a | BB154: n/a | BC154: n/a | BD154: n/a | BE154: n/a | BF154: n/a | BG154: n/a | BH154: n/a | BI154: n/a | BJ154: n/a | BK154: n/a | BL154: n/a | BM154: n/a | BN154: n/a | BO154: n/a | BP154: n/a | BQ154: n/a | BR154: n/a | BS154: n/a | BT154: n/a | BU154: n/a | BV154: n/a | BW154: n/a | BX154: n/a | BY154: n/a | BZ154: n/a | CA154: n/a | CB154: n/a | CC154: n/a | CD154: n/a | CE154: n/a | CF154: n/a | CG154: n/a | CH154: n/a | CI154: n/a | CJ154: n/a | CK154: n/a | CL154: n/a | CM154: n/a | CN154: n/a | CO154: n/a | CP154: n/a | CQ154: n/a | CR154: n/a | CS154: n/a | CT154: n/a | CU154: n/a | CV154: n/a | CW154: n/a | CX154: n/a | CY154: n/a | CZ154: n/a | DA154: n/a | DB154: n/a | DC154: n/a | DD154: n/a | DE154: n/a | DF154: n/a
A155: Elemental Lore | C155: 0 | H155: =MIN(H212,10)*5+MAX(MIN(H212-10,10),0)*4+MAX(MIN(H212-20,10),0)*3+MAX(MIN(H212-30,10),0)*2+MAX(H212-40,0) -> 0 | I155: 0 | J155: 0 | K155: 0 | L155: 0 | M155: 0 | N155: 0 | O155: 0 | P155: 0 | Q155: 0 | R155: 0 | S155: 0 | T155: 0 | U155: 0 | V155: 0 | W155: 0 | X155: =MIN(X212,10)*5+MAX(MIN(X212-10,10),0)*4+MAX(MIN(X212-20,10),0)*3+MAX(MIN(X212-30,10),0)*2+MAX(X212-40,0) -> 0 | Y155: 0 | Z155: 0 | AA155: 0 | AB155: 0 | AC155: 0 | AD155: 0 | AE155: 0 | AF155: 0 | AG155: 0 | AH155: 0 | AI155: 0 | AJ155: 0 | AK155: 0 | AL155: 0 | AM155: 0 | AN155: =MIN(AN212,10)*5+MAX(MIN(AN212-10,10),0)*4+MAX(MIN(AN212-20,10),0)*3+MAX(MIN(AN212-30,10),0)*2+MAX(AN212-40,0) -> 0 | AO155: 0 | AP155: 0 | AQ155: 0 | AR155: 0 | AS155: 0 | AT155: 0 | AU155: 0 | AV155: 0 | AW155: 0 | AX155: 0 | AY155: 0 | AZ155: 0 | BA155: 0 | BB155: 0 | BC155: 0 | BD155: =MIN(BD212,10)*5+MAX(MIN(BD212-10,10),0)*4+MAX(MIN(BD212-20,10),0)*3+MAX(MIN(BD212-30,10),0)*2+MAX(BD212-40,0) -> 0 | BE155: 0 | BF155: 0 | BG155: 0 | BH155: 0 | BI155: 0 | BJ155: 0 | BK155: 0 | BL155: 0 | BM155: 0 | BN155: 0 | BO155: 0 | BP155: 0 | BQ155: 0 | BR155: 0 | BS155: 0 | BT155: =MIN(BT212,10)*5+MAX(MIN(BT212-10,10),0)*4+MAX(MIN(BT212-20,10),0)*3+MAX(MIN(BT212-30,10),0)*2+MAX(BT212-40,0) -> 0 | BU155: 0 | BV155: 0 | BW155: 0 | BX155: 0 | BY155: 0 | BZ155: 0 | CA155: 0 | CB155: 0 | CC155: 0 | CD155: 0 | CE155: 0 | CF155: 0 | CG155: 0 | CH155: 0 | CI155: 0 | CJ155: =MIN(CJ212,10)*5+MAX(MIN(CJ212-10,10),0)*4+MAX(MIN(CJ212-20,10),0)*3+MAX(MIN(CJ212-30,10),0)*2+MAX(CJ212-40,0) -> 0 | CK155: 0 | CL155: 0 | CM155: 0 | CN155: 0 | CO155: 0 | CP155: 0 | CQ155: 0 | CR155: 0 | CS155: 0 | CT155: 0 | CU155: 0 | CV155: 0 | CW155: 0 | CX155: 0 | CY155: 0 | CZ155: =MIN(CZ212,10)*5+MAX(MIN(CZ212-10,10),0)*4+MAX(MIN(CZ212-20,10),0)*3+MAX(MIN(CZ212-30,10),0)*2+MAX(CZ212-40,0) -> 0 | DA155: 0 | DB155: 0 | DC155: 0 | DD155: 0 | DE155: 0 | DF155: =MIN(DF212,10)*5+MAX(MIN(DF212-10,10),0)*4+MAX(MIN(DF212-20,10),0)*3+MAX(MIN(DF212-30,10),0)*2+MAX(DF212-40,0) -> 0
A156: Air | C156: 0 | H156: =MIN(H213,10)*5+MAX(MIN(H213-10,10),0)*4+MAX(MIN(H213-20,10),0)*3+MAX(MIN(H213-30,10),0)*2+MAX(H213-40,0) -> 0 | I156: 0 | J156: 0 | K156: 0 | L156: 0 | M156: 0 | N156: 0 | O156: 0 | P156: 0 | Q156: 0 | R156: 0 | S156: 0 | T156: 0 | U156: 0 | V156: 0 | W156: 0 | X156: =MIN(X213,10)*5+MAX(MIN(X213-10,10),0)*4+MAX(MIN(X213-20,10),0)*3+MAX(MIN(X213-30,10),0)*2+MAX(X213-40,0) -> 0 | Y156: 0 | Z156: 0 | AA156: 0 | AB156: 0 | AC156: 0 | AD156: 0 | AE156: 0 | AF156: 0 | AG156: 0 | AH156: 0 | AI156: 0 | AJ156: 0 | AK156: 0 | AL156: 0 | AM156: 0 | AN156: 0 | AO156: 0 | AP156: 0 | AQ156: 0 | AR156: 0 | AS156: 0 | AT156: 0 | AU156: 0 | AV156: 0 | AW156: 0 | AX156: 0 | AY156: 0 | AZ156: 0 | BA156: 0 | BB156: 0 | BC156: 0 | BD156: =MIN(BD213,10)*5+MAX(MIN(BD213-10,10),0)*4+MAX(MIN(BD213-20,10),0)*3+MAX(MIN(BD213-30,10),0)*2+MAX(BD213-40,0) -> 0 | BE156: 0 | BF156: 0 | BG156: 0 | BH156: 0 | BI156: 0 | BJ156: 0 | BK156: 0 | BL156: 0 | BM156: 0 | BN156: 0 | BO156: 0 | BP156: 0 | BQ156: 0 | BR156: 0 | BS156: 0 | BT156: 0 | BU156: 0 | BV156: 0 | BW156: 0 | BX156: 0 | BY156: 0 | BZ156: 0 | CA156: 0 | CB156: 0 | CC156: 0 | CD156: 0 | CE156: 0 | CF156: 0 | CG156: 0 | CH156: 0 | CI156: 0 | CJ156: =MIN(CJ213,10)*5+MAX(MIN(CJ213-10,10),0)*4+MAX(MIN(CJ213-20,10),0)*3+MAX(MIN(CJ213-30,10),0)*2+MAX(CJ213-40,0) -> 0 | CK156: 0 | CL156: 0 | CM156: 0 | CN156: 0 | CO156: 0 | CP156: 0 | CQ156: 0 | CR156: 0 | CS156: 0 | CT156: 0 | CU156: 0 | CV156: 0 | CW156: 0 | CX156: 0 | CY156: 0 | CZ156: 0 | DA156: 0 | DB156: 0 | DC156: 0 | DD156: 0 | DE156: 0 | DF156: 0
A157: Earth | C157: 0 | H157: =MIN(H214,10)*5+MAX(MIN(H214-10,10),0)*4+MAX(MIN(H214-20,10),0)*3+MAX(MIN(H214-30,10),0)*2+MAX(H214-40,0) -> 0 | I157: 0 | J157: 0 | K157: 0 | L157: 0 | M157: 0 | N157: 0 | O157: 0 | P157: 0 | Q157: 0 | R157: 0 | S157: 0 | T157: 0 | U157: 0 | V157: 0 | W157: 0 | X157: =MIN(X214,10)*5+MAX(MIN(X214-10,10),0)*4+MAX(MIN(X214-20,10),0)*3+MAX(MIN(X214-30,10),0)*2+MAX(X214-40,0) -> 0 | Y157: 0 | Z157: 0 | AA157: 0 | AB157: 0 | AC157: 0 | AD157: 0 | AE157: 0 | AF157: 0 | AG157: 0 | AH157: 0 | AI157: 0 | AJ157: 0 | AK157: 0 | AL157: 0 | AM157: 0 | AN157: 0 | AO157: 0 | AP157: 0 | AQ157: 0 | AR157: 0 | AS157: 0 | AT157: 0 | AU157: 0 | AV157: 0 | AW157: 0 | AX157: 0 | AY157: 0 | AZ157: 0 | BA157: 0 | BB157: 0 | BC157: 0 | BD157: =MIN(BD214,10)*5+MAX(MIN(BD214-10,10),0)*4+MAX(MIN(BD214-20,10),0)*3+MAX(MIN(BD214-30,10),0)*2+MAX(BD214-40,0) -> 0 | BE157: 0 | BF157: 0 | BG157: 0 | BH157: 0 | BI157: 0 | BJ157: 0 | BK157: 0 | BL157: 0 | BM157: 0 | BN157: 0 | BO157: 0 | BP157: 0 | BQ157: 0 | BR157: 0 | BS157: 0 | BT157: 0 | BU157: 0 | BV157: 0 | BW157: 0 | BX157: 0 | BY157: 0 | BZ157: 0 | CA157: 0 | CB157: 0 | CC157: 0 | CD157: 0 | CE157: 0 | CF157: 0 | CG157: 0 | CH157: 0 | CI157: 0 | CJ157: =MIN(CJ214,10)*5+MAX(MIN(CJ214-10,10),0)*4+MAX(MIN(CJ214-20,10),0)*3+MAX(MIN(CJ214-30,10),0)*2+MAX(CJ214-40,0) -> 0 | CK157: 0 | CL157: 0 | CM157: 0 | CN157: 0 | CO157: 0 | CP157: 0 | CQ157: 0 | CR157: 0 | CS157: 0 | CT157: 0 | CU157: 0 | CV157: 0 | CW157: 0 | CX157: 0 | CY157: 0 | CZ157: 0 | DA157: 0 | DB157: 0 | DC157: 0 | DD157: 0 | DE157: 0 | DF157: 0
A158: Fire | C158: 0 | H158: =MIN(H215,10)*5+MAX(MIN(H215-10,10),0)*4+MAX(MIN(H215-20,10),0)*3+MAX(MIN(H215-30,10),0)*2+MAX(H215-40,0) -> 0 | I158: 0 | J158: 0 | K158: 0 | L158: 0 | M158: 0 | N158: 0 | O158: 0 | P158: 0 | Q158: 0 | R158: 0 | S158: 0 | T158: 0 | U158: 0 | V158: 0 | W158: 0 | X158: =MIN(X215,10)*5+MAX(MIN(X215-10,10),0)*4+MAX(MIN(X215-20,10),0)*3+MAX(MIN(X215-30,10),0)*2+MAX(X215-40,0) -> 0 | Y158: 0 | Z158: 0 | AA158: 0 | AB158: 0 | AC158: 0 | AD158: 0 | AE158: 0 | AF158: 0 | AG158: 0 | AH158: 0 | AI158: 0 | AJ158: 0 | AK158: 0 | AL158: 0 | AM158: 0 | AN158: 0 | AO158: 0 | AP158: 0 | AQ158: 0 | AR158: 0 | AS158: 0 | AT158: 0 | AU158: 0 | AV158: 0 | AW158: 0 | AX158: 0 | AY158: 0 | AZ158: 0 | BA158: 0 | BB158: 0 | BC158: 0 | BD158: =MIN(BD215,10)*5+MAX(MIN(BD215-10,10),0)*4+MAX(MIN(BD215-20,10),0)*3+MAX(MIN(BD215-30,10),0)*2+MAX(BD215-40,0) -> 0 | BE158: 0 | BF158: 0 | BG158: 0 | BH158: 0 | BI158: 0 | BJ158: 0 | BK158: 0 | BL158: 0 | BM158: 0 | BN158: 0 | BO158: 0 | BP158: 0 | BQ158: 0 | BR158: 0 | BS158: 0 | BT158: 0 | BU158: 0 | BV158: 0 | BW158: 0 | BX158: 0 | BY158: 0 | BZ158: 0 | CA158: 0 | CB158: 0 | CC158: 0 | CD158: 0 | CE158: 0 | CF158: 0 | CG158: 0 | CH158: 0 | CI158: 0 | CJ158: =MIN(CJ215,10)*5+MAX(MIN(CJ215-10,10),0)*4+MAX(MIN(CJ215-20,10),0)*3+MAX(MIN(CJ215-30,10),0)*2+MAX(CJ215-40,0) -> 0 | CK158: 0 | CL158: 0 | CM158: 0 | CN158: 0 | CO158: 0 | CP158: 0 | CQ158: 0 | CR158: 0 | CS158: 0 | CT158: 0 | CU158: 0 | CV158: 0 | CW158: 0 | CX158: 0 | CY158: 0 | CZ158: 0 | DA158: 0 | DB158: 0 | DC158: 0 | DD158: 0 | DE158: 0 | DF158: 0
A159: Water | C159: 0 | H159: =MIN(H216,10)*5+MAX(MIN(H216-10,10),0)*4+MAX(MIN(H216-20,10),0)*3+MAX(MIN(H216-30,10),0)*2+MAX(H216-40,0) -> 0 | I159: 0 | J159: 0 | K159: 0 | L159: 0 | M159: 0 | N159: 0 | O159: 0 | P159: 0 | Q159: 0 | R159: 0 | S159: 0 | T159: 0 | U159: 0 | V159: 0 | W159: 0 | X159: =MIN(X216,10)*5+MAX(MIN(X216-10,10),0)*4+MAX(MIN(X216-20,10),0)*3+MAX(MIN(X216-30,10),0)*2+MAX(X216-40,0) -> 0 | Y159: 0 | Z159: 0 | AA159: 0 | AB159: 0 | AC159: 0 | AD159: 0 | AE159: 0 | AF159: 0 | AG159: 0 | AH159: 0 | AI159: 0 | AJ159: 0 | AK159: 0 | AL159: 0 | AM159: 0 | AN159: 0 | AO159: 0 | AP159: 0 | AQ159: 0 | AR159: 0 | AS159: 0 | AT159: 0 | AU159: 0 | AV159: 0 | AW159: 0 | AX159: 0 | AY159: 0 | AZ159: 0 | BA159: 0 | BB159: 0 | BC159: 0 | BD159: =MIN(BD216,10)*5+MAX(MIN(BD216-10,10),0)*4+MAX(MIN(BD216-20,10),0)*3+MAX(MIN(BD216-30,10),0)*2+MAX(BD216-40,0) -> 0 | BE159: 0 | BF159: 0 | BG159: 0 | BH159: 0 | BI159: 0 | BJ159: 0 | BK159: 0 | BL159: 0 | BM159: 0 | BN159: 0 | BO159: 0 | BP159: 0 | BQ159: 0 | BR159: 0 | BS159: 0 | BT159: 0 | BU159: 0 | BV159: 0 | BW159: 0 | BX159: 0 | BY159: 0 | BZ159: 0 | CA159: 0 | CB159: 0 | CC159: 0 | CD159: 0 | CE159: 0 | CF159: 0 | CG159: 0 | CH159: 0 | CI159: 0 | CJ159: =MIN(CJ216,10)*5+MAX(MIN(CJ216-10,10),0)*4+MAX(MIN(CJ216-20,10),0)*3+MAX(MIN(CJ216-30,10),0)*2+MAX(CJ216-40,0) -> 0 | CK159: 0 | CL159: 0 | CM159: 0 | CN159: 0 | CO159: 0 | CP159: 0 | CQ159: 0 | CR159: 0 | CS159: 0 | CT159: 0 | CU159: 0 | CV159: 0 | CW159: 0 | CX159: 0 | CY159: 0 | CZ159: 0 | DA159: 0 | DB159: 0 | DC159: 0 | DD159: 0 | DE159: 0 | DF159: 0
A160: Spiritual Lore | C160: 0 | H160: =MIN(H217,10)*5+MAX(MIN(H217-10,10),0)*4+MAX(MIN(H217-20,10),0)*3+MAX(MIN(H217-30,10),0)*2+MAX(H217-40,0) -> 0 | I160: 0 | J160: 0 | K160: 0 | L160: 0 | M160: 0 | N160: 0 | O160: 0 | P160: 0 | Q160: 0 | R160: 0 | S160: 0 | T160: 0 | U160: 0 | V160: 0 | W160: 0 | X160: =MIN(X217,10)*5+MAX(MIN(X217-10,10),0)*4+MAX(MIN(X217-20,10),0)*3+MAX(MIN(X217-30,10),0)*2+MAX(X217-40,0) -> 0 | Y160: 0 | Z160: 0 | AA160: 0 | AB160: 0 | AC160: 0 | AD160: 0 | AE160: 0 | AF160: 0 | AG160: 0 | AH160: 0 | AI160: 0 | AJ160: 0 | AK160: 0 | AL160: 0 | AM160: 0 | AN160: 0 | AO160: 0 | AP160: 0 | AQ160: 0 | AR160: 0 | AS160: 0 | AT160: 0 | AU160: 0 | AV160: 0 | AW160: 0 | AX160: 0 | AY160: 0 | AZ160: 0 | BA160: 0 | BB160: 0 | BC160: 0 | BD160: =MIN(BD217,10)*5+MAX(MIN(BD217-10,10),0)*4+MAX(MIN(BD217-20,10),0)*3+MAX(MIN(BD217-30,10),0)*2+MAX(BD217-40,0) -> 0 | BE160: 0 | BF160: 0 | BG160: 0 | BH160: 0 | BI160: 0 | BJ160: 0 | BK160: 0 | BL160: 0 | BM160: 0 | BN160: 0 | BO160: 0 | BP160: 0 | BQ160: 0 | BR160: 0 | BS160: 0 | BT160: 0 | BU160: 0 | BV160: 0 | BW160: 0 | BX160: 0 | BY160: 0 | BZ160: 0 | CA160: 0 | CB160: 0 | CC160: 0 | CD160: 0 | CE160: 0 | CF160: 0 | CG160: 0 | CH160: 0 | CI160: 0 | CJ160: =MIN(CJ217,10)*5+MAX(MIN(CJ217-10,10),0)*4+MAX(MIN(CJ217-20,10),0)*3+MAX(MIN(CJ217-30,10),0)*2+MAX(CJ217-40,0) -> 0 | CK160: 0 | CL160: 0 | CM160: 0 | CN160: 0 | CO160: 0 | CP160: 0 | CQ160: 0 | CR160: 0 | CS160: 0 | CT160: 0 | CU160: 0 | CV160: 0 | CW160: 0 | CX160: 0 | CY160: 0 | CZ160: 0 | DA160: 0 | DB160: 0 | DC160: 0 | DD160: 0 | DE160: 0 | DF160: 0
A161: Blessings | C161: 0 | H161: =MIN(H218,10)*5+MAX(MIN(H218-10,10),0)*4+MAX(MIN(H218-20,10),0)*3+MAX(MIN(H218-30,10),0)*2+MAX(H218-40,0) -> 0 | I161: 0 | J161: 0 | K161: 0 | L161: 0 | M161: 0 | N161: 0 | O161: 0 | P161: 0 | Q161: 0 | R161: 0 | S161: 0 | T161: 0 | U161: 0 | V161: 0 | W161: 0 | X161: =MIN(X218,10)*5+MAX(MIN(X218-10,10),0)*4+MAX(MIN(X218-20,10),0)*3+MAX(MIN(X218-30,10),0)*2+MAX(X218-40,0) -> 0 | Y161: 0 | Z161: 0 | AA161: 0 | AB161: 0 | AC161: 0 | AD161: 0 | AE161: 0 | AF161: 0 | AG161: 0 | AH161: 0 | AI161: 0 | AJ161: 0 | AK161: 0 | AL161: 0 | AM161: 0 | AN161: 0 | AO161: 0 | AP161: 0 | AQ161: 0 | AR161: 0 | AS161: 0 | AT161: 0 | AU161: 0 | AV161: 0 | AW161: 0 | AX161: 0 | AY161: 0 | AZ161: 0 | BA161: 0 | BB161: 0 | BC161: 0 | BD161: =MIN(BD218,10)*5+MAX(MIN(BD218-10,10),0)*4+MAX(MIN(BD218-20,10),0)*3+MAX(MIN(BD218-30,10),0)*2+MAX(BD218-40,0) -> 0 | BE161: 0 | BF161: 0 | BG161: 0 | BH161: 0 | BI161: 0 | BJ161: 0 | BK161: 0 | BL161: 0 | BM161: 0 | BN161: 0 | BO161: 0 | BP161: 0 | BQ161: 0 | BR161: 0 | BS161: 0 | BT161: 0 | BU161: 0 | BV161: 0 | BW161: 0 | BX161: 0 | BY161: 0 | BZ161: 0 | CA161: 0 | CB161: 0 | CC161: 0 | CD161: 0 | CE161: 0 | CF161: 0 | CG161: 0 | CH161: 0 | CI161: 0 | CJ161: =MIN(CJ218,10)*5+MAX(MIN(CJ218-10,10),0)*4+MAX(MIN(CJ218-20,10),0)*3+MAX(MIN(CJ218-30,10),0)*2+MAX(CJ218-40,0) -> 0 | CK161: 0 | CL161: 0 | CM161: 0 | CN161: 0 | CO161: 0 | CP161: 0 | CQ161: 0 | CR161: 0 | CS161: 0 | CT161: 0 | CU161: 0 | CV161: 0 | CW161: 0 | CX161: 0 | CY161: 0 | CZ161: 0 | DA161: 0 | DB161: 0 | DC161: 0 | DD161: 0 | DE161: 0 | DF161: 0
A162: Religion | C162: 0 | H162: =MIN(H219,10)*5+MAX(MIN(H219-10,10),0)*4+MAX(MIN(H219-20,10),0)*3+MAX(MIN(H219-30,10),0)*2+MAX(H219-40,0) -> 0 | I162: 0 | J162: 0 | K162: 0 | L162: 0 | M162: 0 | N162: 0 | O162: 0 | P162: 0 | Q162: 0 | R162: 0 | S162: 0 | T162: 0 | U162: 0 | V162: 0 | W162: 0 | X162: =MIN(X219,10)*5+MAX(MIN(X219-10,10),0)*4+MAX(MIN(X219-20,10),0)*3+MAX(MIN(X219-30,10),0)*2+MAX(X219-40,0) -> 0 | Y162: 0 | Z162: 0 | AA162: 0 | AB162: 0 | AC162: 0 | AD162: 0 | AE162: 0 | AF162: 0 | AG162: 0 | AH162: 0 | AI162: 0 | AJ162: 0 | AK162: 0 | AL162: 0 | AM162: 0 | AN162: 0 | AO162: 0 | AP162: 0 | AQ162: 0 | AR162: 0 | AS162: 0 | AT162: 0 | AU162: 0 | AV162: 0 | AW162: 0 | AX162: 0 | AY162: 0 | AZ162: 0 | BA162: 0 | BB162: 0 | BC162: 0 | BD162: =MIN(BD219,10)*5+MAX(MIN(BD219-10,10),0)*4+MAX(MIN(BD219-20,10),0)*3+MAX(MIN(BD219-30,10),0)*2+MAX(BD219-40,0) -> 0 | BE162: 0 | BF162: 0 | BG162: 0 | BH162: 0 | BI162: 0 | BJ162: 0 | BK162: 0 | BL162: 0 | BM162: 0 | BN162: 0 | BO162: 0 | BP162: 0 | BQ162: 0 | BR162: 0 | BS162: 0 | BT162: 0 | BU162: 0 | BV162: 0 | BW162: 0 | BX162: 0 | BY162: 0 | BZ162: 0 | CA162: 0 | CB162: 0 | CC162: 0 | CD162: 0 | CE162: 0 | CF162: 0 | CG162: 0 | CH162: 0 | CI162: 0 | CJ162: =MIN(CJ219,10)*5+MAX(MIN(CJ219-10,10),0)*4+MAX(MIN(CJ219-20,10),0)*3+MAX(MIN(CJ219-30,10),0)*2+MAX(CJ219-40,0) -> 0 | CK162: 0 | CL162: 0 | CM162: 0 | CN162: 0 | CO162: 0 | CP162: 0 | CQ162: 0 | CR162: 0 | CS162: 0 | CT162: 0 | CU162: 0 | CV162: 0 | CW162: 0 | CX162: 0 | CY162: 0 | CZ162: 0 | DA162: 0 | DB162: 0 | DC162: 0 | DD162: 0 | DE162: 0 | DF162: 0
A163: Summoning | C163: 0 | H163: =MIN(H220,10)*5+MAX(MIN(H220-10,10),0)*4+MAX(MIN(H220-20,10),0)*3+MAX(MIN(H220-30,10),0)*2+MAX(H220-40,0) -> 0 | I163: 0 | J163: 0 | K163: 0 | L163: 0 | M163: 0 | N163: 0 | O163: 0 | P163: 0 | Q163: 0 | R163: 0 | S163: 0 | T163: 0 | U163: 0 | V163: 0 | W163: 0 | X163: =MIN(X220,10)*5+MAX(MIN(X220-10,10),0)*4+MAX(MIN(X220-20,10),0)*3+MAX(MIN(X220-30,10),0)*2+MAX(X220-40,0) -> 0 | Y163: 0 | Z163: 0 | AA163: 0 | AB163: 0 | AC163: 0 | AD163: 0 | AE163: 0 | AF163: 0 | AG163: 0 | AH163: 0 | AI163: 0 | AJ163: 0 | AK163: 0 | AL163: 0 | AM163: 0 | AN163: 0 | AO163: 0 | AP163: 0 | AQ163: 0 | AR163: 0 | AS163: 0 | AT163: 0 | AU163: 0 | AV163: 0 | AW163: 0 | AX163: 0 | AY163: 0 | AZ163: 0 | BA163: 0 | BB163: 0 | BC163: 0 | BD163: =MIN(BD220,10)*5+MAX(MIN(BD220-10,10),0)*4+MAX(MIN(BD220-20,10),0)*3+MAX(MIN(BD220-30,10),0)*2+MAX(BD220-40,0) -> 0 | BE163: 0 | BF163: 0 | BG163: 0 | BH163: 0 | BI163: 0 | BJ163: 0 | BK163: 0 | BL163: 0 | BM163: 0 | BN163: 0 | BO163: 0 | BP163: 0 | BQ163: 0 | BR163: 0 | BS163: 0 | BT163: 0 | BU163: 0 | BV163: 0 | BW163: 0 | BX163: 0 | BY163: 0 | BZ163: 0 | CA163: 0 | CB163: 0 | CC163: 0 | CD163: 0 | CE163: 0 | CF163: 0 | CG163: 0 | CH163: 0 | CI163: 0 | CJ163: =MIN(CJ220,10)*5+MAX(MIN(CJ220-10,10),0)*4+MAX(MIN(CJ220-20,10),0)*3+MAX(MIN(CJ220-30,10),0)*2+MAX(CJ220-40,0) -> 0 | CK163: 0 | CL163: 0 | CM163: 0 | CN163: 0 | CO163: 0 | CP163: 0 | CQ163: 0 | CR163: 0 | CS163: 0 | CT163: 0 | CU163: 0 | CV163: 0 | CW163: 0 | CX163: 0 | CY163: 0 | CZ163: 0 | DA163: 0 | DB163: 0 | DC163: 0 | DD163: 0 | DE163: 0 | DF163: 0
A164: Sorcerous Lore | C164: 0 | H164: =MIN(H221,10)*5+MAX(MIN(H221-10,10),0)*4+MAX(MIN(H221-20,10),0)*3+MAX(MIN(H221-30,10),0)*2+MAX(H221-40,0) -> 0 | I164: 0 | J164: 0 | K164: 0 | L164: 0 | M164: 0 | N164: 0 | O164: 0 | P164: 0 | Q164: 0 | R164: 0 | S164: 0 | T164: 0 | U164: 0 | V164: 0 | W164: 0 | X164: =MIN(X221,10)*5+MAX(MIN(X221-10,10),0)*4+MAX(MIN(X221-20,10),0)*3+MAX(MIN(X221-30,10),0)*2+MAX(X221-40,0) -> 0 | Y164: 0 | Z164: 0 | AA164: 0 | AB164: 0 | AC164: 0 | AD164: 0 | AE164: 0 | AF164: 0 | AG164: 0 | AH164: 0 | AI164: 0 | AJ164: 0 | AK164: 0 | AL164: 0 | AM164: 0 | AN164: 0 | AO164: 0 | AP164: 0 | AQ164: 0 | AR164: 0 | AS164: 0 | AT164: 0 | AU164: 0 | AV164: 0 | AW164: 0 | AX164: 0 | AY164: 0 | AZ164: 0 | BA164: 0 | BB164: 0 | BC164: 0 | BD164: =MIN(BD221,10)*5+MAX(MIN(BD221-10,10),0)*4+MAX(MIN(BD221-20,10),0)*3+MAX(MIN(BD221-30,10),0)*2+MAX(BD221-40,0) -> 0 | BE164: 0 | BF164: 0 | BG164: 0 | BH164: 0 | BI164: 0 | BJ164: 0 | BK164: 0 | BL164: 0 | BM164: 0 | BN164: 0 | BO164: 0 | BP164: 0 | BQ164: 0 | BR164: 0 | BS164: 0 | BT164: 0 | BU164: 0 | BV164: 0 | BW164: 0 | BX164: 0 | BY164: 0 | BZ164: 0 | CA164: 0 | CB164: 0 | CC164: 0 | CD164: 0 | CE164: 0 | CF164: 0 | CG164: 0 | CH164: 0 | CI164: 0 | CJ164: =MIN(CJ221,10)*5+MAX(MIN(CJ221-10,10),0)*4+MAX(MIN(CJ221-20,10),0)*3+MAX(MIN(CJ221-30,10),0)*2+MAX(CJ221-40,0) -> 0 | CK164: 0 | CL164: 0 | CM164: 0 | CN164: 0 | CO164: 0 | CP164: 0 | CQ164: 0 | CR164: 0 | CS164: 0 | CT164: 0 | CU164: 0 | CV164: 0 | CW164: 0 | CX164: 0 | CY164: 0 | CZ164: 0 | DA164: 0 | DB164: 0 | DC164: 0 | DD164: 0 | DE164: 0 | DF164: 0
A165: Demonology | C165: 0 | H165: =MIN(H222,10)*5+MAX(MIN(H222-10,10),0)*4+MAX(MIN(H222-20,10),0)*3+MAX(MIN(H222-30,10),0)*2+MAX(H222-40,0) -> 0 | I165: 0 | J165: 0 | K165: 0 | L165: 0 | M165: 0 | N165: 0 | O165: 0 | P165: 0 | Q165: 0 | R165: 0 | S165: 0 | T165: 0 | U165: 0 | V165: 0 | W165: 0 | X165: =MIN(X222,10)*5+MAX(MIN(X222-10,10),0)*4+MAX(MIN(X222-20,10),0)*3+MAX(MIN(X222-30,10),0)*2+MAX(X222-40,0) -> 0 | Y165: 0 | Z165: 0 | AA165: 0 | AB165: 0 | AC165: 0 | AD165: 0 | AE165: 0 | AF165: 0 | AG165: 0 | AH165: 0 | AI165: 0 | AJ165: 0 | AK165: 0 | AL165: 0 | AM165: 0 | AN165: 0 | AO165: 0 | AP165: 0 | AQ165: 0 | AR165: 0 | AS165: 0 | AT165: 0 | AU165: 0 | AV165: 0 | AW165: 0 | AX165: 0 | AY165: 0 | AZ165: 0 | BA165: 0 | BB165: 0 | BC165: 0 | BD165: =MIN(BD222,10)*5+MAX(MIN(BD222-10,10),0)*4+MAX(MIN(BD222-20,10),0)*3+MAX(MIN(BD222-30,10),0)*2+MAX(BD222-40,0) -> 0 | BE165: 0 | BF165: 0 | BG165: 0 | BH165: 0 | BI165: 0 | BJ165: 0 | BK165: 0 | BL165: 0 | BM165: 0 | BN165: 0 | BO165: 0 | BP165: 0 | BQ165: 0 | BR165: 0 | BS165: 0 | BT165: 0 | BU165: 0 | BV165: 0 | BW165: 0 | BX165: 0 | BY165: 0 | BZ165: 0 | CA165: 0 | CB165: 0 | CC165: 0 | CD165: 0 | CE165: 0 | CF165: 0 | CG165: 0 | CH165: 0 | CI165: 0 | CJ165: =MIN(CJ222,10)*5+MAX(MIN(CJ222-10,10),0)*4+MAX(MIN(CJ222-20,10),0)*3+MAX(MIN(CJ222-30,10),0)*2+MAX(CJ222-40,0) -> 0 | CK165: 0 | CL165: 0 | CM165: 0 | CN165: 0 | CO165: 0 | CP165: 0 | CQ165: 0 | CR165: 0 | CS165: 0 | CT165: 0 | CU165: 0 | CV165: 0 | CW165: 0 | CX165: 0 | CY165: 0 | CZ165: 0 | DA165: 0 | DB165: 0 | DC165: 0 | DD165: 0 | DE165: 0 | DF165: 0
A166: Necromancy | C166: 0 | H166: =MIN(H223,10)*5+MAX(MIN(H223-10,10),0)*4+MAX(MIN(H223-20,10),0)*3+MAX(MIN(H223-30,10),0)*2+MAX(H223-40,0) -> 0 | I166: 0 | J166: 0 | K166: 0 | L166: 0 | M166: 0 | N166: 0 | O166: 0 | P166: 0 | Q166: 0 | R166: 0 | S166: 0 | T166: 0 | U166: 0 | V166: 0 | W166: 0 | X166: =MIN(X223,10)*5+MAX(MIN(X223-10,10),0)*4+MAX(MIN(X223-20,10),0)*3+MAX(MIN(X223-30,10),0)*2+MAX(X223-40,0) -> 0 | Y166: 0 | Z166: 0 | AA166: 0 | AB166: 0 | AC166: 0 | AD166: 0 | AE166: 0 | AF166: 0 | AG166: 0 | AH166: 0 | AI166: 0 | AJ166: 0 | AK166: 0 | AL166: 0 | AM166: 0 | AN166: 0 | AO166: 0 | AP166: 0 | AQ166: 0 | AR166: 0 | AS166: 0 | AT166: 0 | AU166: 0 | AV166: 0 | AW166: 0 | AX166: 0 | AY166: 0 | AZ166: 0 | BA166: 0 | BB166: 0 | BC166: 0 | BD166: =MIN(BD223,10)*5+MAX(MIN(BD223-10,10),0)*4+MAX(MIN(BD223-20,10),0)*3+MAX(MIN(BD223-30,10),0)*2+MAX(BD223-40,0) -> 0 | BE166: 0 | BF166: 0 | BG166: 0 | BH166: 0 | BI166: 0 | BJ166: 0 | BK166: 0 | BL166: 0 | BM166: 0 | BN166: 0 | BO166: 0 | BP166: 0 | BQ166: 0 | BR166: 0 | BS166: 0 | BT166: 0 | BU166: 0 | BV166: 0 | BW166: 0 | BX166: 0 | BY166: 0 | BZ166: 0 | CA166: 0 | CB166: 0 | CC166: 0 | CD166: 0 | CE166: 0 | CF166: 0 | CG166: 0 | CH166: 0 | CI166: 0 | CJ166: =MIN(CJ223,10)*5+MAX(MIN(CJ223-10,10),0)*4+MAX(MIN(CJ223-20,10),0)*3+MAX(MIN(CJ223-30,10),0)*2+MAX(CJ223-40,0) -> 0 | CK166: 0 | CL166: 0 | CM166: 0 | CN166: 0 | CO166: 0 | CP166: 0 | CQ166: 0 | CR166: 0 | CS166: 0 | CT166: 0 | CU166: 0 | CV166: 0 | CW166: 0 | CX166: 0 | CY166: 0 | CZ166: 0 | DA166: 0 | DB166: 0 | DC166: 0 | DD166: 0 | DE166: 0 | DF166: 0
A167: Mental Lore | C167: 0 | H167: =MIN(H224,10)*5+MAX(MIN(H224-10,10),0)*4+MAX(MIN(H224-20,10),0)*3+MAX(MIN(H224-30,10),0)*2+MAX(H224-40,0) -> 0 | I167: 0 | J167: 0 | K167: 0 | L167: 0 | M167: 0 | N167: 0 | O167: 0 | P167: 0 | Q167: 0 | R167: 0 | S167: 0 | T167: 0 | U167: 0 | V167: 0 | W167: 0 | X167: =MIN(X224,10)*5+MAX(MIN(X224-10,10),0)*4+MAX(MIN(X224-20,10),0)*3+MAX(MIN(X224-30,10),0)*2+MAX(X224-40,0) -> 0 | Y167: 0 | Z167: 0 | AA167: 0 | AB167: 0 | AC167: 0 | AD167: 0 | AE167: 0 | AF167: 0 | AG167: 0 | AH167: 0 | AI167: 0 | AJ167: 0 | AK167: 0 | AL167: 0 | AM167: 0 | AN167: 0 | AO167: 0 | AP167: 0 | AQ167: 0 | AR167: 0 | AS167: 0 | AT167: 0 | AU167: 0 | AV167: 0 | AW167: 0 | AX167: 0 | AY167: 0 | AZ167: 0 | BA167: 0 | BB167: 0 | BC167: 0 | BD167: =MIN(BD224,10)*5+MAX(MIN(BD224-10,10),0)*4+MAX(MIN(BD224-20,10),0)*3+MAX(MIN(BD224-30,10),0)*2+MAX(BD224-40,0) -> 0 | BE167: 0 | BF167: 0 | BG167: 0 | BH167: 0 | BI167: 0 | BJ167: 0 | BK167: 0 | BL167: 0 | BM167: 0 | BN167: 0 | BO167: 0 | BP167: 0 | BQ167: 0 | BR167: 0 | BS167: 0 | BT167: 0 | BU167: 0 | BV167: 0 | BW167: 0 | BX167: 0 | BY167: 0 | BZ167: 0 | CA167: 0 | CB167: 0 | CC167: 0 | CD167: 0 | CE167: 0 | CF167: 0 | CG167: 0 | CH167: 0 | CI167: 0 | CJ167: =MIN(CJ224,10)*5+MAX(MIN(CJ224-10,10),0)*4+MAX(MIN(CJ224-20,10),0)*3+MAX(MIN(CJ224-30,10),0)*2+MAX(CJ224-40,0) -> 0 | CK167: 0 | CL167: 0 | CM167: 0 | CN167: 0 | CO167: 0 | CP167: 0 | CQ167: 0 | CR167: 0 | CS167: 0 | CT167: 0 | CU167: 0 | CV167: 0 | CW167: 0 | CX167: 0 | CY167: 0 | CZ167: 0 | DA167: 0 | DB167: 0 | DC167: 0 | DD167: 0 | DE167: 0 | DF167: 0
A168: Divination | C168: 0 | H168: =MIN(H225,10)*5+MAX(MIN(H225-10,10),0)*4+MAX(MIN(H225-20,10),0)*3+MAX(MIN(H225-30,10),0)*2+MAX(H225-40,0) -> 0 | I168: 0 | J168: 0 | K168: 0 | L168: 0 | M168: 0 | N168: 0 | O168: 0 | P168: 0 | Q168: 0 | R168: 0 | S168: 0 | T168: 0 | U168: 0 | V168: 0 | W168: 0 | X168: =MIN(X225,10)*5+MAX(MIN(X225-10,10),0)*4+MAX(MIN(X225-20,10),0)*3+MAX(MIN(X225-30,10),0)*2+MAX(X225-40,0) -> 0 | Y168: 0 | Z168: 0 | AA168: 0 | AB168: 0 | AC168: 0 | AD168: 0 | AE168: 0 | AF168: 0 | AG168: 0 | AH168: 0 | AI168: 0 | AJ168: 0 | AK168: 0 | AL168: 0 | AM168: 0 | AN168: 0 | AO168: 0 | AP168: 0 | AQ168: 0 | AR168: 0 | AS168: 0 | AT168: 0 | AU168: 0 | AV168: 0 | AW168: 0 | AX168: 0 | AY168: 0 | AZ168: 0 | BA168: 0 | BB168: 0 | BC168: 0 | BD168: =MIN(BD225,10)*5+MAX(MIN(BD225-10,10),0)*4+MAX(MIN(BD225-20,10),0)*3+MAX(MIN(BD225-30,10),0)*2+MAX(BD225-40,0) -> 0 | BE168: 0 | BF168: 0 | BG168: 0 | BH168: 0 | BI168: 0 | BJ168: 0 | BK168: 0 | BL168: 0 | BM168: 0 | BN168: 0 | BO168: 0 | BP168: 0 | BQ168: 0 | BR168: 0 | BS168: 0 | BT168: 0 | BU168: 0 | BV168: 0 | BW168: 0 | BX168: 0 | BY168: 0 | BZ168: 0 | CA168: 0 | CB168: 0 | CC168: 0 | CD168: 0 | CE168: 0 | CF168: 0 | CG168: 0 | CH168: 0 | CI168: 0 | CJ168: =MIN(CJ225,10)*5+MAX(MIN(CJ225-10,10),0)*4+MAX(MIN(CJ225-20,10),0)*3+MAX(MIN(CJ225-30,10),0)*2+MAX(CJ225-40,0) -> 0 | CK168: 0 | CL168: 0 | CM168: 0 | CN168: 0 | CO168: 0 | CP168: 0 | CQ168: 0 | CR168: 0 | CS168: 0 | CT168: 0 | CU168: 0 | CV168: 0 | CW168: 0 | CX168: 0 | CY168: 0 | CZ168: 0 | DA168: 0 | DB168: 0 | DC168: 0 | DD168: 0 | DE168: 0 | DF168: 0
A169: Manipulation | C169: 0 | H169: =MIN(H226,10)*5+MAX(MIN(H226-10,10),0)*4+MAX(MIN(H226-20,10),0)*3+MAX(MIN(H226-30,10),0)*2+MAX(H226-40,0) -> 0 | I169: 0 | J169: 0 | K169: 0 | L169: 0 | M169: 0 | N169: 0 | O169: 0 | P169: 0 | Q169: 0 | R169: 0 | S169: 0 | T169: 0 | U169: 0 | V169: 0 | W169: 0 | X169: =MIN(X226,10)*5+MAX(MIN(X226-10,10),0)*4+MAX(MIN(X226-20,10),0)*3+MAX(MIN(X226-30,10),0)*2+MAX(X226-40,0) -> 0 | Y169: 0 | Z169: 0 | AA169: 0 | AB169: 0 | AC169: 0 | AD169: 0 | AE169: 0 | AF169: 0 | AG169: 0 | AH169: 0 | AI169: 0 | AJ169: 0 | AK169: 0 | AL169: 0 | AM169: 0 | AN169: 0 | AO169: 0 | AP169: 0 | AQ169: 0 | AR169: 0 | AS169: 0 | AT169: 0 | AU169: 0 | AV169: 0 | AW169: 0 | AX169: 0 | AY169: 0 | AZ169: 0 | BA169: 0 | BB169: 0 | BC169: 0 | BD169: =MIN(BD226,10)*5+MAX(MIN(BD226-10,10),0)*4+MAX(MIN(BD226-20,10),0)*3+MAX(MIN(BD226-30,10),0)*2+MAX(BD226-40,0) -> 0 | BE169: 0 | BF169: 0 | BG169: 0 | BH169: 0 | BI169: 0 | BJ169: 0 | BK169: 0 | BL169: 0 | BM169: 0 | BN169: 0 | BO169: 0 | BP169: 0 | BQ169: 0 | BR169: 0 | BS169: 0 | BT169: 0 | BU169: 0 | BV169: 0 | BW169: 0 | BX169: 0 | BY169: 0 | BZ169: 0 | CA169: 0 | CB169: 0 | CC169: 0 | CD169: 0 | CE169: 0 | CF169: 0 | CG169: 0 | CH169: 0 | CI169: 0 | CJ169: =MIN(CJ226,10)*5+MAX(MIN(CJ226-10,10),0)*4+MAX(MIN(CJ226-20,10),0)*3+MAX(MIN(CJ226-30,10),0)*2+MAX(CJ226-40,0) -> 0 | CK169: 0 | CL169: 0 | CM169: 0 | CN169: 0 | CO169: 0 | CP169: 0 | CQ169: 0 | CR169: 0 | CS169: 0 | CT169: 0 | CU169: 0 | CV169: 0 | CW169: 0 | CX169: 0 | CY169: 0 | CZ169: 0 | DA169: 0 | DB169: 0 | DC169: 0 | DD169: 0 | DE169: 0 | DF169: 0
A170: Telepathy | C170: 0 | H170: =MIN(H227,10)*5+MAX(MIN(H227-10,10),0)*4+MAX(MIN(H227-20,10),0)*3+MAX(MIN(H227-30,10),0)*2+MAX(H227-40,0) -> 0 | I170: 0 | J170: 0 | K170: 0 | L170: 0 | M170: 0 | N170: 0 | O170: 0 | P170: 0 | Q170: 0 | R170: 0 | S170: 0 | T170: 0 | U170: 0 | V170: 0 | W170: 0 | X170: =MIN(X227,10)*5+MAX(MIN(X227-10,10),0)*4+MAX(MIN(X227-20,10),0)*3+MAX(MIN(X227-30,10),0)*2+MAX(X227-40,0) -> 0 | Y170: 0 | Z170: 0 | AA170: 0 | AB170: 0 | AC170: 0 | AD170: 0 | AE170: 0 | AF170: 0 | AG170: 0 | AH170: 0 | AI170: 0 | AJ170: 0 | AK170: 0 | AL170: 0 | AM170: 0 | AN170: 0 | AO170: 0 | AP170: 0 | AQ170: 0 | AR170: 0 | AS170: 0 | AT170: 0 | AU170: 0 | AV170: 0 | AW170: 0 | AX170: 0 | AY170: 0 | AZ170: 0 | BA170: 0 | BB170: 0 | BC170: 0 | BD170: =MIN(BD227,10)*5+MAX(MIN(BD227-10,10),0)*4+MAX(MIN(BD227-20,10),0)*3+MAX(MIN(BD227-30,10),0)*2+MAX(BD227-40,0) -> 0 | BE170: 0 | BF170: 0 | BG170: 0 | BH170: 0 | BI170: 0 | BJ170: 0 | BK170: 0 | BL170: 0 | BM170: 0 | BN170: 0 | BO170: 0 | BP170: 0 | BQ170: 0 | BR170: 0 | BS170: 0 | BT170: 0 | BU170: 0 | BV170: 0 | BW170: 0 | BX170: 0 | BY170: 0 | BZ170: 0 | CA170: 0 | CB170: 0 | CC170: 0 | CD170: 0 | CE170: 0 | CF170: 0 | CG170: 0 | CH170: 0 | CI170: 0 | CJ170: =MIN(CJ227,10)*5+MAX(MIN(CJ227-10,10),0)*4+MAX(MIN(CJ227-20,10),0)*3+MAX(MIN(CJ227-30,10),0)*2+MAX(CJ227-40,0) -> 0 | CK170: 0 | CL170: 0 | CM170: 0 | CN170: 0 | CO170: 0 | CP170: 0 | CQ170: 0 | CR170: 0 | CS170: 0 | CT170: 0 | CU170: 0 | CV170: 0 | CW170: 0 | CX170: 0 | CY170: 0 | CZ170: 0 | DA170: 0 | DB170: 0 | DC170: 0 | DD170: 0 | DE170: 0 | DF170: 0
A171: Transference | C171: 0 | H171: =MIN(H228,10)*5+MAX(MIN(H228-10,10),0)*4+MAX(MIN(H228-20,10),0)*3+MAX(MIN(H228-30,10),0)*2+MAX(H228-40,0) -> 0 | I171: 0 | J171: 0 | K171: 0 | L171: 0 | M171: 0 | N171: 0 | O171: 0 | P171: 0 | Q171: 0 | R171: 0 | S171: 0 | T171: 0 | U171: 0 | V171: 0 | W171: 0 | X171: =MIN(X228,10)*5+MAX(MIN(X228-10,10),0)*4+MAX(MIN(X228-20,10),0)*3+MAX(MIN(X228-30,10),0)*2+MAX(X228-40,0) -> 0 | Y171: 0 | Z171: 0 | AA171: 0 | AB171: 0 | AC171: 0 | AD171: 0 | AE171: 0 | AF171: 0 | AG171: 0 | AH171: 0 | AI171: 0 | AJ171: 0 | AK171: 0 | AL171: 0 | AM171: 0 | AN171: =MIN(AN228,10)*5+MAX(MIN(AN228-10,10),0)*4+MAX(MIN(AN228-20,10),0)*3+MAX(MIN(AN228-30,10),0)*2+MAX(AN228-40,0) -> 0 | AO171: 0 | AP171: 0 | AQ171: 0 | AR171: 0 | AS171: 0 | AT171: 0 | AU171: 0 | AV171: 0 | AW171: 0 | AX171: 0 | AY171: 0 | AZ171: 0 | BA171: 0 | BB171: 0 | BC171: 0 | BD171: =MIN(BD228,10)*5+MAX(MIN(BD228-10,10),0)*4+MAX(MIN(BD228-20,10),0)*3+MAX(MIN(BD228-30,10),0)*2+MAX(BD228-40,0) -> 0 | BE171: 0 | BF171: 0 | BG171: 0 | BH171: 0 | BI171: 0 | BJ171: 0 | BK171: 0 | BL171: 0 | BM171: 0 | BN171: 0 | BO171: 0 | BP171: 0 | BQ171: 0 | BR171: 0 | BS171: 0 | BT171: =MIN(BT228,10)*5+MAX(MIN(BT228-10,10),0)*4+MAX(MIN(BT228-20,10),0)*3+MAX(MIN(BT228-30,10),0)*2+MAX(BT228-40,0) -> 0 | BU171: 0 | BV171: 0 | BW171: 0 | BX171: 0 | BY171: 0 | BZ171: 0 | CA171: 0 | CB171: 0 | CC171: 0 | CD171: 0 | CE171: 0 | CF171: 0 | CG171: 0 | CH171: 0 | CI171: 0 | CJ171: =MIN(CJ228,10)*5+MAX(MIN(CJ228-10,10),0)*4+MAX(MIN(CJ228-20,10),0)*3+MAX(MIN(CJ228-30,10),0)*2+MAX(CJ228-40,0) -> 0 | CK171: 0 | CL171: 0 | CM171: 0 | CN171: 0 | CO171: 0 | CP171: 0 | CQ171: 0 | CR171: 0 | CS171: 0 | CT171: 0 | CU171: 0 | CV171: 0 | CW171: 0 | CX171: 0 | CY171: 0 | CZ171: =MIN(CZ228,10)*5+MAX(MIN(CZ228-10,10),0)*4+MAX(MIN(CZ228-20,10),0)*3+MAX(MIN(CZ228-30,10),0)*2+MAX(CZ228-40,0) -> 0 | DA171: 0 | DB171: 0 | DC171: 0 | DD171: 0 | DE171: 0 | DF171: 0
A172: Transformation | C172: =C229 -> 0 | H172: =MIN(H229,10)*5+MAX(MIN(H229-10,10),0)*4+MAX(MIN(H229-20,10),0)*3+MAX(MIN(H229-30,10),0)*2+MAX(H229-40,0) -> 0 | I172: 0 | J172: 0 | K172: 0 | L172: 0 | M172: 0 | N172: 0 | O172: 0 | P172: 0 | Q172: 0 | R172: 0 | S172: 0 | T172: 0 | U172: 0 | V172: 0 | W172: 0 | X172: 0 | Y172: 0 | Z172: 0 | AA172: 0 | AB172: 0 | AC172: 0 | AD172: 0 | AE172: 0 | AF172: 0 | AG172: 0 | AH172: 0 | AI172: 0 | AJ172: 0 | AK172: 0 | AL172: 0 | AM172: 0 | AN172: 0 | AO172: 0 | AP172: 0 | AQ172: 0 | AR172: 0 | AS172: 0 | AT172: 0 | AU172: 0 | AV172: 0 | AW172: 0 | AX172: 0 | AY172: 0 | AZ172: 0 | BA172: 0 | BB172: 0 | BC172: 0 | BD172: 0 | BE172: 0 | BF172: 0 | BG172: 0 | BH172: 0 | BI172: 0 | BJ172: 0 | BK172: 0 | BL172: 0 | BM172: 0 | BN172: 0 | BO172: 0 | BP172: 0 | BQ172: 0 | BR172: 0 | BS172: 0 | BT172: =MIN(BT229,10)*5+MAX(MIN(BT229-10,10),0)*4+MAX(MIN(BT229-20,10),0)*3+MAX(MIN(BT229-30,10),0)*2+MAX(BT229-40,0) -> 0 | BU172: 0 | BV172: 0 | BW172: 0 | BX172: 0 | BY172: 0 | BZ172: 0 | CA172: 0 | CB172: 0 | CC172: 0 | CD172: 0 | CE172: 0 | CF172: 0 | CG172: 0 | CH172: 0 | CI172: 0 | CJ172: 0 | CK172: 0 | CL172: 0 | CM172: 0 | CN172: 0 | CO172: 0 | CP172: 0 | CQ172: 0 | CR172: 0 | CS172: 0 | CT172: 0 | CU172: 0 | CV172: 0 | CW172: 0 | CX172: 0 | CY172: 0 | CZ172: 0 | DA172: 0 | DB172: 0 | DC172: 0 | DD172: 0 | DE172: 0 | DF172: 0
H173: Inter-Level
I174: Total Ranks:
A175: =CONCATENATE("At level ",FIXED($B$13,0),": ") -> At level 10: | C175: Ranks | D175: X | H175: =TARGET_LEVEL -> 10 | I175: =I118 -> 0 | J175: =J118 -> 1 | K175: 2 | L175: 3 | M175: 4 | N175: 5 | O175: 6 | P175: 7 | Q175: 8 | R175: 9 | S175: 10 | T175: 11 | U175: 12 | V175: 13 | W175: 14 | X175: 15 | Y175: 16 | Z175: 17 | AA175: 18 | AB175: 19 | AC175: 20 | AD175: 21 | AE175: 22 | AF175: 23 | AG175: 24 | AH175: 25 | AI175: 26 | AJ175: 27 | AK175: 28 | AL175: 29 | AM175: 30 | AN175: 31 | AO175: 32 | AP175: 33 | AQ175: 34 | AR175: 35 | AS175: 36 | AT175: 37 | AU175: 38 | AV175: 39 | AW175: 40 | AX175: 41 | AY175: 42 | AZ175: 43 | BA175: 44 | BB175: 45 | BC175: 46 | BD175: 47 | BE175: 48 | BF175: 49 | BG175: 50 | BH175: 51 | BI175: 52 | BJ175: 53 | BK175: 54 | BL175: 55 | BM175: 56 | BN175: 57 | BO175: 58 | BP175: 59 | BQ175: 60 | BR175: 61 | BS175: 62 | BT175: 63 | BU175: 64 | BV175: =BV118 -> 65 | BW175: 66 | BX175: 67 | BY175: 68 | BZ175: 69 | CA175: 70 | CB175: 71 | CC175: 72 | CD175: 73 | CE175: 74 | CF175: 75 | CG175: 76 | CH175: 77 | CI175: 78 | CJ175: 79 | CK175: 80 | CL175: 81 | CM175: 82 | CN175: 83 | CO175: 84 | CP175: 85 | CQ175: 86 | CR175: 87 | CS175: 88 | CT175: 89 | CU175: 90 | CV175: 91 | CW175: 92 | CX175: 93 | CY175: 94 | CZ175: 95 | DA175: 96 | DB175: 97 | DC175: 98 | DD175: 99 | DE175: 100 | DF175: Post
A176: =A119 -> Armor Use | C176: =H176 -> 0 | D176: =IF(TOTAL_EXP>7572500,DF176/100,INDEX(I176:DE176,1,TARGET_LEVEL+1)/(TARGET_LEVEL+1)) -> 0 | H176: =Buffer!D136 -> 0 | I176: =Buffer!E136 -> 0 | J176: =Buffer!F136 -> 0 | K176: =Buffer!G136 -> 0 | L176: =Buffer!H136 -> 0 | M176: =Buffer!I136 -> 0 | N176: =Buffer!J136 -> 0 | O176: =Buffer!K136 -> 0 | P176: =Buffer!L136 -> 0 | Q176: =Buffer!M136 -> 0 | R176: =Buffer!N136 -> 0 | S176: =Buffer!O136 -> 0 | T176: =Buffer!P136 -> 0 | U176: =Buffer!Q136 -> 0 | V176: =Buffer!R136 -> 0 | W176: =Buffer!S136 -> 0 | X176: =Buffer!T136 -> 0 | Y176: =Buffer!U136 -> 0 | Z176: =Buffer!V136 -> 0 | AA176: =Buffer!W136 -> 0 | AB176: =Buffer!X136 -> 0 | AC176: =Buffer!Y136 -> 0 | AD176: =Buffer!Z136 -> 0 | AE176: =Buffer!AA136 -> 0 | AF176: =Buffer!AB136 -> 0 | AG176: =Buffer!AC136 -> 0 | AH176: =Buffer!AD136 -> 0 | AI176: =Buffer!AE136 -> 0 | AJ176: =Buffer!AF136 -> 0 | AK176: =Buffer!AG136 -> 0 | AL176: =Buffer!AH136 -> 0 | AM176: =Buffer!AI136 -> 0 | AN176: =Buffer!AJ136 -> 0 | AO176: =Buffer!AK136 -> 0 | AP176: =Buffer!AL136 -> 0 | AQ176: =Buffer!AM136 -> 0 | AR176: =Buffer!AN136 -> 0 | AS176: =Buffer!AO136 -> 0 | AT176: =Buffer!AP136 -> 0 | AU176: =Buffer!AQ136 -> 0 | AV176: =Buffer!AR136 -> 0 | AW176: =Buffer!AS136 -> 0 | AX176: =Buffer!AT136 -> 0 | AY176: =Buffer!AU136 -> 0 | AZ176: =Buffer!AV136 -> 0 | BA176: =Buffer!AW136 -> 0 | BB176: =Buffer!AX136 -> 0 | BC176: =Buffer!AY136 -> 0 | BD176: =Buffer!AZ136 -> 0 | BE176: =Buffer!BA136 -> 0 | BF176: =Buffer!BB136 -> 0 | BG176: =Buffer!BC136 -> 0 | BH176: =Buffer!BD136 -> 0 | BI176: =Buffer!BE136 -> 0 | BJ176: =Buffer!BF136 -> 0 | BK176: =Buffer!BG136 -> 0 | BL176: =Buffer!BH136 -> 0 | BM176: =Buffer!BI136 -> 0 | BN176: =Buffer!BJ136 -> 0 | BO176: =Buffer!BK136 -> 0 | BP176: =Buffer!BL136 -> 0 | BQ176: =Buffer!BM136 -> 0 | BR176: =Buffer!BN136 -> 0 | BS176: =Buffer!BO136 -> 0 | BT176: =Buffer!BP136 -> 0 | BU176: =Buffer!BQ136 -> 0 | BV176: =Buffer!BR136 -> 0 | BW176: =Buffer!BS136 -> 0 | BX176: =Buffer!BT136 -> 0 | BY176: =Buffer!BU136 -> 0 | BZ176: =Buffer!BV136 -> 0 | CA176: =Buffer!BW136 -> 0 | CB176: =Buffer!BX136 -> 0 | CC176: =Buffer!BY136 -> 0 | CD176: =Buffer!BZ136 -> 0 | CE176: =Buffer!CA136 -> 0 | CF176: =Buffer!CB136 -> 0 | CG176: =Buffer!CC136 -> 0 | CH176: =Buffer!CD136 -> 0 | CI176: =Buffer!CE136 -> 0 | CJ176: =Buffer!CF136 -> 0 | CK176: =Buffer!CG136 -> 0 | CL176: =Buffer!CH136 -> 0 | CM176: =Buffer!CI136 -> 0 | CN176: =Buffer!CJ136 -> 0 | CO176: =Buffer!CK136 -> 0 | CP176: =Buffer!CL136 -> 0 | CQ176: =Buffer!CM136 -> 0 | CR176: =Buffer!CN136 -> 0 | CS176: =Buffer!CO136 -> 0 | CT176: =Buffer!CP136 -> 0 | CU176: =Buffer!CQ136 -> 0 | CV176: =Buffer!CR136 -> 0 | CW176: =Buffer!CS136 -> 0 | CX176: =Buffer!CT136 -> 0 | CY176: =Buffer!CU136 -> 0 | CZ176: =Buffer!CV136 -> 0 | DA176: =Buffer!CW136 -> 0 | DB176: =Buffer!CX136 -> 0 | DC176: =Buffer!CY136 -> 0 | DD176: =Buffer!CZ136 -> 0 | DE176: =Buffer!DA136 -> 0 | DF176: =Buffer!DB136 -> 0
A177: Shield Use | C177: =H177 -> 0 | D177: 0 | H177: =Buffer!D137 -> 0 | I177: =Buffer!E137 -> 0 | J177: =Buffer!F137 -> 0 | K177: =Buffer!G137 -> 0 | L177: =Buffer!H137 -> 0 | M177: =Buffer!I137 -> 0 | N177: =Buffer!J137 -> 0 | O177: =Buffer!K137 -> 0 | P177: =Buffer!L137 -> 0 | Q177: =Buffer!M137 -> 0 | R177: =Buffer!N137 -> 0 | S177: =Buffer!O137 -> 0 | T177: =Buffer!P137 -> 0 | U177: =Buffer!Q137 -> 0 | V177: =Buffer!R137 -> 0 | W177: =Buffer!S137 -> 0 | X177: =Buffer!T137 -> 0 | Y177: =Buffer!U137 -> 0 | Z177: =Buffer!V137 -> 0 | AA177: =Buffer!W137 -> 0 | AB177: =Buffer!X137 -> 0 | AC177: =Buffer!Y137 -> 0 | AD177: =Buffer!Z137 -> 0 | AE177: =Buffer!AA137 -> 0 | AF177: =Buffer!AB137 -> 0 | AG177: =Buffer!AC137 -> 0 | AH177: =Buffer!AD137 -> 0 | AI177: =Buffer!AE137 -> 0 | AJ177: =Buffer!AF137 -> 0 | AK177: =Buffer!AG137 -> 0 | AL177: =Buffer!AH137 -> 0 | AM177: =Buffer!AI137 -> 0 | AN177: =Buffer!AJ137 -> 0 | AO177: =Buffer!AK137 -> 0 | AP177: =Buffer!AL137 -> 0 | AQ177: =Buffer!AM137 -> 0 | AR177: =Buffer!AN137 -> 0 | AS177: =Buffer!AO137 -> 0 | AT177: =Buffer!AP137 -> 0 | AU177: =Buffer!AQ137 -> 0 | AV177: =Buffer!AR137 -> 0 | AW177: =Buffer!AS137 -> 0 | AX177: =Buffer!AT137 -> 0 | AY177: =Buffer!AU137 -> 0 | AZ177: =Buffer!AV137 -> 0 | BA177: =Buffer!AW137 -> 0 | BB177: =Buffer!AX137 -> 0 | BC177: =Buffer!AY137 -> 0 | BD177: =Buffer!AZ137 -> 0 | BE177: =Buffer!BA137 -> 0 | BF177: =Buffer!BB137 -> 0 | BG177: =Buffer!BC137 -> 0 | BH177: =Buffer!BD137 -> 0 | BI177: =Buffer!BE137 -> 0 | BJ177: =Buffer!BF137 -> 0 | BK177: =Buffer!BG137 -> 0 | BL177: =Buffer!BH137 -> 0 | BM177: =Buffer!BI137 -> 0 | BN177: =Buffer!BJ137 -> 0 | BO177: =Buffer!BK137 -> 0 | BP177: =Buffer!BL137 -> 0 | BQ177: =Buffer!BM137 -> 0 | BR177: =Buffer!BN137 -> 0 | BS177: =Buffer!BO137 -> 0 | BT177: =Buffer!BP137 -> 0 | BU177: =Buffer!BQ137 -> 0 | BV177: =Buffer!BR137 -> 0 | BW177: =Buffer!BS137 -> 0 | BX177: =Buffer!BT137 -> 0 | BY177: =Buffer!BU137 -> 0 | BZ177: =Buffer!BV137 -> 0 | CA177: =Buffer!BW137 -> 0 | CB177: =Buffer!BX137 -> 0 | CC177: =Buffer!BY137 -> 0 | CD177: =Buffer!BZ137 -> 0 | CE177: =Buffer!CA137 -> 0 | CF177: =Buffer!CB137 -> 0 | CG177: =Buffer!CC137 -> 0 | CH177: =Buffer!CD137 -> 0 | CI177: =Buffer!CE137 -> 0 | CJ177: =Buffer!CF137 -> 0 | CK177: =Buffer!CG137 -> 0 | CL177: =Buffer!CH137 -> 0 | CM177: =Buffer!CI137 -> 0 | CN177: =Buffer!CJ137 -> 0 | CO177: =Buffer!CK137 -> 0 | CP177: =Buffer!CL137 -> 0 | CQ177: =Buffer!CM137 -> 0 | CR177: =Buffer!CN137 -> 0 | CS177: =Buffer!CO137 -> 0 | CT177: =Buffer!CP137 -> 0 | CU177: =Buffer!CQ137 -> 0 | CV177: =Buffer!CR137 -> 0 | CW177: =Buffer!CS137 -> 0 | CX177: =Buffer!CT137 -> 0 | CY177: =Buffer!CU137 -> 0 | CZ177: =Buffer!CV137 -> 0 | DA177: =Buffer!CW137 -> 0 | DB177: =Buffer!CX137 -> 0 | DC177: =Buffer!CY137 -> 0 | DD177: =Buffer!CZ137 -> 0 | DE177: =Buffer!DA137 -> 0 | DF177: =Buffer!DB137 -> 0
A178: Edged Weapons | C178: 0 | D178: 0 | H178: =Buffer!D138 -> 0 | I178: =Buffer!E138 -> 0 | J178: =Buffer!F138 -> 0 | K178: =Buffer!G138 -> 0 | L178: =Buffer!H138 -> 0 | M178: =Buffer!I138 -> 0 | N178: =Buffer!J138 -> 0 | O178: =Buffer!K138 -> 0 | P178: =Buffer!L138 -> 0 | Q178: =Buffer!M138 -> 0 | R178: =Buffer!N138 -> 0 | S178: =Buffer!O138 -> 0 | T178: =Buffer!P138 -> 0 | U178: =Buffer!Q138 -> 0 | V178: =Buffer!R138 -> 0 | W178: =Buffer!S138 -> 0 | X178: =Buffer!T138 -> 0 | Y178: =Buffer!U138 -> 0 | Z178: =Buffer!V138 -> 0 | AA178: =Buffer!W138 -> 0 | AB178: =Buffer!X138 -> 0 | AC178: =Buffer!Y138 -> 0 | AD178: =Buffer!Z138 -> 0 | AE178: =Buffer!AA138 -> 0 | AF178: =Buffer!AB138 -> 0 | AG178: =Buffer!AC138 -> 0 | AH178: =Buffer!AD138 -> 0 | AI178: =Buffer!AE138 -> 0 | AJ178: =Buffer!AF138 -> 0 | AK178: =Buffer!AG138 -> 0 | AL178: =Buffer!AH138 -> 0 | AM178: =Buffer!AI138 -> 0 | AN178: =Buffer!AJ138 -> 0 | AO178: =Buffer!AK138 -> 0 | AP178: =Buffer!AL138 -> 0 | AQ178: =Buffer!AM138 -> 0 | AR178: =Buffer!AN138 -> 0 | AS178: =Buffer!AO138 -> 0 | AT178: =Buffer!AP138 -> 0 | AU178: =Buffer!AQ138 -> 0 | AV178: =Buffer!AR138 -> 0 | AW178: =Buffer!AS138 -> 0 | AX178: =Buffer!AT138 -> 0 | AY178: =Buffer!AU138 -> 0 | AZ178: =Buffer!AV138 -> 0 | BA178: =Buffer!AW138 -> 0 | BB178: =Buffer!AX138 -> 0 | BC178: =Buffer!AY138 -> 0 | BD178: =Buffer!AZ138 -> 0 | BE178: =Buffer!BA138 -> 0 | BF178: =Buffer!BB138 -> 0 | BG178: =Buffer!BC138 -> 0 | BH178: =Buffer!BD138 -> 0 | BI178: =Buffer!BE138 -> 0 | BJ178: =Buffer!BF138 -> 0 | BK178: =Buffer!BG138 -> 0 | BL178: =Buffer!BH138 -> 0 | BM178: =Buffer!BI138 -> 0 | BN178: =Buffer!BJ138 -> 0 | BO178: =Buffer!BK138 -> 0 | BP178: =Buffer!BL138 -> 0 | BQ178: =Buffer!BM138 -> 0 | BR178: =Buffer!BN138 -> 0 | BS178: =Buffer!BO138 -> 0 | BT178: =Buffer!BP138 -> 0 | BU178: =Buffer!BQ138 -> 0 | BV178: =Buffer!BR138 -> 0 | BW178: =Buffer!BS138 -> 0 | BX178: =Buffer!BT138 -> 0 | BY178: =Buffer!BU138 -> 0 | BZ178: =Buffer!BV138 -> 0 | CA178: =Buffer!BW138 -> 0 | CB178: =Buffer!BX138 -> 0 | CC178: =Buffer!BY138 -> 0 | CD178: =Buffer!BZ138 -> 0 | CE178: =Buffer!CA138 -> 0 | CF178: =Buffer!CB138 -> 0 | CG178: =Buffer!CC138 -> 0 | CH178: =Buffer!CD138 -> 0 | CI178: =Buffer!CE138 -> 0 | CJ178: =Buffer!CF138 -> 0 | CK178: =Buffer!CG138 -> 0 | CL178: =Buffer!CH138 -> 0 | CM178: =Buffer!CI138 -> 0 | CN178: =Buffer!CJ138 -> 0 | CO178: =Buffer!CK138 -> 0 | CP178: =Buffer!CL138 -> 0 | CQ178: =Buffer!CM138 -> 0 | CR178: =Buffer!CN138 -> 0 | CS178: =Buffer!CO138 -> 0 | CT178: =Buffer!CP138 -> 0 | CU178: =Buffer!CQ138 -> 0 | CV178: =Buffer!CR138 -> 0 | CW178: =Buffer!CS138 -> 0 | CX178: =Buffer!CT138 -> 0 | CY178: =Buffer!CU138 -> 0 | CZ178: =Buffer!CV138 -> 0 | DA178: =Buffer!CW138 -> 0 | DB178: =Buffer!CX138 -> 0 | DC178: =Buffer!CY138 -> 0 | DD178: =Buffer!CZ138 -> 0 | DE178: =Buffer!DA138 -> 0 | DF178: =Buffer!DB138 -> 0
A179: Blunt Weapons | C179: 0 | D179: 0 | H179: =Buffer!D139 -> 0 | I179: =Buffer!E139 -> 0 | J179: =Buffer!F139 -> 0 | K179: =Buffer!G139 -> 0 | L179: =Buffer!H139 -> 0 | M179: =Buffer!I139 -> 0 | N179: =Buffer!J139 -> 0 | O179: =Buffer!K139 -> 0 | P179: =Buffer!L139 -> 0 | Q179: =Buffer!M139 -> 0 | R179: =Buffer!N139 -> 0 | S179: =Buffer!O139 -> 0 | T179: =Buffer!P139 -> 0 | U179: =Buffer!Q139 -> 0 | V179: =Buffer!R139 -> 0 | W179: =Buffer!S139 -> 0 | X179: =Buffer!T139 -> 0 | Y179: =Buffer!U139 -> 0 | Z179: =Buffer!V139 -> 0 | AA179: =Buffer!W139 -> 0 | AB179: =Buffer!X139 -> 0 | AC179: =Buffer!Y139 -> 0 | AD179: =Buffer!Z139 -> 0 | AE179: =Buffer!AA139 -> 0 | AF179: =Buffer!AB139 -> 0 | AG179: =Buffer!AC139 -> 0 | AH179: =Buffer!AD139 -> 0 | AI179: =Buffer!AE139 -> 0 | AJ179: =Buffer!AF139 -> 0 | AK179: =Buffer!AG139 -> 0 | AL179: =Buffer!AH139 -> 0 | AM179: =Buffer!AI139 -> 0 | AN179: =Buffer!AJ139 -> 0 | AO179: =Buffer!AK139 -> 0 | AP179: =Buffer!AL139 -> 0 | AQ179: =Buffer!AM139 -> 0 | AR179: =Buffer!AN139 -> 0 | AS179: =Buffer!AO139 -> 0 | AT179: =Buffer!AP139 -> 0 | AU179: =Buffer!AQ139 -> 0 | AV179: =Buffer!AR139 -> 0 | AW179: =Buffer!AS139 -> 0 | AX179: =Buffer!AT139 -> 0 | AY179: =Buffer!AU139 -> 0 | AZ179: =Buffer!AV139 -> 0 | BA179: =Buffer!AW139 -> 0 | BB179: =Buffer!AX139 -> 0 | BC179: =Buffer!AY139 -> 0 | BD179: =Buffer!AZ139 -> 0 | BE179: =Buffer!BA139 -> 0 | BF179: =Buffer!BB139 -> 0 | BG179: =Buffer!BC139 -> 0 | BH179: =Buffer!BD139 -> 0 | BI179: =Buffer!BE139 -> 0 | BJ179: =Buffer!BF139 -> 0 | BK179: =Buffer!BG139 -> 0 | BL179: =Buffer!BH139 -> 0 | BM179: =Buffer!BI139 -> 0 | BN179: =Buffer!BJ139 -> 0 | BO179: =Buffer!BK139 -> 0 | BP179: =Buffer!BL139 -> 0 | BQ179: =Buffer!BM139 -> 0 | BR179: =Buffer!BN139 -> 0 | BS179: =Buffer!BO139 -> 0 | BT179: =Buffer!BP139 -> 0 | BU179: =Buffer!BQ139 -> 0 | BV179: =Buffer!BR139 -> 0 | BW179: =Buffer!BS139 -> 0 | BX179: =Buffer!BT139 -> 0 | BY179: =Buffer!BU139 -> 0 | BZ179: =Buffer!BV139 -> 0 | CA179: =Buffer!BW139 -> 0 | CB179: =Buffer!BX139 -> 0 | CC179: =Buffer!BY139 -> 0 | CD179: =Buffer!BZ139 -> 0 | CE179: =Buffer!CA139 -> 0 | CF179: =Buffer!CB139 -> 0 | CG179: =Buffer!CC139 -> 0 | CH179: =Buffer!CD139 -> 0 | CI179: =Buffer!CE139 -> 0 | CJ179: =Buffer!CF139 -> 0 | CK179: =Buffer!CG139 -> 0 | CL179: =Buffer!CH139 -> 0 | CM179: =Buffer!CI139 -> 0 | CN179: =Buffer!CJ139 -> 0 | CO179: =Buffer!CK139 -> 0 | CP179: =Buffer!CL139 -> 0 | CQ179: =Buffer!CM139 -> 0 | CR179: =Buffer!CN139 -> 0 | CS179: =Buffer!CO139 -> 0 | CT179: =Buffer!CP139 -> 0 | CU179: =Buffer!CQ139 -> 0 | CV179: =Buffer!CR139 -> 0 | CW179: =Buffer!CS139 -> 0 | CX179: =Buffer!CT139 -> 0 | CY179: =Buffer!CU139 -> 0 | CZ179: =Buffer!CV139 -> 0 | DA179: =Buffer!CW139 -> 0 | DB179: =Buffer!CX139 -> 0 | DC179: =Buffer!CY139 -> 0 | DD179: =Buffer!CZ139 -> 0 | DE179: =Buffer!DA139 -> 0 | DF179: =Buffer!DB139 -> 0
A180: Two-Handed Weapons | C180: 0 | D180: 0 | H180: =Buffer!D140 -> 0 | I180: =Buffer!E140 -> 0 | J180: =Buffer!F140 -> 0 | K180: =Buffer!G140 -> 0 | L180: =Buffer!H140 -> 0 | M180: =Buffer!I140 -> 0 | N180: =Buffer!J140 -> 0 | O180: =Buffer!K140 -> 0 | P180: =Buffer!L140 -> 0 | Q180: =Buffer!M140 -> 0 | R180: =Buffer!N140 -> 0 | S180: =Buffer!O140 -> 0 | T180: =Buffer!P140 -> 0 | U180: =Buffer!Q140 -> 0 | V180: =Buffer!R140 -> 0 | W180: =Buffer!S140 -> 0 | X180: =Buffer!T140 -> 0 | Y180: =Buffer!U140 -> 0 | Z180: =Buffer!V140 -> 0 | AA180: =Buffer!W140 -> 0 | AB180: =Buffer!X140 -> 0 | AC180: =Buffer!Y140 -> 0 | AD180: =Buffer!Z140 -> 0 | AE180: =Buffer!AA140 -> 0 | AF180: =Buffer!AB140 -> 0 | AG180: =Buffer!AC140 -> 0 | AH180: =Buffer!AD140 -> 0 | AI180: =Buffer!AE140 -> 0 | AJ180: =Buffer!AF140 -> 0 | AK180: =Buffer!AG140 -> 0 | AL180: =Buffer!AH140 -> 0 | AM180: =Buffer!AI140 -> 0 | AN180: =Buffer!AJ140 -> 0 | AO180: =Buffer!AK140 -> 0 | AP180: =Buffer!AL140 -> 0 | AQ180: =Buffer!AM140 -> 0 | AR180: =Buffer!AN140 -> 0 | AS180: =Buffer!AO140 -> 0 | AT180: =Buffer!AP140 -> 0 | AU180: =Buffer!AQ140 -> 0 | AV180: =Buffer!AR140 -> 0 | AW180: =Buffer!AS140 -> 0 | AX180: =Buffer!AT140 -> 0 | AY180: =Buffer!AU140 -> 0 | AZ180: =Buffer!AV140 -> 0 | BA180: =Buffer!AW140 -> 0 | BB180: =Buffer!AX140 -> 0 | BC180: =Buffer!AY140 -> 0 | BD180: =Buffer!AZ140 -> 0 | BE180: =Buffer!BA140 -> 0 | BF180: =Buffer!BB140 -> 0 | BG180: =Buffer!BC140 -> 0 | BH180: =Buffer!BD140 -> 0 | BI180: =Buffer!BE140 -> 0 | BJ180: =Buffer!BF140 -> 0 | BK180: =Buffer!BG140 -> 0 | BL180: =Buffer!BH140 -> 0 | BM180: =Buffer!BI140 -> 0 | BN180: =Buffer!BJ140 -> 0 | BO180: =Buffer!BK140 -> 0 | BP180: =Buffer!BL140 -> 0 | BQ180: =Buffer!BM140 -> 0 | BR180: =Buffer!BN140 -> 0 | BS180: =Buffer!BO140 -> 0 | BT180: =Buffer!BP140 -> 0 | BU180: =Buffer!BQ140 -> 0 | BV180: =Buffer!BR140 -> 0 | BW180: =Buffer!BS140 -> 0 | BX180: =Buffer!BT140 -> 0 | BY180: =Buffer!BU140 -> 0 | BZ180: =Buffer!BV140 -> 0 | CA180: =Buffer!BW140 -> 0 | CB180: =Buffer!BX140 -> 0 | CC180: =Buffer!BY140 -> 0 | CD180: =Buffer!BZ140 -> 0 | CE180: =Buffer!CA140 -> 0 | CF180: =Buffer!CB140 -> 0 | CG180: =Buffer!CC140 -> 0 | CH180: =Buffer!CD140 -> 0 | CI180: =Buffer!CE140 -> 0 | CJ180: =Buffer!CF140 -> 0 | CK180: =Buffer!CG140 -> 0 | CL180: =Buffer!CH140 -> 0 | CM180: =Buffer!CI140 -> 0 | CN180: =Buffer!CJ140 -> 0 | CO180: =Buffer!CK140 -> 0 | CP180: =Buffer!CL140 -> 0 | CQ180: =Buffer!CM140 -> 0 | CR180: =Buffer!CN140 -> 0 | CS180: =Buffer!CO140 -> 0 | CT180: =Buffer!CP140 -> 0 | CU180: =Buffer!CQ140 -> 0 | CV180: =Buffer!CR140 -> 0 | CW180: =Buffer!CS140 -> 0 | CX180: =Buffer!CT140 -> 0 | CY180: =Buffer!CU140 -> 0 | CZ180: =Buffer!CV140 -> 0 | DA180: =Buffer!CW140 -> 0 | DB180: =Buffer!CX140 -> 0 | DC180: =Buffer!CY140 -> 0 | DD180: =Buffer!CZ140 -> 0 | DE180: =Buffer!DA140 -> 0 | DF180: =Buffer!DB140 -> 0
A181: Ranged Weapons | C181: 0 | D181: 0 | H181: =Buffer!D141 -> 0 | I181: =Buffer!E141 -> 0 | J181: =Buffer!F141 -> 0 | K181: =Buffer!G141 -> 0 | L181: =Buffer!H141 -> 0 | M181: =Buffer!I141 -> 0 | N181: =Buffer!J141 -> 0 | O181: =Buffer!K141 -> 0 | P181: =Buffer!L141 -> 0 | Q181: =Buffer!M141 -> 0 | R181: =Buffer!N141 -> 0 | S181: =Buffer!O141 -> 0 | T181: =Buffer!P141 -> 0 | U181: =Buffer!Q141 -> 0 | V181: =Buffer!R141 -> 0 | W181: =Buffer!S141 -> 0 | X181: =Buffer!T141 -> 0 | Y181: =Buffer!U141 -> 0 | Z181: =Buffer!V141 -> 0 | AA181: =Buffer!W141 -> 0 | AB181: =Buffer!X141 -> 0 | AC181: =Buffer!Y141 -> 0 | AD181: =Buffer!Z141 -> 0 | AE181: =Buffer!AA141 -> 0 | AF181: =Buffer!AB141 -> 0 | AG181: =Buffer!AC141 -> 0 | AH181: =Buffer!AD141 -> 0 | AI181: =Buffer!AE141 -> 0 | AJ181: =Buffer!AF141 -> 0 | AK181: =Buffer!AG141 -> 0 | AL181: =Buffer!AH141 -> 0 | AM181: =Buffer!AI141 -> 0 | AN181: =Buffer!AJ141 -> 0 | AO181: =Buffer!AK141 -> 0 | AP181: =Buffer!AL141 -> 0 | AQ181: =Buffer!AM141 -> 0 | AR181: =Buffer!AN141 -> 0 | AS181: =Buffer!AO141 -> 0 | AT181: =Buffer!AP141 -> 0 | AU181: =Buffer!AQ141 -> 0 | AV181: =Buffer!AR141 -> 0 | AW181: =Buffer!AS141 -> 0 | AX181: =Buffer!AT141 -> 0 | AY181: =Buffer!AU141 -> 0 | AZ181: =Buffer!AV141 -> 0 | BA181: =Buffer!AW141 -> 0 | BB181: =Buffer!AX141 -> 0 | BC181: =Buffer!AY141 -> 0 | BD181: =Buffer!AZ141 -> 0 | BE181: =Buffer!BA141 -> 0 | BF181: =Buffer!BB141 -> 0 | BG181: =Buffer!BC141 -> 0 | BH181: =Buffer!BD141 -> 0 | BI181: =Buffer!BE141 -> 0 | BJ181: =Buffer!BF141 -> 0 | BK181: =Buffer!BG141 -> 0 | BL181: =Buffer!BH141 -> 0 | BM181: =Buffer!BI141 -> 0 | BN181: =Buffer!BJ141 -> 0 | BO181: =Buffer!BK141 -> 0 | BP181: =Buffer!BL141 -> 0 | BQ181: =Buffer!BM141 -> 0 | BR181: =Buffer!BN141 -> 0 | BS181: =Buffer!BO141 -> 0 | BT181: =Buffer!BP141 -> 0 | BU181: =Buffer!BQ141 -> 0 | BV181: =Buffer!BR141 -> 0 | BW181: =Buffer!BS141 -> 0 | BX181: =Buffer!BT141 -> 0 | BY181: =Buffer!BU141 -> 0 | BZ181: =Buffer!BV141 -> 0 | CA181: =Buffer!BW141 -> 0 | CB181: =Buffer!BX141 -> 0 | CC181: =Buffer!BY141 -> 0 | CD181: =Buffer!BZ141 -> 0 | CE181: =Buffer!CA141 -> 0 | CF181: =Buffer!CB141 -> 0 | CG181: =Buffer!CC141 -> 0 | CH181: =Buffer!CD141 -> 0 | CI181: =Buffer!CE141 -> 0 | CJ181: =Buffer!CF141 -> 0 | CK181: =Buffer!CG141 -> 0 | CL181: =Buffer!CH141 -> 0 | CM181: =Buffer!CI141 -> 0 | CN181: =Buffer!CJ141 -> 0 | CO181: =Buffer!CK141 -> 0 | CP181: =Buffer!CL141 -> 0 | CQ181: =Buffer!CM141 -> 0 | CR181: =Buffer!CN141 -> 0 | CS181: =Buffer!CO141 -> 0 | CT181: =Buffer!CP141 -> 0 | CU181: =Buffer!CQ141 -> 0 | CV181: =Buffer!CR141 -> 0 | CW181: =Buffer!CS141 -> 0 | CX181: =Buffer!CT141 -> 0 | CY181: =Buffer!CU141 -> 0 | CZ181: =Buffer!CV141 -> 0 | DA181: =Buffer!CW141 -> 0 | DB181: =Buffer!CX141 -> 0 | DC181: =Buffer!CY141 -> 0 | DD181: =Buffer!CZ141 -> 0 | DE181: =Buffer!DA141 -> 0 | DF181: =Buffer!DB141 -> 0
A182: Thrown Weapons | C182: 0 | D182: 0 | H182: =Buffer!D142 -> 0 | I182: =Buffer!E142 -> 0 | J182: =Buffer!F142 -> 0 | K182: =Buffer!G142 -> 0 | L182: =Buffer!H142 -> 0 | M182: =Buffer!I142 -> 0 | N182: =Buffer!J142 -> 0 | O182: =Buffer!K142 -> 0 | P182: =Buffer!L142 -> 0 | Q182: =Buffer!M142 -> 0 | R182: =Buffer!N142 -> 0 | S182: =Buffer!O142 -> 0 | T182: =Buffer!P142 -> 0 | U182: =Buffer!Q142 -> 0 | V182: =Buffer!R142 -> 0 | W182: =Buffer!S142 -> 0 | X182: =Buffer!T142 -> 0 | Y182: =Buffer!U142 -> 0 | Z182: =Buffer!V142 -> 0 | AA182: =Buffer!W142 -> 0 | AB182: =Buffer!X142 -> 0 | AC182: =Buffer!Y142 -> 0 | AD182: =Buffer!Z142 -> 0 | AE182: =Buffer!AA142 -> 0 | AF182: =Buffer!AB142 -> 0 | AG182: =Buffer!AC142 -> 0 | AH182: =Buffer!AD142 -> 0 | AI182: =Buffer!AE142 -> 0 | AJ182: =Buffer!AF142 -> 0 | AK182: =Buffer!AG142 -> 0 | AL182: =Buffer!AH142 -> 0 | AM182: =Buffer!AI142 -> 0 | AN182: =Buffer!AJ142 -> 0 | AO182: =Buffer!AK142 -> 0 | AP182: =Buffer!AL142 -> 0 | AQ182: =Buffer!AM142 -> 0 | AR182: =Buffer!AN142 -> 0 | AS182: =Buffer!AO142 -> 0 | AT182: =Buffer!AP142 -> 0 | AU182: =Buffer!AQ142 -> 0 | AV182: =Buffer!AR142 -> 0 | AW182: =Buffer!AS142 -> 0 | AX182: =Buffer!AT142 -> 0 | AY182: =Buffer!AU142 -> 0 | AZ182: =Buffer!AV142 -> 0 | BA182: =Buffer!AW142 -> 0 | BB182: =Buffer!AX142 -> 0 | BC182: =Buffer!AY142 -> 0 | BD182: =Buffer!AZ142 -> 0 | BE182: =Buffer!BA142 -> 0 | BF182: =Buffer!BB142 -> 0 | BG182: =Buffer!BC142 -> 0 | BH182: =Buffer!BD142 -> 0 | BI182: =Buffer!BE142 -> 0 | BJ182: =Buffer!BF142 -> 0 | BK182: =Buffer!BG142 -> 0 | BL182: =Buffer!BH142 -> 0 | BM182: =Buffer!BI142 -> 0 | BN182: =Buffer!BJ142 -> 0 | BO182: =Buffer!BK142 -> 0 | BP182: =Buffer!BL142 -> 0 | BQ182: =Buffer!BM142 -> 0 | BR182: =Buffer!BN142 -> 0 | BS182: =Buffer!BO142 -> 0 | BT182: =Buffer!BP142 -> 0 | BU182: =Buffer!BQ142 -> 0 | BV182: =Buffer!BR142 -> 0 | BW182: =Buffer!BS142 -> 0 | BX182: =Buffer!BT142 -> 0 | BY182: =Buffer!BU142 -> 0 | BZ182: =Buffer!BV142 -> 0 | CA182: =Buffer!BW142 -> 0 | CB182: =Buffer!BX142 -> 0 | CC182: =Buffer!BY142 -> 0 | CD182: =Buffer!BZ142 -> 0 | CE182: =Buffer!CA142 -> 0 | CF182: =Buffer!CB142 -> 0 | CG182: =Buffer!CC142 -> 0 | CH182: =Buffer!CD142 -> 0 | CI182: =Buffer!CE142 -> 0 | CJ182: =Buffer!CF142 -> 0 | CK182: =Buffer!CG142 -> 0 | CL182: =Buffer!CH142 -> 0 | CM182: =Buffer!CI142 -> 0 | CN182: =Buffer!CJ142 -> 0 | CO182: =Buffer!CK142 -> 0 | CP182: =Buffer!CL142 -> 0 | CQ182: =Buffer!CM142 -> 0 | CR182: =Buffer!CN142 -> 0 | CS182: =Buffer!CO142 -> 0 | CT182: =Buffer!CP142 -> 0 | CU182: =Buffer!CQ142 -> 0 | CV182: =Buffer!CR142 -> 0 | CW182: =Buffer!CS142 -> 0 | CX182: =Buffer!CT142 -> 0 | CY182: =Buffer!CU142 -> 0 | CZ182: =Buffer!CV142 -> 0 | DA182: =Buffer!CW142 -> 0 | DB182: =Buffer!CX142 -> 0 | DC182: =Buffer!CY142 -> 0 | DD182: =Buffer!CZ142 -> 0 | DE182: =Buffer!DA142 -> 0 | DF182: =Buffer!DB142 -> 0
A183: Polearm Weapons | C183: 0 | D183: 0 | H183: =Buffer!D143 -> 0 | I183: =Buffer!E143 -> 0 | J183: =Buffer!F143 -> 0 | K183: =Buffer!G143 -> 0 | L183: =Buffer!H143 -> 0 | M183: =Buffer!I143 -> 0 | N183: =Buffer!J143 -> 0 | O183: =Buffer!K143 -> 0 | P183: =Buffer!L143 -> 0 | Q183: =Buffer!M143 -> 0 | R183: =Buffer!N143 -> 0 | S183: =Buffer!O143 -> 0 | T183: =Buffer!P143 -> 0 | U183: =Buffer!Q143 -> 0 | V183: =Buffer!R143 -> 0 | W183: =Buffer!S143 -> 0 | X183: =Buffer!T143 -> 0 | Y183: =Buffer!U143 -> 0 | Z183: =Buffer!V143 -> 0 | AA183: =Buffer!W143 -> 0 | AB183: =Buffer!X143 -> 0 | AC183: =Buffer!Y143 -> 0 | AD183: =Buffer!Z143 -> 0 | AE183: =Buffer!AA143 -> 0 | AF183: =Buffer!AB143 -> 0 | AG183: =Buffer!AC143 -> 0 | AH183: =Buffer!AD143 -> 0 | AI183: =Buffer!AE143 -> 0 | AJ183: =Buffer!AF143 -> 0 | AK183: =Buffer!AG143 -> 0 | AL183: =Buffer!AH143 -> 0 | AM183: =Buffer!AI143 -> 0 | AN183: =Buffer!AJ143 -> 0 | AO183: =Buffer!AK143 -> 0 | AP183: =Buffer!AL143 -> 0 | AQ183: =Buffer!AM143 -> 0 | AR183: =Buffer!AN143 -> 0 | AS183: =Buffer!AO143 -> 0 | AT183: =Buffer!AP143 -> 0 | AU183: =Buffer!AQ143 -> 0 | AV183: =Buffer!AR143 -> 0 | AW183: =Buffer!AS143 -> 0 | AX183: =Buffer!AT143 -> 0 | AY183: =Buffer!AU143 -> 0 | AZ183: =Buffer!AV143 -> 0 | BA183: =Buffer!AW143 -> 0 | BB183: =Buffer!AX143 -> 0 | BC183: =Buffer!AY143 -> 0 | BD183: =Buffer!AZ143 -> 0 | BE183: =Buffer!BA143 -> 0 | BF183: =Buffer!BB143 -> 0 | BG183: =Buffer!BC143 -> 0 | BH183: =Buffer!BD143 -> 0 | BI183: =Buffer!BE143 -> 0 | BJ183: =Buffer!BF143 -> 0 | BK183: =Buffer!BG143 -> 0 | BL183: =Buffer!BH143 -> 0 | BM183: =Buffer!BI143 -> 0 | BN183: =Buffer!BJ143 -> 0 | BO183: =Buffer!BK143 -> 0 | BP183: =Buffer!BL143 -> 0 | BQ183: =Buffer!BM143 -> 0 | BR183: =Buffer!BN143 -> 0 | BS183: =Buffer!BO143 -> 0 | BT183: =Buffer!BP143 -> 0 | BU183: =Buffer!BQ143 -> 0 | BV183: =Buffer!BR143 -> 0 | BW183: =Buffer!BS143 -> 0 | BX183: =Buffer!BT143 -> 0 | BY183: =Buffer!BU143 -> 0 | BZ183: =Buffer!BV143 -> 0 | CA183: =Buffer!BW143 -> 0 | CB183: =Buffer!BX143 -> 0 | CC183: =Buffer!BY143 -> 0 | CD183: =Buffer!BZ143 -> 0 | CE183: =Buffer!CA143 -> 0 | CF183: =Buffer!CB143 -> 0 | CG183: =Buffer!CC143 -> 0 | CH183: =Buffer!CD143 -> 0 | CI183: =Buffer!CE143 -> 0 | CJ183: =Buffer!CF143 -> 0 | CK183: =Buffer!CG143 -> 0 | CL183: =Buffer!CH143 -> 0 | CM183: =Buffer!CI143 -> 0 | CN183: =Buffer!CJ143 -> 0 | CO183: =Buffer!CK143 -> 0 | CP183: =Buffer!CL143 -> 0 | CQ183: =Buffer!CM143 -> 0 | CR183: =Buffer!CN143 -> 0 | CS183: =Buffer!CO143 -> 0 | CT183: =Buffer!CP143 -> 0 | CU183: =Buffer!CQ143 -> 0 | CV183: =Buffer!CR143 -> 0 | CW183: =Buffer!CS143 -> 0 | CX183: =Buffer!CT143 -> 0 | CY183: =Buffer!CU143 -> 0 | CZ183: =Buffer!CV143 -> 0 | DA183: =Buffer!CW143 -> 0 | DB183: =Buffer!CX143 -> 0 | DC183: =Buffer!CY143 -> 0 | DD183: =Buffer!CZ143 -> 0 | DE183: =Buffer!DA143 -> 0 | DF183: =Buffer!DB143 -> 0
A184: Brawling | C184: 0 | D184: 0 | H184: =Buffer!D144 -> 0 | I184: =Buffer!E144 -> 0 | J184: =Buffer!F144 -> 0 | K184: =Buffer!G144 -> 0 | L184: =Buffer!H144 -> 0 | M184: =Buffer!I144 -> 0 | N184: =Buffer!J144 -> 0 | O184: =Buffer!K144 -> 0 | P184: =Buffer!L144 -> 0 | Q184: =Buffer!M144 -> 0 | R184: =Buffer!N144 -> 0 | S184: =Buffer!O144 -> 0 | T184: =Buffer!P144 -> 0 | U184: =Buffer!Q144 -> 0 | V184: =Buffer!R144 -> 0 | W184: =Buffer!S144 -> 0 | X184: =Buffer!T144 -> 0 | Y184: =Buffer!U144 -> 0 | Z184: =Buffer!V144 -> 0 | AA184: =Buffer!W144 -> 0 | AB184: =Buffer!X144 -> 0 | AC184: =Buffer!Y144 -> 0 | AD184: =Buffer!Z144 -> 0 | AE184: =Buffer!AA144 -> 0 | AF184: =Buffer!AB144 -> 0 | AG184: =Buffer!AC144 -> 0 | AH184: =Buffer!AD144 -> 0 | AI184: =Buffer!AE144 -> 0 | AJ184: =Buffer!AF144 -> 0 | AK184: =Buffer!AG144 -> 0 | AL184: =Buffer!AH144 -> 0 | AM184: =Buffer!AI144 -> 0 | AN184: =Buffer!AJ144 -> 0 | AO184: =Buffer!AK144 -> 0 | AP184: =Buffer!AL144 -> 0 | AQ184: =Buffer!AM144 -> 0 | AR184: =Buffer!AN144 -> 0 | AS184: =Buffer!AO144 -> 0 | AT184: =Buffer!AP144 -> 0 | AU184: =Buffer!AQ144 -> 0 | AV184: =Buffer!AR144 -> 0 | AW184: =Buffer!AS144 -> 0 | AX184: =Buffer!AT144 -> 0 | AY184: =Buffer!AU144 -> 0 | AZ184: =Buffer!AV144 -> 0 | BA184: =Buffer!AW144 -> 0 | BB184: =Buffer!AX144 -> 0 | BC184: =Buffer!AY144 -> 0 | BD184: =Buffer!AZ144 -> 0 | BE184: =Buffer!BA144 -> 0 | BF184: =Buffer!BB144 -> 0 | BG184: =Buffer!BC144 -> 0 | BH184: =Buffer!BD144 -> 0 | BI184: =Buffer!BE144 -> 0 | BJ184: =Buffer!BF144 -> 0 | BK184: =Buffer!BG144 -> 0 | BL184: =Buffer!BH144 -> 0 | BM184: =Buffer!BI144 -> 0 | BN184: =Buffer!BJ144 -> 0 | BO184: =Buffer!BK144 -> 0 | BP184: =Buffer!BL144 -> 0 | BQ184: =Buffer!BM144 -> 0 | BR184: =Buffer!BN144 -> 0 | BS184: =Buffer!BO144 -> 0 | BT184: =Buffer!BP144 -> 0 | BU184: =Buffer!BQ144 -> 0 | BV184: =Buffer!BR144 -> 0 | BW184: =Buffer!BS144 -> 0 | BX184: =Buffer!BT144 -> 0 | BY184: =Buffer!BU144 -> 0 | BZ184: =Buffer!BV144 -> 0 | CA184: =Buffer!BW144 -> 0 | CB184: =Buffer!BX144 -> 0 | CC184: =Buffer!BY144 -> 0 | CD184: =Buffer!BZ144 -> 0 | CE184: =Buffer!CA144 -> 0 | CF184: =Buffer!CB144 -> 0 | CG184: =Buffer!CC144 -> 0 | CH184: =Buffer!CD144 -> 0 | CI184: =Buffer!CE144 -> 0 | CJ184: =Buffer!CF144 -> 0 | CK184: =Buffer!CG144 -> 0 | CL184: =Buffer!CH144 -> 0 | CM184: =Buffer!CI144 -> 0 | CN184: =Buffer!CJ144 -> 0 | CO184: =Buffer!CK144 -> 0 | CP184: =Buffer!CL144 -> 0 | CQ184: =Buffer!CM144 -> 0 | CR184: =Buffer!CN144 -> 0 | CS184: =Buffer!CO144 -> 0 | CT184: =Buffer!CP144 -> 0 | CU184: =Buffer!CQ144 -> 0 | CV184: =Buffer!CR144 -> 0 | CW184: =Buffer!CS144 -> 0 | CX184: =Buffer!CT144 -> 0 | CY184: =Buffer!CU144 -> 0 | CZ184: =Buffer!CV144 -> 0 | DA184: =Buffer!CW144 -> 0 | DB184: =Buffer!CX144 -> 0 | DC184: =Buffer!CY144 -> 0 | DD184: =Buffer!CZ144 -> 0 | DE184: =Buffer!DA144 -> 0 | DF184: =Buffer!DB144 -> 0
A185: Two Weapon Combat | C185: 0 | D185: 0 | H185: =Buffer!D145 -> 0 | I185: =Buffer!E145 -> 0 | J185: =Buffer!F145 -> 0 | K185: =Buffer!G145 -> 0 | L185: =Buffer!H145 -> 0 | M185: =Buffer!I145 -> 0 | N185: =Buffer!J145 -> 0 | O185: =Buffer!K145 -> 0 | P185: =Buffer!L145 -> 0 | Q185: =Buffer!M145 -> 0 | R185: =Buffer!N145 -> 0 | S185: =Buffer!O145 -> 0 | T185: =Buffer!P145 -> 0 | U185: =Buffer!Q145 -> 0 | V185: =Buffer!R145 -> 0 | W185: =Buffer!S145 -> 0 | X185: =Buffer!T145 -> 0 | Y185: =Buffer!U145 -> 0 | Z185: =Buffer!V145 -> 0 | AA185: =Buffer!W145 -> 0 | AB185: =Buffer!X145 -> 0 | AC185: =Buffer!Y145 -> 0 | AD185: =Buffer!Z145 -> 0 | AE185: =Buffer!AA145 -> 0 | AF185: =Buffer!AB145 -> 0 | AG185: =Buffer!AC145 -> 0 | AH185: =Buffer!AD145 -> 0 | AI185: =Buffer!AE145 -> 0 | AJ185: =Buffer!AF145 -> 0 | AK185: =Buffer!AG145 -> 0 | AL185: =Buffer!AH145 -> 0 | AM185: =Buffer!AI145 -> 0 | AN185: =Buffer!AJ145 -> 0 | AO185: =Buffer!AK145 -> 0 | AP185: =Buffer!AL145 -> 0 | AQ185: =Buffer!AM145 -> 0 | AR185: =Buffer!AN145 -> 0 | AS185: =Buffer!AO145 -> 0 | AT185: =Buffer!AP145 -> 0 | AU185: =Buffer!AQ145 -> 0 | AV185: =Buffer!AR145 -> 0 | AW185: =Buffer!AS145 -> 0 | AX185: =Buffer!AT145 -> 0 | AY185: =Buffer!AU145 -> 0 | AZ185: =Buffer!AV145 -> 0 | BA185: =Buffer!AW145 -> 0 | BB185: =Buffer!AX145 -> 0 | BC185: =Buffer!AY145 -> 0 | BD185: =Buffer!AZ145 -> 0 | BE185: =Buffer!BA145 -> 0 | BF185: =Buffer!BB145 -> 0 | BG185: =Buffer!BC145 -> 0 | BH185: =Buffer!BD145 -> 0 | BI185: =Buffer!BE145 -> 0 | BJ185: =Buffer!BF145 -> 0 | BK185: =Buffer!BG145 -> 0 | BL185: =Buffer!BH145 -> 0 | BM185: =Buffer!BI145 -> 0 | BN185: =Buffer!BJ145 -> 0 | BO185: =Buffer!BK145 -> 0 | BP185: =Buffer!BL145 -> 0 | BQ185: =Buffer!BM145 -> 0 | BR185: =Buffer!BN145 -> 0 | BS185: =Buffer!BO145 -> 0 | BT185: =Buffer!BP145 -> 0 | BU185: =Buffer!BQ145 -> 0 | BV185: =Buffer!BR145 -> 0 | BW185: =Buffer!BS145 -> 0 | BX185: =Buffer!BT145 -> 0 | BY185: =Buffer!BU145 -> 0 | BZ185: =Buffer!BV145 -> 0 | CA185: =Buffer!BW145 -> 0 | CB185: =Buffer!BX145 -> 0 | CC185: =Buffer!BY145 -> 0 | CD185: =Buffer!BZ145 -> 0 | CE185: =Buffer!CA145 -> 0 | CF185: =Buffer!CB145 -> 0 | CG185: =Buffer!CC145 -> 0 | CH185: =Buffer!CD145 -> 0 | CI185: =Buffer!CE145 -> 0 | CJ185: =Buffer!CF145 -> 0 | CK185: =Buffer!CG145 -> 0 | CL185: =Buffer!CH145 -> 0 | CM185: =Buffer!CI145 -> 0 | CN185: =Buffer!CJ145 -> 0 | CO185: =Buffer!CK145 -> 0 | CP185: =Buffer!CL145 -> 0 | CQ185: =Buffer!CM145 -> 0 | CR185: =Buffer!CN145 -> 0 | CS185: =Buffer!CO145 -> 0 | CT185: =Buffer!CP145 -> 0 | CU185: =Buffer!CQ145 -> 0 | CV185: =Buffer!CR145 -> 0 | CW185: =Buffer!CS145 -> 0 | CX185: =Buffer!CT145 -> 0 | CY185: =Buffer!CU145 -> 0 | CZ185: =Buffer!CV145 -> 0 | DA185: =Buffer!CW145 -> 0 | DB185: =Buffer!CX145 -> 0 | DC185: =Buffer!CY145 -> 0 | DD185: =Buffer!CZ145 -> 0 | DE185: =Buffer!DA145 -> 0 | DF185: =Buffer!DB145 -> 0
A186: Combat Maneuvers | C186: 0 | D186: 0 | H186: =Buffer!D146 -> 0 | I186: =Buffer!E146 -> 0 | J186: =Buffer!F146 -> 0 | K186: =Buffer!G146 -> 0 | L186: =Buffer!H146 -> 0 | M186: =Buffer!I146 -> 0 | N186: =Buffer!J146 -> 0 | O186: =Buffer!K146 -> 0 | P186: =Buffer!L146 -> 0 | Q186: =Buffer!M146 -> 0 | R186: =Buffer!N146 -> 0 | S186: =Buffer!O146 -> 0 | T186: =Buffer!P146 -> 0 | U186: =Buffer!Q146 -> 0 | V186: =Buffer!R146 -> 0 | W186: =Buffer!S146 -> 0 | X186: =Buffer!T146 -> 0 | Y186: =Buffer!U146 -> 0 | Z186: =Buffer!V146 -> 0 | AA186: =Buffer!W146 -> 0 | AB186: =Buffer!X146 -> 0 | AC186: =Buffer!Y146 -> 0 | AD186: =Buffer!Z146 -> 0 | AE186: =Buffer!AA146 -> 0 | AF186: =Buffer!AB146 -> 0 | AG186: =Buffer!AC146 -> 0 | AH186: =Buffer!AD146 -> 0 | AI186: =Buffer!AE146 -> 0 | AJ186: =Buffer!AF146 -> 0 | AK186: =Buffer!AG146 -> 0 | AL186: =Buffer!AH146 -> 0 | AM186: =Buffer!AI146 -> 0 | AN186: =Buffer!AJ146 -> 0 | AO186: =Buffer!AK146 -> 0 | AP186: =Buffer!AL146 -> 0 | AQ186: =Buffer!AM146 -> 0 | AR186: =Buffer!AN146 -> 0 | AS186: =Buffer!AO146 -> 0 | AT186: =Buffer!AP146 -> 0 | AU186: =Buffer!AQ146 -> 0 | AV186: =Buffer!AR146 -> 0 | AW186: =Buffer!AS146 -> 0 | AX186: =Buffer!AT146 -> 0 | AY186: =Buffer!AU146 -> 0 | AZ186: =Buffer!AV146 -> 0 | BA186: =Buffer!AW146 -> 0 | BB186: =Buffer!AX146 -> 0 | BC186: =Buffer!AY146 -> 0 | BD186: =Buffer!AZ146 -> 0 | BE186: =Buffer!BA146 -> 0 | BF186: =Buffer!BB146 -> 0 | BG186: =Buffer!BC146 -> 0 | BH186: =Buffer!BD146 -> 0 | BI186: =Buffer!BE146 -> 0 | BJ186: =Buffer!BF146 -> 0 | BK186: =Buffer!BG146 -> 0 | BL186: =Buffer!BH146 -> 0 | BM186: =Buffer!BI146 -> 0 | BN186: =Buffer!BJ146 -> 0 | BO186: =Buffer!BK146 -> 0 | BP186: =Buffer!BL146 -> 0 | BQ186: =Buffer!BM146 -> 0 | BR186: =Buffer!BN146 -> 0 | BS186: =Buffer!BO146 -> 0 | BT186: =Buffer!BP146 -> 0 | BU186: =Buffer!BQ146 -> 0 | BV186: =Buffer!BR146 -> 0 | BW186: =Buffer!BS146 -> 0 | BX186: =Buffer!BT146 -> 0 | BY186: =Buffer!BU146 -> 0 | BZ186: =Buffer!BV146 -> 0 | CA186: =Buffer!BW146 -> 0 | CB186: =Buffer!BX146 -> 0 | CC186: =Buffer!BY146 -> 0 | CD186: =Buffer!BZ146 -> 0 | CE186: =Buffer!CA146 -> 0 | CF186: =Buffer!CB146 -> 0 | CG186: =Buffer!CC146 -> 0 | CH186: =Buffer!CD146 -> 0 | CI186: =Buffer!CE146 -> 0 | CJ186: =Buffer!CF146 -> 0 | CK186: =Buffer!CG146 -> 0 | CL186: =Buffer!CH146 -> 0 | CM186: =Buffer!CI146 -> 0 | CN186: =Buffer!CJ146 -> 0 | CO186: =Buffer!CK146 -> 0 | CP186: =Buffer!CL146 -> 0 | CQ186: =Buffer!CM146 -> 0 | CR186: =Buffer!CN146 -> 0 | CS186: =Buffer!CO146 -> 0 | CT186: =Buffer!CP146 -> 0 | CU186: =Buffer!CQ146 -> 0 | CV186: =Buffer!CR146 -> 0 | CW186: =Buffer!CS146 -> 0 | CX186: =Buffer!CT146 -> 0 | CY186: =Buffer!CU146 -> 0 | CZ186: =Buffer!CV146 -> 0 | DA186: =Buffer!CW146 -> 0 | DB186: =Buffer!CX146 -> 0 | DC186: =Buffer!CY146 -> 0 | DD186: =Buffer!CZ146 -> 0 | DE186: =Buffer!DA146 -> 0 | DF186: =Buffer!DB146 -> 0
A187: Multi-Opponent Combat | C187: 0 | D187: 0 | H187: =Buffer!D147 -> 0 | I187: =Buffer!E147 -> 0 | J187: =Buffer!F147 -> 0 | K187: =Buffer!G147 -> 0 | L187: =Buffer!H147 -> 0 | M187: =Buffer!I147 -> 0 | N187: =Buffer!J147 -> 0 | O187: =Buffer!K147 -> 0 | P187: =Buffer!L147 -> 0 | Q187: =Buffer!M147 -> 0 | R187: =Buffer!N147 -> 0 | S187: =Buffer!O147 -> 0 | T187: =Buffer!P147 -> 0 | U187: =Buffer!Q147 -> 0 | V187: =Buffer!R147 -> 0 | W187: =Buffer!S147 -> 0 | X187: =Buffer!T147 -> 0 | Y187: =Buffer!U147 -> 0 | Z187: =Buffer!V147 -> 0 | AA187: =Buffer!W147 -> 0 | AB187: =Buffer!X147 -> 0 | AC187: =Buffer!Y147 -> 0 | AD187: =Buffer!Z147 -> 0 | AE187: =Buffer!AA147 -> 0 | AF187: =Buffer!AB147 -> 0 | AG187: =Buffer!AC147 -> 0 | AH187: =Buffer!AD147 -> 0 | AI187: =Buffer!AE147 -> 0 | AJ187: =Buffer!AF147 -> 0 | AK187: =Buffer!AG147 -> 0 | AL187: =Buffer!AH147 -> 0 | AM187: =Buffer!AI147 -> 0 | AN187: =Buffer!AJ147 -> 0 | AO187: =Buffer!AK147 -> 0 | AP187: =Buffer!AL147 -> 0 | AQ187: =Buffer!AM147 -> 0 | AR187: =Buffer!AN147 -> 0 | AS187: =Buffer!AO147 -> 0 | AT187: =Buffer!AP147 -> 0 | AU187: =Buffer!AQ147 -> 0 | AV187: =Buffer!AR147 -> 0 | AW187: =Buffer!AS147 -> 0 | AX187: =Buffer!AT147 -> 0 | AY187: =Buffer!AU147 -> 0 | AZ187: =Buffer!AV147 -> 0 | BA187: =Buffer!AW147 -> 0 | BB187: =Buffer!AX147 -> 0 | BC187: =Buffer!AY147 -> 0 | BD187: =Buffer!AZ147 -> 0 | BE187: =Buffer!BA147 -> 0 | BF187: =Buffer!BB147 -> 0 | BG187: =Buffer!BC147 -> 0 | BH187: =Buffer!BD147 -> 0 | BI187: =Buffer!BE147 -> 0 | BJ187: =Buffer!BF147 -> 0 | BK187: =Buffer!BG147 -> 0 | BL187: =Buffer!BH147 -> 0 | BM187: =Buffer!BI147 -> 0 | BN187: =Buffer!BJ147 -> 0 | BO187: =Buffer!BK147 -> 0 | BP187: =Buffer!BL147 -> 0 | BQ187: =Buffer!BM147 -> 0 | BR187: =Buffer!BN147 -> 0 | BS187: =Buffer!BO147 -> 0 | BT187: =Buffer!BP147 -> 0 | BU187: =Buffer!BQ147 -> 0 | BV187: =Buffer!BR147 -> 0 | BW187: =Buffer!BS147 -> 0 | BX187: =Buffer!BT147 -> 0 | BY187: =Buffer!BU147 -> 0 | BZ187: =Buffer!BV147 -> 0 | CA187: =Buffer!BW147 -> 0 | CB187: =Buffer!BX147 -> 0 | CC187: =Buffer!BY147 -> 0 | CD187: =Buffer!BZ147 -> 0 | CE187: =Buffer!CA147 -> 0 | CF187: =Buffer!CB147 -> 0 | CG187: =Buffer!CC147 -> 0 | CH187: =Buffer!CD147 -> 0 | CI187: =Buffer!CE147 -> 0 | CJ187: =Buffer!CF147 -> 0 | CK187: =Buffer!CG147 -> 0 | CL187: =Buffer!CH147 -> 0 | CM187: =Buffer!CI147 -> 0 | CN187: =Buffer!CJ147 -> 0 | CO187: =Buffer!CK147 -> 0 | CP187: =Buffer!CL147 -> 0 | CQ187: =Buffer!CM147 -> 0 | CR187: =Buffer!CN147 -> 0 | CS187: =Buffer!CO147 -> 0 | CT187: =Buffer!CP147 -> 0 | CU187: =Buffer!CQ147 -> 0 | CV187: =Buffer!CR147 -> 0 | CW187: =Buffer!CS147 -> 0 | CX187: =Buffer!CT147 -> 0 | CY187: =Buffer!CU147 -> 0 | CZ187: =Buffer!CV147 -> 0 | DA187: =Buffer!CW147 -> 0 | DB187: =Buffer!CX147 -> 0 | DC187: =Buffer!CY147 -> 0 | DD187: =Buffer!CZ147 -> 0 | DE187: =Buffer!DA147 -> 0 | DF187: =Buffer!DB147 -> 0
A188: Ambush | C188: 0 | D188: 0 | H188: =Buffer!D148 -> 0 | I188: =Buffer!E148 -> 0 | J188: =Buffer!F148 -> 0 | K188: =Buffer!G148 -> 0 | L188: =Buffer!H148 -> 0 | M188: =Buffer!I148 -> 0 | N188: =Buffer!J148 -> 0 | O188: =Buffer!K148 -> 0 | P188: =Buffer!L148 -> 0 | Q188: =Buffer!M148 -> 0 | R188: =Buffer!N148 -> 0 | S188: =Buffer!O148 -> 0 | T188: =Buffer!P148 -> 0 | U188: =Buffer!Q148 -> 0 | V188: =Buffer!R148 -> 0 | W188: =Buffer!S148 -> 0 | X188: =Buffer!T148 -> 0 | Y188: =Buffer!U148 -> 0 | Z188: =Buffer!V148 -> 0 | AA188: =Buffer!W148 -> 0 | AB188: =Buffer!X148 -> 0 | AC188: =Buffer!Y148 -> 0 | AD188: =Buffer!Z148 -> 0 | AE188: =Buffer!AA148 -> 0 | AF188: =Buffer!AB148 -> 0 | AG188: =Buffer!AC148 -> 0 | AH188: =Buffer!AD148 -> 0 | AI188: =Buffer!AE148 -> 0 | AJ188: =Buffer!AF148 -> 0 | AK188: =Buffer!AG148 -> 0 | AL188: =Buffer!AH148 -> 0 | AM188: =Buffer!AI148 -> 0 | AN188: =Buffer!AJ148 -> 0 | AO188: =Buffer!AK148 -> 0 | AP188: =Buffer!AL148 -> 0 | AQ188: =Buffer!AM148 -> 0 | AR188: =Buffer!AN148 -> 0 | AS188: =Buffer!AO148 -> 0 | AT188: =Buffer!AP148 -> 0 | AU188: =Buffer!AQ148 -> 0 | AV188: =Buffer!AR148 -> 0 | AW188: =Buffer!AS148 -> 0 | AX188: =Buffer!AT148 -> 0 | AY188: =Buffer!AU148 -> 0 | AZ188: =Buffer!AV148 -> 0 | BA188: =Buffer!AW148 -> 0 | BB188: =Buffer!AX148 -> 0 | BC188: =Buffer!AY148 -> 0 | BD188: =Buffer!AZ148 -> 0 | BE188: =Buffer!BA148 -> 0 | BF188: =Buffer!BB148 -> 0 | BG188: =Buffer!BC148 -> 0 | BH188: =Buffer!BD148 -> 0 | BI188: =Buffer!BE148 -> 0 | BJ188: =Buffer!BF148 -> 0 | BK188: =Buffer!BG148 -> 0 | BL188: =Buffer!BH148 -> 0 | BM188: =Buffer!BI148 -> 0 | BN188: =Buffer!BJ148 -> 0 | BO188: =Buffer!BK148 -> 0 | BP188: =Buffer!BL148 -> 0 | BQ188: =Buffer!BM148 -> 0 | BR188: =Buffer!BN148 -> 0 | BS188: =Buffer!BO148 -> 0 | BT188: =Buffer!BP148 -> 0 | BU188: =Buffer!BQ148 -> 0 | BV188: =Buffer!BR148 -> 0 | BW188: =Buffer!BS148 -> 0 | BX188: =Buffer!BT148 -> 0 | BY188: =Buffer!BU148 -> 0 | BZ188: =Buffer!BV148 -> 0 | CA188: =Buffer!BW148 -> 0 | CB188: =Buffer!BX148 -> 0 | CC188: =Buffer!BY148 -> 0 | CD188: =Buffer!BZ148 -> 0 | CE188: =Buffer!CA148 -> 0 | CF188: =Buffer!CB148 -> 0 | CG188: =Buffer!CC148 -> 0 | CH188: =Buffer!CD148 -> 0 | CI188: =Buffer!CE148 -> 0 | CJ188: =Buffer!CF148 -> 0 | CK188: =Buffer!CG148 -> 0 | CL188: =Buffer!CH148 -> 0 | CM188: =Buffer!CI148 -> 0 | CN188: =Buffer!CJ148 -> 0 | CO188: =Buffer!CK148 -> 0 | CP188: =Buffer!CL148 -> 0 | CQ188: =Buffer!CM148 -> 0 | CR188: =Buffer!CN148 -> 0 | CS188: =Buffer!CO148 -> 0 | CT188: =Buffer!CP148 -> 0 | CU188: =Buffer!CQ148 -> 0 | CV188: =Buffer!CR148 -> 0 | CW188: =Buffer!CS148 -> 0 | CX188: =Buffer!CT148 -> 0 | CY188: =Buffer!CU148 -> 0 | CZ188: =Buffer!CV148 -> 0 | DA188: =Buffer!CW148 -> 0 | DB188: =Buffer!CX148 -> 0 | DC188: =Buffer!CY148 -> 0 | DD188: =Buffer!CZ148 -> 0 | DE188: =Buffer!DA148 -> 0 | DF188: =Buffer!DB148 -> 0
A189: Physical Fitness | C189: 0 | D189: 0 | H189: =Buffer!D149 -> 0 | I189: =Buffer!E149 -> 0 | J189: =Buffer!F149 -> 0 | K189: =Buffer!G149 -> 0 | L189: =Buffer!H149 -> 0 | M189: =Buffer!I149 -> 0 | N189: =Buffer!J149 -> 0 | O189: =Buffer!K149 -> 0 | P189: =Buffer!L149 -> 0 | Q189: =Buffer!M149 -> 0 | R189: =Buffer!N149 -> 0 | S189: =Buffer!O149 -> 0 | T189: =Buffer!P149 -> 0 | U189: =Buffer!Q149 -> 0 | V189: =Buffer!R149 -> 0 | W189: =Buffer!S149 -> 0 | X189: =Buffer!T149 -> 0 | Y189: =Buffer!U149 -> 0 | Z189: =Buffer!V149 -> 0 | AA189: =Buffer!W149 -> 0 | AB189: =Buffer!X149 -> 0 | AC189: =Buffer!Y149 -> 0 | AD189: =Buffer!Z149 -> 0 | AE189: =Buffer!AA149 -> 0 | AF189: =Buffer!AB149 -> 0 | AG189: =Buffer!AC149 -> 0 | AH189: =Buffer!AD149 -> 0 | AI189: =Buffer!AE149 -> 0 | AJ189: =Buffer!AF149 -> 0 | AK189: =Buffer!AG149 -> 0 | AL189: =Buffer!AH149 -> 0 | AM189: =Buffer!AI149 -> 0 | AN189: =Buffer!AJ149 -> 0 | AO189: =Buffer!AK149 -> 0 | AP189: =Buffer!AL149 -> 0 | AQ189: =Buffer!AM149 -> 0 | AR189: =Buffer!AN149 -> 0 | AS189: =Buffer!AO149 -> 0 | AT189: =Buffer!AP149 -> 0 | AU189: =Buffer!AQ149 -> 0 | AV189: =Buffer!AR149 -> 0 | AW189: =Buffer!AS149 -> 0 | AX189: =Buffer!AT149 -> 0 | AY189: =Buffer!AU149 -> 0 | AZ189: =Buffer!AV149 -> 0 | BA189: =Buffer!AW149 -> 0 | BB189: =Buffer!AX149 -> 0 | BC189: =Buffer!AY149 -> 0 | BD189: =Buffer!AZ149 -> 0 | BE189: =Buffer!BA149 -> 0 | BF189: =Buffer!BB149 -> 0 | BG189: =Buffer!BC149 -> 0 | BH189: =Buffer!BD149 -> 0 | BI189: =Buffer!BE149 -> 0 | BJ189: =Buffer!BF149 -> 0 | BK189: =Buffer!BG149 -> 0 | BL189: =Buffer!BH149 -> 0 | BM189: =Buffer!BI149 -> 0 | BN189: =Buffer!BJ149 -> 0 | BO189: =Buffer!BK149 -> 0 | BP189: =Buffer!BL149 -> 0 | BQ189: =Buffer!BM149 -> 0 | BR189: =Buffer!BN149 -> 0 | BS189: =Buffer!BO149 -> 0 | BT189: =Buffer!BP149 -> 0 | BU189: =Buffer!BQ149 -> 0 | BV189: =Buffer!BR149 -> 0 | BW189: =Buffer!BS149 -> 0 | BX189: =Buffer!BT149 -> 0 | BY189: =Buffer!BU149 -> 0 | BZ189: =Buffer!BV149 -> 0 | CA189: =Buffer!BW149 -> 0 | CB189: =Buffer!BX149 -> 0 | CC189: =Buffer!BY149 -> 0 | CD189: =Buffer!BZ149 -> 0 | CE189: =Buffer!CA149 -> 0 | CF189: =Buffer!CB149 -> 0 | CG189: =Buffer!CC149 -> 0 | CH189: =Buffer!CD149 -> 0 | CI189: =Buffer!CE149 -> 0 | CJ189: =Buffer!CF149 -> 0 | CK189: =Buffer!CG149 -> 0 | CL189: =Buffer!CH149 -> 0 | CM189: =Buffer!CI149 -> 0 | CN189: =Buffer!CJ149 -> 0 | CO189: =Buffer!CK149 -> 0 | CP189: =Buffer!CL149 -> 0 | CQ189: =Buffer!CM149 -> 0 | CR189: =Buffer!CN149 -> 0 | CS189: =Buffer!CO149 -> 0 | CT189: =Buffer!CP149 -> 0 | CU189: =Buffer!CQ149 -> 0 | CV189: =Buffer!CR149 -> 0 | CW189: =Buffer!CS149 -> 0 | CX189: =Buffer!CT149 -> 0 | CY189: =Buffer!CU149 -> 0 | CZ189: =Buffer!CV149 -> 0 | DA189: =Buffer!CW149 -> 0 | DB189: =Buffer!CX149 -> 0 | DC189: =Buffer!CY149 -> 0 | DD189: =Buffer!CZ149 -> 0 | DE189: =Buffer!DA149 -> 0 | DF189: =Buffer!DB149 -> 0
A190: Dodging | C190: 0 | D190: 0 | H190: =Buffer!D150 -> 0 | I190: =Buffer!E150 -> 0 | J190: =Buffer!F150 -> 0 | K190: =Buffer!G150 -> 0 | L190: =Buffer!H150 -> 0 | M190: =Buffer!I150 -> 0 | N190: =Buffer!J150 -> 0 | O190: =Buffer!K150 -> 0 | P190: =Buffer!L150 -> 0 | Q190: =Buffer!M150 -> 0 | R190: =Buffer!N150 -> 0 | S190: =Buffer!O150 -> 0 | T190: =Buffer!P150 -> 0 | U190: =Buffer!Q150 -> 0 | V190: =Buffer!R150 -> 0 | W190: =Buffer!S150 -> 0 | X190: =Buffer!T150 -> 0 | Y190: =Buffer!U150 -> 0 | Z190: =Buffer!V150 -> 0 | AA190: =Buffer!W150 -> 0 | AB190: =Buffer!X150 -> 0 | AC190: =Buffer!Y150 -> 0 | AD190: =Buffer!Z150 -> 0 | AE190: =Buffer!AA150 -> 0 | AF190: =Buffer!AB150 -> 0 | AG190: =Buffer!AC150 -> 0 | AH190: =Buffer!AD150 -> 0 | AI190: =Buffer!AE150 -> 0 | AJ190: =Buffer!AF150 -> 0 | AK190: =Buffer!AG150 -> 0 | AL190: =Buffer!AH150 -> 0 | AM190: =Buffer!AI150 -> 0 | AN190: =Buffer!AJ150 -> 0 | AO190: =Buffer!AK150 -> 0 | AP190: =Buffer!AL150 -> 0 | AQ190: =Buffer!AM150 -> 0 | AR190: =Buffer!AN150 -> 0 | AS190: =Buffer!AO150 -> 0 | AT190: =Buffer!AP150 -> 0 | AU190: =Buffer!AQ150 -> 0 | AV190: =Buffer!AR150 -> 0 | AW190: =Buffer!AS150 -> 0 | AX190: =Buffer!AT150 -> 0 | AY190: =Buffer!AU150 -> 0 | AZ190: =Buffer!AV150 -> 0 | BA190: =Buffer!AW150 -> 0 | BB190: =Buffer!AX150 -> 0 | BC190: =Buffer!AY150 -> 0 | BD190: =Buffer!AZ150 -> 0 | BE190: =Buffer!BA150 -> 0 | BF190: =Buffer!BB150 -> 0 | BG190: =Buffer!BC150 -> 0 | BH190: =Buffer!BD150 -> 0 | BI190: =Buffer!BE150 -> 0 | BJ190: =Buffer!BF150 -> 0 | BK190: =Buffer!BG150 -> 0 | BL190: =Buffer!BH150 -> 0 | BM190: =Buffer!BI150 -> 0 | BN190: =Buffer!BJ150 -> 0 | BO190: =Buffer!BK150 -> 0 | BP190: =Buffer!BL150 -> 0 | BQ190: =Buffer!BM150 -> 0 | BR190: =Buffer!BN150 -> 0 | BS190: =Buffer!BO150 -> 0 | BT190: =Buffer!BP150 -> 0 | BU190: =Buffer!BQ150 -> 0 | BV190: =Buffer!BR150 -> 0 | BW190: =Buffer!BS150 -> 0 | BX190: =Buffer!BT150 -> 0 | BY190: =Buffer!BU150 -> 0 | BZ190: =Buffer!BV150 -> 0 | CA190: =Buffer!BW150 -> 0 | CB190: =Buffer!BX150 -> 0 | CC190: =Buffer!BY150 -> 0 | CD190: =Buffer!BZ150 -> 0 | CE190: =Buffer!CA150 -> 0 | CF190: =Buffer!CB150 -> 0 | CG190: =Buffer!CC150 -> 0 | CH190: =Buffer!CD150 -> 0 | CI190: =Buffer!CE150 -> 0 | CJ190: =Buffer!CF150 -> 0 | CK190: =Buffer!CG150 -> 0 | CL190: =Buffer!CH150 -> 0 | CM190: =Buffer!CI150 -> 0 | CN190: =Buffer!CJ150 -> 0 | CO190: =Buffer!CK150 -> 0 | CP190: =Buffer!CL150 -> 0 | CQ190: =Buffer!CM150 -> 0 | CR190: =Buffer!CN150 -> 0 | CS190: =Buffer!CO150 -> 0 | CT190: =Buffer!CP150 -> 0 | CU190: =Buffer!CQ150 -> 0 | CV190: =Buffer!CR150 -> 0 | CW190: =Buffer!CS150 -> 0 | CX190: =Buffer!CT150 -> 0 | CY190: =Buffer!CU150 -> 0 | CZ190: =Buffer!CV150 -> 0 | DA190: =Buffer!CW150 -> 0 | DB190: =Buffer!CX150 -> 0 | DC190: =Buffer!CY150 -> 0 | DD190: =Buffer!CZ150 -> 0 | DE190: =Buffer!DA150 -> 0 | DF190: =Buffer!DB150 -> 0
A191: Climbing | C191: 0 | D191: 0 | H191: =Buffer!D151 -> 0 | I191: =Buffer!E151 -> 0 | J191: =Buffer!F151 -> 0 | K191: =Buffer!G151 -> 0 | L191: =Buffer!H151 -> 0 | M191: =Buffer!I151 -> 0 | N191: =Buffer!J151 -> 0 | O191: =Buffer!K151 -> 0 | P191: =Buffer!L151 -> 0 | Q191: =Buffer!M151 -> 0 | R191: =Buffer!N151 -> 0 | S191: =Buffer!O151 -> 0 | T191: =Buffer!P151 -> 0 | U191: =Buffer!Q151 -> 0 | V191: =Buffer!R151 -> 0 | W191: =Buffer!S151 -> 0 | X191: =Buffer!T151 -> 0 | Y191: =Buffer!U151 -> 0 | Z191: =Buffer!V151 -> 0 | AA191: =Buffer!W151 -> 0 | AB191: =Buffer!X151 -> 0 | AC191: =Buffer!Y151 -> 0 | AD191: =Buffer!Z151 -> 0 | AE191: =Buffer!AA151 -> 0 | AF191: =Buffer!AB151 -> 0 | AG191: =Buffer!AC151 -> 0 | AH191: =Buffer!AD151 -> 0 | AI191: =Buffer!AE151 -> 0 | AJ191: =Buffer!AF151 -> 0 | AK191: =Buffer!AG151 -> 0 | AL191: =Buffer!AH151 -> 0 | AM191: =Buffer!AI151 -> 0 | AN191: =Buffer!AJ151 -> 0 | AO191: =Buffer!AK151 -> 0 | AP191: =Buffer!AL151 -> 0 | AQ191: =Buffer!AM151 -> 0 | AR191: =Buffer!AN151 -> 0 | AS191: =Buffer!AO151 -> 0 | AT191: =Buffer!AP151 -> 0 | AU191: =Buffer!AQ151 -> 0 | AV191: =Buffer!AR151 -> 0 | AW191: =Buffer!AS151 -> 0 | AX191: =Buffer!AT151 -> 0 | AY191: =Buffer!AU151 -> 0 | AZ191: =Buffer!AV151 -> 0 | BA191: =Buffer!AW151 -> 0 | BB191: =Buffer!AX151 -> 0 | BC191: =Buffer!AY151 -> 0 | BD191: =Buffer!AZ151 -> 0 | BE191: =Buffer!BA151 -> 0 | BF191: =Buffer!BB151 -> 0 | BG191: =Buffer!BC151 -> 0 | BH191: =Buffer!BD151 -> 0 | BI191: =Buffer!BE151 -> 0 | BJ191: =Buffer!BF151 -> 0 | BK191: =Buffer!BG151 -> 0 | BL191: =Buffer!BH151 -> 0 | BM191: =Buffer!BI151 -> 0 | BN191: =Buffer!BJ151 -> 0 | BO191: =Buffer!BK151 -> 0 | BP191: =Buffer!BL151 -> 0 | BQ191: =Buffer!BM151 -> 0 | BR191: =Buffer!BN151 -> 0 | BS191: =Buffer!BO151 -> 0 | BT191: =Buffer!BP151 -> 0 | BU191: =Buffer!BQ151 -> 0 | BV191: =Buffer!BR151 -> 0 | BW191: =Buffer!BS151 -> 0 | BX191: =Buffer!BT151 -> 0 | BY191: =Buffer!BU151 -> 0 | BZ191: =Buffer!BV151 -> 0 | CA191: =Buffer!BW151 -> 0 | CB191: =Buffer!BX151 -> 0 | CC191: =Buffer!BY151 -> 0 | CD191: =Buffer!BZ151 -> 0 | CE191: =Buffer!CA151 -> 0 | CF191: =Buffer!CB151 -> 0 | CG191: =Buffer!CC151 -> 0 | CH191: =Buffer!CD151 -> 0 | CI191: =Buffer!CE151 -> 0 | CJ191: =Buffer!CF151 -> 0 | CK191: =Buffer!CG151 -> 0 | CL191: =Buffer!CH151 -> 0 | CM191: =Buffer!CI151 -> 0 | CN191: =Buffer!CJ151 -> 0 | CO191: =Buffer!CK151 -> 0 | CP191: =Buffer!CL151 -> 0 | CQ191: =Buffer!CM151 -> 0 | CR191: =Buffer!CN151 -> 0 | CS191: =Buffer!CO151 -> 0 | CT191: =Buffer!CP151 -> 0 | CU191: =Buffer!CQ151 -> 0 | CV191: =Buffer!CR151 -> 0 | CW191: =Buffer!CS151 -> 0 | CX191: =Buffer!CT151 -> 0 | CY191: =Buffer!CU151 -> 0 | CZ191: =Buffer!CV151 -> 0 | DA191: =Buffer!CW151 -> 0 | DB191: =Buffer!CX151 -> 0 | DC191: =Buffer!CY151 -> 0 | DD191: =Buffer!CZ151 -> 0 | DE191: =Buffer!DA151 -> 0 | DF191: =Buffer!DB151 -> 0
A192: Swimming | C192: 0 | D192: 0 | H192: =Buffer!D152 -> 0 | I192: =Buffer!E152 -> 0 | J192: =Buffer!F152 -> 0 | K192: =Buffer!G152 -> 0 | L192: =Buffer!H152 -> 0 | M192: =Buffer!I152 -> 0 | N192: =Buffer!J152 -> 0 | O192: =Buffer!K152 -> 0 | P192: =Buffer!L152 -> 0 | Q192: =Buffer!M152 -> 0 | R192: =Buffer!N152 -> 0 | S192: =Buffer!O152 -> 0 | T192: =Buffer!P152 -> 0 | U192: =Buffer!Q152 -> 0 | V192: =Buffer!R152 -> 0 | W192: =Buffer!S152 -> 0 | X192: =Buffer!T152 -> 0 | Y192: =Buffer!U152 -> 0 | Z192: =Buffer!V152 -> 0 | AA192: =Buffer!W152 -> 0 | AB192: =Buffer!X152 -> 0 | AC192: =Buffer!Y152 -> 0 | AD192: =Buffer!Z152 -> 0 | AE192: =Buffer!AA152 -> 0 | AF192: =Buffer!AB152 -> 0 | AG192: =Buffer!AC152 -> 0 | AH192: =Buffer!AD152 -> 0 | AI192: =Buffer!AE152 -> 0 | AJ192: =Buffer!AF152 -> 0 | AK192: =Buffer!AG152 -> 0 | AL192: =Buffer!AH152 -> 0 | AM192: =Buffer!AI152 -> 0 | AN192: =Buffer!AJ152 -> 0 | AO192: =Buffer!AK152 -> 0 | AP192: =Buffer!AL152 -> 0 | AQ192: =Buffer!AM152 -> 0 | AR192: =Buffer!AN152 -> 0 | AS192: =Buffer!AO152 -> 0 | AT192: =Buffer!AP152 -> 0 | AU192: =Buffer!AQ152 -> 0 | AV192: =Buffer!AR152 -> 0 | AW192: =Buffer!AS152 -> 0 | AX192: =Buffer!AT152 -> 0 | AY192: =Buffer!AU152 -> 0 | AZ192: =Buffer!AV152 -> 0 | BA192: =Buffer!AW152 -> 0 | BB192: =Buffer!AX152 -> 0 | BC192: =Buffer!AY152 -> 0 | BD192: =Buffer!AZ152 -> 0 | BE192: =Buffer!BA152 -> 0 | BF192: =Buffer!BB152 -> 0 | BG192: =Buffer!BC152 -> 0 | BH192: =Buffer!BD152 -> 0 | BI192: =Buffer!BE152 -> 0 | BJ192: =Buffer!BF152 -> 0 | BK192: =Buffer!BG152 -> 0 | BL192: =Buffer!BH152 -> 0 | BM192: =Buffer!BI152 -> 0 | BN192: =Buffer!BJ152 -> 0 | BO192: =Buffer!BK152 -> 0 | BP192: =Buffer!BL152 -> 0 | BQ192: =Buffer!BM152 -> 0 | BR192: =Buffer!BN152 -> 0 | BS192: =Buffer!BO152 -> 0 | BT192: =Buffer!BP152 -> 0 | BU192: =Buffer!BQ152 -> 0 | BV192: =Buffer!BR152 -> 0 | BW192: =Buffer!BS152 -> 0 | BX192: =Buffer!BT152 -> 0 | BY192: =Buffer!BU152 -> 0 | BZ192: =Buffer!BV152 -> 0 | CA192: =Buffer!BW152 -> 0 | CB192: =Buffer!BX152 -> 0 | CC192: =Buffer!BY152 -> 0 | CD192: =Buffer!BZ152 -> 0 | CE192: =Buffer!CA152 -> 0 | CF192: =Buffer!CB152 -> 0 | CG192: =Buffer!CC152 -> 0 | CH192: =Buffer!CD152 -> 0 | CI192: =Buffer!CE152 -> 0 | CJ192: =Buffer!CF152 -> 0 | CK192: =Buffer!CG152 -> 0 | CL192: =Buffer!CH152 -> 0 | CM192: =Buffer!CI152 -> 0 | CN192: =Buffer!CJ152 -> 0 | CO192: =Buffer!CK152 -> 0 | CP192: =Buffer!CL152 -> 0 | CQ192: =Buffer!CM152 -> 0 | CR192: =Buffer!CN152 -> 0 | CS192: =Buffer!CO152 -> 0 | CT192: =Buffer!CP152 -> 0 | CU192: =Buffer!CQ152 -> 0 | CV192: =Buffer!CR152 -> 0 | CW192: =Buffer!CS152 -> 0 | CX192: =Buffer!CT152 -> 0 | CY192: =Buffer!CU152 -> 0 | CZ192: =Buffer!CV152 -> 0 | DA192: =Buffer!CW152 -> 0 | DB192: =Buffer!CX152 -> 0 | DC192: =Buffer!CY152 -> 0 | DD192: =Buffer!CZ152 -> 0 | DE192: =Buffer!DA152 -> 0 | DF192: =Buffer!DB152 -> 0
A193: Disarm Traps | C193: 0 | D193: 0 | H193: =Buffer!D153 -> 0 | I193: =Buffer!E153 -> 0 | J193: =Buffer!F153 -> 0 | K193: =Buffer!G153 -> 0 | L193: =Buffer!H153 -> 0 | M193: =Buffer!I153 -> 0 | N193: =Buffer!J153 -> 0 | O193: =Buffer!K153 -> 0 | P193: =Buffer!L153 -> 0 | Q193: =Buffer!M153 -> 0 | R193: =Buffer!N153 -> 0 | S193: =Buffer!O153 -> 0 | T193: =Buffer!P153 -> 0 | U193: =Buffer!Q153 -> 0 | V193: =Buffer!R153 -> 0 | W193: =Buffer!S153 -> 0 | X193: =Buffer!T153 -> 0 | Y193: =Buffer!U153 -> 0 | Z193: =Buffer!V153 -> 0 | AA193: =Buffer!W153 -> 0 | AB193: =Buffer!X153 -> 0 | AC193: =Buffer!Y153 -> 0 | AD193: =Buffer!Z153 -> 0 | AE193: =Buffer!AA153 -> 0 | AF193: =Buffer!AB153 -> 0 | AG193: =Buffer!AC153 -> 0 | AH193: =Buffer!AD153 -> 0 | AI193: =Buffer!AE153 -> 0 | AJ193: =Buffer!AF153 -> 0 | AK193: =Buffer!AG153 -> 0 | AL193: =Buffer!AH153 -> 0 | AM193: =Buffer!AI153 -> 0 | AN193: =Buffer!AJ153 -> 0 | AO193: =Buffer!AK153 -> 0 | AP193: =Buffer!AL153 -> 0 | AQ193: =Buffer!AM153 -> 0 | AR193: =Buffer!AN153 -> 0 | AS193: =Buffer!AO153 -> 0 | AT193: =Buffer!AP153 -> 0 | AU193: =Buffer!AQ153 -> 0 | AV193: =Buffer!AR153 -> 0 | AW193: =Buffer!AS153 -> 0 | AX193: =Buffer!AT153 -> 0 | AY193: =Buffer!AU153 -> 0 | AZ193: =Buffer!AV153 -> 0 | BA193: =Buffer!AW153 -> 0 | BB193: =Buffer!AX153 -> 0 | BC193: =Buffer!AY153 -> 0 | BD193: =Buffer!AZ153 -> 0 | BE193: =Buffer!BA153 -> 0 | BF193: =Buffer!BB153 -> 0 | BG193: =Buffer!BC153 -> 0 | BH193: =Buffer!BD153 -> 0 | BI193: =Buffer!BE153 -> 0 | BJ193: =Buffer!BF153 -> 0 | BK193: =Buffer!BG153 -> 0 | BL193: =Buffer!BH153 -> 0 | BM193: =Buffer!BI153 -> 0 | BN193: =Buffer!BJ153 -> 0 | BO193: =Buffer!BK153 -> 0 | BP193: =Buffer!BL153 -> 0 | BQ193: =Buffer!BM153 -> 0 | BR193: =Buffer!BN153 -> 0 | BS193: =Buffer!BO153 -> 0 | BT193: =Buffer!BP153 -> 0 | BU193: =Buffer!BQ153 -> 0 | BV193: =Buffer!BR153 -> 0 | BW193: =Buffer!BS153 -> 0 | BX193: =Buffer!BT153 -> 0 | BY193: =Buffer!BU153 -> 0 | BZ193: =Buffer!BV153 -> 0 | CA193: =Buffer!BW153 -> 0 | CB193: =Buffer!BX153 -> 0 | CC193: =Buffer!BY153 -> 0 | CD193: =Buffer!BZ153 -> 0 | CE193: =Buffer!CA153 -> 0 | CF193: =Buffer!CB153 -> 0 | CG193: =Buffer!CC153 -> 0 | CH193: =Buffer!CD153 -> 0 | CI193: =Buffer!CE153 -> 0 | CJ193: =Buffer!CF153 -> 0 | CK193: =Buffer!CG153 -> 0 | CL193: =Buffer!CH153 -> 0 | CM193: =Buffer!CI153 -> 0 | CN193: =Buffer!CJ153 -> 0 | CO193: =Buffer!CK153 -> 0 | CP193: =Buffer!CL153 -> 0 | CQ193: =Buffer!CM153 -> 0 | CR193: =Buffer!CN153 -> 0 | CS193: =Buffer!CO153 -> 0 | CT193: =Buffer!CP153 -> 0 | CU193: =Buffer!CQ153 -> 0 | CV193: =Buffer!CR153 -> 0 | CW193: =Buffer!CS153 -> 0 | CX193: =Buffer!CT153 -> 0 | CY193: =Buffer!CU153 -> 0 | CZ193: =Buffer!CV153 -> 0 | DA193: =Buffer!CW153 -> 0 | DB193: =Buffer!CX153 -> 0 | DC193: =Buffer!CY153 -> 0 | DD193: =Buffer!CZ153 -> 0 | DE193: =Buffer!DA153 -> 0 | DF193: =Buffer!DB153 -> 0
A194: Picking Locks | C194: 0 | D194: 0 | H194: =Buffer!D154 -> 0 | I194: =Buffer!E154 -> 0 | J194: =Buffer!F154 -> 0 | K194: =Buffer!G154 -> 0 | L194: =Buffer!H154 -> 0 | M194: =Buffer!I154 -> 0 | N194: =Buffer!J154 -> 0 | O194: =Buffer!K154 -> 0 | P194: =Buffer!L154 -> 0 | Q194: =Buffer!M154 -> 0 | R194: =Buffer!N154 -> 0 | S194: =Buffer!O154 -> 0 | T194: =Buffer!P154 -> 0 | U194: =Buffer!Q154 -> 0 | V194: =Buffer!R154 -> 0 | W194: =Buffer!S154 -> 0 | X194: =Buffer!T154 -> 0 | Y194: =Buffer!U154 -> 0 | Z194: =Buffer!V154 -> 0 | AA194: =Buffer!W154 -> 0 | AB194: =Buffer!X154 -> 0 | AC194: =Buffer!Y154 -> 0 | AD194: =Buffer!Z154 -> 0 | AE194: =Buffer!AA154 -> 0 | AF194: =Buffer!AB154 -> 0 | AG194: =Buffer!AC154 -> 0 | AH194: =Buffer!AD154 -> 0 | AI194: =Buffer!AE154 -> 0 | AJ194: =Buffer!AF154 -> 0 | AK194: =Buffer!AG154 -> 0 | AL194: =Buffer!AH154 -> 0 | AM194: =Buffer!AI154 -> 0 | AN194: =Buffer!AJ154 -> 0 | AO194: =Buffer!AK154 -> 0 | AP194: =Buffer!AL154 -> 0 | AQ194: =Buffer!AM154 -> 0 | AR194: =Buffer!AN154 -> 0 | AS194: =Buffer!AO154 -> 0 | AT194: =Buffer!AP154 -> 0 | AU194: =Buffer!AQ154 -> 0 | AV194: =Buffer!AR154 -> 0 | AW194: =Buffer!AS154 -> 0 | AX194: =Buffer!AT154 -> 0 | AY194: =Buffer!AU154 -> 0 | AZ194: =Buffer!AV154 -> 0 | BA194: =Buffer!AW154 -> 0 | BB194: =Buffer!AX154 -> 0 | BC194: =Buffer!AY154 -> 0 | BD194: =Buffer!AZ154 -> 0 | BE194: =Buffer!BA154 -> 0 | BF194: =Buffer!BB154 -> 0 | BG194: =Buffer!BC154 -> 0 | BH194: =Buffer!BD154 -> 0 | BI194: =Buffer!BE154 -> 0 | BJ194: =Buffer!BF154 -> 0 | BK194: =Buffer!BG154 -> 0 | BL194: =Buffer!BH154 -> 0 | BM194: =Buffer!BI154 -> 0 | BN194: =Buffer!BJ154 -> 0 | BO194: =Buffer!BK154 -> 0 | BP194: =Buffer!BL154 -> 0 | BQ194: =Buffer!BM154 -> 0 | BR194: =Buffer!BN154 -> 0 | BS194: =Buffer!BO154 -> 0 | BT194: =Buffer!BP154 -> 0 | BU194: =Buffer!BQ154 -> 0 | BV194: =Buffer!BR154 -> 0 | BW194: =Buffer!BS154 -> 0 | BX194: =Buffer!BT154 -> 0 | BY194: =Buffer!BU154 -> 0 | BZ194: =Buffer!BV154 -> 0 | CA194: =Buffer!BW154 -> 0 | CB194: =Buffer!BX154 -> 0 | CC194: =Buffer!BY154 -> 0 | CD194: =Buffer!BZ154 -> 0 | CE194: =Buffer!CA154 -> 0 | CF194: =Buffer!CB154 -> 0 | CG194: =Buffer!CC154 -> 0 | CH194: =Buffer!CD154 -> 0 | CI194: =Buffer!CE154 -> 0 | CJ194: =Buffer!CF154 -> 0 | CK194: =Buffer!CG154 -> 0 | CL194: =Buffer!CH154 -> 0 | CM194: =Buffer!CI154 -> 0 | CN194: =Buffer!CJ154 -> 0 | CO194: =Buffer!CK154 -> 0 | CP194: =Buffer!CL154 -> 0 | CQ194: =Buffer!CM154 -> 0 | CR194: =Buffer!CN154 -> 0 | CS194: =Buffer!CO154 -> 0 | CT194: =Buffer!CP154 -> 0 | CU194: =Buffer!CQ154 -> 0 | CV194: =Buffer!CR154 -> 0 | CW194: =Buffer!CS154 -> 0 | CX194: =Buffer!CT154 -> 0 | CY194: =Buffer!CU154 -> 0 | CZ194: =Buffer!CV154 -> 0 | DA194: =Buffer!CW154 -> 0 | DB194: =Buffer!CX154 -> 0 | DC194: =Buffer!CY154 -> 0 | DD194: =Buffer!CZ154 -> 0 | DE194: =Buffer!DA154 -> 0 | DF194: =Buffer!DB154 -> 0
A195: Stalking and Hiding | C195: 0 | D195: 0 | H195: =Buffer!D155 -> 0 | I195: =Buffer!E155 -> 0 | J195: =Buffer!F155 -> 0 | K195: =Buffer!G155 -> 0 | L195: =Buffer!H155 -> 0 | M195: =Buffer!I155 -> 0 | N195: =Buffer!J155 -> 0 | O195: =Buffer!K155 -> 0 | P195: =Buffer!L155 -> 0 | Q195: =Buffer!M155 -> 0 | R195: =Buffer!N155 -> 0 | S195: =Buffer!O155 -> 0 | T195: =Buffer!P155 -> 0 | U195: =Buffer!Q155 -> 0 | V195: =Buffer!R155 -> 0 | W195: =Buffer!S155 -> 0 | X195: =Buffer!T155 -> 0 | Y195: =Buffer!U155 -> 0 | Z195: =Buffer!V155 -> 0 | AA195: =Buffer!W155 -> 0 | AB195: =Buffer!X155 -> 0 | AC195: =Buffer!Y155 -> 0 | AD195: =Buffer!Z155 -> 0 | AE195: =Buffer!AA155 -> 0 | AF195: =Buffer!AB155 -> 0 | AG195: =Buffer!AC155 -> 0 | AH195: =Buffer!AD155 -> 0 | AI195: =Buffer!AE155 -> 0 | AJ195: =Buffer!AF155 -> 0 | AK195: =Buffer!AG155 -> 0 | AL195: =Buffer!AH155 -> 0 | AM195: =Buffer!AI155 -> 0 | AN195: =Buffer!AJ155 -> 0 | AO195: =Buffer!AK155 -> 0 | AP195: =Buffer!AL155 -> 0 | AQ195: =Buffer!AM155 -> 0 | AR195: =Buffer!AN155 -> 0 | AS195: =Buffer!AO155 -> 0 | AT195: =Buffer!AP155 -> 0 | AU195: =Buffer!AQ155 -> 0 | AV195: =Buffer!AR155 -> 0 | AW195: =Buffer!AS155 -> 0 | AX195: =Buffer!AT155 -> 0 | AY195: =Buffer!AU155 -> 0 | AZ195: =Buffer!AV155 -> 0 | BA195: =Buffer!AW155 -> 0 | BB195: =Buffer!AX155 -> 0 | BC195: =Buffer!AY155 -> 0 | BD195: =Buffer!AZ155 -> 0 | BE195: =Buffer!BA155 -> 0 | BF195: =Buffer!BB155 -> 0 | BG195: =Buffer!BC155 -> 0 | BH195: =Buffer!BD155 -> 0 | BI195: =Buffer!BE155 -> 0 | BJ195: =Buffer!BF155 -> 0 | BK195: =Buffer!BG155 -> 0 | BL195: =Buffer!BH155 -> 0 | BM195: =Buffer!BI155 -> 0 | BN195: =Buffer!BJ155 -> 0 | BO195: =Buffer!BK155 -> 0 | BP195: =Buffer!BL155 -> 0 | BQ195: =Buffer!BM155 -> 0 | BR195: =Buffer!BN155 -> 0 | BS195: =Buffer!BO155 -> 0 | BT195: =Buffer!BP155 -> 0 | BU195: =Buffer!BQ155 -> 0 | BV195: =Buffer!BR155 -> 0 | BW195: =Buffer!BS155 -> 0 | BX195: =Buffer!BT155 -> 0 | BY195: =Buffer!BU155 -> 0 | BZ195: =Buffer!BV155 -> 0 | CA195: =Buffer!BW155 -> 0 | CB195: =Buffer!BX155 -> 0 | CC195: =Buffer!BY155 -> 0 | CD195: =Buffer!BZ155 -> 0 | CE195: =Buffer!CA155 -> 0 | CF195: =Buffer!CB155 -> 0 | CG195: =Buffer!CC155 -> 0 | CH195: =Buffer!CD155 -> 0 | CI195: =Buffer!CE155 -> 0 | CJ195: =Buffer!CF155 -> 0 | CK195: =Buffer!CG155 -> 0 | CL195: =Buffer!CH155 -> 0 | CM195: =Buffer!CI155 -> 0 | CN195: =Buffer!CJ155 -> 0 | CO195: =Buffer!CK155 -> 0 | CP195: =Buffer!CL155 -> 0 | CQ195: =Buffer!CM155 -> 0 | CR195: =Buffer!CN155 -> 0 | CS195: =Buffer!CO155 -> 0 | CT195: =Buffer!CP155 -> 0 | CU195: =Buffer!CQ155 -> 0 | CV195: =Buffer!CR155 -> 0 | CW195: =Buffer!CS155 -> 0 | CX195: =Buffer!CT155 -> 0 | CY195: =Buffer!CU155 -> 0 | CZ195: =Buffer!CV155 -> 0 | DA195: =Buffer!CW155 -> 0 | DB195: =Buffer!CX155 -> 0 | DC195: =Buffer!CY155 -> 0 | DD195: =Buffer!CZ155 -> 0 | DE195: =Buffer!DA155 -> 0 | DF195: =Buffer!DB155 -> 0
A196: Perception | C196: 0 | D196: 0 | H196: =Buffer!D156 -> 0 | I196: =Buffer!E156 -> 0 | J196: =Buffer!F156 -> 0 | K196: =Buffer!G156 -> 0 | L196: =Buffer!H156 -> 0 | M196: =Buffer!I156 -> 0 | N196: =Buffer!J156 -> 0 | O196: =Buffer!K156 -> 0 | P196: =Buffer!L156 -> 0 | Q196: =Buffer!M156 -> 0 | R196: =Buffer!N156 -> 0 | S196: =Buffer!O156 -> 0 | T196: =Buffer!P156 -> 0 | U196: =Buffer!Q156 -> 0 | V196: =Buffer!R156 -> 0 | W196: =Buffer!S156 -> 0 | X196: =Buffer!T156 -> 0 | Y196: =Buffer!U156 -> 0 | Z196: =Buffer!V156 -> 0 | AA196: =Buffer!W156 -> 0 | AB196: =Buffer!X156 -> 0 | AC196: =Buffer!Y156 -> 0 | AD196: =Buffer!Z156 -> 0 | AE196: =Buffer!AA156 -> 0 | AF196: =Buffer!AB156 -> 0 | AG196: =Buffer!AC156 -> 0 | AH196: =Buffer!AD156 -> 0 | AI196: =Buffer!AE156 -> 0 | AJ196: =Buffer!AF156 -> 0 | AK196: =Buffer!AG156 -> 0 | AL196: =Buffer!AH156 -> 0 | AM196: =Buffer!AI156 -> 0 | AN196: =Buffer!AJ156 -> 0 | AO196: =Buffer!AK156 -> 0 | AP196: =Buffer!AL156 -> 0 | AQ196: =Buffer!AM156 -> 0 | AR196: =Buffer!AN156 -> 0 | AS196: =Buffer!AO156 -> 0 | AT196: =Buffer!AP156 -> 0 | AU196: =Buffer!AQ156 -> 0 | AV196: =Buffer!AR156 -> 0 | AW196: =Buffer!AS156 -> 0 | AX196: =Buffer!AT156 -> 0 | AY196: =Buffer!AU156 -> 0 | AZ196: =Buffer!AV156 -> 0 | BA196: =Buffer!AW156 -> 0 | BB196: =Buffer!AX156 -> 0 | BC196: =Buffer!AY156 -> 0 | BD196: =Buffer!AZ156 -> 0 | BE196: =Buffer!BA156 -> 0 | BF196: =Buffer!BB156 -> 0 | BG196: =Buffer!BC156 -> 0 | BH196: =Buffer!BD156 -> 0 | BI196: =Buffer!BE156 -> 0 | BJ196: =Buffer!BF156 -> 0 | BK196: =Buffer!BG156 -> 0 | BL196: =Buffer!BH156 -> 0 | BM196: =Buffer!BI156 -> 0 | BN196: =Buffer!BJ156 -> 0 | BO196: =Buffer!BK156 -> 0 | BP196: =Buffer!BL156 -> 0 | BQ196: =Buffer!BM156 -> 0 | BR196: =Buffer!BN156 -> 0 | BS196: =Buffer!BO156 -> 0 | BT196: =Buffer!BP156 -> 0 | BU196: =Buffer!BQ156 -> 0 | BV196: =Buffer!BR156 -> 0 | BW196: =Buffer!BS156 -> 0 | BX196: =Buffer!BT156 -> 0 | BY196: =Buffer!BU156 -> 0 | BZ196: =Buffer!BV156 -> 0 | CA196: =Buffer!BW156 -> 0 | CB196: =Buffer!BX156 -> 0 | CC196: =Buffer!BY156 -> 0 | CD196: =Buffer!BZ156 -> 0 | CE196: =Buffer!CA156 -> 0 | CF196: =Buffer!CB156 -> 0 | CG196: =Buffer!CC156 -> 0 | CH196: =Buffer!CD156 -> 0 | CI196: =Buffer!CE156 -> 0 | CJ196: =Buffer!CF156 -> 0 | CK196: =Buffer!CG156 -> 0 | CL196: =Buffer!CH156 -> 0 | CM196: =Buffer!CI156 -> 0 | CN196: =Buffer!CJ156 -> 0 | CO196: =Buffer!CK156 -> 0 | CP196: =Buffer!CL156 -> 0 | CQ196: =Buffer!CM156 -> 0 | CR196: =Buffer!CN156 -> 0 | CS196: =Buffer!CO156 -> 0 | CT196: =Buffer!CP156 -> 0 | CU196: =Buffer!CQ156 -> 0 | CV196: =Buffer!CR156 -> 0 | CW196: =Buffer!CS156 -> 0 | CX196: =Buffer!CT156 -> 0 | CY196: =Buffer!CU156 -> 0 | CZ196: =Buffer!CV156 -> 0 | DA196: =Buffer!CW156 -> 0 | DB196: =Buffer!CX156 -> 0 | DC196: =Buffer!CY156 -> 0 | DD196: =Buffer!CZ156 -> 0 | DE196: =Buffer!DA156 -> 0 | DF196: =Buffer!DB156 -> 0
A197: First Aid | C197: 0 | D197: 0 | H197: =Buffer!D157 -> 0 | I197: =Buffer!E157 -> 0 | J197: =Buffer!F157 -> 0 | K197: =Buffer!G157 -> 0 | L197: =Buffer!H157 -> 0 | M197: =Buffer!I157 -> 0 | N197: =Buffer!J157 -> 0 | O197: =Buffer!K157 -> 0 | P197: =Buffer!L157 -> 0 | Q197: =Buffer!M157 -> 0 | R197: =Buffer!N157 -> 0 | S197: =Buffer!O157 -> 0 | T197: =Buffer!P157 -> 0 | U197: =Buffer!Q157 -> 0 | V197: =Buffer!R157 -> 0 | W197: =Buffer!S157 -> 0 | X197: =Buffer!T157 -> 0 | Y197: =Buffer!U157 -> 0 | Z197: =Buffer!V157 -> 0 | AA197: =Buffer!W157 -> 0 | AB197: =Buffer!X157 -> 0 | AC197: =Buffer!Y157 -> 0 | AD197: =Buffer!Z157 -> 0 | AE197: =Buffer!AA157 -> 0 | AF197: =Buffer!AB157 -> 0 | AG197: =Buffer!AC157 -> 0 | AH197: =Buffer!AD157 -> 0 | AI197: =Buffer!AE157 -> 0 | AJ197: =Buffer!AF157 -> 0 | AK197: =Buffer!AG157 -> 0 | AL197: =Buffer!AH157 -> 0 | AM197: =Buffer!AI157 -> 0 | AN197: =Buffer!AJ157 -> 0 | AO197: =Buffer!AK157 -> 0 | AP197: =Buffer!AL157 -> 0 | AQ197: =Buffer!AM157 -> 0 | AR197: =Buffer!AN157 -> 0 | AS197: =Buffer!AO157 -> 0 | AT197: =Buffer!AP157 -> 0 | AU197: =Buffer!AQ157 -> 0 | AV197: =Buffer!AR157 -> 0 | AW197: =Buffer!AS157 -> 0 | AX197: =Buffer!AT157 -> 0 | AY197: =Buffer!AU157 -> 0 | AZ197: =Buffer!AV157 -> 0 | BA197: =Buffer!AW157 -> 0 | BB197: =Buffer!AX157 -> 0 | BC197: =Buffer!AY157 -> 0 | BD197: =Buffer!AZ157 -> 0 | BE197: =Buffer!BA157 -> 0 | BF197: =Buffer!BB157 -> 0 | BG197: =Buffer!BC157 -> 0 | BH197: =Buffer!BD157 -> 0 | BI197: =Buffer!BE157 -> 0 | BJ197: =Buffer!BF157 -> 0 | BK197: =Buffer!BG157 -> 0 | BL197: =Buffer!BH157 -> 0 | BM197: =Buffer!BI157 -> 0 | BN197: =Buffer!BJ157 -> 0 | BO197: =Buffer!BK157 -> 0 | BP197: =Buffer!BL157 -> 0 | BQ197: =Buffer!BM157 -> 0 | BR197: =Buffer!BN157 -> 0 | BS197: =Buffer!BO157 -> 0 | BT197: =Buffer!BP157 -> 0 | BU197: =Buffer!BQ157 -> 0 | BV197: =Buffer!BR157 -> 0 | BW197: =Buffer!BS157 -> 0 | BX197: =Buffer!BT157 -> 0 | BY197: =Buffer!BU157 -> 0 | BZ197: =Buffer!BV157 -> 0 | CA197: =Buffer!BW157 -> 0 | CB197: =Buffer!BX157 -> 0 | CC197: =Buffer!BY157 -> 0 | CD197: =Buffer!BZ157 -> 0 | CE197: =Buffer!CA157 -> 0 | CF197: =Buffer!CB157 -> 0 | CG197: =Buffer!CC157 -> 0 | CH197: =Buffer!CD157 -> 0 | CI197: =Buffer!CE157 -> 0 | CJ197: =Buffer!CF157 -> 0 | CK197: =Buffer!CG157 -> 0 | CL197: =Buffer!CH157 -> 0 | CM197: =Buffer!CI157 -> 0 | CN197: =Buffer!CJ157 -> 0 | CO197: =Buffer!CK157 -> 0 | CP197: =Buffer!CL157 -> 0 | CQ197: =Buffer!CM157 -> 0 | CR197: =Buffer!CN157 -> 0 | CS197: =Buffer!CO157 -> 0 | CT197: =Buffer!CP157 -> 0 | CU197: =Buffer!CQ157 -> 0 | CV197: =Buffer!CR157 -> 0 | CW197: =Buffer!CS157 -> 0 | CX197: =Buffer!CT157 -> 0 | CY197: =Buffer!CU157 -> 0 | CZ197: =Buffer!CV157 -> 0 | DA197: =Buffer!CW157 -> 0 | DB197: =Buffer!CX157 -> 0 | DC197: =Buffer!CY157 -> 0 | DD197: =Buffer!CZ157 -> 0 | DE197: =Buffer!DA157 -> 0 | DF197: =Buffer!DB157 -> 0
A198: Trading | C198: 0 | D198: 0 | H198: =Buffer!D158 -> 0 | I198: =Buffer!E158 -> 0 | J198: =Buffer!F158 -> 0 | K198: =Buffer!G158 -> 0 | L198: =Buffer!H158 -> 0 | M198: =Buffer!I158 -> 0 | N198: =Buffer!J158 -> 0 | O198: =Buffer!K158 -> 0 | P198: =Buffer!L158 -> 0 | Q198: =Buffer!M158 -> 0 | R198: =Buffer!N158 -> 0 | S198: =Buffer!O158 -> 0 | T198: =Buffer!P158 -> 0 | U198: =Buffer!Q158 -> 0 | V198: =Buffer!R158 -> 0 | W198: =Buffer!S158 -> 0 | X198: =Buffer!T158 -> 0 | Y198: =Buffer!U158 -> 0 | Z198: =Buffer!V158 -> 0 | AA198: =Buffer!W158 -> 0 | AB198: =Buffer!X158 -> 0 | AC198: =Buffer!Y158 -> 0 | AD198: =Buffer!Z158 -> 0 | AE198: =Buffer!AA158 -> 0 | AF198: =Buffer!AB158 -> 0 | AG198: =Buffer!AC158 -> 0 | AH198: =Buffer!AD158 -> 0 | AI198: =Buffer!AE158 -> 0 | AJ198: =Buffer!AF158 -> 0 | AK198: =Buffer!AG158 -> 0 | AL198: =Buffer!AH158 -> 0 | AM198: =Buffer!AI158 -> 0 | AN198: =Buffer!AJ158 -> 0 | AO198: =Buffer!AK158 -> 0 | AP198: =Buffer!AL158 -> 0 | AQ198: =Buffer!AM158 -> 0 | AR198: =Buffer!AN158 -> 0 | AS198: =Buffer!AO158 -> 0 | AT198: =Buffer!AP158 -> 0 | AU198: =Buffer!AQ158 -> 0 | AV198: =Buffer!AR158 -> 0 | AW198: =Buffer!AS158 -> 0 | AX198: =Buffer!AT158 -> 0 | AY198: =Buffer!AU158 -> 0 | AZ198: =Buffer!AV158 -> 0 | BA198: =Buffer!AW158 -> 0 | BB198: =Buffer!AX158 -> 0 | BC198: =Buffer!AY158 -> 0 | BD198: =Buffer!AZ158 -> 0 | BE198: =Buffer!BA158 -> 0 | BF198: =Buffer!BB158 -> 0 | BG198: =Buffer!BC158 -> 0 | BH198: =Buffer!BD158 -> 0 | BI198: =Buffer!BE158 -> 0 | BJ198: =Buffer!BF158 -> 0 | BK198: =Buffer!BG158 -> 0 | BL198: =Buffer!BH158 -> 0 | BM198: =Buffer!BI158 -> 0 | BN198: =Buffer!BJ158 -> 0 | BO198: =Buffer!BK158 -> 0 | BP198: =Buffer!BL158 -> 0 | BQ198: =Buffer!BM158 -> 0 | BR198: =Buffer!BN158 -> 0 | BS198: =Buffer!BO158 -> 0 | BT198: =Buffer!BP158 -> 0 | BU198: =Buffer!BQ158 -> 0 | BV198: =Buffer!BR158 -> 0 | BW198: =Buffer!BS158 -> 0 | BX198: =Buffer!BT158 -> 0 | BY198: =Buffer!BU158 -> 0 | BZ198: =Buffer!BV158 -> 0 | CA198: =Buffer!BW158 -> 0 | CB198: =Buffer!BX158 -> 0 | CC198: =Buffer!BY158 -> 0 | CD198: =Buffer!BZ158 -> 0 | CE198: =Buffer!CA158 -> 0 | CF198: =Buffer!CB158 -> 0 | CG198: =Buffer!CC158 -> 0 | CH198: =Buffer!CD158 -> 0 | CI198: =Buffer!CE158 -> 0 | CJ198: =Buffer!CF158 -> 0 | CK198: =Buffer!CG158 -> 0 | CL198: =Buffer!CH158 -> 0 | CM198: =Buffer!CI158 -> 0 | CN198: =Buffer!CJ158 -> 0 | CO198: =Buffer!CK158 -> 0 | CP198: =Buffer!CL158 -> 0 | CQ198: =Buffer!CM158 -> 0 | CR198: =Buffer!CN158 -> 0 | CS198: =Buffer!CO158 -> 0 | CT198: =Buffer!CP158 -> 0 | CU198: =Buffer!CQ158 -> 0 | CV198: =Buffer!CR158 -> 0 | CW198: =Buffer!CS158 -> 0 | CX198: =Buffer!CT158 -> 0 | CY198: =Buffer!CU158 -> 0 | CZ198: =Buffer!CV158 -> 0 | DA198: =Buffer!CW158 -> 0 | DB198: =Buffer!CX158 -> 0 | DC198: =Buffer!CY158 -> 0 | DD198: =Buffer!CZ158 -> 0 | DE198: =Buffer!DA158 -> 0 | DF198: =Buffer!DB158 -> 0
A199: Pickpocketing | C199: 0 | D199: 0 | H199: =Buffer!D159 -> 0 | I199: =Buffer!E159 -> 0 | J199: =Buffer!F159 -> 0 | K199: =Buffer!G159 -> 0 | L199: =Buffer!H159 -> 0 | M199: =Buffer!I159 -> 0 | N199: =Buffer!J159 -> 0 | O199: =Buffer!K159 -> 0 | P199: =Buffer!L159 -> 0 | Q199: =Buffer!M159 -> 0 | R199: =Buffer!N159 -> 0 | S199: =Buffer!O159 -> 0 | T199: =Buffer!P159 -> 0 | U199: =Buffer!Q159 -> 0 | V199: =Buffer!R159 -> 0 | W199: =Buffer!S159 -> 0 | X199: =Buffer!T159 -> 0 | Y199: =Buffer!U159 -> 0 | Z199: =Buffer!V159 -> 0 | AA199: =Buffer!W159 -> 0 | AB199: =Buffer!X159 -> 0 | AC199: =Buffer!Y159 -> 0 | AD199: =Buffer!Z159 -> 0 | AE199: =Buffer!AA159 -> 0 | AF199: =Buffer!AB159 -> 0 | AG199: =Buffer!AC159 -> 0 | AH199: =Buffer!AD159 -> 0 | AI199: =Buffer!AE159 -> 0 | AJ199: =Buffer!AF159 -> 0 | AK199: =Buffer!AG159 -> 0 | AL199: =Buffer!AH159 -> 0 | AM199: =Buffer!AI159 -> 0 | AN199: =Buffer!AJ159 -> 0 | AO199: =Buffer!AK159 -> 0 | AP199: =Buffer!AL159 -> 0 | AQ199: =Buffer!AM159 -> 0 | AR199: =Buffer!AN159 -> 0 | AS199: =Buffer!AO159 -> 0 | AT199: =Buffer!AP159 -> 0 | AU199: =Buffer!AQ159 -> 0 | AV199: =Buffer!AR159 -> 0 | AW199: =Buffer!AS159 -> 0 | AX199: =Buffer!AT159 -> 0 | AY199: =Buffer!AU159 -> 0 | AZ199: =Buffer!AV159 -> 0 | BA199: =Buffer!AW159 -> 0 | BB199: =Buffer!AX159 -> 0 | BC199: =Buffer!AY159 -> 0 | BD199: =Buffer!AZ159 -> 0 | BE199: =Buffer!BA159 -> 0 | BF199: =Buffer!BB159 -> 0 | BG199: =Buffer!BC159 -> 0 | BH199: =Buffer!BD159 -> 0 | BI199: =Buffer!BE159 -> 0 | BJ199: =Buffer!BF159 -> 0 | BK199: =Buffer!BG159 -> 0 | BL199: =Buffer!BH159 -> 0 | BM199: =Buffer!BI159 -> 0 | BN199: =Buffer!BJ159 -> 0 | BO199: =Buffer!BK159 -> 0 | BP199: =Buffer!BL159 -> 0 | BQ199: =Buffer!BM159 -> 0 | BR199: =Buffer!BN159 -> 0 | BS199: =Buffer!BO159 -> 0 | BT199: =Buffer!BP159 -> 0 | BU199: =Buffer!BQ159 -> 0 | BV199: =Buffer!BR159 -> 0 | BW199: =Buffer!BS159 -> 0 | BX199: =Buffer!BT159 -> 0 | BY199: =Buffer!BU159 -> 0 | BZ199: =Buffer!BV159 -> 0 | CA199: =Buffer!BW159 -> 0 | CB199: =Buffer!BX159 -> 0 | CC199: =Buffer!BY159 -> 0 | CD199: =Buffer!BZ159 -> 0 | CE199: =Buffer!CA159 -> 0 | CF199: =Buffer!CB159 -> 0 | CG199: =Buffer!CC159 -> 0 | CH199: =Buffer!CD159 -> 0 | CI199: =Buffer!CE159 -> 0 | CJ199: =Buffer!CF159 -> 0 | CK199: =Buffer!CG159 -> 0 | CL199: =Buffer!CH159 -> 0 | CM199: =Buffer!CI159 -> 0 | CN199: =Buffer!CJ159 -> 0 | CO199: =Buffer!CK159 -> 0 | CP199: =Buffer!CL159 -> 0 | CQ199: =Buffer!CM159 -> 0 | CR199: =Buffer!CN159 -> 0 | CS199: =Buffer!CO159 -> 0 | CT199: =Buffer!CP159 -> 0 | CU199: =Buffer!CQ159 -> 0 | CV199: =Buffer!CR159 -> 0 | CW199: =Buffer!CS159 -> 0 | CX199: =Buffer!CT159 -> 0 | CY199: =Buffer!CU159 -> 0 | CZ199: =Buffer!CV159 -> 0 | DA199: =Buffer!CW159 -> 0 | DB199: =Buffer!CX159 -> 0 | DC199: =Buffer!CY159 -> 0 | DD199: =Buffer!CZ159 -> 0 | DE199: =Buffer!DA159 -> 0 | DF199: =Buffer!DB159 -> 0
A200: Survival | C200: 0 | D200: 0 | H200: =Buffer!D160 -> 0 | I200: =Buffer!E160 -> 0 | J200: =Buffer!F160 -> 0 | K200: =Buffer!G160 -> 0 | L200: =Buffer!H160 -> 0 | M200: =Buffer!I160 -> 0 | N200: =Buffer!J160 -> 0 | O200: =Buffer!K160 -> 0 | P200: =Buffer!L160 -> 0 | Q200: =Buffer!M160 -> 0 | R200: =Buffer!N160 -> 0 | S200: =Buffer!O160 -> 0 | T200: =Buffer!P160 -> 0 | U200: =Buffer!Q160 -> 0 | V200: =Buffer!R160 -> 0 | W200: =Buffer!S160 -> 0 | X200: =Buffer!T160 -> 0 | Y200: =Buffer!U160 -> 0 | Z200: =Buffer!V160 -> 0 | AA200: =Buffer!W160 -> 0 | AB200: =Buffer!X160 -> 0 | AC200: =Buffer!Y160 -> 0 | AD200: =Buffer!Z160 -> 0 | AE200: =Buffer!AA160 -> 0 | AF200: =Buffer!AB160 -> 0 | AG200: =Buffer!AC160 -> 0 | AH200: =Buffer!AD160 -> 0 | AI200: =Buffer!AE160 -> 0 | AJ200: =Buffer!AF160 -> 0 | AK200: =Buffer!AG160 -> 0 | AL200: =Buffer!AH160 -> 0 | AM200: =Buffer!AI160 -> 0 | AN200: =Buffer!AJ160 -> 0 | AO200: =Buffer!AK160 -> 0 | AP200: =Buffer!AL160 -> 0 | AQ200: =Buffer!AM160 -> 0 | AR200: =Buffer!AN160 -> 0 | AS200: =Buffer!AO160 -> 0 | AT200: =Buffer!AP160 -> 0 | AU200: =Buffer!AQ160 -> 0 | AV200: =Buffer!AR160 -> 0 | AW200: =Buffer!AS160 -> 0 | AX200: =Buffer!AT160 -> 0 | AY200: =Buffer!AU160 -> 0 | AZ200: =Buffer!AV160 -> 0 | BA200: =Buffer!AW160 -> 0 | BB200: =Buffer!AX160 -> 0 | BC200: =Buffer!AY160 -> 0 | BD200: =Buffer!AZ160 -> 0 | BE200: =Buffer!BA160 -> 0 | BF200: =Buffer!BB160 -> 0 | BG200: =Buffer!BC160 -> 0 | BH200: =Buffer!BD160 -> 0 | BI200: =Buffer!BE160 -> 0 | BJ200: =Buffer!BF160 -> 0 | BK200: =Buffer!BG160 -> 0 | BL200: =Buffer!BH160 -> 0 | BM200: =Buffer!BI160 -> 0 | BN200: =Buffer!BJ160 -> 0 | BO200: =Buffer!BK160 -> 0 | BP200: =Buffer!BL160 -> 0 | BQ200: =Buffer!BM160 -> 0 | BR200: =Buffer!BN160 -> 0 | BS200: =Buffer!BO160 -> 0 | BT200: =Buffer!BP160 -> 0 | BU200: =Buffer!BQ160 -> 0 | BV200: =Buffer!BR160 -> 0 | BW200: =Buffer!BS160 -> 0 | BX200: =Buffer!BT160 -> 0 | BY200: =Buffer!BU160 -> 0 | BZ200: =Buffer!BV160 -> 0 | CA200: =Buffer!BW160 -> 0 | CB200: =Buffer!BX160 -> 0 | CC200: =Buffer!BY160 -> 0 | CD200: =Buffer!BZ160 -> 0 | CE200: =Buffer!CA160 -> 0 | CF200: =Buffer!CB160 -> 0 | CG200: =Buffer!CC160 -> 0 | CH200: =Buffer!CD160 -> 0 | CI200: =Buffer!CE160 -> 0 | CJ200: =Buffer!CF160 -> 0 | CK200: =Buffer!CG160 -> 0 | CL200: =Buffer!CH160 -> 0 | CM200: =Buffer!CI160 -> 0 | CN200: =Buffer!CJ160 -> 0 | CO200: =Buffer!CK160 -> 0 | CP200: =Buffer!CL160 -> 0 | CQ200: =Buffer!CM160 -> 0 | CR200: =Buffer!CN160 -> 0 | CS200: =Buffer!CO160 -> 0 | CT200: =Buffer!CP160 -> 0 | CU200: =Buffer!CQ160 -> 0 | CV200: =Buffer!CR160 -> 0 | CW200: =Buffer!CS160 -> 0 | CX200: =Buffer!CT160 -> 0 | CY200: =Buffer!CU160 -> 0 | CZ200: =Buffer!CV160 -> 0 | DA200: =Buffer!CW160 -> 0 | DB200: =Buffer!CX160 -> 0 | DC200: =Buffer!CY160 -> 0 | DD200: =Buffer!CZ160 -> 0 | DE200: =Buffer!DA160 -> 0 | DF200: =Buffer!DB160 -> 0
A201: Arcane Symbols | C201: 0 | D201: 0 | H201: =Buffer!D161 -> 0 | I201: =Buffer!E161 -> 0 | J201: =Buffer!F161 -> 0 | K201: =Buffer!G161 -> 0 | L201: =Buffer!H161 -> 0 | M201: =Buffer!I161 -> 0 | N201: =Buffer!J161 -> 0 | O201: =Buffer!K161 -> 0 | P201: =Buffer!L161 -> 0 | Q201: =Buffer!M161 -> 0 | R201: =Buffer!N161 -> 0 | S201: =Buffer!O161 -> 0 | T201: =Buffer!P161 -> 0 | U201: =Buffer!Q161 -> 0 | V201: =Buffer!R161 -> 0 | W201: =Buffer!S161 -> 0 | X201: =Buffer!T161 -> 0 | Y201: =Buffer!U161 -> 0 | Z201: =Buffer!V161 -> 0 | AA201: =Buffer!W161 -> 0 | AB201: =Buffer!X161 -> 0 | AC201: =Buffer!Y161 -> 0 | AD201: =Buffer!Z161 -> 0 | AE201: =Buffer!AA161 -> 0 | AF201: =Buffer!AB161 -> 0 | AG201: =Buffer!AC161 -> 0 | AH201: =Buffer!AD161 -> 0 | AI201: =Buffer!AE161 -> 0 | AJ201: =Buffer!AF161 -> 0 | AK201: =Buffer!AG161 -> 0 | AL201: =Buffer!AH161 -> 0 | AM201: =Buffer!AI161 -> 0 | AN201: =Buffer!AJ161 -> 0 | AO201: =Buffer!AK161 -> 0 | AP201: =Buffer!AL161 -> 0 | AQ201: =Buffer!AM161 -> 0 | AR201: =Buffer!AN161 -> 0 | AS201: =Buffer!AO161 -> 0 | AT201: =Buffer!AP161 -> 0 | AU201: =Buffer!AQ161 -> 0 | AV201: =Buffer!AR161 -> 0 | AW201: =Buffer!AS161 -> 0 | AX201: =Buffer!AT161 -> 0 | AY201: =Buffer!AU161 -> 0 | AZ201: =Buffer!AV161 -> 0 | BA201: =Buffer!AW161 -> 0 | BB201: =Buffer!AX161 -> 0 | BC201: =Buffer!AY161 -> 0 | BD201: =Buffer!AZ161 -> 0 | BE201: =Buffer!BA161 -> 0 | BF201: =Buffer!BB161 -> 0 | BG201: =Buffer!BC161 -> 0 | BH201: =Buffer!BD161 -> 0 | BI201: =Buffer!BE161 -> 0 | BJ201: =Buffer!BF161 -> 0 | BK201: =Buffer!BG161 -> 0 | BL201: =Buffer!BH161 -> 0 | BM201: =Buffer!BI161 -> 0 | BN201: =Buffer!BJ161 -> 0 | BO201: =Buffer!BK161 -> 0 | BP201: =Buffer!BL161 -> 0 | BQ201: =Buffer!BM161 -> 0 | BR201: =Buffer!BN161 -> 0 | BS201: =Buffer!BO161 -> 0 | BT201: =Buffer!BP161 -> 0 | BU201: =Buffer!BQ161 -> 0 | BV201: =Buffer!BR161 -> 0 | BW201: =Buffer!BS161 -> 0 | BX201: =Buffer!BT161 -> 0 | BY201: =Buffer!BU161 -> 0 | BZ201: =Buffer!BV161 -> 0 | CA201: =Buffer!BW161 -> 0 | CB201: =Buffer!BX161 -> 0 | CC201: =Buffer!BY161 -> 0 | CD201: =Buffer!BZ161 -> 0 | CE201: =Buffer!CA161 -> 0 | CF201: =Buffer!CB161 -> 0 | CG201: =Buffer!CC161 -> 0 | CH201: =Buffer!CD161 -> 0 | CI201: =Buffer!CE161 -> 0 | CJ201: =Buffer!CF161 -> 0 | CK201: =Buffer!CG161 -> 0 | CL201: =Buffer!CH161 -> 0 | CM201: =Buffer!CI161 -> 0 | CN201: =Buffer!CJ161 -> 0 | CO201: =Buffer!CK161 -> 0 | CP201: =Buffer!CL161 -> 0 | CQ201: =Buffer!CM161 -> 0 | CR201: =Buffer!CN161 -> 0 | CS201: =Buffer!CO161 -> 0 | CT201: =Buffer!CP161 -> 0 | CU201: =Buffer!CQ161 -> 0 | CV201: =Buffer!CR161 -> 0 | CW201: =Buffer!CS161 -> 0 | CX201: =Buffer!CT161 -> 0 | CY201: =Buffer!CU161 -> 0 | CZ201: =Buffer!CV161 -> 0 | DA201: =Buffer!CW161 -> 0 | DB201: =Buffer!CX161 -> 0 | DC201: =Buffer!CY161 -> 0 | DD201: =Buffer!CZ161 -> 0 | DE201: =Buffer!DA161 -> 0 | DF201: =Buffer!DB161 -> 0
... 28 more rows

Sheet Round Time Calculator
G1: Spell Modifiers | K1: Target Level | M1: =Trainer!B13 -> 10
A2: Physical Data
A4: Armor Weight | B4: 10
A5: Other Carried Weight | B5: 0
A7: Weapon Modifiers | I7: vs. | K7: Armor
D9: 3 | I9: DF = | J9: =INDEX(tbWeaponDF,WEAPON_DATA_INDEX,AG) -> 0.45 | K9: Ranks
E10: Armor RT | J10: =INDEX(tbArmor,ARMOR_INDEX,20) -> 0 | K10: =Buffer!B287 -> 0 | M10: Combat Sample
A11: AsG | B11: =INDEX(tbArmor,ARMOR_INDEX,1) -> 1 | E11: Armor Other Penalties | K11: =Buffer!B288 -> 0
A12: AG | B12: =INDEX(tbArmor,ARMOR_INDEX,2) -> 1 | E12: Action Penalty | J12: =INDEX(tbArmor,ARMOR_INDEX,19) -> 0 | L12: Roll | N12: 101
A13: CvA | B13: =INDEX(tbArmor,ARMOR_INDEX,21) -> 25 | E13: =CHOOSE(ProfIdx,"MnSpirit Hindrance","MnSpirit Hindrance","MnElemental Hindrance","MnSpirit Hindrance","MnSpirit Hindrance","MnSpirit Hindrance","MnSpirit Hindrance","MnElemental Hindrance","MnSpirit Hindrance","MnMental Hindrance","MnMental Hindrance") -> MnSpirit Hindrance | J13: =INDEX(tbArmor,ARMOR_INDEX,CHOOSE(ProfIdx,3,3,6,3,3,3,3,6,3,13,13)) -> 0 | K13: =Buffer!B289 -> 0 | L13: Damage | N13: =DF*(ROLL-100) -> 0.45
A14: AvD | B14: =INDEX(tbWeaponAvD,WEAPON_DATA_INDEX,IF(AsG<5,1,AsG-3)) -> 36 | E14: =CHOOSE(ProfIdx,"MnElemental Hindrance","MnElemental Hindrance","MjElemental Hindrance","MjSpirit Hindrance","MjSpirit Hindrance","MnElemental Hindrance","Ranger Hindrance","Bard Hindrance","Paladin Hindrance","Monk Hindrance","MjMental Hindrance") -> MnElemental Hindrance | J14: =INDEX(tbArmor,ARMOR_INDEX,CHOOSE(ProfIdx,6,6,7,4,4,6,8,12,17,16,14)) -> 0 | K14: =Buffer!B290 -> 0 | L14: Crit. Rank | N14: =MIN(FLOOR(DMG/IF(CRA_5,5,INDEX(tbArmor,ARMOR_INDEX,26)),1),9) -> 0
A15: Coverage | B15: =INDEX(tbArmor,ARMOR_INDEX,23) -> Normal Clothes | E15: =CHOOSE(ProfIdx,"n.a.","n.a.","Wizard Hindrance","Cleric Hindrance","Empath Hindrance","Sorcerer Hindrance","n.a.","n.a.","n.a.","n.a.","Savant Hindrance") -> n.a. | J15: =IF(OR(ProfIdx=1,ProfIdx=2,ProfIdx=7,ProfIdx=8,ProfIdx=9,ProfIdx=10),"n/a",INDEX(tbArmor,ARMOR_INDEX,CHOOSE(ProfIdx,-1,-1,11,5,10,9,-1,-1,-1,-1,15))) -> n/a | K15: =Buffer!B291 -> n/a
C16: Inter-Level | E16: Max Hindrance: | J16: =INDEX(tbArmor,ARMOR_INDEX,18) -> 0
A18: RT | C18: =TARGET_LEVEL -> 10 | D18: =Trainer!I52 -> 0 | E18: =D18+1 -> 1 | F18: 2 | G18: 3 | H18: 4 | I18: 5 | J18: 6 | K18: 7 | L18: 8 | M18: 9 | N18: 10 | O18: =N18+1 -> 11 | P18: 12 | Q18: 13 | R18: 14 | S18: 15 | T18: 16 | U18: 17 | V18: 18 | W18: 19 | X18: 20 | Y18: =X18+1 -> 21 | Z18: 22 | AA18: 23 | AB18: 24 | AC18: 25 | AD18: 26 | AE18: =AD18+1 -> 27 | AF18: 28 | AG18: 29 | AH18: 30 | AI18: 31 | AJ18: 32 | AK18: 33 | AL18: 34 | AM18: 35 | AN18: 36 | AO18: 37 | AP18: 38 | AQ18: 39 | AR18: 40 | AS18: 41 | AT18: 42 | AU18: 43 | AV18: 44 | AW18: 45 | AX18: 46 | AY18: 47 | AZ18: 48 | BA18: 49 | BB18: 50 | BC18: 51 | BD18: 52 | BE18: 53 | BF18: 54 | BG18: 55 | BH18: 56 | BI18: 57 | BJ18: 58 | BK18: 59 | BL18: 60 | BM18: 61 | BN18: 62 | BO18: 63 | BP18: 64 | BQ18: 65 | BR18: 66 | BS18: 67 | BT18: 68 | BU18: 69 | BV18: 70 | BW18: 71 | BX18: 72 | BY18: 73 | BZ18: 74 | CA18: 75 | CB18: 76 | CC18: 77 | CD18: 78 | CE18: 79 | CF18: 80 | CG18: 81 | CH18: 82 | CI18: 83 | CJ18: 84 | CK18: 85 | CL18: 86 | CM18: 87 | CN18: 88 | CO18: 89 | CP18: 90 | CQ18: =CP18+1 -> 91 | CR18: 92 | CS18: 93 | CT18: 94 | CU18: 95 | CV18: 96 | CW18: 97 | CX18: 98 | CY18: 99 | CZ18: 100 | DA18: Post
